Workbook

Sheet INFO
E1: =MENU!B5 -> Direzione generale per la politica industriale, la competitività e le PMI
E2: =MENU!B7 -> Divisione IX “Industrie aerospazio, difesa e sicurezza”
A5: ATTENZIONE!
A6: Per accedere ai fogli di compilazione dei dati richiesti è necessario attivare le macro. Per attivare le macro scegliere "attiva macro" all'apertura del file. Nel caso in cui all'apertura del file non comparisse alcun messaggio per attivare le macro, utilizzare la seguente procedura:
A11: A. MS Excel 2000, 2002 e 2003:
A12: - attivare il menu "Strumenti - Macro - Protezione" - scegliere il livello di protezione "medio"; - chiudere il file Excel e riaprirlo scegliendo all'apertura "attiva macro"
A13: MS Excel 2007 / 2010 (2013 / 2016 / 2019):
A14: - attivare il tasto di Office sull'angolo in alto a sinistra di MS Excel (2013 / 2016 / 2019: File) - scegliere "Opzioni di Excel" (2013 / 2016 / 2019: Opzioni) - scegliere "Centro di protezione" (2013 / 2016 / 2019: Centro protezione) - scegliere "Impostazioni centro protezione" - scegliere "Impostazioni macro" (2013 / 2016 / 2019: Impostazioni delle macro) - scegliere "disattiva tutte le macro con notifica" (2013 / 2016 / 2019: Disabilita tutte le macro con notifica") - chiudere il file Excel e riaprirlo - (2013 / 2016 / 2019: Scegliere sulla barra degli avvisi di protezioni "Abilita contenuto") - scegliere sulla barra degli avvisi di protezioni "opzioni" - scegliere "attiva macro"

Sheet MENU (hidden)
F2: Ministero dello Sviluppo economico | L2: Rel. del giugno 2019 | M2: 10
C3: 3
B5: Direzione generale per la politica industriale, la competitività e le PMI
B7: Divisione IX “Industrie aerospazio, difesa e sicurezza”
B9: D.M. 20.2.2019 Regime di aiuto per progetti di ricerca e sviluppo nel settore aerospaziale.
C13: MODULO DI COMPILAZIONE DELLA DOMANDA EX L. 808/85
C16: Istruzioni per la compilazione della domanda
C18: MODULI DA COMPILARE | H18: STATO COMPILAZIONE | U18: =CONCATENATE(ALL_A!$K$7:$K$400) -> 
C20: Allegato A: Dati generali sul Progetto e sull'impresa richiedente | H20: =IF(ALL_A!$L$402<>"","Riscontrati errori/incoerenze",IF(ALL_A!$K$402<>"","Compilazione da completare","Ok")) -> Compilazione da completare | L20: =IF(H20<>"Ok","doppio click qui per maggiori dettagli","") -> doppio click qui per maggiori dettagli | U20: =CONCATENATE(ALL_A!$K$7:$K$400) -> 
D21: ALLEGATO A.1: ELEMENTI PATRIMONIALI | H21: =IF(ALL_A.1!M52<>"","Riscontrati errori/incoerenze",IF(ALL_A.1!L52<>"","Compilazione da completare","Ok")) -> Compilazione da completare | L21: =IF(H21<>"Ok","doppio click qui per maggiori dettagli","") -> doppio click qui per maggiori dettagli | U21: =CONCATENATE(ALL_A!$K$7:$K$400) -> 
D22: ALLEGATO A.2: ELEMENTI DEL CONTO ECONOMICO | H22: =IF(ALL_A.2!L56<>"","Riscontrati errori/incoerenze",IF(ALL_A.2!K56<>"","Compilazione da completare","Ok")) -> Compilazione da completare | L22: =IF(H22<>"Ok","doppio click qui per maggiori dettagli","") -> doppio click qui per maggiori dettagli
C23: Allegato C: Previsioni di costo del Progetto | H23: =IF(ALL_C!$X$581<>"","Riscontrati errori/incoerenze",IF(ALL_C!$W$581<>"","Compilazione da completare","Ok")) -> Compilazione da completare | L23: =IF(H23<>"Ok","doppio click qui per maggiori dettagli","") -> doppio click qui per maggiori dettagli
C24: Allegato D: Previsioni delle vendite del Programma | H24: =IF(ALL_D!$AJ$17<>"","Riscontrati errori/incoerenze",IF(ALL_D!$AI$17<>"","Compilazione da completare","Ok")) -> Compilazione da completare | L24: =IF(H24<>"Ok","doppio click qui per maggiori dettagli","") -> doppio click qui per maggiori dettagli
C28: Per l'allegato B compilare l'apposito formulario in formato Word.

Sheet Istruzioni (hidden)
C2: Ministero dello Sviluppo economico
E3: =MENU!B5 -> Direzione generale per la politica industriale, la competitività e le PMI
E5: =MENU!B7 -> Divisione IX “Industrie aerospazio, difesa e sicurezza”
B6: Torna al menu principale | E6: DOMANDA DI ACCESSO AI PROGETTI DI RICERCA E SVILUPPO EX. L. 808/85 - Istruzioni per la compilazione -
C8: ISTRUZIONI PER LA COMPILAZIONE DELLA DOMANDA
B10: AVVERTENZE
B11: Il file è predisposto per acquisire le informazioni societarie e sui costi del progetto nel sistema di gestione della Legge 808/85, oltre che per un controllo preliminare sui vincoli del bando e pertanto deve mantenere inalterata la propria struttura, tanto che per questo motivo i fogli di lavoro sono protetti. Al riguardo si raccomanda quindi di non alterare in alcun modo la struttura dei fogli, perché ciò potrebbe pregiudicare la possibilità di acquisizione dei dati nel sistema, costringendo così l’ufficio a chiedere una copia corretta alla Società proponente.
B12: NAVIGAZIONE
B13: Attraverso il MENU è possibile navigare gli allegati utilizzando gli appositi collegamenti ipertestuali o attraverso le singole schede Excel. Da ciascun foglio è possibile tornare al menu principale utilizzando il comando "Torna al menu principale" posto in alto a sinistra di ciascun foglio, sotto il logo del Ministero dello Sviluppo Economico.
B16: COMPILAZIONE
B17: Si raccomanda di prestare attenzione alle unità di misura e agli ordini di grandezza con cui vanno inseriti i valori delle informazioni richieste. Inoltre, si raccomanda di non aggiungere o eliminare celle, righe o colonne e di non copiare ed incollare valori o riferimenti da fogli esterni nelle celle. Iniziare la compilazione dall'Allegato A, inserendo i dati generali sul Programma e sull'Azienda e attivando il pulsante "SALVA I DATI DI BASE ED AVVIA COMPILAZIONE": se sono stati inseriti tutti i dati richiesti, verranno resi visibili anche gli altri fogli e le altre informazioni oggetto di compilazione sull'allegato A. I fogli sono protetti ed è quindi necessario compilare le sole celle con lo sfondo giallo o verde. Tutte le altre celle sono calcolate e, conseguentemente, immodificabili. L'allegato A che raccoglie le notizie generali sul programma e sull'azienda è composto di tre parti: notizie sull'azienda in senso stretto (foglio ALL_A); alcuni elementi (non tutte le voci del bilancio) dello stato patrimoniale (foglio ALL_A.1); ed alcuni elementi (non tutte le voci di bilancio) del conto economico (foglio ALL_A.2). Compilando i dati economici, i dati del fatturato vengono automaticamente copiati nelle rispettive celle della tabella Fatturato dell'ALL_A, pertanto si consiglia prima di compilare gli ALL_A.2 e ALL_A.1. Nel caso si tratti di una domanda presentata dall’impresa capofila di un’associazione di imprese, sarà resa visibile una tabella in cui inserire il totale dei costi sostenuti da ciascuna Società partecipante al progetto per valutarne il costo totale. Il totale dei costi sostenuti dalla società capofila, saranno copiati automaticamente dall’ALL_C pertanto si consiglia quindi di compilare preliminarmente i fogli dell’ALL_C e ALL_ C_ PERSONALE per consentire la valorizzazione della cella corrispondente. Si raccomanda di prestare attenzione alle unità di misura e agli ordini di grandezza con cui vanno inseriti i valori delle informazioni richieste. L'allegato B – Relazione Tecnica, non è presente in questo file e andrà compilato utilizzando l'apposito file Word scaricabile dal sito. L'allegato C raccoglie le informazioni sui costi del programma di finanziamento. Si consiglia di cominciare la compilazione dal'ALL_C_PERSONALE, dove verranno esposti i costi del personale (il link per accedervi si trova dopo le tabelle di sintesi C.1 - C.5). Al termine della sua compilazione, le tabelle riassuntive C.1, C.3, C.4 e C.5 risulteranno compilate per quanto concerne questi costi del personale. Successivamente, occorre compilare le tabelle con il dettaglio dei costi per materiali, strumenti ed attrezzature e servizi di consulenza. Queste informazioni verranno inserite automaticamente nelle tabelle C.1 e C.5 (in quest'ultima provvisoriamente). Il prospetto della previsione dei costi viene completato inserendo i costi totali dei materiali, degli strumenti ed attrezzature e dei servizi di consulenza per tipologia di attività. Si fa notare che la tabella C.5, essendo calcolata come differenza tra i costi totali, fino al completamento dell'inserimento dei valori, presenterà informazioni provvisorie. L'allegato D, infine, consente di inserire le informazioni sulle previsioni delle vendite in un arco temporale massimo di 30 anni.
B23: VERIFICA COMPLETAMENTO E CORRETTEZZA COMPILAZIONE
B24: Al termine della compilazione si potrà verificare la completezza e la correttezza della compilazione attraverso il MENU; in particolare andrà verificata la colonna "STATO COMPILAZIONE" in corrispondenza di ciascuno dei moduli compilati. In generale, il file sarà pronto per la trasmissione una volta verificato che in corrispondenza della colonna "STATO COMPILAZIONE" tutti i moduli abbiano lo stato "Ok" che sarà facilmente verificabile dallo sfondo di colore verde delle singole celle. Nel caso in cui dalla colonna "STATO COMPILAZIONE" risultino dei dati incompleti / errati, si potrà visualizzare un messaggio esplicativo facendo un "doppio clic" sulla cella a fianco riportante la dicitura: "doppio click qui per maggiori dettagli". Gli errori o la presenza di dati incompleti, non consentono l’acquisizione del file nel sistema di gestione della L808/85 pertanto è necessario ottenere uno stato della compilazione corretto (stato – OK).
B28: TRASMISSIONE
B29: Al termine della compilazione e della verifica il presente file Excel insieme al file Word della domanda e dell'allegato B, oltre alle eventuali dichiarazioni di atto notorio, andranno inviati via PEC all’indirizzo: dgpicpmi.div09@pec.mise.gov.it

Sheet ALL_A (hidden)
D1: Ministero dello Sviluppo economico | K1: check compilazione | L1: check coerenza | M1: Progetto salvato | N1: imprese sing.le/ ass.te condiz.ti | O1: valori si/no condiz.ti | P1: Messaggio per PMI | R1: Anno_Domanda | T1: Esercizi_Chiusi | V1: Durata_PJ_Minima | W1: Durata_PJ_Massima | Y1: QUOTA_AERONAUTICA_Grande | Z1: QUOTA_AERONAUTICA_Piccola_Media | AB1: Min_PMI_Associate | AE1: Durata_RESTITUZIONE_Minima | AF1: Durata_RESTITUZIONE_Massima | AH1: Sviluppo_RESTITUZIONI | AI1: BONUS_a8c2
F2: =MENU!B5 -> Direzione generale per la politica industriale, la competitività e le PMI
F4: =MENU!B7 -> Divisione IX “Industrie aerospazio, difesa e sicurezza” | N4: =IF($E$9<>"","Impresa singola","") -> Impresa singola | O4: =IF(AND($E$9<>"",$G$9="Imprese associate"),"Si","") ->  | P4: Si ricorda che, in caso di Piccola o Media Impresa, è necessario sottoscrivere ed allegare alla documentazione da inviare la Dichiarazione sostitutiva ai sensi dell'art. 47 D.P.R. 445/2000, scaricabile nella stessa pagina del sito web del Ministero dove sono scaricabili i presenti moduli. | R4: 2019 | T4: =ANNO_DOMANDA-2 -> 2017 | V4: 24 | W4: 60 | Y4: 0.6 | Z4: 0.25 | AB4: 2 | AC4: 2 | AE4: 5 | AF4: 10 | AH4: =Durata_RESTITUZIONE_Minima -> 5 | AI4: =(Durata_RESTITUZIONE_Massima-AH4)*3% -> 0.15
C5: Torna al menu principale | F5: DOMANDA DI ACCESSO AI PROGETTI DI RICERCA E SVILUPPO EX. L. 808/85 - ALLEGATO A: Dati generali impresa proponente - | N5: =IF($E$9<>"","Imprese associate","") -> Imprese associate | O5: =IF(AND($E$9<>"",$G$9="Imprese associate"),"No","") ->  | T5: =T4+1 -> 2018 | AB5: 3 | AC5: 2 | AH5: =AH4+1 -> 6 | AI5: 0.12
AB6: 4 | AC6: 3 | AH6: =AH5+1 -> 7 | AI6: 0.09
A7: X | C7: Legge 808/85 – Progetto (max. 80 caratteri): | I7: Civile | K7: =IF(AND(F7="",A7<>""),C7&" ","") & IF(AND(I7="",A9<>"")," - "& H7&" ","") -> Legge 808/85 – Progetto (max. 80 caratteri): | AB7: 5 | AC7: 3 | AH7: =AH6+1 -> 8 | AI7: 0.06
AH8: =AH7+1 -> 9 | AI8: 0.03
A9: X | C9: Il progetto in oggetto è già stato finanziato per altre annualità dalla L.808/85? | E9: No | F9: Il progetto è presentato da: | H9: La presente impresa è la capofila? | K9: =IF(AND(E9="",A9<>"")," - "& C9&" ","") &IF(AND(G9="",A9<>"",E9="No")," - "& F9&" ","") &IF(AND(I9="",A9<>"",E9="No",G9="Imprese associate")," - "& H9&" ","") -> - Il progetto è presentato da: | AH9: =AH8+1 -> 10 | AI9: 0
A11: X | C11: ULTIMO ESERCIZIO CONTABILE CHIUSO | G11: DURATA DEL PIANO DELLE RESTITUZIONI (Art. 8 Comma 2 del bando) | K11: =IF(AND(F11="",A11<>"")," - "& C11&" ","") -> - ULTIMO ESERCIZIO CONTABILE CHIUSO
A12: X | K12: =IF(AND(I11="",A12<>"")," - "& G11&" ","") -> - DURATA DEL PIANO DELLE RESTITUZIONI (Art. 8 Comma 2 del bando)
A13: X | C13: DIMENSIONE DELL'IMPRESA | G13: =IF(I11="","","L’importo da rimborsare sarà ulteriormente ridotto del "&VLOOKUP(I11,RESTITUZIONI_BONUS,2,0)*100&"%") ->  | K13: =IF(AND(F13="",A13<>"")," - "& C13&" ","") -> - DIMENSIONE DELL'IMPRESA
C15: DURATA PROGETTO | F15: 1-Inizio | G15: 2-Fine
C16: ="a-Anno (Es. "&ANNO_DOMANDA&")" -> a-Anno (Es. 2019)
A17: X | C17: b-Mese (Es. 6) | K17: =IF(AND(OR(F16="",F17="",G16="",G17=""),A17<>"")," - "& C15&" ","") -> - DURATA PROGETTO | L17: =IF(A17<>"",IF(OR(F16="",F17="",G16="",G17="")=FALSE,CONCATENATE(M17,N17),""),"") ->  | M17: =IFERROR(IF((EOMONTH(DATE(G16,G17,1),0)>=EOMONTH(DATE(F16,F17,1),Durata_PJ_Minima-1))=TRUE,"","LA DURATA DEL PROGETTO E' INFERIORE ALLA MINIMA"),"") ->  | N17: =IFERROR(IF((EOMONTH(DATE(G16,G17,1),0)<=EOMONTH(DATE(F16,F17,1),Durata_PJ_Massima-1))=TRUE,"","LA DURATA DEL PROGETTO E' SUPERIORE ALLA MASSIMA"),"") -> 
F19: DURATA IN MESI
C20: ="Inserire i dati di durata del Progetto (che deve avere una durata minima di "&Durata_PJ_Minima&" mesi e massima di "&Durata_PJ_Massima&" mesi) in quest'ordine: 1. INIZIO (a. Anno b. Mese) 2. FINE (a. Anno b. Mese) Per modificare prima svuotare tutte le celle Anno e Mese." -> Inserire i dati di durata del Progetto (che deve avere una durata minima di 24 mesi e massima di 60 mesi) in quest'ordine: 1. INIZIO (a. Anno b. Mese) 2. FINE (a. Anno b. Mese) Per modificare prima svuotare tutte le celle Anno e Mese.
C38: IMPRESA PROPONENTE
A39: X | C39: DENOMINAZIONE | K39: =IF(AND(F39="",A39<>"")," - "& C39&" ","") -> - DENOMINAZIONE
A40: X | C40: SEDE LEGALE | K40: - SEDE LEGALE
C41: DIMENSIONE DELL'IMPRESA (Piccola, Media, Grande) | F41: =F13 -> 0
A42: X | C42: ISCRIZIONE CCIAA | K42: - ISCRIZIONE CCIAA
A43: X | C43: ISCRIZIONE INPS | K43: - ISCRIZIONE INPS
A44: X | C44: CAPITALE SOCIALE (euro) | K44: - CAPITALE SOCIALE (euro)
C46: ELENCO IMPRESE ASSOCIATE E COSTI PROGETTUALI: da compilarsi a cura della capofila | G46: =C13 -> DIMENSIONE DELL'IMPRESA | H46: COSTO PER IMPRESA (Importi in migliaia Euro)
C47: =F39 -> 0 | G47: =F13 -> 0 | H47: =ALL_C!T22 -> 0
L49: =IF(AND(COUNTA($C$47:$F$51)<2,I9="Si")," - "& "La capofila deve compilare l'elenco delle imprese associate." &" ","") -> 
L50: =IF(AND(OR(COUNTA($C$48:$F$51)<>COUNTA($G$48:$G$51),COUNTA($G$47:$G$51)<2),I9="Si"), " - "&"La capofila deve inserire la dimensione delle imprese associate."&" ","") -> 
L51: =IF( AND(COUNTA($G$47:$G$51)>=2,I9="Si",IFERROR(VLOOKUP(COUNTA($G$47:$G$51),Min_PMI_Associate,2,0),0)>(COUNTIF($G$47:$G$51,"Piccola")+COUNTIF($G$47:$G$51,"Media"))), " - "&"Le PMI devono essere almeno il 60%."&" ","") -> 
C53: COSTO TOTALE DEL PROGRAMMA | H53: =SUM(H47:H51) -> 0 | L53: =IF(AND(SUM($H$48:$H$51)=0,I9="Si")," - "& "La capofila deve inserire i costi delle imprese associate." &" ","") -> 
C55: SOCI E RELATIVE QUOTE (%) | L55: =IF(I9="Si",ALL_C!X23,"") -> 
C56: SOCIO | H56: (%) | L56: =IF(I9="Si",ALL_C!X22,"") -> 
A203: X | F203: TOTALE QUOTE CAPITALE SOCIALE: | H203: =SUM(H57:H202) -> 0 | K203: =IF(AND(H203=0,A203<>"")," - " & C55&" ","") -> - SOCI E RELATIVE QUOTE (%)
C205: UNITA' PRODUTTIVE
A206: X | C206: ATTIVITÀ (principali attività produttive dell’azienda) | K206: =IF(AND(F206="",A206<>"")," - "& C206&" ","") -> - ATTIVITÀ (principali attività produttive dell’azienda)
A207: X | C207: STABILIMENTI DI PRODUZIONE (ubicazione e principali linee di produzione) | K207: =IF(AND(F207="",A207<>"")," - "& C207&" ","") -> - STABILIMENTI DI PRODUZIONE (ubicazione e principali linee di produzione)
C209: PERSONALE (N° ADDETTI al 31 dicembre)
C210: (N° ADDETTI) | F210: =ANNO_DOMANDA-2 -> 2017 | G210: =F210+1 -> 2018 | H210: =G210+1 -> 2019
C211: DIRIGENTI | K211: =IF(AND(SUM(F211:H211)=0,A211<>""),C211&" ","") -> 
C212: IMPIEGATI | K212: =IF(AND(SUM(F212:H212)=0,A212<>""),C212&" ","") -> 
C213: OPERAI | K213: =IF(AND(SUM(F213:H213)=0,A213<>""),C213&" ","") -> 
A214: X | C214: TOTALE ADDETTI | F214: =SUM(F211:F213) -> 0 | G214: =SUM(G211:G213) -> 0 | H214: =SUM(H211:H213) -> 0 | K214: =IF(AND(SUM(F214:H214)=0,A214<>"")," - "& C209&" ","") -> - PERSONALE (N° ADDETTI al 31 dicembre) | L214: =IF(OR(F214<>I219,G214<>I220,H214<>I221)," - Addetti per tipologia di contratto non coerenti con addetti per livello di istruzione I219 ","") -> 
C215: di cui CIG (in numero equivalente di addetti) | K215: =IF(AND(SUM(F215:H215)=0,A240<>""),C215&" ","") ->  | L215: =IF(OR(F215>(F212+F213),G215>(G212+G213),H215>(H212+H213))," - Addetti in CIG non coerenti con operai e impiegati ","") -> 
A216: X | C216: di cui RICERCATORI/TECNICI | K216: =IF(AND(SUM(F216:H216)=0,A216<>"")," - "& C216&" ","") -> - di cui RICERCATORI/TECNICI | L216: =IF(OR(F216>(F212+F211),G216>(G212+G211),H216>(H212+H211))," - Ricercatori/Tecninci non coerenti con dirigenti e impiegati ","") -> 
C218: PERSONALE | F218: LAUREATI | G218: DIPLOMATI | H218: ALTRI | I218: TOTALE
C219: =$F$210 -> 2017 | H219: =F214-SUM(F219:G219) -> 0 | I219: =SUM(F219:H219) -> 0 | L219: =IF(H219<0," - Numero di addetti negativo sulla voce Altro per l'anno "&C219 & " ","") -> 
C220: =C219+1 -> 2018 | H220: =G214-SUM(F220:G220) -> 0 | I220: =SUM(F220:H220) -> 0 | L220: =IF(H220<0," - Numero di addetti negativo sulla voce Altro per l'anno "&C220 & " ","") -> 
C221: =C220+1 -> 2019 | H221: =H214-SUM(F221:G221) -> 0 | I221: =SUM(F221:H221) -> 0 | L221: =IF(H221<0," - Numero di addetti negativo sulla voce Altro per l'anno "&C221 & " ","") -> 
C223: PRINCIPALI PARTECIPAZIONI DELLA PROPONENTE
C224: (QUOTE DI PARTECIPAZIONE E SETTORI DI ATTIVITÀ DELLE PARTECIPATE )
C225: PARTECIPATE | G225: (%) | H225: SETTORE DI ATTIVITA'
C374: FATTURATO | I374: ALL. A.1: EL. PATR.
C375: (IMPORTI IN MIGLIAIA DI EURO) | F375: =$F$210 -> 2017 | G375: =(F375+1) -> 2018 | H375: =F375+2 & " (previsionale)" -> 2019 (previsionale) | I375: ALL. A.2: EL. ECON.
C376: FATTURATO | F376: =IF($F$11="",0,IF($F$11=F375,ALL_A.2!$H$16,ALL_A.2!$F$16))/1000 -> 0 | G376: =IF($F$11="",0,IF($F$11=G382,ALL_A.2!$H$16/1000,"")) -> 0
C377: FATTURATO CALCOLATO | F377: =F376 -> 0 | G377: =IF(G376="",0,G376) -> 0 | H377: =H376 -> 0
A378: X | C378: QUOTA % DI COSTRUZIONI AERONAUTICHE SUL TOTALE | K378: =IF(AND(SUM(F378:H378)=0,A378<>""), " - " & C378&" ","") -> - QUOTA % DI COSTRUZIONI AERONAUTICHE SUL TOTALE | L378: =IF(F13="","", IF(F13="Grande", IF((F378+G378)/2<QUOTA_AERONAUTICA_Grande," - "&C378&" incoerente con le dimensioni dell'impresa",""), IF((F378+G378)/2<QUOTA_AERONAUTICA_Piccola_Media," - "&C378&" incoerente con le dimensioni dell'impresa","") ) ) ->  | M378: =IF(G41="","",1) -> 
C379: FATTURATO PER ADDETTO | F379: =IF(F214=0,0,F377/F214) -> 0 | G379: =IF(G214=0,0,G377/G214) -> 0 | H379: =IF(H214=0,0,H377/H214) -> 0
C381: INCIDENZA ESPORTAZIONI
C382: (VALORE %) | F382: =F$375 -> 2017 | G382: =F$382+1 -> 2018 | H382: =H$375 -> 2019 (previsionale)
C383: % SU TOTALE FATTURATO | K383: =IF(AND(SUM(F383:H383)=0,A383<>""), " - " & C381&" ","") -> 
C385: INVESTIMENTI
C386: (IMPORTI IN MIGLIAIA DI EURO) | F386: =F$375 -> 2017 | G386: =F$382+1 -> 2018 | H386: =H$375 -> 2019 (previsionale)
C387: FABBRICATI INDUSTRIALI E TERRENI
C388: MACCHINARI, IMPIANTI E ATTREZZATURE DI PRODUZIONE
C389: TOTALE | F389: =SUM(F387:F388) -> 0 | G389: =SUM(G387:G388) -> 0 | H389: =SUM(H387:H388) -> 0 | K389: =IF(AND(SUM(F389:H389)=0,A389<>""),C389&" ","") -> 
C391: ATTIVITÀ DI RICERCA E SVILUPPO
C392: (IMPORTI IN MIGLIAIA DI EURO) | F392: =F$375 -> 2017 | G392: =F$382+1 -> 2018 | H392: =H$375 -> 2019 (previsionale)
C393: INVESTIMENTI R&S (Valori assoluti) | K393: =IF(AND(SUM(F393:H393)=0,A393<>""),C393&" ","") -> 
C394: % SU FATTURATO | F394: =IF(F377=0,0,F393/F377) -> 0 | G394: =IF(G377=0,0,G393/G377) -> 0 | H394: =IF(H377=0,0,H393/H377) -> 0
C396: PREVISIONE PROSSIMI TRE ESERCIZI
C397: (IMPORTI IN MIGLIAIA DI EURO) | F397: =F$375+2 -> 2019 | G397: =F397+1 -> 2020 | H397: =G397+1 -> 2021
A398: A | C398: INVESTIMENTI TOTALI | F398: =H389 -> 0
A399: A | C399: RICERCA E SVILUPPO | F399: =H393 -> 0
A400: A | C400: ORDINI
C402: ALLEGATO A.1: ELEMENTI PATRIMONIALI | K402: =CONCATENATE(K7,K9,K11,K12,K13,K17,K39,K40,K41,K42,K43,K44,K203,K206,K207,K211,K212,K213,K214,K215,K216,K373,K383,K389,K393) -> Legge 808/85 – Progetto (max. 80 caratteri): - Il progetto è presentato da: - ULTIMO ESERCIZIO CONTABILE CHIUSO - DURATA DEL PIANO DELLE RESTITUZIONI (Art. 8 Comma 2 del bando) - DIMENSIONE DELL'IMPRESA - DURATA PROGETTO - DENOMINAZIONE - SEDE LEGALE - ISCRIZIONE CCIAA - ISCRIZIONE INPS - CAPITALE SOCIALE (euro) - SOCI E RELATIVE QUOTE (%) - ATTIVITÀ (principali attività produttive dell’azienda) - STABILIMENTI DI PRODUZIONE (ubicazione e principali linee di produzione) - PERSONALE (N° ADDETTI al 31 dicembre) - di cui RICERCATORI/TECNICI | L402: =CONCATENATE(L17,L49,L50,L51,L53,L55,L56,L214,L215,L216,L219,L220,L221,L378) -> 
C403: ALLEGATO A.2: ELEMENTI DEL CONTO ECONOMICO

Sheet ALL_A.1 (hidden)
C1: Ministero dello Sviluppo economico | L1: check compilazione | M1: check coerenza
D2: =MENU!B5 -> Direzione generale per la politica industriale, la competitività e le PMI
D4: =MENU!B7 -> Divisione IX “Industrie aerospazio, difesa e sicurezza”
C5: Torna al menu principale | D5: DOMANDA DI ACCESSO AI PROGETTI DI RICERCA E SVILUPPO EX. L. 808/85 - ALLEGATO A.1: Elementi Patrimoniali -
C7: Legge 808/85 – PROGETTO: | D7: =IF(ALL_A!$F$7=0,"",ALL_A!$F$7) ->  | I7: Area: | J7: =ALL_A!$I$7 -> Civile
C9: (Importi in euro)
C11: ELEMENTI DELL'ATTIVO | D11: =IF(D12="","Attenzione: indicare ultimo esercizio chiuso in All. A","ESERCIZIO") -> Attenzione: indicare ultimo esercizio chiuso in All. A | H11: ELEMENTI DEL PASSIVO | I11: =D11 -> Attenzione: indicare ultimo esercizio chiuso in All. A
D12: =IF(ALL_A!$F$11="","",ALL_A!$F$11-1) ->  | E12: =IF(D12="","",D12+1) ->  | I12: =D12 ->  | J12: =E12 -> 
B13: A) | G13: A)
A14: 101 | B14: B) | C14: CREDITI VERSO SOCI PER VERSAMENTI ANCORA DOVUTI | F14: 131 | H14: PATRIMONIO NETTO
B15: I
A16: 105 | B16: II | C16: IMMOBILIZZAZIONI | F16: 132 | H16: FONDI RISCHI E ONERI
B17: III
A18: 111 | C18: RIMANENZE | F18: 133 | H18: TRATTAMENTO DI FINE RAPPORTO
B20: C) | C20: CREDITI | G20: B) | H20: DEBITI
A21: 112 | B21: I | C21: verso Clienti | F21: 134 | H21: Obbligazioni e obbligazioni convertibili
A22: 113 | B22: 1 | C22: di cui oltre l'esercizio successivo | F22: 135 | G22: C) | H22: di cui oltre l'esercizio successivo
A23: 114 | B23: 2 | C23: verso altri (esclusi quelli vs. clienti) | F23: 136 | H23: Debiti verso banche
A24: 115 | B24: 3 | C24: di cui oltre l'esercizio successivo | F24: 137 | G24: D) | H24: di cui oltre l'esercizio successivo
B25: 4 | C25: TOTALE CREDITI | D25: =SUM(D21,D23) -> 0 | E25: =SUM(E21,E23) -> 0 | F25: 138 | G25: 1-2 | H25: Debiti verso altri finanziatori
B26: 5 | F26: 139 | H26: di cui oltre l'esercizio successivo
F27: 142 | G27: 4 | H27: Debiti verso fornitori
B28: II | F28: 143 | H28: Debiti tributari e verso istituti di previdenza e sicurezza sociale
B29: 1 | F29: 144 | G29: 5 | H29: Altri debiti
F30: 145 | H30: di cui oltre l'esercizio successivo
B31: 2-3-4-5 | G31: 6 | H31: TOTALE DEBITI | I31: =SUM(I21,I23,I25,I27,I28,I29) -> 0 | J31: =SUM(J21,J23,J25,J27,J28,J29) -> 0
G33: 7
B34: III
B35: 6
B37: IV
B38: 1
B39: 2 | G39: E)
B40: 3
B44: D)
D46: =SUM(D14:D31) -> 0 | E46: =SUM(E14:E31) -> 0 | I46: =SUM(I14:I31) -> 0 | J46: =SUM(J14:J31) -> 0 | L46: =IF(AND(D58>0,E58>0,I58>0,J58>0),"","-Elementi Patrimoniali da compilare") -> -Elementi Patrimoniali da compilare
D50: =AND(D31>0,E31>0,I31>0,J31>0) -> FALSE | M50: =IF(OR(I50<>0,J50<>0)," - Squadratura Stato Patrimoniale ","") -> 
L52: =CONCATENATE(L46) -> -Elementi Patrimoniali da compilare | M52: =CONCATENATE(M50) -> 
D58: =D14+D16+D18+D25 -> 0 | E58: =E14+E16+E18+E25 -> 0 | I58: =I14+I16+I18+I31 -> 0 | J58: =J14+J16+J18+J31 -> 0

Sheet ALL_A.2 (hidden)
C1: Ministero dello Sviluppo economico | K1: check compilazione | L1: check coerenza
D2: =MENU!B5 -> Direzione generale per la politica industriale, la competitività e le PMI
D4: =MENU!B7 -> Divisione IX “Industrie aerospazio, difesa e sicurezza”
C5: Torna al menu principale | D5: DOMANDA DI ACCESSO AI PROGETTI DI RICERCA E SVILUPPO EX. L. 808/85 - ALLEGATO A.2: Elementi del Conto Economico -
C7: Legge 808/85 – PROGETTO: | D7: =IF(ALL_A!$F$7=0,"",ALL_A!$F$7) ->  | G7: Area: | H7: =ALL_A!$I$7 -> Civile
C10: (Importi in euro)
C12: ELEMENTI DEL CONTO ECONOMICO | F12: =ALL_A.1!D11 -> Attenzione: indicare ultimo esercizio chiuso in All. A
F13: =ALL_A.1!D12 ->  | H13: =ALL_A.1!E12 -> 
B14: A)
B15: 1 | C15: RICAVI
A16: 149 | B16: 2 | C16: Ricavi delle vendite e delle prestazioni
A17: 153 | B17: 3 | C17: Altri ricavi e proventi
B18: 4 | C18: TOTALE RICAVI | F18: =SUM(F16:F17) -> 0 | H18: =SUM(H16:H17) -> 0
A20: 154 | C20: VALORE DELLA PRODUZIONE
B21: 5
C22: COSTI DELLA PRODUZIONE | K22: =IF(OR(F56<>0,H56<>0),""," - Elementi del Conto Economico da compilare ") -> - Elementi del Conto Economico da compilare
A23: 155 | B23: B) | C23: per Materie prime, di consumo e di merci
A24: 156 | B24: 6 | C24: per Servizi
A25: 180 | B25: 7 | C25: di cui Utenze
A26: 181 | B26: 7.1 | C26: di cui Manutenzioni
A27: 157 | B27: 7.2 | C27: per Godimento beni di terzi
A28: 158 | B28: 8 | C28: per il Personale
A29: 159 | B29: 9 | C29: Ammortamenti e svalutazioni
A30: 160 | B30: 10 | C30: Variaz. rimanenze di materie, sussidiarie, di consumo e di merci
B31: 11 | C31: TOTALE COSTI DELLA PRODUZIONE CONSIDERATI | F31: =SUM(F27:F30)+F24+F23 -> 0 | H31: =SUM(H27:H30)+H24+H23 -> 0
B32: 12
A33: 170 | B33: 13 | C33: =UPPER("Totale Proventi (+) e Oneri (-) Finanziari") -> TOTALE PROVENTI (+) E ONERI (-) FINANZIARI
B34: 14
A35: 176 | C35: =UPPER("Totale Proventi (+) e Oneri (-) Straordinari") -> TOTALE PROVENTI (+) E ONERI (-) STRAORDINARI
A37: 178 | B37: C) | C37: IMPOSTE SUL REDDITO DELL'ESERCIZIO
B38: 15
A39: 179 | B39: 16 | C39: UTILE / PERDITA D'ESERCIZIO
B40: 17
B41: 17bis
B43: D)
B44: 18
B45: 19
B47: E)
B48: 20
B49: 21
B52: 22
B53: 23
F56: =F18+F20+F31+F33+F35+F37+F39 -> 0 | H56: =H18+H20+H31+H33+H35+H37+H39 -> 0 | K56: =CONCATENATE(K22) -> - Elementi del Conto Economico da compilare

Sheet ALL_C (hidden)
C1: Ministero dello Sviluppo economico | V1: fin.to L. 808/85 | W1: check compilazione | X1: check coerenza | Y1: % Maggiorazione costo pers.le | AA1: Singola | AB1: Capofila | AC1: Associata
D2: =MENU!B5 -> Direzione generale per la politica industriale, la competitività e le PMI | AA2: =IF(AND(ALL_A!$G$9="Impresa singola",ALL_A!$I$9=""),1,0) -> 0 | AB2: =IF(AND(ALL_A!$G$9="Imprese associate",ALL_A!$I$9="Si"),1,0) -> 0 | AC2: =IF(AND(ALL_A!$G$9="Imprese associate",ALL_A!$I$9="No"),1,0) -> 0
D4: =MENU!B7 -> Divisione IX “Industrie aerospazio, difesa e sicurezza” | AA4: 60000 | AB4: =AA4 -> 60000 | AC4: =AB4 -> 60000 | AD4: Massimo
C5: Torna al menu principale | D5: DOMANDA DI ACCESSO AI PROGETTI DI RICERCA E SVILUPPO EX. L. 808/85 - ALLEGATO C: Previsioni di Costo del progetto - | AA5: 1000 | AB5: 2000 | AD5: Minimo
C7: Legge 808/85 – PROGETTO: | D7: =IF(ALL_A!$F$7=0,"",ALL_A!$F$7) ->  | E7: =IF(ALL_A!$F$7=0,"",ALL_A!$F$7) ->  | S7: Area: | T7: =ALL_A!$I$7 -> Civile | V7: =ALL_A!$E$9 -> No
C9: Durata progetto | E9: Inizio | F9: Fine
C10: Anno: | E10: =IF(ALL_A!F16="","",ALL_A!F16) ->  | F10: =IF(ALL_A!G16="","",ALL_A!G16) ->  | W10: =IF(AND(A10<>"",OR(E10="",E11="",F10="",F11=""),A10<>"")," - "&C9&" non definita"&" ","") -> 
C11: Mese: | E11: =IF(ALL_A!F17="","",ALL_A!F17) ->  | F11: =IF(ALL_A!G17="","",ALL_A!G17) ->  | T11: (Importi in migliaia Euro)
C13: C-1) PREVISIONE DEI COSTI DELLE ATTIVITA' (Per tipo di costo)
C15: TIPO DI COSTO | D15: COSTI CONSUNTIVATI | E15: =ALL_A!F16 -> 0 | F15: =E15+1 -> 1 | G15: =F15+1 -> 2 | H15: 3 | I15: 4 | J15: 5 | K15: 6 | L15: 7 | M15: 8 | N15: 9 | O15: 10 | P15: 11 | Q15: 12 | R15: 13 | S15: 14 | T15: TOTALE GENER.
C16: COSTO DEL PERSONALE | D16: =D36+D45+D54 -> 0 | E16: =ALL_C_PERSONALE!F90 -> 0 | F16: =ALL_C_PERSONALE!G90 -> 0 | G16: =ALL_C_PERSONALE!H90 -> 0 | H16: =ALL_C_PERSONALE!I90 -> 0 | I16: =ALL_C_PERSONALE!J90 -> 0 | J16: =ALL_C_PERSONALE!K90 -> 0 | K16: =ALL_C_PERSONALE!L90 -> 0 | L16: =ALL_C_PERSONALE!M90 -> 0 | M16: =ALL_C_PERSONALE!N90 -> 0 | N16: =ALL_C_PERSONALE!O90 -> 0 | O16: =ALL_C_PERSONALE!P90 -> 0 | P16: =ALL_C_PERSONALE!Q90 -> 0 | Q16: =ALL_C_PERSONALE!R90 -> 0 | R16: =ALL_C_PERSONALE!S90 -> 0 | S16: =ALL_C_PERSONALE!T90 -> 0 | T16: =SUM(D16:S16) -> 0
T17: =SUM(D17:S17) -> 0
T18: 0
C19: MATERIALI | D19: =D37+D46+D55 -> 0 | E19: 0 | F19: 0 | G19: =G37+G46+G55 -> 0 | H19: 0 | I19: 0 | J19: 0 | K19: 0 | L19: 0 | M19: 0 | N19: 0 | O19: 0 | P19: 0 | Q19: 0 | R19: 0 | S19: 0 | T19: 0
C20: STRUMENTAZIONE E ATTREZZATURE | D20: 0 | E20: 0 | F20: 0 | G20: =G38+G47+G56 -> 0 | H20: 0 | I20: 0 | J20: 0 | K20: 0 | L20: 0 | M20: 0 | N20: 0 | O20: 0 | P20: 0 | Q20: 0 | R20: 0 | S20: 0 | T20: 0
C21: SERVIZI DI CONSULENZA | D21: 0 | E21: 0 | F21: 0 | G21: =G39+G48+G57 -> 0 | H21: 0 | I21: 0 | J21: 0 | K21: 0 | L21: 0 | M21: 0 | N21: 0 | O21: 0 | P21: 0 | Q21: 0 | R21: 0 | S21: 0 | T21: 0
C22: TOTALE GENERALE | D22: =SUM(D16:D21) -> 0 | E22: =SUM(E16:E21) -> 0 | F22: =SUM(F16:F21) -> 0 | G22: =SUM(G16:G21) -> 0 | H22: 0 | I22: 0 | J22: 0 | K22: 0 | L22: 0 | M22: 0 | N22: 0 | O22: 0 | P22: 0 | Q22: 0 | R22: 0 | S22: 0 | T22: 0 | W22: =IF(AND(SUM(T22)=0,A22<>"")," - "&C13&" ","") ->  | X22: =IF($A$23<>"",CONCATENATE(AA22,AB22,AC22),"") ->  | AA22: =IF(AND(AA2=1,AA4<>""),IF(AND(ALL_A!$H$53>(AA4*AA$2),ALL_A!$H$53<>0)," - COSTI TOTALI DEL PROGETTO SUPERIORI AL MASSIMO CONSENTITO."&" ",""),"") ->  | AB22: =IF(AND(AB2=1,AB4<>""),IF(AND(ALL_A!$H$53>(AB4*AB$2),ALL_A!$H$53<>0)," - COSTI TOTALI DEL PROGETTO SUPERIORI AL MASSIMO CONSENTITO."&" ",""),"") ->  | AC22: =IF(AND(AC2=1,AC4<>""),IF(AND(ALL_A!$H$53>(AC4*AC$2),ALL_A!$H$53<>0)," - COSTI TOTALI DEL PROGETTO SUPERIORI AL MASSIMO CONSENTITO."&" ",""),"") ->  | AD22: =AD4 -> Massimo
A23: X | X23: =IF($A$23<>"",CONCATENATE(AA23,AB23,AC23),"") ->  | AA23: =IF(AND(AA2=1,AA5<>""),IF(AND(ALL_A!$H$53<(AA5*ALL_C!AA$2),ALL_A!$H$53<>0)," - COSTI TOTALI DEL PROGETTO INFERIORI AL MINIMO CONSENTITO."&" ",""),"") ->  | AB23: =IF(AND(AB2=1,AB5<>""),IF(AND(ALL_A!$H$53<(AB5*ALL_C!AB$2),ALL_A!$H$53<>0)," - COSTI TOTALI DEL PROGETTO INFERIORI AL MINIMO CONSENTITO."&" ",""),"") ->  | AC23: =IF(AND(AC2=1,AC5<>""),IF(AND(ALL_A!$H$53<(AC5*ALL_C!AC$2),ALL_A!$H$53<>0)," - COSTI TOTALI DEL PROGETTO INFERIORI AL MINIMO CONSENTITO."&" ",""),"") ->  | AD23: =AD5 -> Minimo
C24: C-2) PREVISIONE DEI COSTI DELLE ATTIVITA' (Per tipi di attivita')
C26: TIPO DI COSTO | D26: =$D$15 -> COSTI CONSUNTIVATI | E26: =E$15 -> 0 | F26: =E26+1 -> 1 | G26: =F26+1 -> 2 | H26: 3 | I26: 4 | J26: 5 | K26: 6 | L26: 7 | M26: 8 | N26: 9 | O26: 10 | P26: 11 | Q26: 12 | R26: 13 | S26: 14 | T26: TOTALE GENER.
C27: STUDI DI FATTIBILITA' TECNICA | D27: =D40 -> 0 | E27: =E40 -> 0 | F27: =F40 -> 0 | G27: =G40 -> 0 | H27: 0 | I27: 0 | J27: 0 | K27: 0 | L27: 0 | M27: 0 | N27: 0 | O27: 0 | P27: 0 | Q27: 0 | R27: 0 | S27: 0 | T27: =SUM(D27:S27) -> 0 | AA27: =X23 -> 
C28: RICERCA INDUSTRIALE | D28: =D49 -> 0 | E28: =E49 -> 0 | F28: =F49 -> 0 | G28: =G49 -> 0 | H28: 0 | I28: 0 | J28: 0 | K28: 0 | L28: 0 | M28: 0 | N28: 0 | O28: 0 | P28: 0 | Q28: 0 | R28: 0 | S28: 0 | T28: =SUM(D28:S28) -> 0
C29: SVILUPPO SPERIMENTALE (1) | D29: =D58 -> 0 | E29: =E58 -> 0 | F29: =F58 -> 0 | G29: =G58 -> 0 | H29: 0 | I29: 0 | J29: 0 | K29: 0 | L29: 0 | M29: 0 | N29: 0 | O29: 0 | P29: 0 | Q29: 0 | R29: 0 | S29: 0 | T29: =SUM(D29:S29) -> 0
A30: X | C30: TOTALE GENERALE | D30: =SUM(D27:D29) -> 0 | E30: =SUM(E27:E29) -> 0 | F30: =SUM(F27:F29) -> 0 | G30: =SUM(G27:G29) -> 0 | H30: 0 | I30: 0 | J30: 0 | K30: 0 | L30: 0 | M30: 0 | N30: 0 | O30: 0 | P30: 0 | Q30: 0 | R30: 0 | S30: 0 | T30: =SUM(D30:S30) -> 0 | W30: =IF(AND(SUM(T30)=0,A30<>"")," - "&C24&" ","") -> - C-2) PREVISIONE DEI COSTI DELLE ATTIVITA' (Per tipi di attivita')
C31: (1) INCLUSA LA SPERIMENTAZIONE PROTOTIPI E PRE-SERIE
C33: C-3) DETTAGLIO COSTI STUDI DI FATTIBILITA' TECNICA (Per tipo di costo)
C35: TIPO DI COSTO | D35: =$D$15 -> COSTI CONSUNTIVATI | E35: =$E$15 -> 0 | F35: =E35+1 -> 1 | G35: =F35+1 -> 2 | H35: 3 | I35: 4 | J35: 5 | K35: 6 | L35: 7 | M35: 8 | N35: 9 | O35: 10 | P35: 11 | Q35: 12 | R35: 13 | S35: 14 | T35: TOTALE GENER.
C36: COSTO DEL PERSONALE | D36: =SUM(D32:D35) -> 0 | E36: =ALL_C_PERSONALE!F96 -> 0 | F36: =ALL_C_PERSONALE!G96 -> 0 | G36: =ALL_C_PERSONALE!H96 -> 0 | H36: =ALL_C_PERSONALE!I96 -> 0 | I36: =ALL_C_PERSONALE!J96 -> 0 | J36: =ALL_C_PERSONALE!K96 -> 0 | K36: =ALL_C_PERSONALE!L96 -> 0 | L36: =ALL_C_PERSONALE!M96 -> 0 | M36: =ALL_C_PERSONALE!N96 -> 0 | N36: =ALL_C_PERSONALE!O96 -> 0 | O36: =ALL_C_PERSONALE!P96 -> 0 | P36: =ALL_C_PERSONALE!Q96 -> 0 | Q36: =ALL_C_PERSONALE!R96 -> 0 | R36: =ALL_C_PERSONALE!S96 -> 0 | S36: =ALL_C_PERSONALE!T96 -> 0 | T36: =SUM(D36:S36) -> 0
C37: MATERIALI | E37: =E118 -> 0 | F37: =F118 -> 0 | G37: =G118 -> 0 | H37: 0 | I37: 0 | J37: 0 | K37: 0 | L37: 0 | M37: 0 | N37: 0 | O37: 0 | P37: 0 | Q37: 0 | R37: 0 | S37: 0 | T37: =SUM(D37:S37) -> 0
C38: STRUMENTAZIONE E ATTREZZATURE | E38: =E290 -> 0 | F38: =F290 -> 0 | G38: =G290 -> 0 | H38: 0 | I38: 0 | J38: 0 | K38: 0 | L38: 0 | M38: 0 | N38: 0 | O38: 0 | P38: 0 | Q38: 0 | R38: 0 | S38: 0 | T38: =SUM(D38:S38) -> 0
C39: SERVIZI DI CONSULENZA | E39: =E461 -> 0 | F39: =F461 -> 0 | G39: =G461 -> 0 | H39: 0 | I39: 0 | J39: 0 | K39: 0 | L39: 0 | M39: 0 | N39: 0 | O39: 0 | P39: 0 | Q39: 0 | R39: 0 | S39: 0 | T39: =SUM(D39:S39) -> 0
C40: TOTALE GENERALE | D40: =SUM(D36:D39) -> 0 | E40: =SUM(E36:E39) -> 0 | F40: =SUM(F36:F39) -> 0 | G40: =SUM(G36:G39) -> 0 | H40: 0 | I40: 0 | J40: 0 | K40: 0 | L40: 0 | M40: 0 | N40: 0 | O40: 0 | P40: 0 | Q40: 0 | R40: 0 | S40: 0 | T40: =SUM(D40:S40) -> 0 | W40: =IF(AND(SUM(T40)=0,A40<>"")," - "&C33&" ","") -> 
C42: C-4) DETTAGLIO COSTI RICERCA INDUSTRIALE (Per tipo di costo)
C44: TIPO DI COSTO | D44: =$D$15 -> COSTI CONSUNTIVATI | E44: =$E$15 -> 0 | F44: =E44+1 -> 1 | G44: =F44+1 -> 2 | H44: 3 | I44: 4 | J44: 5 | K44: 6 | L44: 7 | M44: 8 | N44: 9 | O44: 10 | P44: 11 | Q44: 12 | R44: 13 | S44: 14 | T44: TOTALE GENER.
C45: COSTO DEL PERSONALE | D45: =SUM(D41:D44) -> 0 | E45: =ALL_C_PERSONALE!F97 -> 0 | F45: =ALL_C_PERSONALE!G97 -> 0 | G45: =ALL_C_PERSONALE!H97 -> 0 | H45: =ALL_C_PERSONALE!I97 -> 0 | I45: =ALL_C_PERSONALE!J97 -> 0 | J45: =ALL_C_PERSONALE!K97 -> 0 | K45: =ALL_C_PERSONALE!L97 -> 0 | L45: =ALL_C_PERSONALE!M97 -> 0 | M45: =ALL_C_PERSONALE!N97 -> 0 | N45: =ALL_C_PERSONALE!O97 -> 0 | O45: =ALL_C_PERSONALE!P97 -> 0 | P45: =ALL_C_PERSONALE!Q97 -> 0 | Q45: =ALL_C_PERSONALE!R97 -> 0 | R45: =ALL_C_PERSONALE!S97 -> 0 | S45: =ALL_C_PERSONALE!T97 -> 0 | T45: =SUM(D45:S45) -> 0
C46: MATERIALI | E46: =E172 -> 0 | F46: =F172 -> 0 | G46: =G172 -> 0 | H46: 0 | I46: 0 | J46: 0 | K46: 0 | L46: 0 | M46: 0 | N46: 0 | O46: 0 | P46: 0 | Q46: 0 | R46: 0 | S46: 0 | T46: =SUM(D46:S46) -> 0
C47: STRUMENTAZIONE E ATTREZZATURE | E47: =E344 -> 0 | F47: =F344 -> 0 | G47: =G344 -> 0 | H47: 0 | I47: 0 | J47: 0 | K47: 0 | L47: 0 | M47: 0 | N47: 0 | O47: 0 | P47: 0 | Q47: 0 | R47: 0 | S47: 0 | T47: =SUM(D47:S47) -> 0
C48: SERVIZI DI CONSULENZA | E48: =E515 -> 0 | F48: =F515 -> 0 | G48: =G515 -> 0 | H48: 0 | I48: 0 | J48: 0 | K48: 0 | L48: 0 | M48: 0 | N48: 0 | O48: 0 | P48: 0 | Q48: 0 | R48: 0 | S48: 0 | T48: =SUM(D48:S48) -> 0
C49: TOTALE GENERALE | D49: =SUM(D45:D48) -> 0 | E49: =SUM(E45:E48) -> 0 | F49: =SUM(F45:F48) -> 0 | G49: =SUM(G45:G48) -> 0 | H49: 0 | I49: 0 | J49: 0 | K49: 0 | L49: 0 | M49: 0 | N49: 0 | O49: 0 | P49: 0 | Q49: 0 | R49: 0 | S49: 0 | T49: =SUM(D49:S49) -> 0 | W49: =IF(AND(SUM(T49)=0,A49<>"")," - "&C42&" ","") -> 
C51: C-5) DETTAGLIO COSTI SVILUPPO SPERIMENTALE (Per tipo di costo)
C53: TIPO DI COSTO | D53: =$D$15 -> COSTI CONSUNTIVATI | E53: =$E$15 -> 0 | F53: =E53+1 -> 1 | G53: =F53+1 -> 2 | H53: 3 | I53: 4 | J53: 5 | K53: 6 | L53: 7 | M53: 8 | N53: 9 | O53: 10 | P53: 11 | Q53: 12 | R53: 13 | S53: 14 | T53: TOTALE GENER.
C54: COSTO DEL PERSONALE | D54: =SUM(D50:D53) -> 0 | E54: =ALL_C_PERSONALE!F98 -> 0 | F54: =ALL_C_PERSONALE!G98 -> 0 | G54: =ALL_C_PERSONALE!H98 -> 0 | H54: =ALL_C_PERSONALE!I98 -> 0 | I54: =ALL_C_PERSONALE!J98 -> 0 | J54: =ALL_C_PERSONALE!K98 -> 0 | K54: =ALL_C_PERSONALE!L98 -> 0 | L54: =ALL_C_PERSONALE!M98 -> 0 | M54: =ALL_C_PERSONALE!N98 -> 0 | N54: =ALL_C_PERSONALE!O98 -> 0 | O54: =ALL_C_PERSONALE!P98 -> 0 | P54: =ALL_C_PERSONALE!Q98 -> 0 | Q54: =ALL_C_PERSONALE!R98 -> 0 | R54: =ALL_C_PERSONALE!S98 -> 0 | S54: =ALL_C_PERSONALE!T98 -> 0 | T54: =SUM(D54:S54) -> 0
C55: MATERIALI | E55: =E226 -> 0 | F55: =F226 -> 0 | G55: =G226 -> 0 | H55: 0 | I55: 0 | J55: 0 | K55: 0 | L55: 0 | M55: 0 | N55: 0 | O55: 0 | P55: 0 | Q55: 0 | R55: 0 | S55: 0 | T55: =SUM(D55:S55) -> 0
C56: STRUMENTAZIONE E ATTREZZATURE | E56: =E398 -> 0 | F56: =F398 -> 0 | G56: =G398 -> 0 | H56: 0 | I56: 0 | J56: 0 | K56: 0 | L56: 0 | M56: 0 | N56: 0 | O56: 0 | P56: 0 | Q56: 0 | R56: 0 | S56: 0 | T56: =SUM(D56:S56) -> 0
C57: SERVIZI DI CONSULENZA | E57: =E569 -> 0 | F57: =F569 -> 0 | G57: =G569 -> 0 | H57: 0 | I57: 0 | J57: 0 | K57: 0 | L57: 0 | M57: 0 | N57: 0 | O57: 0 | P57: 0 | Q57: 0 | R57: 0 | S57: 0 | T57: =SUM(D57:S57) -> 0
C58: TOTALE GENERALE | D58: =SUM(D54:D57) -> 0 | E58: =SUM(E54:E57) -> 0 | F58: =SUM(F54:F57) -> 0 | G58: =SUM(G54:G57) -> 0 | H58: 0 | I58: 0 | J58: 0 | K58: 0 | L58: 0 | M58: 0 | N58: 0 | O58: 0 | P58: 0 | Q58: 0 | R58: 0 | S58: 0 | T58: =SUM(D58:S58) -> 0 | W58: =IF(AND(SUM(T58)=0,A58<>"")," - "&C51&" ","") -> 
C60: COSTI DEL PERSONALE
C63: A - MATERIALI: DETTAGLIO (VALORI ASSOLUTI PER MACRO-VOCI,SONO ESCLUSI : MATERIALI MINUTI OVVERO ORDINARI ATTERZZI DI LAVORO E MINUTERIA METALLICA ED ELETTRICA, ECC.)
C65: DESCRIZIONE | E65: =$E$15 -> 0 | F65: =E65+1 -> 1 | G65: =F65+1 -> 2 | H65: 3 | I65: 4 | J65: 5 | K65: 6 | L65: 7 | M65: 8 | N65: 9 | O65: 10 | P65: 11 | Q65: 12 | R65: 13 | S65: 14 | T65: TOTALE GENER.
C67: A.1 - MATERIALI PER STUDI DI FATTIBILITA' TECNICA
B68: A.1.1 | T68: =SUM(E68:S68) -> 0
B69: A.1.2 | T69: =SUM(E69:S69) -> 0
B70: A.1.3 | T70: 0
B71: A.1.4 | T71: 0
B72: A.1.5 | T72: 0
B73: A.1.6 | T73: 0
B74: A.1.7 | T74: 0
B75: A.1.8 | T75: 0
B76: A.1.9 | T76: 0
B77: A.1.10 | T77: 0
B78: A.1.11 | T78: 0
B79: A.1.12 | T79: 0
B80: A.1.13 | T80: 0
B81: A.1.14 | T81: 0
B82: A.1.15 | T82: 0
B83: A.1.16 | T83: 0
B84: A.1.17 | T84: 0
B85: A.1.18 | T85: 0
B86: A.1.19 | T86: 0
B87: A.1.20 | T87: 0
B88: A.1.21 | T88: 0
B89: A.1.22 | T89: 0
B90: A.1.23 | T90: 0
B91: A.1.24 | T91: 0
B92: A.1.25 | T92: 0
B93: A.1.26 | T93: 0
B94: A.1.27 | T94: 0
B95: A.1.28 | T95: 0
B96: A.1.29 | T96: 0
B97: A.1.30 | T97: 0
B98: A.1.31 | T98: 0
B99: A.1.32 | T99: 0
B100: A.1.33 | T100: 0
B101: A.1.34 | T101: 0
B102: A.1.35 | T102: 0
B103: A.1.36 | T103: 0
B104: A.1.37 | T104: 0
B105: A.1.38 | T105: 0
B106: A.1.39 | T106: 0
B107: A.1.40 | T107: 0
B108: A.1.41 | T108: 0
B109: A.1.42 | T109: 0
B110: A.1.43 | T110: 0
B111: A.1.44 | T111: 0
B112: A.1.45 | T112: 0
B113: A.1.46 | T113: 0
B114: A.1.47 | T114: 0
B115: A.1.48 | T115: 0
B116: A.1.49 | T116: 0
B117: A.1.50 | T117: 0
C118: A.1 - MATERIALI STUDI FATT.TA' VALORE TOTALE | E118: =SUM(E68:E117) -> 0 | F118: =SUM(F68:F117) -> 0 | G118: 0 | H118: 0 | I118: 0 | J118: 0 | K118: 0 | L118: 0 | M118: 0 | N118: 0 | O118: 0 | P118: 0 | Q118: 0 | R118: 0 | S118: 0 | T118: 0
C119: A.1 - MATERIALI STUDI FATT.TA' % | E119: =IF(E$229=0,"",E118/E$229) ->  | F119: =IF(F$229=0,"",F118/F$229) -> 
C121: A.2 - MATERIALI PER RICERCA INDUSTRIALE
B122: A.2.1 | T122: =SUM(E122:S122) -> 0
B123: A.2.2 | T123: 0
B124: A.2.3 | T124: 0
B125: A.2.4 | T125: 0
B126: A.2.5 | T126: 0
B127: A.2.6 | T127: 0
B128: A.2.7 | T128: 0
B129: A.2.8 | T129: 0
B130: A.2.9 | T130: 0
B131: A.2.10 | T131: 0
B132: A.2.11 | T132: 0
B133: A.2.12 | T133: 0
B134: A.2.13 | T134: 0
B135: A.2.14 | T135: 0
B136: A.2.15 | T136: 0
B137: A.2.16 | T137: 0
B138: A.2.17 | T138: 0
B139: A.2.18 | T139: 0
B140: A.2.19 | T140: 0
B141: A.2.20 | T141: 0
B142: A.2.21 | T142: 0
B143: A.2.22 | T143: 0
B144: A.2.23 | T144: 0
B145: A.2.24 | T145: 0
B146: A.2.25 | T146: 0
B147: A.2.26 | T147: 0
B148: A.2.27 | T148: 0
B149: A.2.28 | T149: 0
B150: A.2.29 | T150: 0
B151: A.2.30 | T151: 0
B152: A.2.31 | T152: 0
B153: A.2.32 | T153: 0
B154: A.2.33 | T154: 0
B155: A.2.34 | T155: 0
B156: A.2.35 | T156: 0
B157: A.2.36 | T157: 0
B158: A.2.37 | T158: 0
B159: A.2.38 | T159: 0
B160: A.2.39 | T160: 0
B161: A.2.40 | T161: 0
B162: A.2.41 | T162: 0
B163: A.2.42 | T163: 0
B164: A.2.43 | T164: 0
B165: A.2.44 | T165: 0
B166: A.2.45 | T166: 0
B167: A.2.46 | T167: 0
B168: A.2.47 | T168: 0
B169: A.2.48 | T169: 0
B170: A.2.49 | T170: 0
B171: A.2.50 | T171: 0
C172: A.2 - MATERIALI RICERCA INDUSTRIALE VALORE TOTALE | E172: =SUM(E122:E171) -> 0 | F172: =SUM(F122:F171) -> 0 | G172: 0 | H172: 0 | I172: 0 | J172: 0 | K172: 0 | L172: 0 | M172: 0 | N172: 0 | O172: 0 | P172: 0 | Q172: 0 | R172: 0 | S172: 0 | T172: 0
C173: A.2 - MATERIALI RICERCA INDUSTRIALE % | E173: =IF(E$229=0,"",E172/E$229) ->  | F173: =IF(F$229=0,"",F172/F$229) -> 
C175: A.3 - MATERIALI PER SVILUPPO SPERIMENTALE
B176: A.3.1 | T176: =SUM(E176:S176) -> 0
B177: A.3.2 | T177: 0
B178: A.3.3 | T178: 0
B179: A.3.4 | T179: 0
B180: A.3.5 | T180: 0
B181: A.3.6 | T181: 0
B182: A.3.7 | T182: 0
B183: A.3.8 | T183: 0
B184: A.3.9 | T184: 0
B185: A.3.10 | T185: 0
B186: A.3.11 | T186: 0
B187: A.3.12 | T187: 0
B188: A.3.13 | T188: 0
B189: A.3.14 | T189: 0
B190: A.3.15 | T190: 0
B191: A.3.16 | T191: 0
B192: A.3.17 | T192: 0
B193: A.3.18 | T193: 0
B194: A.3.19 | T194: 0
B195: A.3.20 | T195: 0
B196: A.3.21 | T196: 0
B197: A.3.22 | T197: 0
B198: A.3.23 | T198: 0
B199: A.3.24 | T199: 0
B200: A.3.25 | T200: 0
B201: A.3.26 | T201: 0
B202: A.3.27 | T202: 0
B203: A.3.28 | T203: 0
B204: A.3.29 | T204: 0
B205: A.3.30 | T205: 0
B206: A.3.31 | T206: 0
B207: A.3.32 | T207: 0
B208: A.3.33 | T208: 0
B209: A.3.34 | T209: 0
B210: A.3.35 | T210: 0
B211: A.3.36 | T211: 0
B212: A.3.37 | T212: 0
B213: A.3.38 | T213: 0
B214: A.3.39 | T214: 0
B215: A.3.40 | T215: 0
B216: A.3.41 | T216: 0
B217: A.3.42 | T217: 0
B218: A.3.43 | T218: 0
B219: A.3.44 | T219: 0
... 335 more rows

Sheet ALL_C_PERSONALE (hidden)
C1: Ministero dello Sviluppo economico | Z1: fin.to L. 808/85 | AA1: check compilazione | AB1: check coerenza | AK1: ANNO_INIZIO | AL1: ANNO_FINE
D2: =MENU!B5 -> Direzione generale per la politica industriale, la competitività e le PMI
D4: =MENU!B7 -> Divisione IX “Industrie aerospazio, difesa e sicurezza”
C5: Torna al menu principale | D5: DOMANDA DI ACCESSO AI PROGETTI DI RICERCA E SVILUPPO EX. L. 808/85 - ALLEGATO C: Previsioni di Costo del Programma: Costo del Personale -
C7: Legge 808/85 – PROGETTO: | D7: =IF(ALL_A!$F$7=0,"",ALL_A!$F$7) ->  | H7: Area: | I7: Area: | T7: =ALL_A!I7 -> Civile | Z7: =ALL_A!$E$9 -> No | AK7: =ALL_A!$F$16 -> 0 | AL7: =ALL_A!$G$16 -> 0
C9: 1) DETERMINAZIONE COSTO ORARIO PERSONALE DIPENDENTE
C10: Inserire nel prospetto sottostante il costo orario medio per categoria di personale ed annualità ed esplicitare la relativa metodologia di calcolo relativa al personale dipendente.
C11: TABELLA COSTO ORARIO AZIENDALE
C13: PERSONALE DIPENDENTE | D13: METODOLOGIA DI CALCOLO | F13: COSTO ORARIO MEDIO (Euro / ora)
F14: =ALL_C!E15 -> 0 | G14: =F14+1 -> 1 | H14: 2 | I14: 3 | J14: 4 | K14: 5 | L14: 6 | M14: 7 | N14: 8 | O14: 9 | P14: 10 | Q14: 11 | R14: 12 | S14: 13 | T14: 14
A15: X | C15: RICERCATORI /TECNICI | D15: Retribuzione media lorda N. ore lavorative nell'anno | AA15: =IF(AND(SUM(F15:T15)=0,A15<>"")," - 1) COSTO ORARIO MEDIO "&C15&" ","") -> - 1) COSTO ORARIO MEDIO RICERCATORI /TECNICI
A16: X | C16: OPERAI ED ALTRI | AA16: =IF(AND(SUM(F16,T16)=0,A16<>"")," - 1) COSTO ORARIO MEDIO "&C16&" ","") -> - 1) COSTO ORARIO MEDIO OPERAI ED ALTRI
C17: =ALL_C!F10 -> 
C18: 2) DETTAGLIO PERSONALE DIPENDENTE: ORE / ANNO IMPIEGATE SUL PROGETTO
C19: FASE DI ATTIVITÀ | D19: PERSONALE DIPENDENTE | E19: N° ORE TOTALI | F19: TOTALE ORE / ANNO
F20: =$F$14 -> 0 | G20: =F20+1 -> 1 | H20: =G20+1 -> 2 | I20: 3 | J20: 4 | K20: 5 | L20: 6 | M20: 7 | N20: 8 | O20: 9 | P20: 10 | Q20: 11 | R20: 12 | S20: 13 | T20: 14
C21: STUDI DI FATTIBILITA' TECNICA | D21: RICERCATORI /TECNICI | E21: =SUM(F21:T21) -> 0
C22: RICERCA INDUSTRIALE | D22: RICERCATORI /TECNICI | E22: =SUM(F22:T22) -> 0
D23: OPERAI ED ALTRI | E23: =SUM(F23:T23) -> 0
C24: SVILUPPO SPERIMENTALE | D24: RICERCATORI /TECNICI | E24: =SUM(F24:T24) -> 0
D25: OPERAI ED ALTRI | E25: =SUM(F25:T25) -> 0
A26: X | C26: TOTALE ORE / ANNO PERSONALE DIPENDENTE | F26: =SUM(F21:F25) -> 0 | G26: =SUM(G21:G25) -> 0 | H26: 0 | I26: 0 | J26: 0 | K26: 0 | L26: 0 | M26: 0 | N26: 0 | O26: 0 | P26: 0 | Q26: 0 | R26: 0 | S26: 0 | T26: 0 | AA26: =IF(AND(SUM(F26:T26)=0,A26<>"")," - "&C18&" ","") -> - 2) DETTAGLIO PERSONALE DIPENDENTE: ORE / ANNO IMPIEGATE SUL PROGETTO
C28: 3) COSTI PERSONALE DIPENDENTE (migliaia di euro)
C29: FASE DI ATTIVITÀ | D29: PERSONALE DIPENDENTE | E29: COSTO TOTALE | F29: TOTALE COSTI / ANNO
F30: =$F$14 -> 0 | G30: =F30+1 -> 1 | H30: =G30+1 -> 2 | I30: 3 | J30: 4 | K30: 5 | L30: 6 | M30: 7 | N30: 8 | O30: 9 | P30: 10 | Q30: 11 | R30: 12 | S30: 13 | T30: 14
C31: STUDI DI FATTIBILITA' TECNICA | D31: RICERCATORI /TECNICI | E31: =SUM(F31:T31) -> 0 | F31: =SUM(IF($D31=$C$15:$C$16,IF($F$14:$T$14=F$30,$F$15:$T$16)))*F21/1000 -> 0 | G31: =SUM(IF($D31=$C$15:$C$16,IF($F$14:$T$14=G$30,$F$15:$T$16)))*G21/1000 -> 0 | H31: =SUM(IF($D31=$C$15:$C$16,IF($F$14:$T$14=H$30,$F$15:$T$16)))*H21/1000 -> 0 | I31: =SUM(IF($D31=$C$15:$C$16,IF($F$14:$T$14=I$30,$F$15:$T$16)))*I21/1000 -> 0 | J31: =SUM(IF($D31=$C$15:$C$16,IF($F$14:$T$14=J$30,$F$15:$T$16)))*J21/1000 -> 0 | K31: =SUM(IF($D31=$C$15:$C$16,IF($F$14:$T$14=K$30,$F$15:$T$16)))*K21/1000 -> 0 | L31: =SUM(IF($D31=$C$15:$C$16,IF($F$14:$T$14=L$30,$F$15:$T$16)))*L21/1000 -> 0 | M31: =SUM(IF($D31=$C$15:$C$16,IF($F$14:$T$14=M$30,$F$15:$T$16)))*M21/1000 -> 0 | N31: =SUM(IF($D31=$C$15:$C$16,IF($F$14:$T$14=N$30,$F$15:$T$16)))*N21/1000 -> 0 | O31: =SUM(IF($D31=$C$15:$C$16,IF($F$14:$T$14=O$30,$F$15:$T$16)))*O21/1000 -> 0 | P31: =SUM(IF($D31=$C$15:$C$16,IF($F$14:$T$14=P$30,$F$15:$T$16)))*P21/1000 -> 0 | Q31: =SUM(IF($D31=$C$15:$C$16,IF($F$14:$T$14=Q$30,$F$15:$T$16)))*Q21/1000 -> 0 | R31: =SUM(IF($D31=$C$15:$C$16,IF($F$14:$T$14=R$30,$F$15:$T$16)))*R21/1000 -> 0 | S31: =SUM(IF($D31=$C$15:$C$16,IF($F$14:$T$14=S$30,$F$15:$T$16)))*S21/1000 -> 0 | T31: =SUM(IF($D31=$C$15:$C$16,IF($F$14:$T$14=T$30,$F$15:$T$16)))*T21/1000 -> 0
C32: RICERCA INDUSTRIALE | D32: RICERCATORI /TECNICI | E32: =SUM(F32:T32) -> 0 | F32: =SUM(IF($D32=$C$15:$C$16,IF($F$14:$T$14=F$30,$F$15:$T$16)))*F22/1000 -> 0 | G32: =SUM(IF($D32=$C$15:$C$16,IF($F$14:$T$14=G$30,$F$15:$T$16)))*G22/1000 -> 0 | H32: =SUM(IF($D32=$C$15:$C$16,IF($F$14:$T$14=H$30,$F$15:$T$16)))*H22/1000 -> 0 | I32: =SUM(IF($D32=$C$15:$C$16,IF($F$14:$T$14=I$30,$F$15:$T$16)))*I22/1000 -> 0 | J32: =SUM(IF($D32=$C$15:$C$16,IF($F$14:$T$14=J$30,$F$15:$T$16)))*J22/1000 -> 0 | K32: =SUM(IF($D32=$C$15:$C$16,IF($F$14:$T$14=K$30,$F$15:$T$16)))*K22/1000 -> 0 | L32: =SUM(IF($D32=$C$15:$C$16,IF($F$14:$T$14=L$30,$F$15:$T$16)))*L22/1000 -> 0 | M32: =SUM(IF($D32=$C$15:$C$16,IF($F$14:$T$14=M$30,$F$15:$T$16)))*M22/1000 -> 0 | N32: =SUM(IF($D32=$C$15:$C$16,IF($F$14:$T$14=N$30,$F$15:$T$16)))*N22/1000 -> 0 | O32: =SUM(IF($D32=$C$15:$C$16,IF($F$14:$T$14=O$30,$F$15:$T$16)))*O22/1000 -> 0 | P32: =SUM(IF($D32=$C$15:$C$16,IF($F$14:$T$14=P$30,$F$15:$T$16)))*P22/1000 -> 0 | Q32: =SUM(IF($D32=$C$15:$C$16,IF($F$14:$T$14=Q$30,$F$15:$T$16)))*Q22/1000 -> 0 | R32: =SUM(IF($D32=$C$15:$C$16,IF($F$14:$T$14=R$30,$F$15:$T$16)))*R22/1000 -> 0 | S32: =SUM(IF($D32=$C$15:$C$16,IF($F$14:$T$14=S$30,$F$15:$T$16)))*S22/1000 -> 0 | T32: =SUM(IF($D32=$C$15:$C$16,IF($F$14:$T$14=T$30,$F$15:$T$16)))*T22/1000 -> 0
D33: OPERAI ED ALTRI | E33: =SUM(F33:T33) -> 0 | F33: =SUM(IF($D33=$C$15:$C$16,IF($F$14:$T$14=F$30,$F$15:$T$16)))*F23/1000 -> 0 | G33: =SUM(IF($D33=$C$15:$C$16,IF($F$14:$T$14=G$30,$F$15:$T$16)))*G23/1000 -> 0 | H33: =SUM(IF($D33=$C$15:$C$16,IF($F$14:$T$14=H$30,$F$15:$T$16)))*H23/1000 -> 0 | I33: =SUM(IF($D33=$C$15:$C$16,IF($F$14:$T$14=I$30,$F$15:$T$16)))*I23/1000 -> 0 | J33: =SUM(IF($D33=$C$15:$C$16,IF($F$14:$T$14=J$30,$F$15:$T$16)))*J23/1000 -> 0 | K33: =SUM(IF($D33=$C$15:$C$16,IF($F$14:$T$14=K$30,$F$15:$T$16)))*K23/1000 -> 0 | L33: =SUM(IF($D33=$C$15:$C$16,IF($F$14:$T$14=L$30,$F$15:$T$16)))*L23/1000 -> 0 | M33: =SUM(IF($D33=$C$15:$C$16,IF($F$14:$T$14=M$30,$F$15:$T$16)))*M23/1000 -> 0 | N33: =SUM(IF($D33=$C$15:$C$16,IF($F$14:$T$14=N$30,$F$15:$T$16)))*N23/1000 -> 0 | O33: =SUM(IF($D33=$C$15:$C$16,IF($F$14:$T$14=O$30,$F$15:$T$16)))*O23/1000 -> 0 | P33: =SUM(IF($D33=$C$15:$C$16,IF($F$14:$T$14=P$30,$F$15:$T$16)))*P23/1000 -> 0 | Q33: =SUM(IF($D33=$C$15:$C$16,IF($F$14:$T$14=Q$30,$F$15:$T$16)))*Q23/1000 -> 0 | R33: =SUM(IF($D33=$C$15:$C$16,IF($F$14:$T$14=R$30,$F$15:$T$16)))*R23/1000 -> 0 | S33: =SUM(IF($D33=$C$15:$C$16,IF($F$14:$T$14=S$30,$F$15:$T$16)))*S23/1000 -> 0 | T33: =SUM(IF($D33=$C$15:$C$16,IF($F$14:$T$14=T$30,$F$15:$T$16)))*T23/1000 -> 0
C34: SVILUPPO SPERIMENTALE | D34: RICERCATORI /TECNICI | E34: =SUM(F34:T34) -> 0 | F34: =SUM(IF($D34=$C$15:$C$16,IF($F$14:$T$14=F$30,$F$15:$T$16)))*F24/1000 -> 0 | G34: =SUM(IF($D34=$C$15:$C$16,IF($F$14:$T$14=G$30,$F$15:$T$16)))*G24/1000 -> 0 | H34: =SUM(IF($D34=$C$15:$C$16,IF($F$14:$T$14=H$30,$F$15:$T$16)))*H24/1000 -> 0 | I34: =SUM(IF($D34=$C$15:$C$16,IF($F$14:$T$14=I$30,$F$15:$T$16)))*I24/1000 -> 0 | J34: =SUM(IF($D34=$C$15:$C$16,IF($F$14:$T$14=J$30,$F$15:$T$16)))*J24/1000 -> 0 | K34: =SUM(IF($D34=$C$15:$C$16,IF($F$14:$T$14=K$30,$F$15:$T$16)))*K24/1000 -> 0 | L34: =SUM(IF($D34=$C$15:$C$16,IF($F$14:$T$14=L$30,$F$15:$T$16)))*L24/1000 -> 0 | M34: =SUM(IF($D34=$C$15:$C$16,IF($F$14:$T$14=M$30,$F$15:$T$16)))*M24/1000 -> 0 | N34: =SUM(IF($D34=$C$15:$C$16,IF($F$14:$T$14=N$30,$F$15:$T$16)))*N24/1000 -> 0 | O34: =SUM(IF($D34=$C$15:$C$16,IF($F$14:$T$14=O$30,$F$15:$T$16)))*O24/1000 -> 0 | P34: =SUM(IF($D34=$C$15:$C$16,IF($F$14:$T$14=P$30,$F$15:$T$16)))*P24/1000 -> 0 | Q34: =SUM(IF($D34=$C$15:$C$16,IF($F$14:$T$14=Q$30,$F$15:$T$16)))*Q24/1000 -> 0 | R34: =SUM(IF($D34=$C$15:$C$16,IF($F$14:$T$14=R$30,$F$15:$T$16)))*R24/1000 -> 0 | S34: =SUM(IF($D34=$C$15:$C$16,IF($F$14:$T$14=S$30,$F$15:$T$16)))*S24/1000 -> 0 | T34: =SUM(IF($D34=$C$15:$C$16,IF($F$14:$T$14=T$30,$F$15:$T$16)))*T24/1000 -> 0
A35: X | D35: OPERAI ED ALTRI | E35: =SUM(F35:T35) -> 0 | F35: =SUM(IF($D35=$C$15:$C$16,IF($F$14:$T$14=F$30,$F$15:$T$16)))*F25/1000 -> 0 | G35: =SUM(IF($D35=$C$15:$C$16,IF($F$14:$T$14=G$30,$F$15:$T$16)))*G25/1000 -> 0 | H35: =SUM(IF($D35=$C$15:$C$16,IF($F$14:$T$14=H$30,$F$15:$T$16)))*H25/1000 -> 0 | I35: =SUM(IF($D35=$C$15:$C$16,IF($F$14:$T$14=I$30,$F$15:$T$16)))*I25/1000 -> 0 | J35: =SUM(IF($D35=$C$15:$C$16,IF($F$14:$T$14=J$30,$F$15:$T$16)))*J25/1000 -> 0 | K35: =SUM(IF($D35=$C$15:$C$16,IF($F$14:$T$14=K$30,$F$15:$T$16)))*K25/1000 -> 0 | L35: =SUM(IF($D35=$C$15:$C$16,IF($F$14:$T$14=L$30,$F$15:$T$16)))*L25/1000 -> 0 | M35: =SUM(IF($D35=$C$15:$C$16,IF($F$14:$T$14=M$30,$F$15:$T$16)))*M25/1000 -> 0 | N35: =SUM(IF($D35=$C$15:$C$16,IF($F$14:$T$14=N$30,$F$15:$T$16)))*N25/1000 -> 0 | O35: =SUM(IF($D35=$C$15:$C$16,IF($F$14:$T$14=O$30,$F$15:$T$16)))*O25/1000 -> 0 | P35: =SUM(IF($D35=$C$15:$C$16,IF($F$14:$T$14=P$30,$F$15:$T$16)))*P25/1000 -> 0 | Q35: =SUM(IF($D35=$C$15:$C$16,IF($F$14:$T$14=Q$30,$F$15:$T$16)))*Q25/1000 -> 0 | R35: =SUM(IF($D35=$C$15:$C$16,IF($F$14:$T$14=R$30,$F$15:$T$16)))*R25/1000 -> 0 | S35: =SUM(IF($D35=$C$15:$C$16,IF($F$14:$T$14=S$30,$F$15:$T$16)))*S25/1000 -> 0 | T35: =SUM(IF($D35=$C$15:$C$16,IF($F$14:$T$14=T$30,$F$15:$T$16)))*T25/1000 -> 0
C36: TOTALE COSTO PERSONALE DIPENDENTE | E36: =SUM(E31:E35) -> 0 | F36: =SUM(F31:F35) -> 0 | G36: 0 | H36: 0 | I36: 0 | J36: 0 | K36: 0 | L36: 0 | M36: 0 | N36: 0 | O36: 0 | P36: 0 | Q36: 0 | R36: 0 | S36: 0 | T36: 0
C38: 4) COSTI PERSONALE NON DIPENDENTE (migliaia di euro)
C39: FASE DI ATTIVITA' | E39: COSTO TOTALE | F39: TOTALE COSTI / ANNO
F40: =$F$14 -> 0 | G40: =F40+1 -> 1 | H40: =G40+1 -> 2 | I40: =H40+1 -> 3 | J40: 4 | K40: 5 | L40: 6 | M40: 7 | N40: 8 | O40: 9 | P40: 10 | Q40: 11 | R40: 12 | S40: 13 | T40: 14
C41: STUDI DI FATTIBILITA' TECNICA | E41: =SUM(F41:T41) -> 0
C42: RICERCA INDUSTRIALE | E42: =SUM(F42:T42) -> 0
C43: SVILUPPO SPERIMENTALE | E43: =SUM(F43:T43) -> 0
C44: TOTALE COSTO PERSONALE NON DIPENDENTE | E44: =SUM(E41:E43) -> 0 | F44: =SUM(F41:F43) -> 0 | G44: =SUM(G41:G43) -> 0 | H44: 0 | I44: 0 | J44: 0 | K44: 0 | L44: 0 | M44: 0 | N44: 0 | O44: 0 | P44: 0 | Q44: 0 | R44: 0 | S44: 0 | T44: 0 | AA44: =IF(AND(SUM(F44:T44)=0,A44<>"")," - "&C38&" ","") -> 
C45: =IF(OR(F44>0.15*F36,G44>0.15*G36,H44>0.15*H36,T44>0.15*T36),"ATTENZIONE: il costo del personale non dipendente non può superare il 15% del costo del personale dipendente per lo stesso anno/periodo.","") ->  | AB45: =IF(AND(C45<>"",A44<>"")," - "&C45&" ","") -> 
C47: 5) CALCOLO QUOTA COSTI INDIRETTI
E48: TOTALE | F48: =$F$14 -> 0 | G48: =F48+1 -> 1 | H48: =G48+1 -> 2 | I48: =H48+1 -> 3 | J48: 4 | K48: 5 | L48: 6 | M48: 7 | N48: 8 | O48: 9 | P48: 10 | Q48: 11 | R48: 12 | S48: 13 | T48: 14
C49: Numero ore di lavoro dedicate nell'esercizio di riferimento alla realizzazione del progetto (A) | E49: =SUM(F49:T49) -> 0 | F49: =F26 -> 0 | G49: =G26 -> 0 | H49: 0 | I49: 0 | J49: 0 | K49: 0 | L49: 0 | M49: 0 | N49: 0 | O49: 0 | P49: 0 | Q49: 0 | R49: 0 | S49: 0 | T49: 0
C50: Numero ore di lavoro complessivamente svolte da tutto il personale aziendale (B) | E50: =SUM(F50:T50) -> 0
A51: X | C51: Rapporto per determinare la quota imputabile dei Costi Indiretti (A/B) | F51: =IF(F50=0,0,F49/F50) -> 0 | G51: =IF(G50=0,0,G49/G50) -> 0 | H51: =IF(H50=0,0,H49/H50) -> 0 | I51: =IF(I50=0,0,I49/I50) -> 0 | J51: 0 | K51: 0 | L51: 0 | M51: 0 | N51: 0 | O51: 0 | P51: 0 | Q51: 0 | R51: 0 | S51: 0 | T51: 0 | AA51: =IF(AND(SUM(F51:T51)=0,A51<>"")," - "&C50&" ","") -> - Numero ore di lavoro complessivamente svolte da tutto il personale aziendale (B)
C54: 5.1) COSTI INDIRETTI: PERSONALE INDIRETTO (Importi in migliaia di euro)
C55: Personale per: amministrazione e finanza, controllo di gestione, personale ed organizzazione, acquisti e sistemi informativi | E55: TOTALE | F55: =$F$14 -> 0 | G55: =F55+1 -> 1 | H55: =G55+1 -> 2 | I55: =H55+1 -> 3 | J55: =I55+1 -> 4 | K55: 5 | L55: 6 | M55: 7 | N55: 8 | O55: 9 | P55: 10 | Q55: 11 | R55: 12 | S55: 13 | T55: 14
C56: Numero unità
A57: X | C57: Costo Totale | AA57: =IF(AND(SUM(F57:T57)=0,A57<>"")," - "&C54&" ","") -> - 5.1) COSTI INDIRETTI: PERSONALE INDIRETTO (Importi in migliaia di euro)
C58: QUOTA IMPUTABILE | E58: =SUM(F58:T58) -> 0 | F58: =IF(F$51<>"",F$51*F57,0) -> 0 | G58: =IF(G$51<>"",G$51*G57,0) -> 0 | H58: 0 | I58: 0 | J58: 0 | K58: 0 | L58: 0 | M58: 0 | N58: 0 | O58: 0 | P58: 0 | Q58: 0 | R58: 0 | S58: 0 | T58: 0
C61: 5.2) COSTI INDIRETTI: AMMORTAMENTI (Importi in migliaia di euro)
C62: Quota ammort. contabile, al netto di rivalutazioni dei cespiti | E62: COSTO TOTALE | F62: TOTALE COSTI / ANNO
F63: =$F$14 -> 0 | G63: =F63+1 -> 1 | H63: =G63+1 -> 2 | I63: =H63+1 -> 3 | J63: 4 | K63: 5 | L63: 6 | M63: 7 | N63: 8 | O63: 9 | P63: 10 | Q63: 11 | R63: 12 | S63: 13 | T63: 14
C64: Beni materiali | E64: =SUM(F64:T64) -> 0 | U64: =IF(SUM(F67:T67)>0,"ATTENZIONE: per i periodi segnalati il " &C66&" supera il rapporto teorico per il calcolo della quota imputabile di costi indiretti","") -> 
C65: Beni immateriali | E65: =SUM(F65:T65) -> 0
C66: Totale Ammortamenti imputabili a progetto | E66: =SUM(F66:T66) -> 0 | F66: =SUM(F64:F65) -> 0 | G66: =SUM(G64:G65) -> 0 | H66: 0 | I66: 0 | J66: 0 | K66: 0 | L66: 0 | M66: 0 | N66: 0 | O66: 0 | P66: 0 | Q66: 0 | R66: 0 | S66: 0 | T66: 0 | AA66: =IF(AND(SUM(F66:T66)=0,A66<>"")," - "&C61&" ","") -> 
AB67: =IF(AND(SUM(F67:T67)>0,A67<>"")," - "&C62&" ","") -> 
C70: 5.3) COSTI INDIRETTI: SPESE GENERALI E DI FUNZIONAMENTO (Importi in migliaia di euro)
C71: Spese Generali e di Funzionamento | E71: COSTO TOTALE | F71: TOTALE COSTI / ANNO | AC71: =AB67 -> 
F72: =$F$14 -> 0 | G72: =F72+1 -> 1 | H72: =G72+1 -> 2 | I72: =H72+1 -> 3 | J72: 4 | K72: 5 | L72: 6 | M72: 7 | N72: 8 | O72: 9 | P72: 10 | Q72: 11 | R72: 12 | S72: 13 | T72: 14
C73: Utenze: Energia Elettrica, Acqua, Combustibili e Fluidi per impianti
C74: Totale Utenze | E74: =SUM(F74:T74) -> 0
C75: QUOTA IMPUTABILE A PROGETTO | E75: 0 | F75: =IF(F$51<>"",F$51*F74,0) -> 0 | G75: =IF(G$51<>"",G$51*G74,0) -> 0 | H75: 0 | I75: 0 | J75: 0 | K75: 0 | L75: 0 | M75: 0 | N75: 0 | O75: 0 | P75: 0 | Q75: 0 | R75: 0 | S75: 0 | T75: 0
C76: Manutenzione
C77: Immobili | E77: 0 | U77: =IF(SUM(F80:T80)>0,"ATTENZIONE: per i periodi segnalati il " &C79&" supera il rapporto teorico per il calcolo della quota imputabile di costi indiretti","") -> 
C78: Macchinari - Impianti | E78: 0
C79: Totale Costi di Manutenzione imputabili a progetto | E79: 0 | F79: =SUM(F77:F78) -> 0 | G79: =SUM(G77:G78) -> 0 | H79: 0 | I79: 0 | J79: 0 | K79: 0 | L79: 0 | M79: 0 | N79: 0 | O79: 0 | P79: 0 | Q79: 0 | R79: 0 | S79: 0 | T79: 0
AB80: =IF(AND(SUM(F80:T80)>0,A80<>"")," - "&C76&" ","") -> 
C81: Affitti e canoni
C82: Affitti | E82: =SUM(F82:T82) -> 0 | U82: =IF(SUM(F85:T85)>0,"ATTENZIONE: per i periodi segnalati il " &C84&" supera il rapporto teorico per il calcolo della quota imputabile di costi indiretti","") -> 
C83: Leasing | E83: =SUM(F83:T83) -> 0
C84: Totale costi per Affitti e Leasing imputabili a progetto | E84: =SUM(E82:E83) -> 0 | F84: =SUM(F82:F83) -> 0 | G84: =SUM(G82:G83) -> 0 | H84: 0 | I84: 0 | J84: 0 | K84: 0 | L84: 0 | M84: 0 | N84: 0 | O84: 0 | P84: 0 | Q84: 0 | R84: 0 | S84: 0 | T84: 0
AB85: =IF(AND(SUM(F85:T85)>0,A85<>"")," - "&C81&" ","") -> 
A86: X | C86: Totale Spese Generali e di Funzionamento imputabili a progetto | E86: =E84+E79+E75 -> 0 | F86: 0 | G86: 0 | H86: 0 | I86: 0 | J86: 0 | K86: 0 | L86: 0 | M86: 0 | N86: 0 | O86: 0 | P86: 0 | Q86: 0 | R86: 0 | S86: 0 | T86: 0 | AA86: =IF(AND(SUM(F86:T86)=0,A86<>"")," - "&C70&" ","") -> - 5.3) COSTI INDIRETTI: SPESE GENERALI E DI FUNZIONAMENTO (Importi in migliaia di euro)
C88: 5. TOTALE COSTI INDIRETTI IMPUTABILI A PROGETTO | E88: =E86+E66+E58 -> 0 | F88: =F86+F66+F58 -> 0 | G88: =G86+G66+G58 -> 0 | H88: 0 | I88: 0 | J88: 0 | K88: 0 | L88: 0 | M88: 0 | N88: 0 | O88: 0 | P88: 0 | Q88: 0 | R88: 0 | S88: 0 | T88: 0
C90: TOTALE PERSONALE E COSTI INDIRETTI | E90: =E88+E44+E36 -> 0 | F90: 0 | G90: 0 | H90: 0 | I90: 0 | J90: 0 | K90: 0 | L90: 0 | M90: 0 | N90: 0 | O90: 0 | P90: 0 | Q90: 0 | R90: 0 | S90: 0 | T90: 0
C93: TOTALE PERSONALE E COSTI INDIRETTI PER ATTIVITA'
C94: FASE DI ATTIVITA' | E94: COSTO TOTALE | F94: TOTALE COSTI / ANNO
F95: =$F$14 -> 0 | G95: =F95+1 -> 1 | H95: =G95+1 -> 2 | I95: =H95+1 -> 3 | J95: 4 | K95: 5 | L95: 6 | M95: 7 | N95: 8 | O95: 9 | P95: 10 | Q95: 11 | R95: 12 | S95: 13 | T95: 14
C96: STUDI DI FATTIBILITA' TECNICA | E96: =SUM(F96:T96) -> 0 | F96: =F31+F41+IF(F$36<>0,(F88*F31/F$36),0) -> 0 | G96: =G31+G41+IF(G$36<>0,(G88*G31/G$36),0) -> 0 | H96: 0 | I96: 0 | J96: 0 | K96: 0 | L96: 0 | M96: 0 | N96: 0 | O96: 0 | P96: 0 | Q96: 0 | R96: 0 | S96: 0 | T96: 0
C97: RICERCA INDUSTRIALE | E97: =SUM(F97:T97) -> 0 | F97: =F32+F33+F42+IF(F$36<>0,(F88*(F32+F33)/F$36),0) -> 0 | G97: =G32+G33+G42+IF(G$36<>0,(G88*(G32+G33)/G$36),0) -> 0 | H97: 0 | I97: 0 | J97: 0 | K97: 0 | L97: 0 | M97: 0 | N97: 0 | O97: 0 | P97: 0 | Q97: 0 | R97: 0 | S97: 0 | T97: 0
C98: SVILUPPO SPERIMENTALE | E98: =SUM(F98:T98) -> 0 | F98: =F34+F35+F43+IF(F$36<>0,(F88*(F35+F34)/F$36),0) -> 0 | G98: =G34+G35+G43+IF(G$36<>0,(G88*(G35+G34)/G$36),0) -> 0 | H98: 0 | I98: 0 | J98: 0 | K98: 0 | L98: 0 | M98: 0 | N98: 0 | O98: 0 | P98: 0 | Q98: 0 | R98: 0 | S98: 0 | T98: 0
C99: TOTALE PERSONALE E COSTI INDIRETTI PER ATTIVITA' | E99: =SUM(F99:T99) -> 0 | F99: =SUM(F96:F98) -> 0 | G99: =SUM(G96:G98) -> 0 | H99: =SUM(H96:H98) -> 0 | I99: =SUM(I96:I98) -> 0 | J99: =SUM(J96:J98) -> 0 | K99: 0 | L99: 0 | M99: 0 | N99: 0 | O99: 0 | P99: 0 | Q99: 0 | R99: 0 | S99: 0 | T99: 0
AA101: =CONCATENATE(AA15,AA16,AA26,AA44,AA51,AA57,AA66,AA86) -> - 1) COSTO ORARIO MEDIO RICERCATORI /TECNICI - 1) COSTO ORARIO MEDIO OPERAI ED ALTRI - 2) DETTAGLIO PERSONALE DIPENDENTE: ORE / ANNO IMPIEGATE SUL PROGETTO - Numero ore di lavoro complessivamente svolte da tutto il personale aziendale (B) - 5.1) COSTI INDIRETTI: PERSONALE INDIRETTO (Importi in migliaia di euro) - 5.3) COSTI INDIRETTI: SPESE GENERALI E DI FUNZIONAMENTO (Importi in migliaia di euro) | AB101: =CONCATENATE(AB45,AB67,AB80,AB85) -> 

Sheet ALL_C_IMPRESE_ASSOCIATE (hidden)
C1: Torna al menu principale | D1: Dipartimento per l’Impresa e l’Internazionalizzazione | L1: fin.to L. 808/85 | M1: check compilazione | N1: check coerenza
D2: Direzione generale per la politica industriale e la competitività
D4: Divisione VIII – “Industria dell'aerospazio e della difesa”
D5: DOMANDA DI ACCESSO AI PROGETTI DI RICERCA E SVILUPPO EX. L. 808/85 - ALLEGATO C: Previsioni di Costo del Programma: sintesi per imprese associate -
C7: Legge 808/85 – PROGRAMMA: | D7: =IF(ALL_A!$F$7=0,"",ALL_A!$F$7) ->  | I7: Area: | J7: =ALL_A!$I$7 -> Civile | L7: =ALL_A!$E$9 -> No
J9: (Importi in migliaia Euro)
C11: A) PREVISIONE DEI COSTI DELLE ATTIVITA' PER I PROGRAMMI PRESENTATI IN FORMA ASSOCIATA (Per tipo di costo)
C13: TIPO DI COSTO | E13: =IF($L$7="Si",2012,2014) -> 2014 | F13: =E13+1 -> 2015 | G13: =F13+1 -> 2016 | H13: ="TOTALE "&IF($L$7="Si"," AL ",E13&"-") &G13 -> TOTALE 2014-2016 | I13: SUCCESSIVI A FINIRE | J13: TOTALE GENER.
C14: COSTI PER IL PERSONALE
C15: =ALL_A!$C$47 -> 0 | E15: =ALL_C!E16 -> 0 | F15: =ALL_C!F16 -> 0 | G15: =ALL_C!Q16 -> 0 | H15: =IF($L$7="Si",SUM(D15:G15),SUM(E15:G15)) -> 0 | I15: =ALL_C!S16 -> 0 | J15: =H15+I15 -> 0
C16: =IF(ALL_A!C48="","",ALL_A!C48) ->  | H16: =IF($L$7="Si",SUM(D16:G16),SUM(E16:G16)) -> 0 | J16: =H16+I16 -> 0
C17: =IF(ALL_A!C49="","",ALL_A!C49) ->  | H17: =IF($L$7="Si",SUM(D17:G17),SUM(E17:G17)) -> 0 | J17: =H17+I17 -> 0
C18: =IF(ALL_A!C50="","",ALL_A!C50) ->  | H18: =IF($L$7="Si",SUM(D18:G18),SUM(E18:G18)) -> 0 | J18: =H18+I18 -> 0
C19: =IF(ALL_A!C51="","",ALL_A!C51) ->  | H19: 0 | J19: 0
H20: 0 | J20: 0
H21: 0 | J21: 0
H22: 0 | J22: 0
H23: 0 | J23: 0
H24: 0 | J24: 0
H25: 0 | J25: 0
H26: 0 | J26: 0
H27: 0 | J27: 0
H28: 0 | J28: 0
H29: 0 | J29: 0
H30: 0 | J30: 0
H31: 0 | J31: 0
H32: 0 | J32: 0
H33: 0 | J33: 0
H34: 0 | J34: 0
H35: 0 | J35: 0
H36: 0 | J36: 0
H37: 0 | J37: 0
H38: 0 | J38: 0
H39: 0 | J39: 0
H40: 0 | J40: 0
H41: 0 | J41: 0
H42: 0 | J42: 0
H43: =IF($L$7="Si",SUM(D43:G43),SUM(E43:G43)) -> 0 | J43: =H43+I43 -> 0
H44: =IF($L$7="Si",SUM(D44:G44),SUM(E44:G44)) -> 0 | J44: =H44+I44 -> 0
B45: 1001 | C45: TOTALE COSTO DEL PERSONALE | E45: =SUM(E15:E44) -> 0 | F45: 0 | G45: 0 | H45: 0 | I45: 0 | J45: 0
C46: COSTI PER I MATERIALI
C47: =C15 -> 0 | E47: =ALL_C!E19 -> 0 | F47: =ALL_C!F19 -> 0 | G47: =ALL_C!Q19 -> 0 | H47: =IF($L$7="Si",SUM(D47:G47),SUM(E47:G47)) -> 0 | I47: =ALL_C!S19 -> 0 | J47: =H47+I47 -> 0
C48: =C16 ->  | H48: =IF($L$7="Si",SUM(D48:G48),SUM(E48:G48)) -> 0 | J48: =H48+I48 -> 0
C49: =C17 ->  | H49: =IF($L$7="Si",SUM(D49:G49),SUM(E49:G49)) -> 0 | J49: =H49+I49 -> 0
C50: =C18 ->  | H50: =IF($L$7="Si",SUM(D50:G50),SUM(E50:G50)) -> 0 | J50: =H50+I50 -> 0
C51: =C19 ->  | H51: =IF($L$7="Si",SUM(D51:G51),SUM(E51:G51)) -> 0 | J51: =H51+I51 -> 0
H52: 0 | J52: 0
H53: 0 | J53: 0
H54: 0 | J54: 0
H55: 0 | J55: 0
H56: 0 | J56: 0
H57: 0 | J57: 0
H58: 0 | J58: 0
H59: 0 | J59: 0
H60: 0 | J60: 0
H61: 0 | J61: 0
H62: 0 | J62: 0
H63: 0 | J63: 0
H64: 0 | J64: 0
H65: 0 | J65: 0
H66: 0 | J66: 0
H67: 0 | J67: 0
H68: 0 | J68: 0
H69: 0 | J69: 0
H70: 0 | J70: 0
H71: 0 | J71: 0
H72: 0 | J72: 0
H73: 0 | J73: 0
H74: 0 | J74: 0
H75: =IF($L$7="Si",SUM(D75:G75),SUM(E75:G75)) -> 0 | J75: =H75+I75 -> 0
H76: =IF($L$7="Si",SUM(D76:G76),SUM(E76:G76)) -> 0 | J76: =H76+I76 -> 0
B77: 1001 | C77: TOTALE MATERIALI | E77: =SUM(E47:E76) -> 0 | F77: 0 | G77: 0 | H77: 0 | I77: 0 | J77: 0
C78: COSTI PER GLI STRUMENTI E LE ATTREZZATURE
C79: =C47 -> 0 | E79: =ALL_C!E20 -> 0 | F79: =ALL_C!F20 -> 0 | G79: =ALL_C!Q20 -> 0 | H79: =IF($L$7="Si",SUM(D79:G79),SUM(E79:G79)) -> 0 | I79: =ALL_C!S20 -> 0 | J79: =H79+I79 -> 0
C80: =C48 ->  | H80: =IF($L$7="Si",SUM(D80:G80),SUM(E80:G80)) -> 0 | J80: =H80+I80 -> 0
C81: =C49 ->  | H81: =IF($L$7="Si",SUM(D81:G81),SUM(E81:G81)) -> 0 | J81: =H81+I81 -> 0
C82: =C50 ->  | H82: =IF($L$7="Si",SUM(D82:G82),SUM(E82:G82)) -> 0 | J82: =H82+I82 -> 0
C83: =C51 ->  | H83: =IF($L$7="Si",SUM(D83:G83),SUM(E83:G83)) -> 0 | J83: =H83+I83 -> 0
H84: 0 | J84: 0
H85: 0 | J85: 0
H86: 0 | J86: 0
H87: 0 | J87: 0
H88: 0 | J88: 0
H89: 0 | J89: 0
H90: 0 | J90: 0
H91: 0 | J91: 0
H92: 0 | J92: 0
H93: 0 | J93: 0
H94: 0 | J94: 0
H95: 0 | J95: 0
H96: 0 | J96: 0
H97: 0 | J97: 0
H98: 0 | J98: 0
H99: 0 | J99: 0
H100: 0 | J100: 0
H101: 0 | J101: 0
H102: 0 | J102: 0
H103: 0 | J103: 0
H104: 0 | J104: 0
H105: 0 | J105: 0
H106: 0 | J106: 0
H107: =IF($L$7="Si",SUM(D107:G107),SUM(E107:G107)) -> 0 | J107: =H107+I107 -> 0
H108: =IF($L$7="Si",SUM(D108:G108),SUM(E108:G108)) -> 0 | J108: =H108+I108 -> 0
B109: 1001 | C109: TOTALE STRUMENTAZIONE E ATTREZZATURE | E109: =SUM(E79:E108) -> 0 | F109: 0 | G109: 0 | H109: 0 | I109: 0 | J109: 0
C110: COSTI PER I SERVIZI DI CONSULENZA
C111: =C79 -> 0 | E111: =ALL_C!E21 -> 0 | F111: =ALL_C!F21 -> 0 | G111: =ALL_C!Q21 -> 0 | H111: =IF($L$7="Si",SUM(D111:G111),SUM(E111:G111)) -> 0 | I111: =ALL_C!S21 -> 0 | J111: =H111+I111 -> 0
C112: =C80 ->  | H112: =IF($L$7="Si",SUM(D112:G112),SUM(E112:G112)) -> 0 | J112: =H112+I112 -> 0
C113: =C81 ->  | H113: =IF($L$7="Si",SUM(D113:G113),SUM(E113:G113)) -> 0 | J113: =H113+I113 -> 0
C114: =C82 ->  | H114: =IF($L$7="Si",SUM(D114:G114),SUM(E114:G114)) -> 0 | J114: =H114+I114 -> 0
C115: =C83 ->  | H115: =IF($L$7="Si",SUM(D115:G115),SUM(E115:G115)) -> 0 | J115: =H115+I115 -> 0
H116: 0 | J116: 0
H117: 0 | J117: 0
H118: 0 | J118: 0
H119: 0 | J119: 0
H120: 0 | J120: 0
H121: 0 | J121: 0
H122: 0 | J122: 0
H123: 0 | J123: 0
H124: 0 | J124: 0
H125: 0 | J125: 0
H126: 0 | J126: 0
H127: 0 | J127: 0
H128: 0 | J128: 0
H129: 0 | J129: 0
H130: 0 | J130: 0
H131: 0 | J131: 0
H132: 0 | J132: 0
H133: 0 | J133: 0
H134: 0 | J134: 0
H135: 0 | J135: 0
H136: 0 | J136: 0
H137: 0 | J137: 0
H138: 0 | J138: 0
H139: =IF($L$7="Si",SUM(D139:G139),SUM(E139:G139)) -> 0 | J139: =H139+I139 -> 0
H140: =IF($L$7="Si",SUM(D140:G140),SUM(E140:G140)) -> 0 | J140: =H140+I140 -> 0
B141: 1001 | C141: TOTALE SERVIZI DI CONSULENZA | E141: =SUM(E111:E140) -> 0 | F141: 0 | G141: 0 | H141: 0 | I141: 0 | J141: 0
C142: COSTI TOTALI DISTINTI PER IMPRESA
C143: =C111 -> 0 | E143: =E15+E47+E79+E111 -> 0 | F143: 0 | G143: 0 | H143: 0 | I143: 0 | J143: 0
C144: =C112 ->  | E144: 0 | F144: 0 | G144: 0 | H144: 0 | I144: 0 | J144: 0
C145: =C113 ->  | E145: 0 | F145: 0 | G145: 0 | H145: 0 | I145: 0 | J145: 0
C146: =C114 ->  | E146: =E18+E50+E82+E114 -> 0 | F146: 0 | G146: 0 | H146: 0 | I146: 0 | J146: 0
C147: =C115 ->  | E147: =E19+E51+E83+E115 -> 0 | F147: 0 | G147: 0 | H147: 0 | I147: 0 | J147: 0
E148: =E20+E52+E84+E116 -> 0 | F148: 0 | G148: 0 | H148: 0 | I148: 0 | J148: 0
E149: =E21+E53+E85+E117 -> 0 | F149: 0 | G149: 0 | H149: 0 | I149: 0 | J149: 0
E150: =E22+E54+E86+E118 -> 0 | F150: 0 | G150: 0 | H150: 0 | I150: 0 | J150: 0
E151: =E23+E55+E87+E119 -> 0 | F151: 0 | G151: 0 | H151: 0 | I151: 0 | J151: 0
E152: =E24+E56+E88+E120 -> 0 | F152: 0 | G152: 0 | H152: 0 | I152: 0 | J152: 0
E153: =E25+E57+E89+E121 -> 0 | F153: 0 | G153: 0 | H153: 0 | I153: 0 | J153: 0
E154: =E26+E58+E90+E122 -> 0 | F154: 0 | G154: 0 | H154: 0 | I154: 0 | J154: 0
E155: =E27+E59+E91+E123 -> 0 | F155: 0 | G155: 0 | H155: 0 | I155: 0 | J155: 0
E156: =E28+E60+E92+E124 -> 0 | F156: 0 | G156: 0 | H156: 0 | I156: 0 | J156: 0
E157: =E29+E61+E93+E125 -> 0 | F157: 0 | G157: 0 | H157: 0 | I157: 0 | J157: 0
E158: =E30+E62+E94+E126 -> 0 | F158: 0 | G158: 0 | H158: 0 | I158: 0 | J158: 0
E159: =E31+E63+E95+E127 -> 0 | F159: 0 | G159: 0 | H159: 0 | I159: 0 | J159: 0
E160: =E32+E64+E96+E128 -> 0 | F160: 0 | G160: 0 | H160: 0 | I160: 0 | J160: 0
E161: =E33+E65+E97+E129 -> 0 | F161: 0 | G161: 0 | H161: 0 | I161: 0 | J161: 0
E162: =E34+E66+E98+E130 -> 0 | F162: 0 | G162: 0 | H162: 0 | I162: 0 | J162: 0
E163: =E35+E67+E99+E131 -> 0 | F163: 0 | G163: 0 | H163: 0 | I163: 0 | J163: 0
E164: =E36+E68+E100+E132 -> 0 | F164: 0 | G164: 0 | H164: 0 | I164: 0 | J164: 0
E165: =E37+E69+E101+E133 -> 0 | F165: 0 | G165: 0 | H165: 0 | I165: 0 | J165: 0
E166: =E38+E70+E102+E134 -> 0 | F166: 0 | G166: 0 | H166: 0 | I166: 0 | J166: 0
E167: =E39+E71+E103+E135 -> 0 | F167: 0 | G167: 0 | H167: 0 | I167: 0 | J167: 0
E168: =E40+E72+E104+E136 -> 0 | F168: 0 | G168: 0 | H168: 0 | I168: 0 | J168: 0
E169: =E41+E73+E105+E137 -> 0 | F169: 0 | G169: 0 | H169: 0 | I169: 0 | J169: 0
E170: =E42+E74+E106+E138 -> 0 | F170: 0 | G170: 0 | H170: 0 | I170: 0 | J170: 0
E171: =E43+E75+E107+E139 -> 0 | F171: 0 | G171: 0 | H171: 0 | I171: 0 | J171: 0
E172: =E44+E76+E108+E140 -> 0 | F172: 0 | G172: 0 | H172: 0 | I172: 0 | J172: 0
C173: TOTALE GENERALE | E173: 0 | F173: 0 | G173: 0 | H173: 0 | I173: 0 | J173: 0
C176: B) PREVISIONE DEI COSTI DELLE ATTIVITA' PER I PROGRAMMI PRESENTATI IN FORMA ASSOCIATA (Per tipo di attività)
C178: TIPO DI COSTO | E178: =E$13 -> 2014 | F178: =E178+1 -> 2015 | G178: =F178+1 -> 2016 | H178: ="TOTALE "&IF($L$7="Si"," AL ",E178&"-") &G178 -> TOTALE 2014-2016 | I178: SUCCESSIVI A FINIRE | J178: TOTALE GENER.
C179: COSTI PER ATTIVITA' DI FATTIBILITA' TECNICA
C180: =C143 -> 0 | E180: =ALL_C!E27 -> 0 | F180: =ALL_C!F27 -> 0 | G180: =ALL_C!Q27 -> 0 | H180: =ALL_C!R27 -> 0 | I180: =ALL_C!S27 -> 0 | J180: =ALL_C!T27 -> 0
C181: =C144 ->  | H181: =IF($L$7="Si",SUM(D181:G181),SUM(E181:G181)) -> 0 | J181: =H181+I181 -> 0
C182: =C145 ->  | H182: =IF($L$7="Si",SUM(D182:G182),SUM(E182:G182)) -> 0 | J182: =H182+I182 -> 0
C183: =C146 ->  | H183: =IF($L$7="Si",SUM(D183:G183),SUM(E183:G183)) -> 0 | J183: =H183+I183 -> 0
C184: =C147 ->  | H184: =IF($L$7="Si",SUM(D184:G184),SUM(E184:G184)) -> 0 | J184: =H184+I184 -> 0
H185: 0 | J185: 0
H186: 0 | J186: 0
H187: 0 | J187: 0
H188: 0 | J188: 0
H189: 0 | J189: 0
H190: 0 | J190: 0
H191: 0 | J191: 0
H192: 0 | J192: 0
H193: 0 | J193: 0
H194: 0 | J194: 0
H195: 0 | J195: 0
H196: 0 | J196: 0
H197: 0 | J197: 0
H198: 0 | J198: 0
H199: 0 | J199: 0
H200: 0 | J200: 0
H201: 0 | J201: 0
H202: 0 | J202: 0
H203: 0 | J203: 0
H204: 0 | J204: 0
H205: 0 | J205: 0
H206: 0 | J206: 0
H207: 0 | J207: 0
H208: =IF($L$7="Si",SUM(D208:G208),SUM(E208:G208)) -> 0 | J208: =H208+I208 -> 0
... 103 more rows

Sheet ALL_D (hidden)
B1: Ministero dello Sviluppo economico | AI1: check compilazione | AJ1: check coerenza | AK1: fin.to L. 808/85 | AL1: ANNO_FINE
C2: =MENU!B5 -> Direzione generale per la politica industriale, la competitività e le PMI
C4: =MENU!B7 -> Divisione IX “Industrie aerospazio, difesa e sicurezza”
B5: Torna al menu principale | C5: DOMANDA DI ACCESSO AI PROGETTI DI RICERCA E SVILUPPO EX. L. 808/85 - ALLEGATO D: RISULTATI COMMERCIALI DEL PROGETTO - Previsione vendite tecnologie/prodotti sviluppati con il progetto
C7: Legge 808/85 – PROGETTO: | E7: =IF(ALL_A!$F$7=0,"",ALL_A!$F$7) ->  | I7: Area: | J7: =ALL_A!I7 -> Civile | AK7: =ALL_A!$E$9 -> No | AL7: =ALL_A!$G$16 -> 0
B9: RISULTATI COMMERCIALI DEL PROGETTO - Previsione vendite tecnologie/prodotti sviluppati con il progetto
B11: ANNO | C11: =ALL_A!G16 -> 0 | D11: =C11+1 -> 1 | E11: =D11+1 -> 2 | F11: 3 | G11: 4 | H11: 5 | I11: 6 | J11: 7 | K11: 8 | L11: 9 | M11: 10 | N11: 11 | O11: 12 | P11: 13 | Q11: 14 | R11: 15 | S11: 16 | T11: 17 | U11: 18 | V11: 19 | W11: 20 | X11: =W11+1 -> 21 | Y11: 22 | Z11: 23 | AA11: 24 | AB11: 25 | AC11: 26 | AD11: 27 | AE11: 28 | AF11: 29 | AG11: ="TOTALE "&C11&"-"&AF11 -> TOTALE 0-29
B12: CONSEGNE/ANNO | AG12: =SUM(C12:AF12) -> 0
B13: CONSEGNE CUMULATE | C13: =C12 -> 0 | D13: =C13+D12 -> 0 | E13: =D13+E12 -> 0 | F13: 0 | G13: 0 | H13: 0 | I13: 0 | J13: 0 | K13: 0 | L13: 0 | M13: 0 | N13: 0 | O13: 0 | P13: 0 | Q13: 0 | R13: 0 | S13: 0 | T13: 0 | U13: 0 | V13: 0 | W13: 0 | X13: 0 | Y13: 0 | Z13: 0 | AA13: 0 | AB13: 0 | AC13: 0 | AD13: 0 | AE13: 0 | AF13: 0 | AG13: =AF13 -> 0
B14: PREZZO UNITARIO (Euro)
B15: INCASSI (migliaia di euro) | C15: =C12*C14/1000 -> 0 | D15: =D12*D14/1000 -> 0 | E15: 0 | F15: 0 | G15: 0 | H15: 0 | I15: 0 | J15: 0 | K15: 0 | L15: 0 | M15: 0 | N15: 0 | O15: 0 | P15: 0 | Q15: 0 | R15: 0 | S15: 0 | T15: 0 | U15: 0 | V15: 0 | W15: 0 | X15: 0 | Y15: 0 | Z15: 0 | AA15: 0 | AB15: 0 | AC15: 0 | AD15: 0 | AE15: 0 | AF15: 0 | AG15: =SUM(C15:AF15) -> 0 | AI15: =IF(AG15=0,"Nessuna pianificazione vendite","") -> Nessuna pianificazione vendite
B16: * La tabella va compilata almeno per i primi 7 anni dall’avvio della commercializzazione
AI17: =CONCATENATE(AI15) -> Nessuna pianificazione vendite

Sheet EXP_PROGRAMMA (hidden)
A1: ID | B1: CODICE_PROGRAMMA | C1: PROGRAMMA | D1: ID_TIPOLOGIA_PROGRAMMA | E1: FLAG_GIA_FINANZIATO | F1: ID_PROGRAMMA_PRECEDENTE | G1: FLAG_IMPRESE_ASSOCIATE | H1: FLAG_CAPOFILA | I1: ULTIMO_ESERCIZIO_CHIUSO | J1: ID_SOGGETTO | K1: RAGIONE_SOCIALE | L1: SEDE_LEGALE | M1: DIMENSIONE_IMPRESA | N1: ISCRIZIONE_CCIAA | O1: ISCRIZIONE_INPS | P1: CAPITALE_SOCIALE | Q1: ATTIVITA | R1: STABILIMENTI_PRODUZIONE | S1: DATA_PRES_DOMANDA | T1: PROTOCOLLO_MISE | U1: FLAG_AMMESSO | V1: FLAG_MOLTO_INNOVATIVO | W1: PERC_MAGGIOR_PERSONALE | X1: ANNO_COMPLET_TO_ROGRAMMA | Y1: DURATA_RESTITUZIONE
A2: 1 | B2: 1 | C2: =IF(ALL_A!F7="","",ALL_A!F7) ->  | D2: =IF(ALL_A!I7="","",IF(ALL_A!I7="Civile",1,2)) -> 1 | E2: =IF(ALL_A!E9="Si",1,0) -> 0 | G2: =IF(ALL_A!G9="Imprese associate",1,0) -> 0 | H2: =IF(ALL_A!I9="Si",1,0) -> 0 | I2: =ALL_A!F11 -> 0 | K2: =IF(ALL_A!F39="","",ALL_A!F39) ->  | L2: =IF(ALL_A!F40="","",ALL_A!F40) ->  | M2: =IF(ALL_A!F13="","",ALL_A!F13) ->  | N2: =IF(ALL_A!F42="","",ALL_A!F42) ->  | O2: =IF(ALL_A!F43="","",ALL_A!F43) ->  | P2: =ALL_A!F44 -> 0 | Q2: =IF(ALL_A!F206="","",ALL_A!F206) ->  | R2: =IF(ALL_A!F207="","",ALL_A!F207) ->  | X2: =IF(ALL_A!G16="","",ALL_A!G16) ->  | Y2: =IF(ALL_A!I11="","",ALL_A!I11) ->  | AM2: =SUM(A4:X4) -> 3
A4: =IFERROR(A2,"#ERR") -> 1 | B4: =IFERROR(B2,"#ERR") -> 1 | D4: 1 | E4: 0 | F4: 0 | G4: 0 | H4: 0 | I4: 0 | J4: 0 | P4: 0 | S4: 0 | T4: 0 | U4: 0 | V4: 0 | W4: 0 | AA4: =COUNTIF(B4:Y4,"#ERR") -> 0

Sheet EXP_SOGGETTI_BIL_VOCI (hidden)
A1: ID | B1: ANNO | C1: ID_SCHEMI_BIL_VOCE | D1: CODICE_VOCE | E1: DESCRIZIONE_VOCE | F1: IMPORTO | J1: SP | K1: ANNO | L1: OFFSET
A2: 1 | B2: =EXP_SOGGETTI_BIL!$C$2 ->  | C2: 101 | D2: SPA.A | E2: CREDITI VERSO SOCI PER VERSAMENTI ANCORA DOVUTI | F2: =VLOOKUP(C2,ALL_A.1!$A$14:$E$24,VLOOKUP(B2,$K$1:$L$3,2,0),0) -> 0 | K2: =EXP_SOGGETTI_BIL!$C$2 ->  | L2: 4 | Z2: =IFERROR(SUM(F2:F71),"#ERR") -> 0 | AA2: =COUNTIF(Z:Z,"#ERR") -> 0
A3: 1 | B3: =EXP_SOGGETTI_BIL!$C$2 ->  | C3: 105 | D3: SPA.B | E3: IMMOBILIZZAZIONI | F3: =VLOOKUP(C3,ALL_A.1!$A$14:$E$24,VLOOKUP(B3,$K$1:$L$3,2,0),0) -> 0 | K3: =EXP_SOGGETTI_BIL!$C$3 ->  | L3: 5
A4: 1 | B4: =EXP_SOGGETTI_BIL!$C$2 ->  | C4: 111 | D4: SPA.C.I | E4: Rimanenze | F4: =VLOOKUP(C4,ALL_A.1!$A$14:$E$24,VLOOKUP(B4,$K$1:$L$3,2,0),0) -> 0
A5: 1 | B5: =EXP_SOGGETTI_BIL!$C$2 ->  | C5: 112 | D5: SPA.C.II.1 | E5: verso Clienti | F5: =VLOOKUP(C5,ALL_A.1!$A$14:$E$24,VLOOKUP(B5,$K$1:$L$3,2,0),0) -> 0 | J5: CE | K5: ANNO | L5: OFFSET
A6: 1 | B6: =EXP_SOGGETTI_BIL!$C$2 ->  | C6: 113 | D6: SPA.C.II.1OLTRE | E6: di cui oltre l'esercizio successivo | F6: =VLOOKUP(C6,ALL_A.1!$A$14:$E$24,VLOOKUP(B6,$K$1:$L$3,2,0),0) -> 0 | K6: =EXP_SOGGETTI_BIL!$C$2 ->  | L6: 6
A7: 1 | B7: =EXP_SOGGETTI_BIL!$C$2 ->  | C7: 114 | D7: SPA.C.II.2-3-4-5 | E7: verso altri (esclusi quelli vs. clienti) | F7: =VLOOKUP(C7,ALL_A.1!$A$14:$E$24,VLOOKUP(B7,$K$1:$L$3,2,0),0) -> 0 | K7: =EXP_SOGGETTI_BIL!$C$3 ->  | L7: 8
A8: 1 | B8: =EXP_SOGGETTI_BIL!$C$2 ->  | C8: 115 | D8: SPA.C.II.2-3-4-5OLTRE | E8: di cui oltre l'esercizio successivo | F8: =VLOOKUP(C8,ALL_A.1!$A$14:$E$24,VLOOKUP(B8,$K$1:$L$3,2,0),0) -> 0
A9: 1 | B9: =EXP_SOGGETTI_BIL!$C$2 ->  | C9: 131 | D9: SPP.A | E9: Patrimonio netto | F9: =VLOOKUP(C9,ALL_A.1!$F$14:$J$30,VLOOKUP(B9,$K$1:$L$3,2,0),0) -> 0 | J9: =$J$1&"A" -> SPA | K9: ALL_A.1!$A$14:$E$24 | L9: 5
A10: 1 | B10: =EXP_SOGGETTI_BIL!$C$2 ->  | C10: 132 | D10: SPP.B | E10: FONDI RISCHI E ONERI | F10: =VLOOKUP(C10,ALL_A.1!$F$14:$J$30,VLOOKUP(B10,$K$1:$L$3,2,0),0) -> 0 | J10: =$J$1&"P" -> SPP | K10: ALL_A.1!$F$14:$J$30 | L10: 5
A11: 1 | B11: =EXP_SOGGETTI_BIL!$C$2 ->  | C11: 133 | D11: SPP.C | E11: TRATTAMENTO DI FINE RAPPORTO | F11: =VLOOKUP(C11,ALL_A.1!$F$14:$J$30,VLOOKUP(B11,$K$1:$L$3,2,0),0) -> 0 | J11: =J5 -> CE | K11: ALL_A.2!$A$16:$H$39 | L11: 8
A12: 1 | B12: =EXP_SOGGETTI_BIL!$C$2 ->  | C12: 134 | D12: SPP.D.1-2 | E12: Obbligazioni e obbligazioni convertibili | F12: =VLOOKUP(C12,ALL_A.1!$F$14:$J$30,VLOOKUP(B12,$K$1:$L$3,2,0),0) -> 0
A13: 1 | B13: =EXP_SOGGETTI_BIL!$C$2 ->  | C13: 135 | D13: SPP.D.1-2OLTRE | E13: di cui oltre l'esercizio successivo | F13: =VLOOKUP(C13,ALL_A.1!$F$14:$J$30,VLOOKUP(B13,$K$1:$L$3,2,0),0) -> 0
A14: 1 | B14: =EXP_SOGGETTI_BIL!$C$2 ->  | C14: 136 | D14: SPP.D.4 | E14: Debiti verso banche | F14: =VLOOKUP(C14,ALL_A.1!$F$14:$J$30,VLOOKUP(B14,$K$1:$L$3,2,0),0) -> 0
A15: 1 | B15: =EXP_SOGGETTI_BIL!$C$2 ->  | C15: 137 | D15: SPP.D.4OLTRE | E15: di cui oltre l'esercizio successivo | F15: =VLOOKUP(C15,ALL_A.1!$F$14:$J$30,VLOOKUP(B15,$K$1:$L$3,2,0),0) -> 0
A16: 1 | B16: =EXP_SOGGETTI_BIL!$C$2 ->  | C16: 138 | D16: SPP.D.5 | E16: Debiti verso altri finanziatori | F16: =VLOOKUP(C16,ALL_A.1!$F$14:$J$30,VLOOKUP(B16,$K$1:$L$3,2,0),0) -> 0
A17: 1 | B17: =EXP_SOGGETTI_BIL!$C$2 ->  | C17: 139 | D17: SPP.D.5OLTRE | E17: di cui oltre l'esercizio successivo | F17: =VLOOKUP(C17,ALL_A.1!$F$14:$J$30,VLOOKUP(B17,$K$1:$L$3,2,0),0) -> 0
A18: 1 | B18: =EXP_SOGGETTI_BIL!$C$2 ->  | C18: 142 | D18: SPP.D.7 | E18: Debiti verso fornitori | F18: =VLOOKUP(C18,ALL_A.1!$F$14:$J$30,VLOOKUP(B18,$K$1:$L$3,2,0),0) -> 0
A19: 1 | B19: =EXP_SOGGETTI_BIL!$C$2 ->  | C19: 143 | D19: SPP.D.12-13 | E19: Debiti tributari e verso istituti di previdenza e sicurezza sociale | F19: =VLOOKUP(C19,ALL_A.1!$F$14:$J$30,VLOOKUP(B19,$K$1:$L$3,2,0),0) -> 0
A20: 1 | B20: =EXP_SOGGETTI_BIL!$C$2 ->  | C20: 144 | D20: SPP.D.ALTRI | E20: Altri debiti | F20: =VLOOKUP(C20,ALL_A.1!$F$14:$J$30,VLOOKUP(B20,$K$1:$L$3,2,0),0) -> 0
A21: 1 | B21: =EXP_SOGGETTI_BIL!$C$2 ->  | C21: 145 | D21: SPP.D.ALTRIOLTRE | E21: di cui oltre l'esercizio successivo | F21: =VLOOKUP(C21,ALL_A.1!$F$14:$J$30,VLOOKUP(B21,$K$1:$L$3,2,0),0) -> 0
A22: 1 | B22: =EXP_SOGGETTI_BIL!$C$2 ->  | C22: 149 | D22: CE.A.1 | E22: Ricavi delle vendite e delle prestazioni | F22: =VLOOKUP(C22,ALL_A.2!$A$16:$H$39,VLOOKUP(B22,$K$6:$L$7,2,0),0) -> 0
A23: 1 | B23: =EXP_SOGGETTI_BIL!$C$2 ->  | C23: 153 | D23: CE.A.5 | E23: Altri ricavi e proventi | F23: =VLOOKUP(C23,ALL_A.2!$A$16:$H$39,VLOOKUP(B23,$K$6:$L$7,2,0),0) -> 0
A24: 1 | B24: =EXP_SOGGETTI_BIL!$C$2 ->  | C24: 154 | D24: CE.A | E24: Valore della produzione | F24: =VLOOKUP(C24,ALL_A.2!$A$16:$H$39,VLOOKUP(B24,$K$6:$L$7,2,0),0) -> 0
A25: 1 | B25: =EXP_SOGGETTI_BIL!$C$2 ->  | C25: 155 | D25: CE.B.6 | E25: per Materie prime, di consumo e di merci | F25: =VLOOKUP(C25,ALL_A.2!$A$16:$H$39,VLOOKUP(B25,$K$6:$L$7,2,0),0) -> 0
A26: 1 | B26: =EXP_SOGGETTI_BIL!$C$2 ->  | C26: 156 | D26: CE.B.7 | E26: per Servizi | F26: =VLOOKUP(C26,ALL_A.2!$A$16:$H$39,VLOOKUP(B26,$K$6:$L$7,2,0),0) -> 0
A27: 1 | B27: =EXP_SOGGETTI_BIL!$C$2 ->  | C27: 180 | D27: CE.B.7.1 | E27: di cui Utenze | F27: =VLOOKUP(C27,ALL_A.2!$A$16:$H$39,VLOOKUP(B27,$K$6:$L$7,2,0),0) -> 0
A28: 1 | B28: =EXP_SOGGETTI_BIL!$C$2 ->  | C28: 181 | D28: CE.B.7. 2 | E28: di cui Manutenzioni | F28: =VLOOKUP(C28,ALL_A.2!$A$16:$H$39,VLOOKUP(B28,$K$6:$L$7,2,0),0) -> 0
A29: 1 | B29: =EXP_SOGGETTI_BIL!$C$2 ->  | C29: 157 | D29: CE.B.8 | E29: per Godimento beni di terzi | F29: =VLOOKUP(C29,ALL_A.2!$A$16:$H$39,VLOOKUP(B29,$K$6:$L$7,2,0),0) -> 0
A30: 1 | B30: =EXP_SOGGETTI_BIL!$C$2 ->  | C30: 158 | D30: CE.B.9 | E30: per il Personale | F30: =VLOOKUP(C30,ALL_A.2!$A$16:$H$39,VLOOKUP(B30,$K$6:$L$7,2,0),0) -> 0
A31: 1 | B31: =EXP_SOGGETTI_BIL!$C$2 ->  | C31: 159 | D31: CE.B.10 | E31: Ammortamenti e svalutazioni | F31: =VLOOKUP(C31,ALL_A.2!$A$16:$H$39,VLOOKUP(B31,$K$6:$L$7,2,0),0) -> 0
A32: 1 | B32: =EXP_SOGGETTI_BIL!$C$2 ->  | C32: 160 | D32: CE.B.11 | E32: Variaz. rimanenze di materie, sussidiarie, di consumo e di merci | F32: =VLOOKUP(C32,ALL_A.2!$A$16:$H$39,VLOOKUP(B32,$K$6:$L$7,2,0),0) -> 0
A33: 1 | B33: =EXP_SOGGETTI_BIL!$C$2 ->  | C33: 170 | D33: CE.C | E33: Totale Proventi (+) e Oneri (-) Finanziari | F33: =VLOOKUP(C33,ALL_A.2!$A$16:$H$39,VLOOKUP(B33,$K$6:$L$7,2,0),0) -> 0
A34: 1 | B34: =EXP_SOGGETTI_BIL!$C$2 ->  | C34: 176 | D34: CE.E | E34: Totale Proventi (+) e Oneri (-) Straordinari | F34: =VLOOKUP(C34,ALL_A.2!$A$16:$H$39,VLOOKUP(B34,$K$6:$L$7,2,0),0) -> 0
A35: 1 | B35: =EXP_SOGGETTI_BIL!$C$2 ->  | C35: 178 | D35: CE.22 | E35: Imposte sul reddito dell'esercizio | F35: =VLOOKUP(C35,ALL_A.2!$A$16:$H$39,VLOOKUP(B35,$K$6:$L$7,2,0),0) -> 0
A36: 1 | B36: =EXP_SOGGETTI_BIL!$C$2 ->  | C36: 179 | D36: CE.UTILE | E36: UTILE / PERDITA D'ESERCIZIO | F36: =VLOOKUP(C36,ALL_A.2!$A$16:$H$39,VLOOKUP(B36,$K$6:$L$7,2,0),0) -> 0
A37: 1 | B37: =EXP_SOGGETTI_BIL!$C$3 ->  | C37: 101 | D37: SPA.A | E37: CREDITI VERSO SOCI PER VERSAMENTI ANCORA DOVUTI | F37: =VLOOKUP(C37,ALL_A.1!$A$14:$E$24,VLOOKUP(B37,$K$1:$L$3,2,0),0) -> 0
A38: 1 | B38: =EXP_SOGGETTI_BIL!$C$3 ->  | C38: 105 | D38: SPA.B | E38: IMMOBILIZZAZIONI | F38: =VLOOKUP(C38,ALL_A.1!$A$14:$E$24,VLOOKUP(B38,$K$1:$L$3,2,0),0) -> 0
A39: 1 | B39: =EXP_SOGGETTI_BIL!$C$3 ->  | C39: 111 | D39: SPA.C.I | E39: Rimanenze | F39: =VLOOKUP(C39,ALL_A.1!$A$14:$E$24,VLOOKUP(B39,$K$1:$L$3,2,0),0) -> 0
A40: 1 | B40: =EXP_SOGGETTI_BIL!$C$3 ->  | C40: 112 | D40: SPA.C.II.1 | E40: verso Clienti | F40: =VLOOKUP(C40,ALL_A.1!$A$14:$E$24,VLOOKUP(B40,$K$1:$L$3,2,0),0) -> 0
A41: 1 | B41: =EXP_SOGGETTI_BIL!$C$3 ->  | C41: 113 | D41: SPA.C.II.1OLTRE | E41: di cui oltre l'esercizio successivo | F41: =VLOOKUP(C41,ALL_A.1!$A$14:$E$24,VLOOKUP(B41,$K$1:$L$3,2,0),0) -> 0
A42: 1 | B42: =EXP_SOGGETTI_BIL!$C$3 ->  | C42: 114 | D42: SPA.C.II.2-3-4-5 | E42: verso altri (esclusi quelli vs. clienti) | F42: =VLOOKUP(C42,ALL_A.1!$A$14:$E$24,VLOOKUP(B42,$K$1:$L$3,2,0),0) -> 0
A43: 1 | B43: =EXP_SOGGETTI_BIL!$C$3 ->  | C43: 115 | D43: SPA.C.II.2-3-4-5OLTRE | E43: di cui oltre l'esercizio successivo | F43: =VLOOKUP(C43,ALL_A.1!$A$14:$E$24,VLOOKUP(B43,$K$1:$L$3,2,0),0) -> 0
A44: 1 | B44: =EXP_SOGGETTI_BIL!$C$3 ->  | C44: 131 | D44: SPP.A | E44: Patrimonio netto | F44: =VLOOKUP(C44,ALL_A.1!$F$14:$J$30,VLOOKUP(B44,$K$1:$L$3,2,0),0) -> 0
A45: 1 | B45: =EXP_SOGGETTI_BIL!$C$3 ->  | C45: 132 | D45: SPP.B | E45: FONDI RISCHI E ONERI | F45: =VLOOKUP(C45,ALL_A.1!$F$14:$J$30,VLOOKUP(B45,$K$1:$L$3,2,0),0) -> 0
A46: 1 | B46: =EXP_SOGGETTI_BIL!$C$3 ->  | C46: 133 | D46: SPP.C | E46: TRATTAMENTO DI FINE RAPPORTO | F46: =VLOOKUP(C46,ALL_A.1!$F$14:$J$30,VLOOKUP(B46,$K$1:$L$3,2,0),0) -> 0
A47: 1 | B47: =EXP_SOGGETTI_BIL!$C$3 ->  | C47: 134 | D47: SPP.D.1-2 | E47: Obbligazioni e obbligazioni convertibili | F47: =VLOOKUP(C47,ALL_A.1!$F$14:$J$30,VLOOKUP(B47,$K$1:$L$3,2,0),0) -> 0
A48: 1 | B48: =EXP_SOGGETTI_BIL!$C$3 ->  | C48: 135 | D48: SPP.D.1-2OLTRE | E48: di cui oltre l'esercizio successivo | F48: =VLOOKUP(C48,ALL_A.1!$F$14:$J$30,VLOOKUP(B48,$K$1:$L$3,2,0),0) -> 0
A49: 1 | B49: =EXP_SOGGETTI_BIL!$C$3 ->  | C49: 136 | D49: SPP.D.4 | E49: Debiti verso banche | F49: =VLOOKUP(C49,ALL_A.1!$F$14:$J$30,VLOOKUP(B49,$K$1:$L$3,2,0),0) -> 0
A50: 1 | B50: =EXP_SOGGETTI_BIL!$C$3 ->  | C50: 137 | D50: SPP.D.4OLTRE | E50: di cui oltre l'esercizio successivo | F50: =VLOOKUP(C50,ALL_A.1!$F$14:$J$30,VLOOKUP(B50,$K$1:$L$3,2,0),0) -> 0
A51: 1 | B51: =EXP_SOGGETTI_BIL!$C$3 ->  | C51: 138 | D51: SPP.D.5 | E51: Debiti verso altri finanziatori | F51: =VLOOKUP(C51,ALL_A.1!$F$14:$J$30,VLOOKUP(B51,$K$1:$L$3,2,0),0) -> 0
A52: 1 | B52: =EXP_SOGGETTI_BIL!$C$3 ->  | C52: 139 | D52: SPP.D.5OLTRE | E52: di cui oltre l'esercizio successivo | F52: =VLOOKUP(C52,ALL_A.1!$F$14:$J$30,VLOOKUP(B52,$K$1:$L$3,2,0),0) -> 0
A53: 1 | B53: =EXP_SOGGETTI_BIL!$C$3 ->  | C53: 142 | D53: SPP.D.7 | E53: Debiti verso fornitori | F53: =VLOOKUP(C53,ALL_A.1!$F$14:$J$30,VLOOKUP(B53,$K$1:$L$3,2,0),0) -> 0
A54: 1 | B54: =EXP_SOGGETTI_BIL!$C$3 ->  | C54: 143 | D54: SPP.D.12-13 | E54: Debiti tributari e verso istituti di previdenza e sicurezza sociale | F54: =VLOOKUP(C54,ALL_A.1!$F$14:$J$30,VLOOKUP(B54,$K$1:$L$3,2,0),0) -> 0
A55: 1 | B55: =EXP_SOGGETTI_BIL!$C$3 ->  | C55: 144 | D55: SPP.D.ALTRI | E55: Altri debiti | F55: =VLOOKUP(C55,ALL_A.1!$F$14:$J$30,VLOOKUP(B55,$K$1:$L$3,2,0),0) -> 0
A56: 1 | B56: =EXP_SOGGETTI_BIL!$C$3 ->  | C56: 145 | D56: SPP.D.ALTRIOLTRE | E56: di cui oltre l'esercizio successivo | F56: =VLOOKUP(C56,ALL_A.1!$F$14:$J$30,VLOOKUP(B56,$K$1:$L$3,2,0),0) -> 0
A57: 1 | B57: =EXP_SOGGETTI_BIL!$C$3 ->  | C57: 149 | D57: CE.A.1 | E57: Ricavi delle vendite e delle prestazioni | F57: =VLOOKUP(C57,ALL_A.2!$A$16:$H$39,VLOOKUP(B57,EXP_SOGGETTI_BIL_VOCI!$K$6:$L$7,2,0),0) -> 0
A58: 1 | B58: =EXP_SOGGETTI_BIL!$C$3 ->  | C58: 153 | D58: CE.A.5 | E58: Altri ricavi e proventi | F58: =VLOOKUP(C58,ALL_A.2!$A$16:$H$39,VLOOKUP(B58,EXP_SOGGETTI_BIL_VOCI!$K$6:$L$7,2,0),0) -> 0
A59: 1 | B59: =EXP_SOGGETTI_BIL!$C$3 ->  | C59: 154 | D59: CE.A | E59: Valore della produzione | F59: =VLOOKUP(C59,ALL_A.2!$A$16:$H$39,VLOOKUP(B59,EXP_SOGGETTI_BIL_VOCI!$K$6:$L$7,2,0),0) -> 0
A60: 1 | B60: =EXP_SOGGETTI_BIL!$C$3 ->  | C60: 155 | D60: CE.B.6 | E60: per Materie prime, di consumo e di merci | F60: =VLOOKUP(C60,ALL_A.2!$A$16:$H$39,VLOOKUP(B60,EXP_SOGGETTI_BIL_VOCI!$K$6:$L$7,2,0),0) -> 0
A61: 1 | B61: =EXP_SOGGETTI_BIL!$C$3 ->  | C61: 156 | D61: CE.B.7 | E61: per Servizi | F61: =VLOOKUP(C61,ALL_A.2!$A$16:$H$39,VLOOKUP(B61,EXP_SOGGETTI_BIL_VOCI!$K$6:$L$7,2,0),0) -> 0
A62: 1 | B62: =EXP_SOGGETTI_BIL!$C$3 ->  | C62: 180 | D62: CE.B.7.1 | E62: di cui Utenze | F62: =VLOOKUP(C62,ALL_A.2!$A$16:$H$39,VLOOKUP(B62,EXP_SOGGETTI_BIL_VOCI!$K$6:$L$7,2,0),0) -> 0
A63: 1 | B63: =EXP_SOGGETTI_BIL!$C$3 ->  | C63: 181 | D63: CE.B.7. 2 | E63: di cui Manutenzioni | F63: =VLOOKUP(C63,ALL_A.2!$A$16:$H$39,VLOOKUP(B63,EXP_SOGGETTI_BIL_VOCI!$K$6:$L$7,2,0),0) -> 0
A64: 1 | B64: =EXP_SOGGETTI_BIL!$C$3 ->  | C64: 157 | D64: CE.B.8 | E64: per Godimento beni di terzi | F64: =VLOOKUP(C64,ALL_A.2!$A$16:$H$39,VLOOKUP(B64,EXP_SOGGETTI_BIL_VOCI!$K$6:$L$7,2,0),0) -> 0
A65: 1 | B65: =EXP_SOGGETTI_BIL!$C$3 ->  | C65: 158 | D65: CE.B.9 | E65: per il Personale | F65: =VLOOKUP(C65,ALL_A.2!$A$16:$H$39,VLOOKUP(B65,EXP_SOGGETTI_BIL_VOCI!$K$6:$L$7,2,0),0) -> 0
A66: 1 | B66: =EXP_SOGGETTI_BIL!$C$3 ->  | C66: 159 | D66: CE.B.10 | E66: Ammortamenti e svalutazioni | F66: =VLOOKUP(C66,ALL_A.2!$A$16:$H$39,VLOOKUP(B66,EXP_SOGGETTI_BIL_VOCI!$K$6:$L$7,2,0),0) -> 0
A67: 1 | B67: =EXP_SOGGETTI_BIL!$C$3 ->  | C67: 160 | D67: CE.B.11 | E67: Variaz. rimanenze di materie, sussidiarie, di consumo e di merci | F67: =VLOOKUP(C67,ALL_A.2!$A$16:$H$39,VLOOKUP(B67,EXP_SOGGETTI_BIL_VOCI!$K$6:$L$7,2,0),0) -> 0
A68: 1 | B68: =EXP_SOGGETTI_BIL!$C$3 ->  | C68: 170 | D68: CE.C | E68: Totale Proventi (+) e Oneri (-) Finanziari | F68: =VLOOKUP(C68,ALL_A.2!$A$16:$H$39,VLOOKUP(B68,EXP_SOGGETTI_BIL_VOCI!$K$6:$L$7,2,0),0) -> 0
A69: 1 | B69: =EXP_SOGGETTI_BIL!$C$3 ->  | C69: 176 | D69: CE.E | E69: Totale Proventi (+) e Oneri (-) Straordinari | F69: =VLOOKUP(C69,ALL_A.2!$A$16:$H$39,VLOOKUP(B69,EXP_SOGGETTI_BIL_VOCI!$K$6:$L$7,2,0),0) -> 0
A70: 1 | B70: =EXP_SOGGETTI_BIL!$C$3 ->  | C70: 178 | D70: CE.22 | E70: Imposte sul reddito dell'esercizio | F70: =VLOOKUP(C70,ALL_A.2!$A$16:$H$39,VLOOKUP(B70,EXP_SOGGETTI_BIL_VOCI!$K$6:$L$7,2,0),0) -> 0
A71: 1 | B71: =EXP_SOGGETTI_BIL!$C$3 ->  | C71: 179 | D71: CE.UTILE | E71: UTILE / PERDITA D'ESERCIZIO | F71: =VLOOKUP(C71,ALL_A.2!$A$16:$H$39,VLOOKUP(B71,EXP_SOGGETTI_BIL_VOCI!$K$6:$L$7,2,0),0) -> 0

Sheet EXP_STATO_DOMANDA (hidden)
A1: ID | B1: ID_PROGRAMMA | C1: MODULO | D1: STATO_COMPILAZIONE | E1: DETTAGLI | F1: CHECK
A2: 1 | C2: =MENU!C20 -> Allegato A: Dati generali sul Progetto e sull'impresa richiedente | D2: =MENU!H20 -> Compilazione da completare | E2: =IF(ALL_A!L402="","","DATI INCOERENTI: "&ALL_A!L402)& IF(ALL_A!K402="","","DATI DA COMPLETARE: "&ALL_A!K402) -> DATI DA COMPLETARE: Legge 808/85 – Progetto (max. 80 caratteri): - Il progetto è presentato da: - ULTIMO ESERCIZIO CONTABILE CHIUSO - DURATA DEL PIANO DELLE RESTITUZIONI (Art. 8 Comma 2 del bando) - DIMENSIONE DELL'IMPRESA - DURATA PROGETTO - DENOMINAZIONE - SEDE LEGALE - ISCRIZIONE CCIAA - ISCRIZIONE INPS - CAPITALE SOCIALE (euro) - SOCI E RELATIVE QUOTE (%) - ATTIVITÀ (principali attività produttive dell’azienda) - STABILIMENTI DI PRODUZIONE (ubicazione e principali linee di produzione) - PERSONALE (N° ADDETTI al 31 dicembre) - di cui RICERCATORI/TECNICI | F2: =IF(MENU!H20<>"Ok",1,0) -> 1 | H2: EXP_PROGRAMMA | I2: =SUM(EXP_PROGRAMMA!AA:AA) -> 0
A3: 1 | C3: =MENU!D21 -> ALLEGATO A.1: ELEMENTI PATRIMONIALI | D3: =MENU!H21 -> Compilazione da completare | E3: =IF(ALL_A.1!M50="","","DATI INCOERENTI: "&ALL_A.1!M50)& IF(ALL_A.1!L46="","","DATI DA COMPLETARE: "&ALL_A.1!L46) -> DATI DA COMPLETARE: -Elementi Patrimoniali da compilare | F3: =IF(MENU!H21<>"Ok",1,0) -> 1 | H3: EXP_SOGGETTI_BIL_VOCI | I3: =SUM(EXP_SOGGETTI_BIL_VOCI!AA:AA) -> 0
A4: 1 | C4: =MENU!D22 -> ALLEGATO A.2: ELEMENTI DEL CONTO ECONOMICO | D4: =MENU!H22 -> Compilazione da completare | E4: =IF(ALL_A.2!L56="","","DATI INCOERENTI: "&ALL_A.2!L56)& IF(ALL_A.2!K56="","","DATI DA COMPLETARE: "&ALL_A.2!K56) -> DATI DA COMPLETARE: - Elementi del Conto Economico da compilare | F4: =IF(MENU!H22<>"Ok",1,0) -> 1 | H4: EXP_SOCI | I4: =SUM(EXP_SOCI!AA:AA) -> 0
A5: 1 | C5: =MENU!C23 -> Allegato C: Previsioni di costo del Progetto | D5: =MENU!H23 -> Compilazione da completare | E5: =IF(ALL_C!X581="","","DATI INCOERENTI: "&ALL_C!X581)& IF(ALL_C!W581="","","DATI DA COMPLETARE: "&ALL_C!W581) -> DATI DA COMPLETARE: - C-2) PREVISIONE DEI COSTI DELLE ATTIVITA' (Per tipi di attivita') - 1) COSTO ORARIO MEDIO RICERCATORI /TECNICI - 1) COSTO ORARIO MEDIO OPERAI ED ALTRI - 2) DETTAGLIO PERSONALE DIPENDENTE: ORE / ANNO IMPIEGATE SUL PROGETTO - Numero ore di lavoro complessivamente svolte da tutto il personale aziendale (B) - 5.1) COSTI INDIRETTI: PERSONALE INDIRETTO (Importi in migliaia di euro) - 5.3) COSTI INDIRETTI: SPESE GENERALI E DI FUNZIONAMENTO (Importi in migliaia di euro) | F5: =IF(MENU!H23<>"Ok",1,0) -> 1 | H5: EXP_ADDETTI_ANNO_CONTRATTO | I5: =SUM(EXP_ADDETTI_ANNO_CONTRATTO!AA:AA) -> 0
A6: 1 | C6: =MENU!C24 -> Allegato D: Previsioni delle vendite del Programma | D6: =MENU!H24 -> Compilazione da completare | E6: =IF(ALL_D!AJ17="","","DATI INCOERENTI: "&ALL_D!AJ17)& IF(ALL_D!AI17="","","DATI DA COMPLETARE: "&ALL_D!AI17) -> DATI DA COMPLETARE: Nessuna pianificazione vendite | F6: =IF(MENU!H24<>"Ok",1,0) -> 1 | H6: EXP_ADDETTI_ANNO_ISTRUZIONE | I6: =SUM(EXP_ADDETTI_ANNO_ISTRUZIONE!AA:AA) -> 0
H7: EXP_PARTECIPAZIONI | I7: =SUM(EXP_PARTECIPAZIONI!AA:AA) -> 0
H8: EXP_PREVISIONI_SINTESI | I8: =SUM(EXP_PREVISIONI_SINTESI!AA:AA) -> 0
H9: EXP_SOGGETTI_BIL | I9: =SUM(EXP_SOGGETTI_BIL!AA:AA) -> 0
H10: EXP_PREVISIONI_COSTI_DETTAGLIO | I10: =SUM(EXP_PREVISIONI_COSTI_DETTAGLIO!AA:AA) -> 0
H11: EXP_PREVISIONI_PERSONALE_STD | I11: =SUM(EXP_PREVISIONI_PERSONALE_STD!AA:AA) -> 0
H12: EXP_PREVISIONI_PERSONALE_ANNO | I12: =SUM(EXP_PREVISIONI_PERSONALE_ANNO!AA:AA) -> 0
H13: EXP_PREVIS_PERS_NON_DIP_ANNO | I13: =SUM(EXP_PREVIS_PERS_NON_DIP_ANNO!AA:AA) -> 0
H14: EXP_PREVIS_PERS_TOT_ORE_ANNO | I14: =SUM(EXP_PREVIS_PERS_TOT_ORE_ANNO!AA:AA) -> 0
H15: EXP_PREVIS_PERS_IND_ANNO | I15: =SUM(EXP_PREVIS_PERS_IND_ANNO!AA:AA) -> 0
H16: EXP_PREVIS_PERS_IND_AMM_ANNO | I16: =SUM(EXP_PREVIS_PERS_IND_AMM_ANNO!AA:AA) -> 0
H17: EXP_PREVIS_PERS_IND_SPEGEN_ANNO | I17: =SUM(EXP_PREVIS_PERS_IND_SPEGEN_ANNO!AA:AA) -> 0
H18: EXP_PREVISIONI_VENDITE | I18: =SUM(EXP_PREVISIONI_VENDITE!AA:AA) -> 0

Sheet EXP_IMPRESE_ASSOCIATE (hidden)
A1: ID | B1: DENOMINAZIONE | C1: ID_PROGRAMMA | D1: ID_SOGGETTO | E1: COSTO PER IMPRESA | F1: DIMENSIONE_ASSOCIATA
A2: 1 | B2: =IF(ALL_A!C47="","",ALL_A!C47) -> 0 | E2: =IF(ALL_A!H47="","",ALL_A!H47) -> 0 | F2: =IF(ALL_A!G47="","",ALL_A!G47) -> 0 | X2: =IFERROR(F2,"#ERR") -> 0 | Y2: =IFERROR(B2,"#ERR") -> 0 | Z2: =IFERROR(E2,"#ERR") -> 0 | AA2: =COUNTIF(X:Z,"#ERR") -> 0
A3: 1 | B3: =IF(ALL_A!C48="","",ALL_A!C48) ->  | E3: =IF(ALL_A!H48="","",ALL_A!H48) ->  | F3: =IF(ALL_A!G48="","",ALL_A!G48) ->  | X3: =IFERROR(F3,"#ERR") ->  | Y3: =IFERROR(B3,"#ERR") ->  | Z3: =IFERROR(E3,"#ERR") -> 
A4: 1 | B4: =IF(ALL_A!C49="","",ALL_A!C49) ->  | E4: =IF(ALL_A!H49="","",ALL_A!H49) ->  | F4: =IF(ALL_A!G49="","",ALL_A!G49) -> 
A5: 1 | B5: =IF(ALL_A!C50="","",ALL_A!C50) ->  | E5: =IF(ALL_A!H50="","",ALL_A!H50) ->  | F5: =IF(ALL_A!G50="","",ALL_A!G50) -> 
A6: 1 | B6: =IF(ALL_A!C51="","",ALL_A!C51) ->  | E6: =IF(ALL_A!H51="","",ALL_A!H51) ->  | F6: =IF(ALL_A!G51="","",ALL_A!G51) -> 
A7: 1 | F7: =IF(ALL_A!G52="","",ALL_A!G52) ->  | Y7: 0 | Z7: 0
A8: 1 | F8: =IF(ALL_A!G53="","",ALL_A!G53) ->  | Y8: 0 | Z8: 0
A9: 1 | F9: =IF(ALL_A!G54="","",ALL_A!G54) ->  | Y9: 0 | Z9: 0
A10: 1 | F10: =IF(ALL_A!G55="","",ALL_A!G55) ->  | Y10: 0 | Z10: 0
A11: 1 | F11: =IF(ALL_A!G56="","",ALL_A!G56) ->  | Y11: 0 | Z11: 0
A12: 1 | F12: =IF(ALL_A!G57="","",ALL_A!G57) ->  | Y12: 0 | Z12: 0
A13: 1 | F13: =IF(ALL_A!G58="","",ALL_A!G58) ->  | Y13: 0 | Z13: 0
A14: 1 | F14: =IF(ALL_A!G59="","",ALL_A!G59) ->  | Y14: 0 | Z14: 0
A15: 1 | F15: =IF(ALL_A!G60="","",ALL_A!G60) ->  | Y15: 0 | Z15: 0
A16: 1 | F16: =IF(ALL_A!G61="","",ALL_A!G61) ->  | Y16: 0 | Z16: 0
A17: 1 | F17: =IF(ALL_A!G62="","",ALL_A!G62) ->  | Y17: 0 | Z17: 0
A18: 1 | F18: =IF(ALL_A!G63="","",ALL_A!G63) ->  | Y18: 0 | Z18: 0
A19: 1 | F19: =IF(ALL_A!G64="","",ALL_A!G64) ->  | Y19: 0 | Z19: 0
A20: 1 | F20: =IF(ALL_A!G65="","",ALL_A!G65) ->  | Y20: 0 | Z20: 0
A21: 1 | F21: =IF(ALL_A!G66="","",ALL_A!G66) ->  | Y21: 0 | Z21: 0
A22: 1 | F22: =IF(ALL_A!G67="","",ALL_A!G67) ->  | Y22: 0 | Z22: 0
A23: 1 | F23: =IF(ALL_A!G68="","",ALL_A!G68) ->  | Y23: 0 | Z23: 0
A24: 1 | F24: =IF(ALL_A!G69="","",ALL_A!G69) ->  | Y24: 0 | Z24: 0
A25: 1 | F25: =IF(ALL_A!G70="","",ALL_A!G70) ->  | Y25: 0 | Z25: 0
A26: 1 | F26: =IF(ALL_A!G71="","",ALL_A!G71) ->  | Y26: 0 | Z26: 0
A27: 1 | F27: =IF(ALL_A!G72="","",ALL_A!G72) ->  | Y27: 0 | Z27: 0
A28: 1 | F28: =IF(ALL_A!G73="","",ALL_A!G73) ->  | Y28: 0 | Z28: 0
A29: 1 | F29: =IF(ALL_A!G74="","",ALL_A!G74) ->  | Y29: 0 | Z29: 0
A30: 1 | F30: =IF(ALL_A!G75="","",ALL_A!G75) ->  | Y30: 0 | Z30: 0
A31: 1 | F31: =IF(ALL_A!G76="","",ALL_A!G76) ->  | Y31: 0 | Z31: 0

Sheet EXP_SOCI (hidden)
A1: ID | B1: ID_PROGRAMMA | C1: SOCIO | D1: QUOTA_PERC
A2: 1 | C2: =IF(ALL_A!C57="","",ALL_A!C57) ->  | D2: =IF(ALL_A!H57="","",ALL_A!H57) ->  | Y2: =IFERROR(C2,"#ERR") ->  | Z2: =IFERROR(SUM(D2:D146),"#ERR") -> 0 | AA2: =COUNTIF(X:Z,"#ERR") -> 0
A3: 1 | C3: =IF(ALL_A!C58="","",ALL_A!C58) ->  | D3: =IF(ALL_A!H58="","",ALL_A!H58) ->  | Y3: =IFERROR(C3,"#ERR") -> 
A4: 1 | C4: =IF(ALL_A!C59="","",ALL_A!C59) ->  | D4: =IF(ALL_A!H59="","",ALL_A!H59) -> 
A5: 1 | C5: =IF(ALL_A!C60="","",ALL_A!C60) ->  | D5: =IF(ALL_A!H60="","",ALL_A!H60) -> 
A6: 1 | C6: =IF(ALL_A!C61="","",ALL_A!C61) ->  | D6: =IF(ALL_A!H61="","",ALL_A!H61) -> 
A7: 1 | C7: =IF(ALL_A!C62="","",ALL_A!C62) ->  | D7: =IF(ALL_A!H62="","",ALL_A!H62) -> 
A8: 1 | C8: =IF(ALL_A!C63="","",ALL_A!C63) ->  | D8: =IF(ALL_A!H63="","",ALL_A!H63) -> 
A9: 1 | C9: =IF(ALL_A!C64="","",ALL_A!C64) ->  | D9: =IF(ALL_A!H64="","",ALL_A!H64) -> 
A10: 1 | C10: =IF(ALL_A!C65="","",ALL_A!C65) ->  | D10: =IF(ALL_A!H65="","",ALL_A!H65) -> 
A11: 1 | C11: =IF(ALL_A!C66="","",ALL_A!C66) ->  | D11: =IF(ALL_A!H66="","",ALL_A!H66) -> 
A12: 1 | C12: =IF(ALL_A!C67="","",ALL_A!C67) ->  | D12: =IF(ALL_A!H67="","",ALL_A!H67) -> 
A13: 1 | C13: =IF(ALL_A!C68="","",ALL_A!C68) ->  | D13: =IF(ALL_A!H68="","",ALL_A!H68) -> 
A14: 1 | C14: =IF(ALL_A!C69="","",ALL_A!C69) ->  | D14: =IF(ALL_A!H69="","",ALL_A!H69) -> 
A15: 1 | C15: =IF(ALL_A!C70="","",ALL_A!C70) ->  | D15: =IF(ALL_A!H70="","",ALL_A!H70) -> 
A16: 1 | C16: =IF(ALL_A!C71="","",ALL_A!C71) ->  | D16: =IF(ALL_A!H71="","",ALL_A!H71) -> 
A17: 1 | C17: =IF(ALL_A!C72="","",ALL_A!C72) ->  | D17: =IF(ALL_A!H72="","",ALL_A!H72) -> 
A18: 1 | C18: =IF(ALL_A!C73="","",ALL_A!C73) ->  | D18: =IF(ALL_A!H73="","",ALL_A!H73) -> 
A19: 1 | C19: =IF(ALL_A!C74="","",ALL_A!C74) ->  | D19: =IF(ALL_A!H74="","",ALL_A!H74) -> 
A20: 1 | C20: =IF(ALL_A!C75="","",ALL_A!C75) ->  | D20: =IF(ALL_A!H75="","",ALL_A!H75) -> 
A21: 1 | C21: =IF(ALL_A!C76="","",ALL_A!C76) ->  | D21: =IF(ALL_A!H76="","",ALL_A!H76) -> 
A22: 1 | C22: =IF(ALL_A!C77="","",ALL_A!C77) ->  | D22: =IF(ALL_A!H77="","",ALL_A!H77) -> 
A23: 1 | C23: =IF(ALL_A!C78="","",ALL_A!C78) ->  | D23: =IF(ALL_A!H78="","",ALL_A!H78) -> 
A24: 1 | C24: =IF(ALL_A!C79="","",ALL_A!C79) ->  | D24: =IF(ALL_A!H79="","",ALL_A!H79) -> 
A25: 1 | C25: =IF(ALL_A!C80="","",ALL_A!C80) ->  | D25: =IF(ALL_A!H80="","",ALL_A!H80) -> 
A26: 1 | C26: =IF(ALL_A!C81="","",ALL_A!C81) ->  | D26: =IF(ALL_A!H81="","",ALL_A!H81) -> 
A27: 1 | C27: =IF(ALL_A!C82="","",ALL_A!C82) ->  | D27: =IF(ALL_A!H82="","",ALL_A!H82) -> 
A28: 1 | C28: =IF(ALL_A!C83="","",ALL_A!C83) ->  | D28: =IF(ALL_A!H83="","",ALL_A!H83) -> 
A29: 1 | C29: =IF(ALL_A!C84="","",ALL_A!C84) ->  | D29: =IF(ALL_A!H84="","",ALL_A!H84) -> 
A30: 1 | C30: =IF(ALL_A!C85="","",ALL_A!C85) ->  | D30: =IF(ALL_A!H85="","",ALL_A!H85) -> 
A31: 1 | C31: =IF(ALL_A!C86="","",ALL_A!C86) ->  | D31: =IF(ALL_A!H86="","",ALL_A!H86) -> 
A32: 1 | C32: =IF(ALL_A!C87="","",ALL_A!C87) ->  | D32: =IF(ALL_A!H87="","",ALL_A!H87) -> 
A33: 1 | C33: =IF(ALL_A!C88="","",ALL_A!C88) ->  | D33: =IF(ALL_A!H88="","",ALL_A!H88) -> 
A34: 1 | C34: =IF(ALL_A!C89="","",ALL_A!C89) ->  | D34: =IF(ALL_A!H89="","",ALL_A!H89) -> 
A35: 1 | C35: =IF(ALL_A!C90="","",ALL_A!C90) ->  | D35: =IF(ALL_A!H90="","",ALL_A!H90) -> 
A36: 1 | C36: =IF(ALL_A!C91="","",ALL_A!C91) ->  | D36: =IF(ALL_A!H91="","",ALL_A!H91) -> 
A37: 1 | C37: =IF(ALL_A!C92="","",ALL_A!C92) ->  | D37: =IF(ALL_A!H92="","",ALL_A!H92) -> 
A38: 1 | C38: =IF(ALL_A!C93="","",ALL_A!C93) ->  | D38: =IF(ALL_A!H93="","",ALL_A!H93) -> 
A39: 1 | C39: =IF(ALL_A!C94="","",ALL_A!C94) ->  | D39: =IF(ALL_A!H94="","",ALL_A!H94) -> 
A40: 1 | C40: =IF(ALL_A!C95="","",ALL_A!C95) ->  | D40: =IF(ALL_A!H95="","",ALL_A!H95) -> 
A41: 1 | C41: =IF(ALL_A!C96="","",ALL_A!C96) ->  | D41: =IF(ALL_A!H96="","",ALL_A!H96) -> 
A42: 1 | C42: =IF(ALL_A!C97="","",ALL_A!C97) ->  | D42: =IF(ALL_A!H97="","",ALL_A!H97) -> 
A43: 1 | C43: =IF(ALL_A!C98="","",ALL_A!C98) ->  | D43: =IF(ALL_A!H98="","",ALL_A!H98) -> 
A44: 1 | C44: =IF(ALL_A!C99="","",ALL_A!C99) ->  | D44: =IF(ALL_A!H99="","",ALL_A!H99) -> 
A45: 1 | C45: =IF(ALL_A!C100="","",ALL_A!C100) ->  | D45: =IF(ALL_A!H100="","",ALL_A!H100) -> 
A46: 1 | C46: =IF(ALL_A!C101="","",ALL_A!C101) ->  | D46: =IF(ALL_A!H101="","",ALL_A!H101) -> 
A47: 1 | C47: =IF(ALL_A!C102="","",ALL_A!C102) ->  | D47: =IF(ALL_A!H102="","",ALL_A!H102) -> 
A48: 1 | C48: =IF(ALL_A!C103="","",ALL_A!C103) ->  | D48: =IF(ALL_A!H103="","",ALL_A!H103) -> 
A49: 1 | C49: =IF(ALL_A!C104="","",ALL_A!C104) ->  | D49: =IF(ALL_A!H104="","",ALL_A!H104) -> 
A50: 1 | C50: =IF(ALL_A!C105="","",ALL_A!C105) ->  | D50: =IF(ALL_A!H105="","",ALL_A!H105) -> 
A51: 1 | C51: =IF(ALL_A!C106="","",ALL_A!C106) ->  | D51: =IF(ALL_A!H106="","",ALL_A!H106) -> 
A52: 1 | C52: =IF(ALL_A!C107="","",ALL_A!C107) ->  | D52: =IF(ALL_A!H107="","",ALL_A!H107) -> 
A53: 1 | C53: =IF(ALL_A!C108="","",ALL_A!C108) ->  | D53: =IF(ALL_A!H108="","",ALL_A!H108) -> 
A54: 1 | C54: =IF(ALL_A!C109="","",ALL_A!C109) ->  | D54: =IF(ALL_A!H109="","",ALL_A!H109) -> 
A55: 1 | C55: =IF(ALL_A!C110="","",ALL_A!C110) ->  | D55: =IF(ALL_A!H110="","",ALL_A!H110) -> 
A56: 1 | C56: =IF(ALL_A!C111="","",ALL_A!C111) ->  | D56: =IF(ALL_A!H111="","",ALL_A!H111) -> 
A57: 1 | C57: =IF(ALL_A!C112="","",ALL_A!C112) ->  | D57: =IF(ALL_A!H112="","",ALL_A!H112) -> 
A58: 1 | C58: =IF(ALL_A!C113="","",ALL_A!C113) ->  | D58: =IF(ALL_A!H113="","",ALL_A!H113) -> 
A59: 1 | C59: =IF(ALL_A!C114="","",ALL_A!C114) ->  | D59: =IF(ALL_A!H114="","",ALL_A!H114) -> 
A60: 1 | C60: =IF(ALL_A!C115="","",ALL_A!C115) ->  | D60: =IF(ALL_A!H115="","",ALL_A!H115) -> 
A61: 1 | C61: =IF(ALL_A!C116="","",ALL_A!C116) ->  | D61: =IF(ALL_A!H116="","",ALL_A!H116) -> 
A62: 1 | C62: =IF(ALL_A!C117="","",ALL_A!C117) ->  | D62: =IF(ALL_A!H117="","",ALL_A!H117) -> 
A63: 1 | C63: =IF(ALL_A!C118="","",ALL_A!C118) ->  | D63: =IF(ALL_A!H118="","",ALL_A!H118) -> 
A64: 1 | C64: =IF(ALL_A!C119="","",ALL_A!C119) ->  | D64: =IF(ALL_A!H119="","",ALL_A!H119) -> 
A65: 1 | C65: =IF(ALL_A!C120="","",ALL_A!C120) ->  | D65: =IF(ALL_A!H120="","",ALL_A!H120) -> 
A66: 1 | C66: =IF(ALL_A!C121="","",ALL_A!C121) ->  | D66: =IF(ALL_A!H121="","",ALL_A!H121) -> 
A67: 1 | C67: =IF(ALL_A!C122="","",ALL_A!C122) ->  | D67: =IF(ALL_A!H122="","",ALL_A!H122) ->  | Y67: =IFERROR(C67,"#ERR") -> 
A68: 1 | C68: =IF(ALL_A!C123="","",ALL_A!C123) ->  | D68: =IF(ALL_A!H123="","",ALL_A!H123) -> 
A69: 1 | C69: =IF(ALL_A!C124="","",ALL_A!C124) ->  | D69: =IF(ALL_A!H124="","",ALL_A!H124) -> 
A70: 1 | C70: =IF(ALL_A!C125="","",ALL_A!C125) ->  | D70: =IF(ALL_A!H125="","",ALL_A!H125) -> 
A71: 1 | C71: =IF(ALL_A!C126="","",ALL_A!C126) ->  | D71: =IF(ALL_A!H126="","",ALL_A!H126) -> 
A72: 1 | C72: =IF(ALL_A!C127="","",ALL_A!C127) ->  | D72: =IF(ALL_A!H127="","",ALL_A!H127) -> 
A73: 1 | C73: =IF(ALL_A!C128="","",ALL_A!C128) ->  | D73: =IF(ALL_A!H128="","",ALL_A!H128) -> 
A74: 1 | C74: =IF(ALL_A!C129="","",ALL_A!C129) ->  | D74: =IF(ALL_A!H129="","",ALL_A!H129) -> 
A75: 1 | C75: =IF(ALL_A!C130="","",ALL_A!C130) ->  | D75: =IF(ALL_A!H130="","",ALL_A!H130) -> 
A76: 1 | C76: =IF(ALL_A!C131="","",ALL_A!C131) ->  | D76: =IF(ALL_A!H131="","",ALL_A!H131) -> 
A77: 1 | C77: =IF(ALL_A!C132="","",ALL_A!C132) ->  | D77: =IF(ALL_A!H132="","",ALL_A!H132) -> 
A78: 1 | C78: =IF(ALL_A!C133="","",ALL_A!C133) ->  | D78: =IF(ALL_A!H133="","",ALL_A!H133) -> 
A79: 1 | C79: =IF(ALL_A!C134="","",ALL_A!C134) ->  | D79: =IF(ALL_A!H134="","",ALL_A!H134) -> 
A80: 1 | C80: =IF(ALL_A!C135="","",ALL_A!C135) ->  | D80: =IF(ALL_A!H135="","",ALL_A!H135) -> 
A81: 1 | C81: =IF(ALL_A!C136="","",ALL_A!C136) ->  | D81: =IF(ALL_A!H136="","",ALL_A!H136) -> 
A82: 1 | C82: =IF(ALL_A!C137="","",ALL_A!C137) ->  | D82: =IF(ALL_A!H137="","",ALL_A!H137) -> 
A83: 1 | C83: =IF(ALL_A!C138="","",ALL_A!C138) ->  | D83: =IF(ALL_A!H138="","",ALL_A!H138) -> 
A84: 1 | C84: =IF(ALL_A!C139="","",ALL_A!C139) ->  | D84: =IF(ALL_A!H139="","",ALL_A!H139) -> 
A85: 1 | C85: =IF(ALL_A!C140="","",ALL_A!C140) ->  | D85: =IF(ALL_A!H140="","",ALL_A!H140) -> 
A86: 1 | C86: =IF(ALL_A!C141="","",ALL_A!C141) ->  | D86: =IF(ALL_A!H141="","",ALL_A!H141) -> 
A87: 1 | C87: =IF(ALL_A!C142="","",ALL_A!C142) ->  | D87: =IF(ALL_A!H142="","",ALL_A!H142) -> 
A88: 1 | C88: =IF(ALL_A!C143="","",ALL_A!C143) ->  | D88: =IF(ALL_A!H143="","",ALL_A!H143) -> 
A89: 1 | C89: =IF(ALL_A!C144="","",ALL_A!C144) ->  | D89: =IF(ALL_A!H144="","",ALL_A!H144) -> 
A90: 1 | C90: =IF(ALL_A!C145="","",ALL_A!C145) ->  | D90: =IF(ALL_A!H145="","",ALL_A!H145) -> 
A91: 1 | C91: =IF(ALL_A!C146="","",ALL_A!C146) ->  | D91: =IF(ALL_A!H146="","",ALL_A!H146) -> 
A92: 1 | C92: =IF(ALL_A!C147="","",ALL_A!C147) ->  | D92: =IF(ALL_A!H147="","",ALL_A!H147) -> 
A93: 1 | C93: =IF(ALL_A!C148="","",ALL_A!C148) ->  | D93: =IF(ALL_A!H148="","",ALL_A!H148) -> 
A94: 1 | C94: =IF(ALL_A!C149="","",ALL_A!C149) ->  | D94: =IF(ALL_A!H149="","",ALL_A!H149) -> 
A95: 1 | C95: =IF(ALL_A!C150="","",ALL_A!C150) ->  | D95: =IF(ALL_A!H150="","",ALL_A!H150) -> 
A96: 1 | C96: =IF(ALL_A!C151="","",ALL_A!C151) ->  | D96: =IF(ALL_A!H151="","",ALL_A!H151) -> 
A97: 1 | C97: =IF(ALL_A!C152="","",ALL_A!C152) ->  | D97: =IF(ALL_A!H152="","",ALL_A!H152) -> 
A98: 1 | C98: =IF(ALL_A!C153="","",ALL_A!C153) ->  | D98: =IF(ALL_A!H153="","",ALL_A!H153) -> 
A99: 1 | C99: =IF(ALL_A!C154="","",ALL_A!C154) ->  | D99: =IF(ALL_A!H154="","",ALL_A!H154) -> 
A100: 1 | C100: =IF(ALL_A!C155="","",ALL_A!C155) ->  | D100: =IF(ALL_A!H155="","",ALL_A!H155) -> 
A101: 1 | C101: =IF(ALL_A!C156="","",ALL_A!C156) ->  | D101: =IF(ALL_A!H156="","",ALL_A!H156) -> 
A102: 1 | C102: =IF(ALL_A!C157="","",ALL_A!C157) ->  | D102: =IF(ALL_A!H157="","",ALL_A!H157) -> 
A103: 1 | C103: =IF(ALL_A!C158="","",ALL_A!C158) ->  | D103: =IF(ALL_A!H158="","",ALL_A!H158) -> 
A104: 1 | C104: =IF(ALL_A!C159="","",ALL_A!C159) ->  | D104: =IF(ALL_A!H159="","",ALL_A!H159) -> 
A105: 1 | C105: =IF(ALL_A!C160="","",ALL_A!C160) ->  | D105: =IF(ALL_A!H160="","",ALL_A!H160) -> 
A106: 1 | C106: =IF(ALL_A!C161="","",ALL_A!C161) ->  | D106: =IF(ALL_A!H161="","",ALL_A!H161) -> 
A107: 1 | C107: =IF(ALL_A!C162="","",ALL_A!C162) ->  | D107: =IF(ALL_A!H162="","",ALL_A!H162) -> 
A108: 1 | C108: =IF(ALL_A!C163="","",ALL_A!C163) ->  | D108: =IF(ALL_A!H163="","",ALL_A!H163) -> 
A109: 1 | C109: =IF(ALL_A!C164="","",ALL_A!C164) ->  | D109: =IF(ALL_A!H164="","",ALL_A!H164) -> 
A110: 1 | C110: =IF(ALL_A!C165="","",ALL_A!C165) ->  | D110: =IF(ALL_A!H165="","",ALL_A!H165) -> 
A111: 1 | C111: =IF(ALL_A!C166="","",ALL_A!C166) ->  | D111: =IF(ALL_A!H166="","",ALL_A!H166) -> 
A112: 1 | C112: =IF(ALL_A!C167="","",ALL_A!C167) ->  | D112: =IF(ALL_A!H167="","",ALL_A!H167) -> 
A113: 1 | C113: =IF(ALL_A!C168="","",ALL_A!C168) ->  | D113: =IF(ALL_A!H168="","",ALL_A!H168) -> 
A114: 1 | C114: =IF(ALL_A!C169="","",ALL_A!C169) ->  | D114: =IF(ALL_A!H169="","",ALL_A!H169) -> 
A115: 1 | C115: =IF(ALL_A!C170="","",ALL_A!C170) ->  | D115: =IF(ALL_A!H170="","",ALL_A!H170) -> 
A116: 1 | C116: =IF(ALL_A!C171="","",ALL_A!C171) ->  | D116: =IF(ALL_A!H171="","",ALL_A!H171) -> 
A117: 1 | C117: =IF(ALL_A!C172="","",ALL_A!C172) ->  | D117: =IF(ALL_A!H172="","",ALL_A!H172) -> 
A118: 1 | C118: =IF(ALL_A!C173="","",ALL_A!C173) ->  | D118: =IF(ALL_A!H173="","",ALL_A!H173) -> 
A119: 1 | C119: =IF(ALL_A!C174="","",ALL_A!C174) ->  | D119: =IF(ALL_A!H174="","",ALL_A!H174) -> 
A120: 1 | C120: =IF(ALL_A!C175="","",ALL_A!C175) ->  | D120: =IF(ALL_A!H175="","",ALL_A!H175) -> 
A121: 1 | C121: =IF(ALL_A!C176="","",ALL_A!C176) ->  | D121: =IF(ALL_A!H176="","",ALL_A!H176) -> 
A122: 1 | C122: =IF(ALL_A!C177="","",ALL_A!C177) ->  | D122: =IF(ALL_A!H177="","",ALL_A!H177) -> 
A123: 1 | C123: =IF(ALL_A!C178="","",ALL_A!C178) ->  | D123: =IF(ALL_A!H178="","",ALL_A!H178) -> 
A124: 1 | C124: =IF(ALL_A!C179="","",ALL_A!C179) ->  | D124: =IF(ALL_A!H179="","",ALL_A!H179) -> 
A125: 1 | C125: =IF(ALL_A!C180="","",ALL_A!C180) ->  | D125: =IF(ALL_A!H180="","",ALL_A!H180) -> 
A126: 1 | C126: =IF(ALL_A!C181="","",ALL_A!C181) ->  | D126: =IF(ALL_A!H181="","",ALL_A!H181) -> 
A127: 1 | C127: =IF(ALL_A!C182="","",ALL_A!C182) ->  | D127: =IF(ALL_A!H182="","",ALL_A!H182) -> 
A128: 1 | C128: =IF(ALL_A!C183="","",ALL_A!C183) ->  | D128: =IF(ALL_A!H183="","",ALL_A!H183) -> 
A129: 1 | C129: =IF(ALL_A!C184="","",ALL_A!C184) ->  | D129: =IF(ALL_A!H184="","",ALL_A!H184) -> 
A130: 1 | C130: =IF(ALL_A!C185="","",ALL_A!C185) ->  | D130: =IF(ALL_A!H185="","",ALL_A!H185) -> 
A131: 1 | C131: =IF(ALL_A!C186="","",ALL_A!C186) ->  | D131: =IF(ALL_A!H186="","",ALL_A!H186) ->  | Y131: =IFERROR(C131,"#ERR") -> 
A132: 1 | C132: =IF(ALL_A!C187="","",ALL_A!C187) ->  | D132: =IF(ALL_A!H187="","",ALL_A!H187) -> 
A133: 1 | C133: =IF(ALL_A!C188="","",ALL_A!C188) ->  | D133: =IF(ALL_A!H188="","",ALL_A!H188) -> 
A134: 1 | C134: =IF(ALL_A!C189="","",ALL_A!C189) ->  | D134: =IF(ALL_A!H189="","",ALL_A!H189) -> 
A135: 1 | C135: =IF(ALL_A!C190="","",ALL_A!C190) ->  | D135: =IF(ALL_A!H190="","",ALL_A!H190) -> 
A136: 1 | C136: =IF(ALL_A!C191="","",ALL_A!C191) ->  | D136: =IF(ALL_A!H191="","",ALL_A!H191) -> 
A137: 1 | C137: =IF(ALL_A!C192="","",ALL_A!C192) ->  | D137: =IF(ALL_A!H192="","",ALL_A!H192) -> 
A138: 1 | C138: =IF(ALL_A!C193="","",ALL_A!C193) ->  | D138: =IF(ALL_A!H193="","",ALL_A!H193) -> 
A139: 1 | C139: =IF(ALL_A!C194="","",ALL_A!C194) ->  | D139: =IF(ALL_A!H194="","",ALL_A!H194) -> 
A140: 1 | C140: =IF(ALL_A!C195="","",ALL_A!C195) ->  | D140: =IF(ALL_A!H195="","",ALL_A!H195) -> 
A141: 1 | C141: =IF(ALL_A!C196="","",ALL_A!C196) ->  | D141: =IF(ALL_A!H196="","",ALL_A!H196) -> 
A142: 1 | C142: =IF(ALL_A!C197="","",ALL_A!C197) ->  | D142: =IF(ALL_A!H197="","",ALL_A!H197) -> 
A143: 1 | C143: =IF(ALL_A!C198="","",ALL_A!C198) ->  | D143: =IF(ALL_A!H198="","",ALL_A!H198) -> 
A144: 1 | C144: =IF(ALL_A!C199="","",ALL_A!C199) ->  | D144: =IF(ALL_A!H199="","",ALL_A!H199) -> 
A145: 1 | C145: =IF(ALL_A!C200="","",ALL_A!C200) ->  | D145: =IF(ALL_A!H200="","",ALL_A!H200) -> 
A146: 1 | C146: =IF(ALL_A!C201="","",ALL_A!C201) ->  | D146: =IF(ALL_A!H201="","",ALL_A!H201) -> 

Sheet EXP_ADDETTI_ANNO_CONTRATTO (hidden)
A1: ID | B1: ID_PROGRAMMA | C1: ID_TIPO_CONTRATTO | D1: ANNO | E1: NUMERO_ADDETTI | G1: ID | H1: DESCRIZIONE
A2: 1 | C2: 1 | D2: =ALL_A!$F$210 -> 2017 | E2: =ALL_A!F211 -> 0 | G2: 1 | H2: DIRIGENTI | Z2: =IFERROR(SUM(C2:E16),"#ERR") -> 30315 | AA2: =COUNTIF(X:Z,"#ERR") -> 0
A3: 1 | C3: 1 | D3: =D2+1 -> 2018 | E3: =ALL_A!G211 -> 0 | G3: 2 | H3: IMPIEGATI
A4: 1 | C4: 1 | D4: =D3+1 -> 2019 | E4: =ALL_A!H211 -> 0 | G4: 3 | H4: OPERAI
A5: 1 | C5: 2 | D5: =ALL_A!$F$210 -> 2017 | E5: =ALL_A!F212 -> 0 | G5: 4 | H5: CIG
A6: 1 | C6: 2 | D6: =D5+1 -> 2018 | E6: =ALL_A!G212 -> 0 | G6: 5 | H6: RICERCATORI/TECNICI
A7: 1 | C7: 2 | D7: =D6+1 -> 2019 | E7: =ALL_A!H212 -> 0
A8: 1 | C8: 3 | D8: =ALL_A!$F$210 -> 2017 | E8: =ALL_A!F213 -> 0
A9: 1 | C9: 3 | D9: =D8+1 -> 2018 | E9: =ALL_A!G213 -> 0
A10: 1 | C10: 3 | D10: =D9+1 -> 2019 | E10: =ALL_A!H213 -> 0
A11: 1 | C11: 4 | D11: =ALL_A!$F$210 -> 2017 | E11: =ALL_A!F215 -> 0
A12: 1 | C12: 4 | D12: =D11+1 -> 2018 | E12: =ALL_A!G215 -> 0
A13: 1 | C13: 4 | D13: =D12+1 -> 2019 | E13: =ALL_A!H215 -> 0
A14: 1 | C14: 5 | D14: =ALL_A!$F$210 -> 2017 | E14: =ALL_A!F216 -> 0
A15: 1 | C15: 5 | D15: =D14+1 -> 2018 | E15: =ALL_A!G216 -> 0
A16: 1 | C16: 5 | D16: =D15+1 -> 2019 | E16: =ALL_A!H216 -> 0

Sheet EXP_ADDETTI_ANNO_ISTRUZIONE (hidden)
A1: ID | B1: ID_PROGRAMMA | C1: ID_TIPO_ISTRUZIONE | D1: ANNO | E1: NUMERO_ADDETTI | H1: ID | I1: DESCRIZIONE
A2: 1 | C2: 1 | D2: =ALL_A!$F$210 -> 2017 | E2: =ALL_A!F219 -> 0 | H2: 1 | I2: LAUREATI | Z2: =IFERROR(SUM(C2:E10),"#ERR") -> 18180 | AA2: =COUNTIF(X:Z,"#ERR") -> 0
A3: 1 | C3: 1 | D3: =D2+1 -> 2018 | E3: =ALL_A!F220 -> 0 | H3: 2 | I3: DIPLOMATI
A4: 1 | C4: 1 | D4: =D3+1 -> 2019 | E4: =ALL_A!F221 -> 0 | H4: 3 | I4: ALTRI
A5: 1 | C5: 2 | D5: =ALL_A!$F$210 -> 2017 | E5: =ALL_A!G219 -> 0
A6: 1 | C6: 2 | D6: =D5+1 -> 2018 | E6: =ALL_A!G220 -> 0
A7: 1 | C7: 2 | D7: =D6+1 -> 2019 | E7: =ALL_A!G221 -> 0
A8: 1 | C8: 3 | D8: =ALL_A!$F$210 -> 2017 | E8: =ALL_A!H219 -> 0
A9: 1 | C9: 3 | D9: =D8+1 -> 2018 | E9: =ALL_A!H220 -> 0
A10: 1 | C10: 3 | D10: =D9+1 -> 2019 | E10: =ALL_A!H221 -> 0

Sheet EXP_PARTECIPAZIONI (hidden)
A1: ID | B1: ID_PROGRAMMA | C1: PARTECIPATA | D1: QUOTA_PERC | E1: SETTORE_ATTIVITA
A2: 1 | C2: =IF(ALL_A!C226="","",ALL_A!C226) ->  | D2: =IF(ALL_A!G226="","",ALL_A!G226) ->  | E2: =IF(ALL_A!H226="","",ALL_A!H226) ->  | X2: =IFERROR(C2,"#ERR") ->  | Y2: =IFERROR(D2,"#ERR") ->  | Z2: =IFERROR(E2,"#ERR") ->  | AA2: =COUNTIF(X:Z,"#ERR") -> 0
A3: 1 | C3: =IF(ALL_A!C227="","",ALL_A!C227) ->  | D3: =IF(ALL_A!G227="","",ALL_A!G227) ->  | E3: =IF(ALL_A!H227="","",ALL_A!H227) ->  | X3: =IFERROR(C3,"#ERR") ->  | Y3: =IFERROR(D3,"#ERR") ->  | Z3: =IFERROR(E3,"#ERR") -> 
A4: 1 | C4: =IF(ALL_A!C228="","",ALL_A!C228) ->  | D4: =IF(ALL_A!G228="","",ALL_A!G228) ->  | E4: =IF(ALL_A!H228="","",ALL_A!H228) -> 
A5: 1 | C5: =IF(ALL_A!C229="","",ALL_A!C229) ->  | D5: =IF(ALL_A!G229="","",ALL_A!G229) ->  | E5: =IF(ALL_A!H229="","",ALL_A!H229) -> 
A6: 1 | C6: =IF(ALL_A!C230="","",ALL_A!C230) ->  | D6: =IF(ALL_A!G230="","",ALL_A!G230) ->  | E6: =IF(ALL_A!H230="","",ALL_A!H230) -> 
A7: 1 | C7: =IF(ALL_A!C231="","",ALL_A!C231) ->  | D7: =IF(ALL_A!G231="","",ALL_A!G231) ->  | E7: =IF(ALL_A!H231="","",ALL_A!H231) -> 
A8: 1 | C8: =IF(ALL_A!C232="","",ALL_A!C232) ->  | D8: =IF(ALL_A!G232="","",ALL_A!G232) ->  | E8: =IF(ALL_A!H232="","",ALL_A!H232) -> 
A9: 1 | C9: =IF(ALL_A!C233="","",ALL_A!C233) ->  | D9: =IF(ALL_A!G233="","",ALL_A!G233) ->  | E9: =IF(ALL_A!H233="","",ALL_A!H233) -> 
A10: 1 | C10: =IF(ALL_A!C234="","",ALL_A!C234) ->  | D10: =IF(ALL_A!G234="","",ALL_A!G234) ->  | E10: =IF(ALL_A!H234="","",ALL_A!H234) -> 
A11: 1 | C11: =IF(ALL_A!C235="","",ALL_A!C235) ->  | D11: =IF(ALL_A!G235="","",ALL_A!G235) ->  | E11: =IF(ALL_A!H235="","",ALL_A!H235) -> 
A12: 1 | C12: =IF(ALL_A!C236="","",ALL_A!C236) ->  | D12: =IF(ALL_A!G236="","",ALL_A!G236) ->  | E12: =IF(ALL_A!H236="","",ALL_A!H236) -> 
A13: 1 | C13: =IF(ALL_A!C237="","",ALL_A!C237) ->  | D13: =IF(ALL_A!G237="","",ALL_A!G237) ->  | E13: =IF(ALL_A!H237="","",ALL_A!H237) -> 
A14: 1 | C14: =IF(ALL_A!C238="","",ALL_A!C238) ->  | D14: =IF(ALL_A!G238="","",ALL_A!G238) ->  | E14: =IF(ALL_A!H238="","",ALL_A!H238) -> 
A15: 1 | C15: =IF(ALL_A!C239="","",ALL_A!C239) ->  | D15: =IF(ALL_A!G239="","",ALL_A!G239) ->  | E15: =IF(ALL_A!H239="","",ALL_A!H239) -> 
A16: 1 | C16: =IF(ALL_A!C240="","",ALL_A!C240) ->  | D16: =IF(ALL_A!G240="","",ALL_A!G240) ->  | E16: =IF(ALL_A!H240="","",ALL_A!H240) -> 
A17: 1 | C17: =IF(ALL_A!C241="","",ALL_A!C241) ->  | D17: =IF(ALL_A!G241="","",ALL_A!G241) ->  | E17: =IF(ALL_A!H241="","",ALL_A!H241) -> 
A18: 1 | C18: =IF(ALL_A!C242="","",ALL_A!C242) ->  | D18: =IF(ALL_A!G242="","",ALL_A!G242) ->  | E18: =IF(ALL_A!H242="","",ALL_A!H242) -> 
A19: 1 | C19: =IF(ALL_A!C243="","",ALL_A!C243) ->  | D19: =IF(ALL_A!G243="","",ALL_A!G243) ->  | E19: =IF(ALL_A!H243="","",ALL_A!H243) -> 
A20: 1 | C20: =IF(ALL_A!C244="","",ALL_A!C244) ->  | D20: =IF(ALL_A!G244="","",ALL_A!G244) ->  | E20: =IF(ALL_A!H244="","",ALL_A!H244) -> 
A21: 1 | C21: =IF(ALL_A!C245="","",ALL_A!C245) ->  | D21: =IF(ALL_A!G245="","",ALL_A!G245) ->  | E21: =IF(ALL_A!H245="","",ALL_A!H245) -> 
A22: 1 | C22: =IF(ALL_A!C246="","",ALL_A!C246) ->  | D22: =IF(ALL_A!G246="","",ALL_A!G246) ->  | E22: =IF(ALL_A!H246="","",ALL_A!H246) -> 
A23: 1 | C23: =IF(ALL_A!C247="","",ALL_A!C247) ->  | D23: =IF(ALL_A!G247="","",ALL_A!G247) ->  | E23: =IF(ALL_A!H247="","",ALL_A!H247) -> 
A24: 1 | C24: =IF(ALL_A!C248="","",ALL_A!C248) ->  | D24: =IF(ALL_A!G248="","",ALL_A!G248) ->  | E24: =IF(ALL_A!H248="","",ALL_A!H248) -> 
A25: 1 | C25: =IF(ALL_A!C249="","",ALL_A!C249) ->  | D25: =IF(ALL_A!G249="","",ALL_A!G249) ->  | E25: =IF(ALL_A!H249="","",ALL_A!H249) -> 
A26: 1 | C26: =IF(ALL_A!C250="","",ALL_A!C250) ->  | D26: =IF(ALL_A!G250="","",ALL_A!G250) ->  | E26: =IF(ALL_A!H250="","",ALL_A!H250) -> 
A27: 1 | C27: =IF(ALL_A!C251="","",ALL_A!C251) ->  | D27: =IF(ALL_A!G251="","",ALL_A!G251) ->  | E27: =IF(ALL_A!H251="","",ALL_A!H251) -> 
A28: 1 | C28: =IF(ALL_A!C252="","",ALL_A!C252) ->  | D28: =IF(ALL_A!G252="","",ALL_A!G252) ->  | E28: =IF(ALL_A!H252="","",ALL_A!H252) -> 
A29: 1 | C29: =IF(ALL_A!C253="","",ALL_A!C253) ->  | D29: =IF(ALL_A!G253="","",ALL_A!G253) ->  | E29: =IF(ALL_A!H253="","",ALL_A!H253) -> 
A30: 1 | C30: =IF(ALL_A!C254="","",ALL_A!C254) ->  | D30: =IF(ALL_A!G254="","",ALL_A!G254) ->  | E30: =IF(ALL_A!H254="","",ALL_A!H254) -> 
A31: 1 | C31: =IF(ALL_A!C255="","",ALL_A!C255) ->  | D31: =IF(ALL_A!G255="","",ALL_A!G255) ->  | E31: =IF(ALL_A!H255="","",ALL_A!H255) -> 
A32: 1 | C32: =IF(ALL_A!C256="","",ALL_A!C256) ->  | D32: =IF(ALL_A!G256="","",ALL_A!G256) ->  | E32: =IF(ALL_A!H256="","",ALL_A!H256) -> 
A33: 1 | C33: =IF(ALL_A!C257="","",ALL_A!C257) ->  | D33: =IF(ALL_A!G257="","",ALL_A!G257) ->  | E33: =IF(ALL_A!H257="","",ALL_A!H257) -> 
A34: 1 | C34: =IF(ALL_A!C258="","",ALL_A!C258) ->  | D34: =IF(ALL_A!G258="","",ALL_A!G258) ->  | E34: =IF(ALL_A!H258="","",ALL_A!H258) -> 
A35: 1 | C35: =IF(ALL_A!C259="","",ALL_A!C259) ->  | D35: =IF(ALL_A!G259="","",ALL_A!G259) ->  | E35: =IF(ALL_A!H259="","",ALL_A!H259) -> 
A36: 1 | C36: =IF(ALL_A!C260="","",ALL_A!C260) ->  | D36: =IF(ALL_A!G260="","",ALL_A!G260) ->  | E36: =IF(ALL_A!H260="","",ALL_A!H260) -> 
A37: 1 | C37: =IF(ALL_A!C261="","",ALL_A!C261) ->  | D37: =IF(ALL_A!G261="","",ALL_A!G261) ->  | E37: =IF(ALL_A!H261="","",ALL_A!H261) -> 
A38: 1 | C38: =IF(ALL_A!C262="","",ALL_A!C262) ->  | D38: =IF(ALL_A!G262="","",ALL_A!G262) ->  | E38: =IF(ALL_A!H262="","",ALL_A!H262) -> 
A39: 1 | C39: =IF(ALL_A!C263="","",ALL_A!C263) ->  | D39: =IF(ALL_A!G263="","",ALL_A!G263) ->  | E39: =IF(ALL_A!H263="","",ALL_A!H263) -> 
A40: 1 | C40: =IF(ALL_A!C264="","",ALL_A!C264) ->  | D40: =IF(ALL_A!G264="","",ALL_A!G264) ->  | E40: =IF(ALL_A!H264="","",ALL_A!H264) -> 
A41: 1 | C41: =IF(ALL_A!C265="","",ALL_A!C265) ->  | D41: =IF(ALL_A!G265="","",ALL_A!G265) ->  | E41: =IF(ALL_A!H265="","",ALL_A!H265) -> 
A42: 1 | C42: =IF(ALL_A!C266="","",ALL_A!C266) ->  | D42: =IF(ALL_A!G266="","",ALL_A!G266) ->  | E42: =IF(ALL_A!H266="","",ALL_A!H266) -> 
A43: 1 | C43: =IF(ALL_A!C267="","",ALL_A!C267) ->  | D43: =IF(ALL_A!G267="","",ALL_A!G267) ->  | E43: =IF(ALL_A!H267="","",ALL_A!H267) -> 
A44: 1 | C44: =IF(ALL_A!C268="","",ALL_A!C268) ->  | D44: =IF(ALL_A!G268="","",ALL_A!G268) ->  | E44: =IF(ALL_A!H268="","",ALL_A!H268) -> 
A45: 1 | C45: =IF(ALL_A!C269="","",ALL_A!C269) ->  | D45: =IF(ALL_A!G269="","",ALL_A!G269) ->  | E45: =IF(ALL_A!H269="","",ALL_A!H269) -> 
A46: 1 | C46: =IF(ALL_A!C270="","",ALL_A!C270) ->  | D46: =IF(ALL_A!G270="","",ALL_A!G270) ->  | E46: =IF(ALL_A!H270="","",ALL_A!H270) -> 
A47: 1 | C47: =IF(ALL_A!C271="","",ALL_A!C271) ->  | D47: =IF(ALL_A!G271="","",ALL_A!G271) ->  | E47: =IF(ALL_A!H271="","",ALL_A!H271) -> 
A48: 1 | C48: =IF(ALL_A!C272="","",ALL_A!C272) ->  | D48: =IF(ALL_A!G272="","",ALL_A!G272) ->  | E48: =IF(ALL_A!H272="","",ALL_A!H272) -> 
A49: 1 | C49: =IF(ALL_A!C273="","",ALL_A!C273) ->  | D49: =IF(ALL_A!G273="","",ALL_A!G273) ->  | E49: =IF(ALL_A!H273="","",ALL_A!H273) -> 
A50: 1 | C50: =IF(ALL_A!C274="","",ALL_A!C274) ->  | D50: =IF(ALL_A!G274="","",ALL_A!G274) ->  | E50: =IF(ALL_A!H274="","",ALL_A!H274) -> 
A51: 1 | C51: =IF(ALL_A!C275="","",ALL_A!C275) ->  | D51: =IF(ALL_A!G275="","",ALL_A!G275) ->  | E51: =IF(ALL_A!H275="","",ALL_A!H275) -> 
A52: 1 | C52: =IF(ALL_A!C276="","",ALL_A!C276) ->  | D52: =IF(ALL_A!G276="","",ALL_A!G276) ->  | E52: =IF(ALL_A!H276="","",ALL_A!H276) -> 
A53: 1 | C53: =IF(ALL_A!C277="","",ALL_A!C277) ->  | D53: =IF(ALL_A!G277="","",ALL_A!G277) ->  | E53: =IF(ALL_A!H277="","",ALL_A!H277) -> 
A54: 1 | C54: =IF(ALL_A!C278="","",ALL_A!C278) ->  | D54: =IF(ALL_A!G278="","",ALL_A!G278) ->  | E54: =IF(ALL_A!H278="","",ALL_A!H278) -> 
A55: 1 | C55: =IF(ALL_A!C279="","",ALL_A!C279) ->  | D55: =IF(ALL_A!G279="","",ALL_A!G279) ->  | E55: =IF(ALL_A!H279="","",ALL_A!H279) -> 
A56: 1 | C56: =IF(ALL_A!C280="","",ALL_A!C280) ->  | D56: =IF(ALL_A!G280="","",ALL_A!G280) ->  | E56: =IF(ALL_A!H280="","",ALL_A!H280) -> 
A57: 1 | C57: =IF(ALL_A!C281="","",ALL_A!C281) ->  | D57: =IF(ALL_A!G281="","",ALL_A!G281) ->  | E57: =IF(ALL_A!H281="","",ALL_A!H281) -> 
A58: 1 | C58: =IF(ALL_A!C282="","",ALL_A!C282) ->  | D58: =IF(ALL_A!G282="","",ALL_A!G282) ->  | E58: =IF(ALL_A!H282="","",ALL_A!H282) -> 
A59: 1 | C59: =IF(ALL_A!C283="","",ALL_A!C283) ->  | D59: =IF(ALL_A!G283="","",ALL_A!G283) ->  | E59: =IF(ALL_A!H283="","",ALL_A!H283) -> 
A60: 1 | C60: =IF(ALL_A!C284="","",ALL_A!C284) ->  | D60: =IF(ALL_A!G284="","",ALL_A!G284) ->  | E60: =IF(ALL_A!H284="","",ALL_A!H284) -> 
A61: 1 | C61: =IF(ALL_A!C285="","",ALL_A!C285) ->  | D61: =IF(ALL_A!G285="","",ALL_A!G285) ->  | E61: =IF(ALL_A!H285="","",ALL_A!H285) -> 
A62: 1 | C62: =IF(ALL_A!C286="","",ALL_A!C286) ->  | D62: =IF(ALL_A!G286="","",ALL_A!G286) ->  | E62: =IF(ALL_A!H286="","",ALL_A!H286) -> 
A63: 1 | C63: =IF(ALL_A!C287="","",ALL_A!C287) ->  | D63: =IF(ALL_A!G287="","",ALL_A!G287) ->  | E63: =IF(ALL_A!H287="","",ALL_A!H287) -> 
A64: 1 | C64: =IF(ALL_A!C288="","",ALL_A!C288) ->  | D64: =IF(ALL_A!G288="","",ALL_A!G288) ->  | E64: =IF(ALL_A!H288="","",ALL_A!H288) -> 
A65: 1 | C65: =IF(ALL_A!C289="","",ALL_A!C289) ->  | D65: =IF(ALL_A!G289="","",ALL_A!G289) ->  | E65: =IF(ALL_A!H289="","",ALL_A!H289) -> 
A66: 1 | C66: =IF(ALL_A!C290="","",ALL_A!C290) ->  | D66: =IF(ALL_A!G290="","",ALL_A!G290) ->  | E66: =IF(ALL_A!H290="","",ALL_A!H290) -> 
A67: 1 | C67: =IF(ALL_A!C291="","",ALL_A!C291) ->  | D67: =IF(ALL_A!G291="","",ALL_A!G291) ->  | E67: =IF(ALL_A!H291="","",ALL_A!H291) ->  | X67: =IFERROR(C67,"#ERR") ->  | Y67: =IFERROR(D67,"#ERR") ->  | Z67: =IFERROR(E67,"#ERR") -> 
A68: 1 | C68: =IF(ALL_A!C292="","",ALL_A!C292) ->  | D68: =IF(ALL_A!G292="","",ALL_A!G292) ->  | E68: =IF(ALL_A!H292="","",ALL_A!H292) -> 
A69: 1 | C69: =IF(ALL_A!C293="","",ALL_A!C293) ->  | D69: =IF(ALL_A!G293="","",ALL_A!G293) ->  | E69: =IF(ALL_A!H293="","",ALL_A!H293) -> 
A70: 1 | C70: =IF(ALL_A!C294="","",ALL_A!C294) ->  | D70: =IF(ALL_A!G294="","",ALL_A!G294) ->  | E70: =IF(ALL_A!H294="","",ALL_A!H294) -> 
A71: 1 | C71: =IF(ALL_A!C295="","",ALL_A!C295) ->  | D71: =IF(ALL_A!G295="","",ALL_A!G295) ->  | E71: =IF(ALL_A!H295="","",ALL_A!H295) -> 
A72: 1 | C72: =IF(ALL_A!C296="","",ALL_A!C296) ->  | D72: =IF(ALL_A!G296="","",ALL_A!G296) ->  | E72: =IF(ALL_A!H296="","",ALL_A!H296) -> 
A73: 1 | C73: =IF(ALL_A!C297="","",ALL_A!C297) ->  | D73: =IF(ALL_A!G297="","",ALL_A!G297) ->  | E73: =IF(ALL_A!H297="","",ALL_A!H297) -> 
A74: 1 | C74: =IF(ALL_A!C298="","",ALL_A!C298) ->  | D74: =IF(ALL_A!G298="","",ALL_A!G298) ->  | E74: =IF(ALL_A!H298="","",ALL_A!H298) -> 
A75: 1 | C75: =IF(ALL_A!C299="","",ALL_A!C299) ->  | D75: =IF(ALL_A!G299="","",ALL_A!G299) ->  | E75: =IF(ALL_A!H299="","",ALL_A!H299) -> 
A76: 1 | C76: =IF(ALL_A!C300="","",ALL_A!C300) ->  | D76: =IF(ALL_A!G300="","",ALL_A!G300) ->  | E76: =IF(ALL_A!H300="","",ALL_A!H300) -> 
A77: 1 | C77: =IF(ALL_A!C301="","",ALL_A!C301) ->  | D77: =IF(ALL_A!G301="","",ALL_A!G301) ->  | E77: =IF(ALL_A!H301="","",ALL_A!H301) -> 
A78: 1 | C78: =IF(ALL_A!C302="","",ALL_A!C302) ->  | D78: =IF(ALL_A!G302="","",ALL_A!G302) ->  | E78: =IF(ALL_A!H302="","",ALL_A!H302) -> 
A79: 1 | C79: =IF(ALL_A!C303="","",ALL_A!C303) ->  | D79: =IF(ALL_A!G303="","",ALL_A!G303) ->  | E79: =IF(ALL_A!H303="","",ALL_A!H303) -> 
A80: 1 | C80: =IF(ALL_A!C304="","",ALL_A!C304) ->  | D80: =IF(ALL_A!G304="","",ALL_A!G304) ->  | E80: =IF(ALL_A!H304="","",ALL_A!H304) -> 
A81: 1 | C81: =IF(ALL_A!C305="","",ALL_A!C305) ->  | D81: =IF(ALL_A!G305="","",ALL_A!G305) ->  | E81: =IF(ALL_A!H305="","",ALL_A!H305) -> 
A82: 1 | C82: =IF(ALL_A!C306="","",ALL_A!C306) ->  | D82: =IF(ALL_A!G306="","",ALL_A!G306) ->  | E82: =IF(ALL_A!H306="","",ALL_A!H306) -> 
A83: 1 | C83: =IF(ALL_A!C307="","",ALL_A!C307) ->  | D83: =IF(ALL_A!G307="","",ALL_A!G307) ->  | E83: =IF(ALL_A!H307="","",ALL_A!H307) -> 
A84: 1 | C84: =IF(ALL_A!C308="","",ALL_A!C308) ->  | D84: =IF(ALL_A!G308="","",ALL_A!G308) ->  | E84: =IF(ALL_A!H308="","",ALL_A!H308) -> 
A85: 1 | C85: =IF(ALL_A!C309="","",ALL_A!C309) ->  | D85: =IF(ALL_A!G309="","",ALL_A!G309) ->  | E85: =IF(ALL_A!H309="","",ALL_A!H309) -> 
A86: 1 | C86: =IF(ALL_A!C310="","",ALL_A!C310) ->  | D86: =IF(ALL_A!G310="","",ALL_A!G310) ->  | E86: =IF(ALL_A!H310="","",ALL_A!H310) -> 
A87: 1 | C87: =IF(ALL_A!C311="","",ALL_A!C311) ->  | D87: =IF(ALL_A!G311="","",ALL_A!G311) ->  | E87: =IF(ALL_A!H311="","",ALL_A!H311) -> 
A88: 1 | C88: =IF(ALL_A!C312="","",ALL_A!C312) ->  | D88: =IF(ALL_A!G312="","",ALL_A!G312) ->  | E88: =IF(ALL_A!H312="","",ALL_A!H312) -> 
A89: 1 | C89: =IF(ALL_A!C313="","",ALL_A!C313) ->  | D89: =IF(ALL_A!G313="","",ALL_A!G313) ->  | E89: =IF(ALL_A!H313="","",ALL_A!H313) -> 
A90: 1 | C90: =IF(ALL_A!C314="","",ALL_A!C314) ->  | D90: =IF(ALL_A!G314="","",ALL_A!G314) ->  | E90: =IF(ALL_A!H314="","",ALL_A!H314) -> 
A91: 1 | C91: =IF(ALL_A!C315="","",ALL_A!C315) ->  | D91: =IF(ALL_A!G315="","",ALL_A!G315) ->  | E91: =IF(ALL_A!H315="","",ALL_A!H315) -> 
A92: 1 | C92: =IF(ALL_A!C316="","",ALL_A!C316) ->  | D92: =IF(ALL_A!G316="","",ALL_A!G316) ->  | E92: =IF(ALL_A!H316="","",ALL_A!H316) -> 
A93: 1 | C93: =IF(ALL_A!C317="","",ALL_A!C317) ->  | D93: =IF(ALL_A!G317="","",ALL_A!G317) ->  | E93: =IF(ALL_A!H317="","",ALL_A!H317) -> 
A94: 1 | C94: =IF(ALL_A!C318="","",ALL_A!C318) ->  | D94: =IF(ALL_A!G318="","",ALL_A!G318) ->  | E94: =IF(ALL_A!H318="","",ALL_A!H318) -> 
A95: 1 | C95: =IF(ALL_A!C319="","",ALL_A!C319) ->  | D95: =IF(ALL_A!G319="","",ALL_A!G319) ->  | E95: =IF(ALL_A!H319="","",ALL_A!H319) -> 
A96: 1 | C96: =IF(ALL_A!C320="","",ALL_A!C320) ->  | D96: =IF(ALL_A!G320="","",ALL_A!G320) ->  | E96: =IF(ALL_A!H320="","",ALL_A!H320) -> 
A97: 1 | C97: =IF(ALL_A!C321="","",ALL_A!C321) ->  | D97: =IF(ALL_A!G321="","",ALL_A!G321) ->  | E97: =IF(ALL_A!H321="","",ALL_A!H321) -> 
A98: 1 | C98: =IF(ALL_A!C322="","",ALL_A!C322) ->  | D98: =IF(ALL_A!G322="","",ALL_A!G322) ->  | E98: =IF(ALL_A!H322="","",ALL_A!H322) -> 
A99: 1 | C99: =IF(ALL_A!C323="","",ALL_A!C323) ->  | D99: =IF(ALL_A!G323="","",ALL_A!G323) ->  | E99: =IF(ALL_A!H323="","",ALL_A!H323) -> 
A100: 1 | C100: =IF(ALL_A!C324="","",ALL_A!C324) ->  | D100: =IF(ALL_A!G324="","",ALL_A!G324) ->  | E100: =IF(ALL_A!H324="","",ALL_A!H324) -> 
A101: 1 | C101: =IF(ALL_A!C325="","",ALL_A!C325) ->  | D101: =IF(ALL_A!G325="","",ALL_A!G325) ->  | E101: =IF(ALL_A!H325="","",ALL_A!H325) -> 
A102: 1 | C102: =IF(ALL_A!C326="","",ALL_A!C326) ->  | D102: =IF(ALL_A!G326="","",ALL_A!G326) ->  | E102: =IF(ALL_A!H326="","",ALL_A!H326) -> 
A103: 1 | C103: =IF(ALL_A!C327="","",ALL_A!C327) ->  | D103: =IF(ALL_A!G327="","",ALL_A!G327) ->  | E103: =IF(ALL_A!H327="","",ALL_A!H327) -> 
A104: 1 | C104: =IF(ALL_A!C328="","",ALL_A!C328) ->  | D104: =IF(ALL_A!G328="","",ALL_A!G328) ->  | E104: =IF(ALL_A!H328="","",ALL_A!H328) -> 
A105: 1 | C105: =IF(ALL_A!C329="","",ALL_A!C329) ->  | D105: =IF(ALL_A!G329="","",ALL_A!G329) ->  | E105: =IF(ALL_A!H329="","",ALL_A!H329) -> 
A106: 1 | C106: =IF(ALL_A!C330="","",ALL_A!C330) ->  | D106: =IF(ALL_A!G330="","",ALL_A!G330) ->  | E106: =IF(ALL_A!H330="","",ALL_A!H330) -> 
A107: 1 | C107: =IF(ALL_A!C331="","",ALL_A!C331) ->  | D107: =IF(ALL_A!G331="","",ALL_A!G331) ->  | E107: =IF(ALL_A!H331="","",ALL_A!H331) -> 
A108: 1 | C108: =IF(ALL_A!C332="","",ALL_A!C332) ->  | D108: =IF(ALL_A!G332="","",ALL_A!G332) ->  | E108: =IF(ALL_A!H332="","",ALL_A!H332) -> 
A109: 1 | C109: =IF(ALL_A!C333="","",ALL_A!C333) ->  | D109: =IF(ALL_A!G333="","",ALL_A!G333) ->  | E109: =IF(ALL_A!H333="","",ALL_A!H333) -> 
A110: 1 | C110: =IF(ALL_A!C334="","",ALL_A!C334) ->  | D110: =IF(ALL_A!G334="","",ALL_A!G334) ->  | E110: =IF(ALL_A!H334="","",ALL_A!H334) -> 
A111: 1 | C111: =IF(ALL_A!C335="","",ALL_A!C335) ->  | D111: =IF(ALL_A!G335="","",ALL_A!G335) ->  | E111: =IF(ALL_A!H335="","",ALL_A!H335) -> 
A112: 1 | C112: =IF(ALL_A!C336="","",ALL_A!C336) ->  | D112: =IF(ALL_A!G336="","",ALL_A!G336) ->  | E112: =IF(ALL_A!H336="","",ALL_A!H336) -> 
A113: 1 | C113: =IF(ALL_A!C337="","",ALL_A!C337) ->  | D113: =IF(ALL_A!G337="","",ALL_A!G337) ->  | E113: =IF(ALL_A!H337="","",ALL_A!H337) -> 
A114: 1 | C114: =IF(ALL_A!C338="","",ALL_A!C338) ->  | D114: =IF(ALL_A!G338="","",ALL_A!G338) ->  | E114: =IF(ALL_A!H338="","",ALL_A!H338) -> 
A115: 1 | C115: =IF(ALL_A!C339="","",ALL_A!C339) ->  | D115: =IF(ALL_A!G339="","",ALL_A!G339) ->  | E115: =IF(ALL_A!H339="","",ALL_A!H339) -> 
A116: 1 | C116: =IF(ALL_A!C340="","",ALL_A!C340) ->  | D116: =IF(ALL_A!G340="","",ALL_A!G340) ->  | E116: =IF(ALL_A!H340="","",ALL_A!H340) -> 
A117: 1 | C117: =IF(ALL_A!C341="","",ALL_A!C341) ->  | D117: =IF(ALL_A!G341="","",ALL_A!G341) ->  | E117: =IF(ALL_A!H341="","",ALL_A!H341) -> 
A118: 1 | C118: =IF(ALL_A!C342="","",ALL_A!C342) ->  | D118: =IF(ALL_A!G342="","",ALL_A!G342) ->  | E118: =IF(ALL_A!H342="","",ALL_A!H342) -> 
A119: 1 | C119: =IF(ALL_A!C343="","",ALL_A!C343) ->  | D119: =IF(ALL_A!G343="","",ALL_A!G343) ->  | E119: =IF(ALL_A!H343="","",ALL_A!H343) -> 
A120: 1 | C120: =IF(ALL_A!C344="","",ALL_A!C344) ->  | D120: =IF(ALL_A!G344="","",ALL_A!G344) ->  | E120: =IF(ALL_A!H344="","",ALL_A!H344) -> 
A121: 1 | C121: =IF(ALL_A!C345="","",ALL_A!C345) ->  | D121: =IF(ALL_A!G345="","",ALL_A!G345) ->  | E121: =IF(ALL_A!H345="","",ALL_A!H345) -> 
A122: 1 | C122: =IF(ALL_A!C346="","",ALL_A!C346) ->  | D122: =IF(ALL_A!G346="","",ALL_A!G346) ->  | E122: =IF(ALL_A!H346="","",ALL_A!H346) -> 
A123: 1 | C123: =IF(ALL_A!C347="","",ALL_A!C347) ->  | D123: =IF(ALL_A!G347="","",ALL_A!G347) ->  | E123: =IF(ALL_A!H347="","",ALL_A!H347) -> 
A124: 1 | C124: =IF(ALL_A!C348="","",ALL_A!C348) ->  | D124: =IF(ALL_A!G348="","",ALL_A!G348) ->  | E124: =IF(ALL_A!H348="","",ALL_A!H348) -> 
A125: 1 | C125: =IF(ALL_A!C349="","",ALL_A!C349) ->  | D125: =IF(ALL_A!G349="","",ALL_A!G349) ->  | E125: =IF(ALL_A!H349="","",ALL_A!H349) -> 
A126: 1 | C126: =IF(ALL_A!C350="","",ALL_A!C350) ->  | D126: =IF(ALL_A!G350="","",ALL_A!G350) ->  | E126: =IF(ALL_A!H350="","",ALL_A!H350) -> 
A127: 1 | C127: =IF(ALL_A!C351="","",ALL_A!C351) ->  | D127: =IF(ALL_A!G351="","",ALL_A!G351) ->  | E127: =IF(ALL_A!H351="","",ALL_A!H351) -> 
A128: 1 | C128: =IF(ALL_A!C352="","",ALL_A!C352) ->  | D128: =IF(ALL_A!G352="","",ALL_A!G352) ->  | E128: =IF(ALL_A!H352="","",ALL_A!H352) -> 
A129: 1 | C129: =IF(ALL_A!C353="","",ALL_A!C353) ->  | D129: =IF(ALL_A!G353="","",ALL_A!G353) ->  | E129: =IF(ALL_A!H353="","",ALL_A!H353) -> 
A130: 1 | C130: =IF(ALL_A!C354="","",ALL_A!C354) ->  | D130: =IF(ALL_A!G354="","",ALL_A!G354) ->  | E130: =IF(ALL_A!H354="","",ALL_A!H354) -> 
A131: 1 | C131: =IF(ALL_A!C355="","",ALL_A!C355) ->  | D131: =IF(ALL_A!G355="","",ALL_A!G355) ->  | E131: =IF(ALL_A!H355="","",ALL_A!H355) ->  | X131: =IFERROR(C131,"#ERR") ->  | Y131: =IFERROR(D131,"#ERR") ->  | Z131: =IFERROR(E131,"#ERR") -> 
A132: 1 | C132: =IF(ALL_A!C356="","",ALL_A!C356) ->  | D132: =IF(ALL_A!G356="","",ALL_A!G356) ->  | E132: =IF(ALL_A!H356="","",ALL_A!H356) -> 
A133: 1 | C133: =IF(ALL_A!C357="","",ALL_A!C357) ->  | D133: =IF(ALL_A!G357="","",ALL_A!G357) ->  | E133: =IF(ALL_A!H357="","",ALL_A!H357) -> 
A134: 1 | C134: =IF(ALL_A!C358="","",ALL_A!C358) ->  | D134: =IF(ALL_A!G358="","",ALL_A!G358) ->  | E134: =IF(ALL_A!H358="","",ALL_A!H358) -> 
A135: 1 | C135: =IF(ALL_A!C359="","",ALL_A!C359) ->  | D135: =IF(ALL_A!G359="","",ALL_A!G359) ->  | E135: =IF(ALL_A!H359="","",ALL_A!H359) -> 
A136: 1 | C136: =IF(ALL_A!C360="","",ALL_A!C360) ->  | D136: =IF(ALL_A!G360="","",ALL_A!G360) ->  | E136: =IF(ALL_A!H360="","",ALL_A!H360) -> 
A137: 1 | C137: =IF(ALL_A!C361="","",ALL_A!C361) ->  | D137: =IF(ALL_A!G361="","",ALL_A!G361) ->  | E137: =IF(ALL_A!H361="","",ALL_A!H361) -> 
A138: 1 | C138: =IF(ALL_A!C362="","",ALL_A!C362) ->  | D138: =IF(ALL_A!G362="","",ALL_A!G362) ->  | E138: =IF(ALL_A!H362="","",ALL_A!H362) -> 
A139: 1 | C139: =IF(ALL_A!C363="","",ALL_A!C363) ->  | D139: =IF(ALL_A!G363="","",ALL_A!G363) ->  | E139: =IF(ALL_A!H363="","",ALL_A!H363) -> 
A140: 1 | C140: =IF(ALL_A!C364="","",ALL_A!C364) ->  | D140: =IF(ALL_A!G364="","",ALL_A!G364) ->  | E140: =IF(ALL_A!H364="","",ALL_A!H364) -> 
A141: 1 | C141: =IF(ALL_A!C365="","",ALL_A!C365) ->  | D141: =IF(ALL_A!G365="","",ALL_A!G365) ->  | E141: =IF(ALL_A!H365="","",ALL_A!H365) -> 
A142: 1 | C142: =IF(ALL_A!C366="","",ALL_A!C366) ->  | D142: =IF(ALL_A!G366="","",ALL_A!G366) ->  | E142: =IF(ALL_A!H366="","",ALL_A!H366) -> 
A143: 1 | C143: =IF(ALL_A!C367="","",ALL_A!C367) ->  | D143: =IF(ALL_A!G367="","",ALL_A!G367) ->  | E143: =IF(ALL_A!H367="","",ALL_A!H367) -> 
A144: 1 | C144: =IF(ALL_A!C368="","",ALL_A!C368) ->  | D144: =IF(ALL_A!G368="","",ALL_A!G368) ->  | E144: =IF(ALL_A!H368="","",ALL_A!H368) -> 
A145: 1 | C145: =IF(ALL_A!C369="","",ALL_A!C369) ->  | D145: =IF(ALL_A!G369="","",ALL_A!G369) ->  | E145: =IF(ALL_A!H369="","",ALL_A!H369) -> 
A146: 1 | C146: =IF(ALL_A!C370="","",ALL_A!C370) ->  | D146: =IF(ALL_A!G370="","",ALL_A!G370) ->  | E146: =IF(ALL_A!H370="","",ALL_A!H370) -> 

Sheet EXP_PREVISIONI_SINTESI (hidden)
A1: ID | B1: ID_PROGRAMMA | C1: ID_TIPO_PREVISIONE_DETT | D1: ANNO | E1: VALORE | H1: ID | I1: DESCRIZIONE | J1: ID_TIPO_PREVISIONE | K1: FLAG_PERCENTUALE
A2: 1 | C2: 1010 | D2: =ALL_A!$F$210 -> 2017 | E2: =ALL_A!F377 -> 0 | H2: 1010 | I2: FATTURATO | J2: 1 | K2: FALSE | Z2: =IFERROR(SUM(C2:E28),"#ERR") -> 141924 | AA2: =COUNTIF(X:Z,"#ERR") -> 0
A3: 1 | C3: 1010 | D3: =D2+1 -> 2018 | E3: =ALL_A!G377 -> 0 | H3: 1020 | I3: QUOTA % DI COSTRUZIONI AERONAUTICHE SUL TOTALE | J3: 1 | K3: TRUE
A4: 1 | C4: 1010 | D4: =D3+1 -> 2019 | E4: =ALL_A!H377 -> 0 | H4: 2010 | I4: % SU TOTALE FATTURATO | J4: 2 | K4: TRUE
A5: 1 | C5: 1020 | D5: =ALL_A!$F$210 -> 2017 | E5: =ALL_A!F378 -> 0 | H5: 3010 | I5: FABBRICATI INDUSTRIALI E TERRENI | J5: 3 | K5: FALSE
A6: 1 | C6: 1020 | D6: =D5+1 -> 2018 | E6: =ALL_A!G378 -> 0 | H6: 3020 | I6: MACCHINARI, IMPIANTI E ATTREZZATURE DI PRODUZIONE | J6: 3 | K6: FALSE
A7: 1 | C7: 1020 | D7: =D6+1 -> 2019 | E7: =ALL_A!H378 -> 0 | H7: 4010 | I7: INVESTIMENTI R&S (Valori assoluti) | J7: 4 | K7: FALSE
A8: 1 | C8: 2010 | D8: =ALL_A!$F$210 -> 2017 | E8: =ALL_A!F383 -> 0 | H8: 5010 | I8: INVESTIMENTI TOTALI | J8: 5 | K8: FALSE
A9: 1 | C9: 2010 | D9: =D8+1 -> 2018 | E9: =ALL_A!G383 -> 0 | H9: 5020 | I9: RICERCA E SVILUPPO | J9: 5 | K9: FALSE
A10: 1 | C10: 2010 | D10: =D9+1 -> 2019 | E10: =ALL_A!H383 -> 0 | H10: 5030 | I10: ORDINI | J10: 5 | K10: FALSE
A11: 1 | C11: 3010 | D11: =ALL_A!$F$210 -> 2017 | E11: =ALL_A!F387 -> 0
A12: 1 | C12: 3010 | D12: =D11+1 -> 2018 | E12: =ALL_A!G387 -> 0
A13: 1 | C13: 3010 | D13: =D12+1 -> 2019 | E13: =ALL_A!H387 -> 0
A14: 1 | C14: 3020 | D14: =ALL_A!$F$210 -> 2017 | E14: =ALL_A!F388 -> 0
A15: 1 | C15: 3020 | D15: =D14+1 -> 2018 | E15: =ALL_A!G388 -> 0
A16: 1 | C16: 3020 | D16: =D15+1 -> 2019 | E16: =ALL_A!H388 -> 0
A17: 1 | C17: 4010 | D17: =ALL_A!$F$210 -> 2017 | E17: =ALL_A!F393 -> 0
A18: 1 | C18: 4010 | D18: =D17+1 -> 2018 | E18: =ALL_A!G393 -> 0
A19: 1 | C19: 4010 | D19: =D18+1 -> 2019 | E19: =ALL_A!H393 -> 0
A20: 1 | C20: 5010 | D20: =ALL_A!$F$397 -> 2019 | E20: =ALL_A!F398 -> 0
A21: 1 | C21: 5010 | D21: =D20+1 -> 2020 | E21: =ALL_A!G398 -> 0
A22: 1 | C22: 5010 | D22: =D21+1 -> 2021 | E22: =ALL_A!H398 -> 0
A23: 1 | C23: 5020 | D23: =ALL_A!$F$397 -> 2019 | E23: =ALL_A!F399 -> 0
A24: 1 | C24: 5020 | D24: =D23+1 -> 2020 | E24: =ALL_A!G399 -> 0
A25: 1 | C25: 5020 | D25: =D24+1 -> 2021 | E25: =ALL_A!H399 -> 0
A26: 1 | C26: 5030 | D26: =ALL_A!$F$397 -> 2019 | E26: =ALL_A!F400 -> 0
A27: 1 | C27: 5030 | D27: =D26+1 -> 2020 | E27: =ALL_A!G400 -> 0
A28: 1 | C28: 5030 | D28: =D27+1 -> 2021 | E28: =ALL_A!H400 -> 0

Sheet EXP_SOGGETTI_BIL (hidden)
A1: ID | B1: ID_SCHEMA_BILANCIO | C1: ANNO | D1: ID_SOGGETTO | E1: ID_PROGRAMMA | F1: DATA_ACQUISIZIONE | G1: STATO_BILANCIO
B2: 2 | C2: =ALL_A.1!D12 ->  | F2: =TODAY() -> 2019-10-08 | G2: Approvato | X2: =IFERROR(SUM(B2:C3),"#ERR") -> 4 | Y2: =IFERROR(SUM(F2:F3),"#ERR") -> 87492 | Z2: =IFERROR(G2,"#ERR") -> Approvato | AA2: =COUNTIF(X:Z,"#ERR") -> 0
B3: 2 | C3: =ALL_A.1!E12 ->  | F3: =TODAY() -> 2019-10-08 | G3: Approvato | Z3: =IFERROR(G3,"#ERR") -> Approvato

Sheet EXP_PREVISIONI_COSTI_DETTAGLIO (hidden)
A1: ID | B1: ID_PROGRAMMA | C1: ID_TIPOLOGIA_COSTO | D1: ID_FINALITA_COSTO | E1: VOCE | F1: ANNO 1 | G1: ANNO 2 | H1: ANNO 3 | I1: ANNO 4 | J1: ANNO 5 | K1: ANNO 6 | M1: ID | N1: DESCRIZIONE | Q1: ID_TIPOLOGIA_COSTO | R1: ID_FINALITA_COSTO | T1: S | U1: E | V1: LENGTH
A2: 1 | C2: 20 | D2: 10 | E2: =IF(ALL_C!C68="","",ALL_C!C68) ->  | F2: =ALL_C!E68 -> 0 | G2: =ALL_C!F68 -> 0 | H2: =ALL_C!G68 -> 0 | I2: =ALL_C!H68 -> 0 | J2: =ALL_C!I68 -> 0 | K2: =ALL_C!J68 -> 0 | M2: 10 | N2: PERSONALE | P2: 1 | Q2: 20 | R2: 10 | S2: =Q2&R2 -> 2010 | T2: 68 | U2: 117 | V2: =U2-T2+1 -> 50 | W2: =V2+1 -> 51 | X2: =IFERROR(SUM(C2:D451),"#ERR") -> 22500 | Y2: =IFERROR(E2,"#ERR") ->  | Z2: =IFERROR(SUM(F2:K451),"#ERR") -> 0 | AA2: =COUNTIF(X:Z,"#ERR") -> 0
A3: 1 | C3: 20 | D3: 10 | E3: =IF(ALL_C!C69="","",ALL_C!C69) ->  | F3: =ALL_C!E69 -> 0 | G3: =ALL_C!F69 -> 0 | H3: =ALL_C!G69 -> 0 | I3: =ALL_C!H69 -> 0 | J3: =ALL_C!I69 -> 0 | K3: =ALL_C!J69 -> 0 | M3: 15 | N3: PERSONALE NON DIPENDENTE (MAX 15% DEL PERSONALE DIPENDENTE) | P3: 2 | Q3: 20 | R3: 20 | S3: =Q3&R3 -> 2020 | T3: 122 | U3: 171 | V3: =U3-T3+1 -> 50 | W3: =W2+V3 -> 101 | Y3: =IFERROR(E3,"#ERR") -> 
A4: 1 | C4: 20 | D4: 10 | E4: =IF(ALL_C!C70="","",ALL_C!C70) ->  | F4: =ALL_C!E70 -> 0 | G4: =ALL_C!F70 -> 0 | H4: =ALL_C!G70 -> 0 | I4: =ALL_C!H70 -> 0 | J4: =ALL_C!I70 -> 0 | K4: =ALL_C!J70 -> 0 | M4: 20 | N4: MATERIALI | P4: 3 | Q4: 20 | R4: 30 | S4: 2030 | T4: 176 | U4: 225 | V4: 50 | W4: =W3+V4 -> 151
A5: 1 | C5: 20 | D5: 10 | E5: =IF(ALL_C!C71="","",ALL_C!C71) ->  | F5: =ALL_C!E71 -> 0 | G5: =ALL_C!F71 -> 0 | H5: =ALL_C!G71 -> 0 | I5: =ALL_C!H71 -> 0 | J5: =ALL_C!I71 -> 0 | K5: =ALL_C!J71 -> 0 | M5: 30 | N5: STRUMENTAZIONE ED ATTREZZATURE | P5: 4 | Q5: 30 | R5: 10 | S5: 3010 | T5: 240 | U5: 289 | V5: 50 | W5: 201
A6: 1 | C6: 20 | D6: 10 | E6: =IF(ALL_C!C72="","",ALL_C!C72) ->  | F6: =ALL_C!E72 -> 0 | G6: =ALL_C!F72 -> 0 | H6: =ALL_C!G72 -> 0 | I6: =ALL_C!H72 -> 0 | J6: =ALL_C!I72 -> 0 | K6: =ALL_C!J72 -> 0 | M6: 40 | N6: SERVIZI DI CONSULENZA | P6: 5 | Q6: 30 | R6: 20 | S6: 3020 | T6: 294 | U6: 343 | V6: 50 | W6: 251
A7: 1 | C7: 20 | D7: 10 | E7: =IF(ALL_C!C73="","",ALL_C!C73) ->  | F7: =ALL_C!E73 -> 0 | G7: =ALL_C!F73 -> 0 | H7: =ALL_C!G73 -> 0 | I7: =ALL_C!H73 -> 0 | J7: =ALL_C!I73 -> 0 | K7: =ALL_C!J73 -> 0 | P7: 6 | Q7: 30 | R7: 30 | S7: 3030 | T7: 348 | U7: 397 | V7: 50 | W7: 301
A8: 1 | C8: 20 | D8: 10 | E8: =IF(ALL_C!C74="","",ALL_C!C74) ->  | F8: =ALL_C!E74 -> 0 | G8: =ALL_C!F74 -> 0 | H8: =ALL_C!G74 -> 0 | I8: =ALL_C!H74 -> 0 | J8: =ALL_C!I74 -> 0 | K8: =ALL_C!J74 -> 0 | M8: ID | N8: DESCRIZIONE | P8: 7 | Q8: 40 | R8: 10 | S8: 4010 | T8: 411 | U8: 460 | V8: 50 | W8: 351
A9: 1 | C9: 20 | D9: 10 | E9: =IF(ALL_C!C75="","",ALL_C!C75) ->  | F9: =ALL_C!E75 -> 0 | G9: =ALL_C!F75 -> 0 | H9: =ALL_C!G75 -> 0 | I9: =ALL_C!H75 -> 0 | J9: =ALL_C!I75 -> 0 | K9: =ALL_C!J75 -> 0 | M9: 10 | N9: STUDI DI FATTIBILITA' TECNICA | P9: 8 | Q9: 40 | R9: 20 | S9: 4020 | T9: 465 | U9: 514 | V9: 50 | W9: 401
A10: 1 | C10: 20 | D10: 10 | E10: =IF(ALL_C!C76="","",ALL_C!C76) ->  | F10: =ALL_C!E76 -> 0 | G10: =ALL_C!F76 -> 0 | H10: =ALL_C!G76 -> 0 | I10: =ALL_C!H76 -> 0 | J10: =ALL_C!I76 -> 0 | K10: =ALL_C!J76 -> 0 | M10: 20 | N10: RICERCA INDUSTRIALE | P10: 9 | Q10: 40 | R10: 30 | S10: 4030 | T10: 519 | U10: 568 | V10: 50 | W10: 451
A11: 1 | C11: 20 | D11: 10 | E11: =IF(ALL_C!C77="","",ALL_C!C77) ->  | F11: =ALL_C!E77 -> 0 | G11: =ALL_C!F77 -> 0 | H11: =ALL_C!G77 -> 0 | I11: =ALL_C!H77 -> 0 | J11: =ALL_C!I77 -> 0 | K11: =ALL_C!J77 -> 0 | M11: 30 | N11: SVILUPPO SPERIMENTALE
A12: 1 | C12: 20 | D12: 10 | E12: =IF(ALL_C!C78="","",ALL_C!C78) ->  | F12: =ALL_C!E78 -> 0 | G12: =ALL_C!F78 -> 0 | H12: =ALL_C!G78 -> 0 | I12: =ALL_C!H78 -> 0 | J12: =ALL_C!I78 -> 0 | K12: =ALL_C!J78 -> 0 | P12: ANNI | Q12: 15
A13: 1 | C13: 20 | D13: 10 | E13: =IF(ALL_C!C79="","",ALL_C!C79) ->  | F13: =ALL_C!E79 -> 0 | G13: =ALL_C!F79 -> 0 | H13: =ALL_C!G79 -> 0 | I13: =ALL_C!H79 -> 0 | J13: =ALL_C!I79 -> 0 | K13: =ALL_C!J79 -> 0
A14: 1 | C14: 20 | D14: 10 | E14: =IF(ALL_C!C80="","",ALL_C!C80) ->  | F14: =ALL_C!E80 -> 0 | G14: =ALL_C!F80 -> 0 | H14: =ALL_C!G80 -> 0 | I14: =ALL_C!H80 -> 0 | J14: =ALL_C!I80 -> 0 | K14: =ALL_C!J80 -> 0 | P14: RIGHE_TOTALI | Q14: =Q12*SUM(V2:V10) -> 6750
A15: 1 | C15: 20 | D15: 10 | E15: =IF(ALL_C!C81="","",ALL_C!C81) ->  | F15: =ALL_C!E81 -> 0 | G15: =ALL_C!F81 -> 0 | H15: =ALL_C!G81 -> 0 | I15: =ALL_C!H81 -> 0 | J15: =ALL_C!I81 -> 0 | K15: =ALL_C!J81 -> 0
A16: 1 | C16: 20 | D16: 10 | E16: =IF(ALL_C!C82="","",ALL_C!C82) ->  | F16: =ALL_C!E82 -> 0 | G16: =ALL_C!F82 -> 0 | H16: =ALL_C!G82 -> 0 | I16: =ALL_C!H82 -> 0 | J16: =ALL_C!I82 -> 0 | K16: =ALL_C!J82 -> 0 | Q16: =VLOOKUP(R2,$M$9:$N$11,2,0) -> STUDI DI FATTIBILITA' TECNICA | R16: =VLOOKUP(Q2,$M$2:$N$6,2,0) -> MATERIALI | S16: C | T16: 68 | U16: J | V16: 117
A17: 1 | C17: 20 | D17: 10 | E17: =IF(ALL_C!C83="","",ALL_C!C83) ->  | F17: =ALL_C!E83 -> 0 | G17: =ALL_C!F83 -> 0 | H17: =ALL_C!G83 -> 0 | I17: =ALL_C!H83 -> 0 | J17: =ALL_C!I83 -> 0 | K17: =ALL_C!J83 -> 0 | Q17: RICERCA INDUSTRIALE | R17: MATERIALI | S17: C | T17: 122 | U17: J | V17: 171
A18: 1 | C18: 20 | D18: 10 | E18: =IF(ALL_C!C84="","",ALL_C!C84) ->  | F18: =ALL_C!E84 -> 0 | G18: =ALL_C!F84 -> 0 | H18: =ALL_C!G84 -> 0 | I18: =ALL_C!H84 -> 0 | J18: =ALL_C!I84 -> 0 | K18: =ALL_C!J84 -> 0 | Q18: SVILUPPO SPERIMENTALE | R18: MATERIALI | S18: C | T18: 176 | U18: J | V18: 225
A19: 1 | C19: 20 | D19: 10 | E19: =IF(ALL_C!C85="","",ALL_C!C85) ->  | F19: =ALL_C!E85 -> 0 | G19: =ALL_C!F85 -> 0 | H19: =ALL_C!G85 -> 0 | I19: =ALL_C!H85 -> 0 | J19: =ALL_C!I85 -> 0 | K19: =ALL_C!J85 -> 0 | Q19: STUDI DI FATTIBILITA' TECNICA | R19: STRUMENTAZIONE ED ATTREZZATURE | S19: C | T19: 240 | U19: J | V19: 289
A20: 1 | C20: 20 | D20: 10 | E20: =IF(ALL_C!C86="","",ALL_C!C86) ->  | F20: =ALL_C!E86 -> 0 | G20: =ALL_C!F86 -> 0 | H20: =ALL_C!G86 -> 0 | I20: =ALL_C!H86 -> 0 | J20: =ALL_C!I86 -> 0 | K20: =ALL_C!J86 -> 0 | Q20: RICERCA INDUSTRIALE | R20: STRUMENTAZIONE ED ATTREZZATURE | S20: C | T20: 294 | U20: J | V20: 343
A21: 1 | C21: 20 | D21: 10 | E21: =IF(ALL_C!C87="","",ALL_C!C87) ->  | F21: =ALL_C!E87 -> 0 | G21: =ALL_C!F87 -> 0 | H21: =ALL_C!G87 -> 0 | I21: =ALL_C!H87 -> 0 | J21: =ALL_C!I87 -> 0 | K21: =ALL_C!J87 -> 0 | Q21: SVILUPPO SPERIMENTALE | R21: STRUMENTAZIONE ED ATTREZZATURE | S21: C | T21: 348 | U21: J | V21: 397
A22: 1 | C22: 20 | D22: 10 | E22: =IF(ALL_C!C88="","",ALL_C!C88) ->  | F22: =ALL_C!E88 -> 0 | G22: =ALL_C!F88 -> 0 | H22: =ALL_C!G88 -> 0 | I22: =ALL_C!H88 -> 0 | J22: =ALL_C!I88 -> 0 | K22: =ALL_C!J88 -> 0 | Q22: STUDI DI FATTIBILITA' TECNICA | R22: SERVIZI DI CONSULENZA | S22: C | T22: 411 | U22: J | V22: 460
A23: 1 | C23: 20 | D23: 10 | E23: =IF(ALL_C!C89="","",ALL_C!C89) ->  | F23: =ALL_C!E89 -> 0 | G23: =ALL_C!F89 -> 0 | H23: =ALL_C!G89 -> 0 | I23: =ALL_C!H89 -> 0 | J23: =ALL_C!I89 -> 0 | K23: =ALL_C!J89 -> 0 | Q23: RICERCA INDUSTRIALE | R23: SERVIZI DI CONSULENZA | S23: C | T23: 465 | U23: J | V23: 514
A24: 1 | C24: 20 | D24: 10 | E24: =IF(ALL_C!C90="","",ALL_C!C90) ->  | F24: =ALL_C!E90 -> 0 | G24: =ALL_C!F90 -> 0 | H24: =ALL_C!G90 -> 0 | I24: =ALL_C!H90 -> 0 | J24: =ALL_C!I90 -> 0 | K24: =ALL_C!J90 -> 0 | Q24: SVILUPPO SPERIMENTALE | R24: SERVIZI DI CONSULENZA | S24: C | T24: 519 | U24: J | V24: 568
A25: 1 | C25: 20 | D25: 10 | E25: =IF(ALL_C!C91="","",ALL_C!C91) ->  | F25: =ALL_C!E91 -> 0 | G25: =ALL_C!F91 -> 0 | H25: =ALL_C!G91 -> 0 | I25: =ALL_C!H91 -> 0 | J25: =ALL_C!I91 -> 0 | K25: =ALL_C!J91 -> 0
A26: 1 | C26: 20 | D26: 10 | E26: =IF(ALL_C!C92="","",ALL_C!C92) ->  | F26: =ALL_C!E92 -> 0 | G26: =ALL_C!F92 -> 0 | H26: =ALL_C!G92 -> 0 | I26: =ALL_C!H92 -> 0 | J26: =ALL_C!I92 -> 0 | K26: =ALL_C!J92 -> 0
A27: 1 | C27: 20 | D27: 10 | E27: =IF(ALL_C!C93="","",ALL_C!C93) ->  | F27: =ALL_C!E93 -> 0 | G27: =ALL_C!F93 -> 0 | H27: =ALL_C!G93 -> 0 | I27: =ALL_C!H93 -> 0 | J27: =ALL_C!I93 -> 0 | K27: =ALL_C!J93 -> 0 | Q27: 1 | R27: =$U$1 -> E | S27: =$T$1 -> S | T27: =T2 -> 68 | U27: 117 | W27: =CONCATENATE("Range(",R27,T27,":",S27,U27,"",")") -> Range(E68:S117)
A28: 1 | C28: 20 | D28: 10 | E28: =IF(ALL_C!C94="","",ALL_C!C94) ->  | F28: =ALL_C!E94 -> 0 | G28: =ALL_C!F94 -> 0 | H28: =ALL_C!G94 -> 0 | I28: =ALL_C!H94 -> 0 | J28: =ALL_C!I94 -> 0 | K28: =ALL_C!J94 -> 0 | Q28: 2 | R28: =$U$1 -> E | S28: =$T$1 -> S | T28: 122 | U28: 171 | W28: =CONCATENATE("Range(",R28,T28,":",S28,U28,"",")") -> Range(E122:S171)
A29: 1 | C29: 20 | D29: 10 | E29: =IF(ALL_C!C95="","",ALL_C!C95) ->  | F29: =ALL_C!E95 -> 0 | G29: =ALL_C!F95 -> 0 | H29: =ALL_C!G95 -> 0 | I29: =ALL_C!H95 -> 0 | J29: =ALL_C!I95 -> 0 | K29: =ALL_C!J95 -> 0 | Q29: 3 | R29: E | S29: S | T29: 176 | U29: 225 | W29: Range(E176:S225)
A30: 1 | C30: 20 | D30: 10 | E30: =IF(ALL_C!C96="","",ALL_C!C96) ->  | F30: =ALL_C!E96 -> 0 | G30: =ALL_C!F96 -> 0 | H30: =ALL_C!G96 -> 0 | I30: =ALL_C!H96 -> 0 | J30: =ALL_C!I96 -> 0 | K30: =ALL_C!J96 -> 0 | Q30: 4 | R30: E | S30: S | T30: 240 | U30: 289 | W30: Range(E240:S289)
A31: 1 | C31: 20 | D31: 10 | E31: =IF(ALL_C!C97="","",ALL_C!C97) ->  | F31: =ALL_C!E97 -> 0 | G31: =ALL_C!F97 -> 0 | H31: =ALL_C!G97 -> 0 | I31: =ALL_C!H97 -> 0 | J31: =ALL_C!I97 -> 0 | K31: =ALL_C!J97 -> 0 | Q31: 5 | R31: E | S31: S | T31: 294 | U31: 343 | W31: Range(E294:S343)
A32: 1 | C32: 20 | D32: 10 | E32: =IF(ALL_C!C98="","",ALL_C!C98) ->  | F32: =ALL_C!E98 -> 0 | G32: =ALL_C!F98 -> 0 | H32: =ALL_C!G98 -> 0 | I32: =ALL_C!H98 -> 0 | J32: =ALL_C!I98 -> 0 | K32: =ALL_C!J98 -> 0 | Q32: 6 | R32: E | S32: S | T32: 348 | U32: 397 | W32: Range(E348:S397)
A33: 1 | C33: 20 | D33: 10 | E33: =IF(ALL_C!C99="","",ALL_C!C99) ->  | F33: =ALL_C!E99 -> 0 | G33: =ALL_C!F99 -> 0 | H33: =ALL_C!G99 -> 0 | I33: =ALL_C!H99 -> 0 | J33: =ALL_C!I99 -> 0 | K33: =ALL_C!J99 -> 0 | Q33: 7 | R33: E | S33: S | T33: 411 | U33: 460 | W33: Range(E411:S460)
A34: 1 | C34: 20 | D34: 10 | E34: =IF(ALL_C!C100="","",ALL_C!C100) ->  | F34: =ALL_C!E100 -> 0 | G34: =ALL_C!F100 -> 0 | H34: =ALL_C!G100 -> 0 | I34: =ALL_C!H100 -> 0 | J34: =ALL_C!I100 -> 0 | K34: =ALL_C!J100 -> 0 | Q34: 8 | R34: E | S34: S | T34: 465 | U34: 514 | W34: Range(E465:S514)
A35: 1 | C35: 20 | D35: 10 | E35: =IF(ALL_C!C101="","",ALL_C!C101) ->  | F35: =ALL_C!E101 -> 0 | G35: =ALL_C!F101 -> 0 | H35: =ALL_C!G101 -> 0 | I35: =ALL_C!H101 -> 0 | J35: =ALL_C!I101 -> 0 | K35: =ALL_C!J101 -> 0 | Q35: 9 | R35: E | S35: S | T35: 519 | U35: 568 | W35: Range(E519:S568)
A36: 1 | C36: 20 | D36: 10 | E36: =IF(ALL_C!C102="","",ALL_C!C102) ->  | F36: =ALL_C!E102 -> 0 | G36: =ALL_C!F102 -> 0 | H36: =ALL_C!G102 -> 0 | I36: =ALL_C!H102 -> 0 | J36: =ALL_C!I102 -> 0 | K36: =ALL_C!J102 -> 0
A37: 1 | C37: 20 | D37: 10 | E37: =IF(ALL_C!C103="","",ALL_C!C103) ->  | F37: =ALL_C!E103 -> 0 | G37: =ALL_C!F103 -> 0 | H37: =ALL_C!G103 -> 0 | I37: =ALL_C!H103 -> 0 | J37: =ALL_C!I103 -> 0 | K37: =ALL_C!J103 -> 0
A38: 1 | C38: 20 | D38: 10 | E38: =IF(ALL_C!C104="","",ALL_C!C104) ->  | F38: =ALL_C!E104 -> 0 | G38: =ALL_C!F104 -> 0 | H38: =ALL_C!G104 -> 0 | I38: =ALL_C!H104 -> 0 | J38: =ALL_C!I104 -> 0 | K38: =ALL_C!J104 -> 0
A39: 1 | C39: 20 | D39: 10 | E39: =IF(ALL_C!C105="","",ALL_C!C105) ->  | F39: =ALL_C!E105 -> 0 | G39: =ALL_C!F105 -> 0 | H39: =ALL_C!G105 -> 0 | I39: =ALL_C!H105 -> 0 | J39: =ALL_C!I105 -> 0 | K39: =ALL_C!J105 -> 0
A40: 1 | C40: 20 | D40: 10 | E40: =IF(ALL_C!C106="","",ALL_C!C106) ->  | F40: =ALL_C!E106 -> 0 | G40: =ALL_C!F106 -> 0 | H40: =ALL_C!G106 -> 0 | I40: =ALL_C!H106 -> 0 | J40: =ALL_C!I106 -> 0 | K40: =ALL_C!J106 -> 0
A41: 1 | C41: 20 | D41: 10 | E41: =IF(ALL_C!C107="","",ALL_C!C107) ->  | F41: =ALL_C!E107 -> 0 | G41: =ALL_C!F107 -> 0 | H41: =ALL_C!G107 -> 0 | I41: =ALL_C!H107 -> 0 | J41: =ALL_C!I107 -> 0 | K41: =ALL_C!J107 -> 0
A42: 1 | C42: 20 | D42: 10 | E42: =IF(ALL_C!C108="","",ALL_C!C108) ->  | F42: =ALL_C!E108 -> 0 | G42: =ALL_C!F108 -> 0 | H42: =ALL_C!G108 -> 0 | I42: =ALL_C!H108 -> 0 | J42: =ALL_C!I108 -> 0 | K42: =ALL_C!J108 -> 0
A43: 1 | C43: 20 | D43: 10 | E43: =IF(ALL_C!C109="","",ALL_C!C109) ->  | F43: =ALL_C!E109 -> 0 | G43: =ALL_C!F109 -> 0 | H43: =ALL_C!G109 -> 0 | I43: =ALL_C!H109 -> 0 | J43: =ALL_C!I109 -> 0 | K43: =ALL_C!J109 -> 0
A44: 1 | C44: 20 | D44: 10 | E44: =IF(ALL_C!C110="","",ALL_C!C110) ->  | F44: =ALL_C!E110 -> 0 | G44: =ALL_C!F110 -> 0 | H44: =ALL_C!G110 -> 0 | I44: =ALL_C!H110 -> 0 | J44: =ALL_C!I110 -> 0 | K44: =ALL_C!J110 -> 0
A45: 1 | C45: 20 | D45: 10 | E45: =IF(ALL_C!C111="","",ALL_C!C111) ->  | F45: =ALL_C!E111 -> 0 | G45: =ALL_C!F111 -> 0 | H45: =ALL_C!G111 -> 0 | I45: =ALL_C!H111 -> 0 | J45: =ALL_C!I111 -> 0 | K45: =ALL_C!J111 -> 0
A46: 1 | C46: 20 | D46: 10 | E46: =IF(ALL_C!C112="","",ALL_C!C112) ->  | F46: =ALL_C!E112 -> 0 | G46: =ALL_C!F112 -> 0 | H46: =ALL_C!G112 -> 0 | I46: =ALL_C!H112 -> 0 | J46: =ALL_C!I112 -> 0 | K46: =ALL_C!J112 -> 0
A47: 1 | C47: 20 | D47: 10 | E47: =IF(ALL_C!C113="","",ALL_C!C113) ->  | F47: =ALL_C!E113 -> 0 | G47: =ALL_C!F113 -> 0 | H47: =ALL_C!G113 -> 0 | I47: =ALL_C!H113 -> 0 | J47: =ALL_C!I113 -> 0 | K47: =ALL_C!J113 -> 0
A48: 1 | C48: 20 | D48: 10 | E48: =IF(ALL_C!C114="","",ALL_C!C114) ->  | F48: =ALL_C!E114 -> 0 | G48: =ALL_C!F114 -> 0 | H48: =ALL_C!G114 -> 0 | I48: =ALL_C!H114 -> 0 | J48: =ALL_C!I114 -> 0 | K48: =ALL_C!J114 -> 0
A49: 1 | C49: 20 | D49: 10 | E49: =IF(ALL_C!C115="","",ALL_C!C115) ->  | F49: =ALL_C!E115 -> 0 | G49: =ALL_C!F115 -> 0 | H49: =ALL_C!G115 -> 0 | I49: =ALL_C!H115 -> 0 | J49: =ALL_C!I115 -> 0 | K49: =ALL_C!J115 -> 0
A50: 1 | C50: 20 | D50: 10 | E50: =IF(ALL_C!C116="","",ALL_C!C116) ->  | F50: =ALL_C!E116 -> 0 | G50: =ALL_C!F116 -> 0 | H50: =ALL_C!G116 -> 0 | I50: =ALL_C!H116 -> 0 | J50: =ALL_C!I116 -> 0 | K50: =ALL_C!J116 -> 0
A51: 1 | C51: 20 | D51: 10 | E51: =IF(ALL_C!C117="","",ALL_C!C117) ->  | F51: =ALL_C!E117 -> 0 | G51: =ALL_C!F117 -> 0 | H51: =ALL_C!G117 -> 0 | I51: =ALL_C!H117 -> 0 | J51: =ALL_C!I117 -> 0 | K51: =ALL_C!J117 -> 0
A52: 1 | C52: 20 | D52: 20 | E52: =IF(ALL_C!C122="","",ALL_C!C122) ->  | F52: =ALL_C!E122 -> 0 | G52: =ALL_C!F122 -> 0 | H52: =ALL_C!G122 -> 0 | I52: =ALL_C!H122 -> 0 | J52: =ALL_C!I122 -> 0 | K52: =ALL_C!J122 -> 0
A53: 1 | C53: 20 | D53: 20 | E53: =IF(ALL_C!C123="","",ALL_C!C123) ->  | F53: =ALL_C!E123 -> 0 | G53: =ALL_C!F123 -> 0 | H53: =ALL_C!G123 -> 0 | I53: =ALL_C!H123 -> 0 | J53: =ALL_C!I123 -> 0 | K53: =ALL_C!J123 -> 0
A54: 1 | C54: 20 | D54: 20 | E54: =IF(ALL_C!C124="","",ALL_C!C124) ->  | F54: =ALL_C!E124 -> 0 | G54: =ALL_C!F124 -> 0 | H54: =ALL_C!G124 -> 0 | I54: =ALL_C!H124 -> 0 | J54: =ALL_C!I124 -> 0 | K54: =ALL_C!J124 -> 0
A55: 1 | C55: 20 | D55: 20 | E55: =IF(ALL_C!C125="","",ALL_C!C125) ->  | F55: =ALL_C!E125 -> 0 | G55: =ALL_C!F125 -> 0 | H55: =ALL_C!G125 -> 0 | I55: =ALL_C!H125 -> 0 | J55: =ALL_C!I125 -> 0 | K55: =ALL_C!J125 -> 0
A56: 1 | C56: 20 | D56: 20 | E56: =IF(ALL_C!C126="","",ALL_C!C126) ->  | F56: =ALL_C!E126 -> 0 | G56: =ALL_C!F126 -> 0 | H56: =ALL_C!G126 -> 0 | I56: =ALL_C!H126 -> 0 | J56: =ALL_C!I126 -> 0 | K56: =ALL_C!J126 -> 0
A57: 1 | C57: 20 | D57: 20 | E57: =IF(ALL_C!C127="","",ALL_C!C127) ->  | F57: =ALL_C!E127 -> 0 | G57: =ALL_C!F127 -> 0 | H57: =ALL_C!G127 -> 0 | I57: =ALL_C!H127 -> 0 | J57: =ALL_C!I127 -> 0 | K57: =ALL_C!J127 -> 0
A58: 1 | C58: 20 | D58: 20 | E58: =IF(ALL_C!C128="","",ALL_C!C128) ->  | F58: =ALL_C!E128 -> 0 | G58: =ALL_C!F128 -> 0 | H58: =ALL_C!G128 -> 0 | I58: =ALL_C!H128 -> 0 | J58: =ALL_C!I128 -> 0 | K58: =ALL_C!J128 -> 0
A59: 1 | C59: 20 | D59: 20 | E59: =IF(ALL_C!C129="","",ALL_C!C129) ->  | F59: =ALL_C!E129 -> 0 | G59: =ALL_C!F129 -> 0 | H59: =ALL_C!G129 -> 0 | I59: =ALL_C!H129 -> 0 | J59: =ALL_C!I129 -> 0 | K59: =ALL_C!J129 -> 0
A60: 1 | C60: 20 | D60: 20 | E60: =IF(ALL_C!C130="","",ALL_C!C130) ->  | F60: =ALL_C!E130 -> 0 | G60: =ALL_C!F130 -> 0 | H60: =ALL_C!G130 -> 0 | I60: =ALL_C!H130 -> 0 | J60: =ALL_C!I130 -> 0 | K60: =ALL_C!J130 -> 0
A61: 1 | C61: 20 | D61: 20 | E61: =IF(ALL_C!C131="","",ALL_C!C131) ->  | F61: =ALL_C!E131 -> 0 | G61: =ALL_C!F131 -> 0 | H61: =ALL_C!G131 -> 0 | I61: =ALL_C!H131 -> 0 | J61: =ALL_C!I131 -> 0 | K61: =ALL_C!J131 -> 0
A62: 1 | C62: 20 | D62: 20 | E62: =IF(ALL_C!C132="","",ALL_C!C132) ->  | F62: =ALL_C!E132 -> 0 | G62: =ALL_C!F132 -> 0 | H62: =ALL_C!G132 -> 0 | I62: =ALL_C!H132 -> 0 | J62: =ALL_C!I132 -> 0 | K62: =ALL_C!J132 -> 0
A63: 1 | C63: 20 | D63: 20 | E63: =IF(ALL_C!C133="","",ALL_C!C133) ->  | F63: =ALL_C!E133 -> 0 | G63: =ALL_C!F133 -> 0 | H63: =ALL_C!G133 -> 0 | I63: =ALL_C!H133 -> 0 | J63: =ALL_C!I133 -> 0 | K63: =ALL_C!J133 -> 0
A64: 1 | C64: 20 | D64: 20 | E64: =IF(ALL_C!C134="","",ALL_C!C134) ->  | F64: =ALL_C!E134 -> 0 | G64: =ALL_C!F134 -> 0 | H64: =ALL_C!G134 -> 0 | I64: =ALL_C!H134 -> 0 | J64: =ALL_C!I134 -> 0 | K64: =ALL_C!J134 -> 0
A65: 1 | C65: 20 | D65: 20 | E65: =IF(ALL_C!C135="","",ALL_C!C135) ->  | F65: =ALL_C!E135 -> 0 | G65: =ALL_C!F135 -> 0 | H65: =ALL_C!G135 -> 0 | I65: =ALL_C!H135 -> 0 | J65: =ALL_C!I135 -> 0 | K65: =ALL_C!J135 -> 0
A66: 1 | C66: 20 | D66: 20 | E66: =IF(ALL_C!C136="","",ALL_C!C136) ->  | F66: =ALL_C!E136 -> 0 | G66: =ALL_C!F136 -> 0 | H66: =ALL_C!G136 -> 0 | I66: =ALL_C!H136 -> 0 | J66: =ALL_C!I136 -> 0 | K66: =ALL_C!J136 -> 0
A67: 1 | C67: 20 | D67: 20 | E67: =IF(ALL_C!C137="","",ALL_C!C137) ->  | F67: =ALL_C!E137 -> 0 | G67: =ALL_C!F137 -> 0 | H67: =ALL_C!G137 -> 0 | I67: =ALL_C!H137 -> 0 | J67: =ALL_C!I137 -> 0 | K67: =ALL_C!J137 -> 0 | Y67: =IFERROR(E67,"#ERR") -> 
A68: 1 | C68: 20 | D68: 20 | E68: =IF(ALL_C!C138="","",ALL_C!C138) ->  | F68: =ALL_C!E138 -> 0 | G68: =ALL_C!F138 -> 0 | H68: =ALL_C!G138 -> 0 | I68: =ALL_C!H138 -> 0 | J68: =ALL_C!I138 -> 0 | K68: =ALL_C!J138 -> 0
A69: 1 | C69: 20 | D69: 20 | E69: =IF(ALL_C!C139="","",ALL_C!C139) ->  | F69: =ALL_C!E139 -> 0 | G69: =ALL_C!F139 -> 0 | H69: =ALL_C!G139 -> 0 | I69: =ALL_C!H139 -> 0 | J69: =ALL_C!I139 -> 0 | K69: =ALL_C!J139 -> 0
A70: 1 | C70: 20 | D70: 20 | E70: =IF(ALL_C!C140="","",ALL_C!C140) ->  | F70: =ALL_C!E140 -> 0 | G70: =ALL_C!F140 -> 0 | H70: =ALL_C!G140 -> 0 | I70: =ALL_C!H140 -> 0 | J70: =ALL_C!I140 -> 0 | K70: =ALL_C!J140 -> 0
A71: 1 | C71: 20 | D71: 20 | E71: =IF(ALL_C!C141="","",ALL_C!C141) ->  | F71: =ALL_C!E141 -> 0 | G71: =ALL_C!F141 -> 0 | H71: =ALL_C!G141 -> 0 | I71: =ALL_C!H141 -> 0 | J71: =ALL_C!I141 -> 0 | K71: =ALL_C!J141 -> 0
A72: 1 | C72: 20 | D72: 20 | E72: =IF(ALL_C!C142="","",ALL_C!C142) ->  | F72: =ALL_C!E142 -> 0 | G72: =ALL_C!F142 -> 0 | H72: =ALL_C!G142 -> 0 | I72: =ALL_C!H142 -> 0 | J72: =ALL_C!I142 -> 0 | K72: =ALL_C!J142 -> 0
A73: 1 | C73: 20 | D73: 20 | E73: =IF(ALL_C!C143="","",ALL_C!C143) ->  | F73: =ALL_C!E143 -> 0 | G73: =ALL_C!F143 -> 0 | H73: =ALL_C!G143 -> 0 | I73: =ALL_C!H143 -> 0 | J73: =ALL_C!I143 -> 0 | K73: =ALL_C!J143 -> 0
A74: 1 | C74: 20 | D74: 20 | E74: =IF(ALL_C!C144="","",ALL_C!C144) ->  | F74: =ALL_C!E144 -> 0 | G74: =ALL_C!F144 -> 0 | H74: =ALL_C!G144 -> 0 | I74: =ALL_C!H144 -> 0 | J74: =ALL_C!I144 -> 0 | K74: =ALL_C!J144 -> 0
A75: 1 | C75: 20 | D75: 20 | E75: =IF(ALL_C!C145="","",ALL_C!C145) ->  | F75: =ALL_C!E145 -> 0 | G75: =ALL_C!F145 -> 0 | H75: =ALL_C!G145 -> 0 | I75: =ALL_C!H145 -> 0 | J75: =ALL_C!I145 -> 0 | K75: =ALL_C!J145 -> 0
A76: 1 | C76: 20 | D76: 20 | E76: =IF(ALL_C!C146="","",ALL_C!C146) ->  | F76: =ALL_C!E146 -> 0 | G76: =ALL_C!F146 -> 0 | H76: =ALL_C!G146 -> 0 | I76: =ALL_C!H146 -> 0 | J76: =ALL_C!I146 -> 0 | K76: =ALL_C!J146 -> 0
A77: 1 | C77: 20 | D77: 20 | E77: =IF(ALL_C!C147="","",ALL_C!C147) ->  | F77: =ALL_C!E147 -> 0 | G77: =ALL_C!F147 -> 0 | H77: =ALL_C!G147 -> 0 | I77: =ALL_C!H147 -> 0 | J77: =ALL_C!I147 -> 0 | K77: =ALL_C!J147 -> 0
A78: 1 | C78: 20 | D78: 20 | E78: =IF(ALL_C!C148="","",ALL_C!C148) ->  | F78: =ALL_C!E148 -> 0 | G78: =ALL_C!F148 -> 0 | H78: =ALL_C!G148 -> 0 | I78: =ALL_C!H148 -> 0 | J78: =ALL_C!I148 -> 0 | K78: =ALL_C!J148 -> 0
A79: 1 | C79: 20 | D79: 20 | E79: =IF(ALL_C!C149="","",ALL_C!C149) ->  | F79: =ALL_C!E149 -> 0 | G79: =ALL_C!F149 -> 0 | H79: =ALL_C!G149 -> 0 | I79: =ALL_C!H149 -> 0 | J79: =ALL_C!I149 -> 0 | K79: =ALL_C!J149 -> 0
A80: 1 | C80: 20 | D80: 20 | E80: =IF(ALL_C!C150="","",ALL_C!C150) ->  | F80: =ALL_C!E150 -> 0 | G80: =ALL_C!F150 -> 0 | H80: =ALL_C!G150 -> 0 | I80: =ALL_C!H150 -> 0 | J80: =ALL_C!I150 -> 0 | K80: =ALL_C!J150 -> 0
A81: 1 | C81: 20 | D81: 20 | E81: =IF(ALL_C!C151="","",ALL_C!C151) ->  | F81: =ALL_C!E151 -> 0 | G81: =ALL_C!F151 -> 0 | H81: =ALL_C!G151 -> 0 | I81: =ALL_C!H151 -> 0 | J81: =ALL_C!I151 -> 0 | K81: =ALL_C!J151 -> 0
A82: 1 | C82: 20 | D82: 20 | E82: =IF(ALL_C!C152="","",ALL_C!C152) ->  | F82: =ALL_C!E152 -> 0 | G82: =ALL_C!F152 -> 0 | H82: =ALL_C!G152 -> 0 | I82: =ALL_C!H152 -> 0 | J82: =ALL_C!I152 -> 0 | K82: =ALL_C!J152 -> 0
A83: 1 | C83: 20 | D83: 20 | E83: =IF(ALL_C!C153="","",ALL_C!C153) ->  | F83: =ALL_C!E153 -> 0 | G83: =ALL_C!F153 -> 0 | H83: =ALL_C!G153 -> 0 | I83: =ALL_C!H153 -> 0 | J83: =ALL_C!I153 -> 0 | K83: =ALL_C!J153 -> 0
A84: 1 | C84: 20 | D84: 20 | E84: =IF(ALL_C!C154="","",ALL_C!C154) ->  | F84: =ALL_C!E154 -> 0 | G84: =ALL_C!F154 -> 0 | H84: =ALL_C!G154 -> 0 | I84: =ALL_C!H154 -> 0 | J84: =ALL_C!I154 -> 0 | K84: =ALL_C!J154 -> 0
A85: 1 | C85: 20 | D85: 20 | E85: =IF(ALL_C!C155="","",ALL_C!C155) ->  | F85: =ALL_C!E155 -> 0 | G85: =ALL_C!F155 -> 0 | H85: =ALL_C!G155 -> 0 | I85: =ALL_C!H155 -> 0 | J85: =ALL_C!I155 -> 0 | K85: =ALL_C!J155 -> 0
A86: 1 | C86: 20 | D86: 20 | E86: =IF(ALL_C!C156="","",ALL_C!C156) ->  | F86: =ALL_C!E156 -> 0 | G86: =ALL_C!F156 -> 0 | H86: =ALL_C!G156 -> 0 | I86: =ALL_C!H156 -> 0 | J86: =ALL_C!I156 -> 0 | K86: =ALL_C!J156 -> 0
A87: 1 | C87: 20 | D87: 20 | E87: =IF(ALL_C!C157="","",ALL_C!C157) ->  | F87: =ALL_C!E157 -> 0 | G87: =ALL_C!F157 -> 0 | H87: =ALL_C!G157 -> 0 | I87: =ALL_C!H157 -> 0 | J87: =ALL_C!I157 -> 0 | K87: =ALL_C!J157 -> 0
A88: 1 | C88: 20 | D88: 20 | E88: =IF(ALL_C!C158="","",ALL_C!C158) ->  | F88: =ALL_C!E158 -> 0 | G88: =ALL_C!F158 -> 0 | H88: =ALL_C!G158 -> 0 | I88: =ALL_C!H158 -> 0 | J88: =ALL_C!I158 -> 0 | K88: =ALL_C!J158 -> 0
A89: 1 | C89: 20 | D89: 20 | E89: =IF(ALL_C!C159="","",ALL_C!C159) ->  | F89: =ALL_C!E159 -> 0 | G89: =ALL_C!F159 -> 0 | H89: =ALL_C!G159 -> 0 | I89: =ALL_C!H159 -> 0 | J89: =ALL_C!I159 -> 0 | K89: =ALL_C!J159 -> 0
A90: 1 | C90: 20 | D90: 20 | E90: =IF(ALL_C!C160="","",ALL_C!C160) ->  | F90: =ALL_C!E160 -> 0 | G90: =ALL_C!F160 -> 0 | H90: =ALL_C!G160 -> 0 | I90: =ALL_C!H160 -> 0 | J90: =ALL_C!I160 -> 0 | K90: =ALL_C!J160 -> 0
A91: 1 | C91: 20 | D91: 20 | E91: =IF(ALL_C!C161="","",ALL_C!C161) ->  | F91: =ALL_C!E161 -> 0 | G91: =ALL_C!F161 -> 0 | H91: =ALL_C!G161 -> 0 | I91: =ALL_C!H161 -> 0 | J91: =ALL_C!I161 -> 0 | K91: =ALL_C!J161 -> 0
A92: 1 | C92: 20 | D92: 20 | E92: =IF(ALL_C!C162="","",ALL_C!C162) ->  | F92: =ALL_C!E162 -> 0 | G92: =ALL_C!F162 -> 0 | H92: =ALL_C!G162 -> 0 | I92: =ALL_C!H162 -> 0 | J92: =ALL_C!I162 -> 0 | K92: =ALL_C!J162 -> 0
A93: 1 | C93: 20 | D93: 20 | E93: =IF(ALL_C!C163="","",ALL_C!C163) ->  | F93: =ALL_C!E163 -> 0 | G93: =ALL_C!F163 -> 0 | H93: =ALL_C!G163 -> 0 | I93: =ALL_C!H163 -> 0 | J93: =ALL_C!I163 -> 0 | K93: =ALL_C!J163 -> 0
A94: 1 | C94: 20 | D94: 20 | E94: =IF(ALL_C!C164="","",ALL_C!C164) ->  | F94: =ALL_C!E164 -> 0 | G94: =ALL_C!F164 -> 0 | H94: =ALL_C!G164 -> 0 | I94: =ALL_C!H164 -> 0 | J94: =ALL_C!I164 -> 0 | K94: =ALL_C!J164 -> 0
A95: 1 | C95: 20 | D95: 20 | E95: =IF(ALL_C!C165="","",ALL_C!C165) ->  | F95: =ALL_C!E165 -> 0 | G95: =ALL_C!F165 -> 0 | H95: =ALL_C!G165 -> 0 | I95: =ALL_C!H165 -> 0 | J95: =ALL_C!I165 -> 0 | K95: =ALL_C!J165 -> 0
A96: 1 | C96: 20 | D96: 20 | E96: =IF(ALL_C!C166="","",ALL_C!C166) ->  | F96: =ALL_C!E166 -> 0 | G96: =ALL_C!F166 -> 0 | H96: =ALL_C!G166 -> 0 | I96: =ALL_C!H166 -> 0 | J96: =ALL_C!I166 -> 0 | K96: =ALL_C!J166 -> 0
A97: 1 | C97: 20 | D97: 20 | E97: =IF(ALL_C!C167="","",ALL_C!C167) ->  | F97: =ALL_C!E167 -> 0 | G97: =ALL_C!F167 -> 0 | H97: =ALL_C!G167 -> 0 | I97: =ALL_C!H167 -> 0 | J97: =ALL_C!I167 -> 0 | K97: =ALL_C!J167 -> 0
A98: 1 | C98: 20 | D98: 20 | E98: =IF(ALL_C!C168="","",ALL_C!C168) ->  | F98: =ALL_C!E168 -> 0 | G98: =ALL_C!F168 -> 0 | H98: =ALL_C!G168 -> 0 | I98: =ALL_C!H168 -> 0 | J98: =ALL_C!I168 -> 0 | K98: =ALL_C!J168 -> 0
A99: 1 | C99: 20 | D99: 20 | E99: =IF(ALL_C!C169="","",ALL_C!C169) ->  | F99: =ALL_C!E169 -> 0 | G99: =ALL_C!F169 -> 0 | H99: =ALL_C!G169 -> 0 | I99: =ALL_C!H169 -> 0 | J99: =ALL_C!I169 -> 0 | K99: =ALL_C!J169 -> 0
A100: 1 | C100: 20 | D100: 20 | E100: =IF(ALL_C!C170="","",ALL_C!C170) ->  | F100: =ALL_C!E170 -> 0 | G100: =ALL_C!F170 -> 0 | H100: =ALL_C!G170 -> 0 | I100: =ALL_C!H170 -> 0 | J100: =ALL_C!I170 -> 0 | K100: =ALL_C!J170 -> 0
A101: 1 | C101: 20 | D101: 20 | E101: =IF(ALL_C!C171="","",ALL_C!C171) ->  | F101: =ALL_C!E171 -> 0 | G101: =ALL_C!F171 -> 0 | H101: =ALL_C!G171 -> 0 | I101: =ALL_C!H171 -> 0 | J101: =ALL_C!I171 -> 0 | K101: =ALL_C!J171 -> 0
A102: 1 | C102: 20 | D102: 30 | E102: =IF(ALL_C!C176="","",ALL_C!C176) ->  | F102: =ALL_C!E176 -> 0 | G102: =ALL_C!F176 -> 0 | H102: =ALL_C!G176 -> 0 | I102: =ALL_C!H176 -> 0 | J102: =ALL_C!I176 -> 0 | K102: =ALL_C!J176 -> 0
A103: 1 | C103: 20 | D103: 30 | E103: =IF(ALL_C!C177="","",ALL_C!C177) ->  | F103: =ALL_C!E177 -> 0 | G103: =ALL_C!F177 -> 0 | H103: =ALL_C!G177 -> 0 | I103: =ALL_C!H177 -> 0 | J103: =ALL_C!I177 -> 0 | K103: =ALL_C!J177 -> 0
A104: 1 | C104: 20 | D104: 30 | E104: =IF(ALL_C!C178="","",ALL_C!C178) ->  | F104: =ALL_C!E178 -> 0 | G104: =ALL_C!F178 -> 0 | H104: =ALL_C!G178 -> 0 | I104: =ALL_C!H178 -> 0 | J104: =ALL_C!I178 -> 0 | K104: =ALL_C!J178 -> 0
A105: 1 | C105: 20 | D105: 30 | E105: =IF(ALL_C!C179="","",ALL_C!C179) ->  | F105: =ALL_C!E179 -> 0 | G105: =ALL_C!F179 -> 0 | H105: =ALL_C!G179 -> 0 | I105: =ALL_C!H179 -> 0 | J105: =ALL_C!I179 -> 0 | K105: =ALL_C!J179 -> 0
A106: 1 | C106: 20 | D106: 30 | E106: =IF(ALL_C!C180="","",ALL_C!C180) ->  | F106: =ALL_C!E180 -> 0 | G106: =ALL_C!F180 -> 0 | H106: =ALL_C!G180 -> 0 | I106: =ALL_C!H180 -> 0 | J106: =ALL_C!I180 -> 0 | K106: =ALL_C!J180 -> 0
A107: 1 | C107: 20 | D107: 30 | E107: =IF(ALL_C!C181="","",ALL_C!C181) ->  | F107: =ALL_C!E181 -> 0 | G107: =ALL_C!F181 -> 0 | H107: =ALL_C!G181 -> 0 | I107: =ALL_C!H181 -> 0 | J107: =ALL_C!I181 -> 0 | K107: =ALL_C!J181 -> 0
A108: 1 | C108: 20 | D108: 30 | E108: =IF(ALL_C!C182="","",ALL_C!C182) ->  | F108: =ALL_C!E182 -> 0 | G108: =ALL_C!F182 -> 0 | H108: =ALL_C!G182 -> 0 | I108: =ALL_C!H182 -> 0 | J108: =ALL_C!I182 -> 0 | K108: =ALL_C!J182 -> 0
A109: 1 | C109: 20 | D109: 30 | E109: =IF(ALL_C!C183="","",ALL_C!C183) ->  | F109: =ALL_C!E183 -> 0 | G109: =ALL_C!F183 -> 0 | H109: =ALL_C!G183 -> 0 | I109: =ALL_C!H183 -> 0 | J109: =ALL_C!I183 -> 0 | K109: =ALL_C!J183 -> 0
A110: 1 | C110: 20 | D110: 30 | E110: =IF(ALL_C!C184="","",ALL_C!C184) ->  | F110: =ALL_C!E184 -> 0 | G110: =ALL_C!F184 -> 0 | H110: =ALL_C!G184 -> 0 | I110: =ALL_C!H184 -> 0 | J110: =ALL_C!I184 -> 0 | K110: =ALL_C!J184 -> 0
A111: 1 | C111: 20 | D111: 30 | E111: =IF(ALL_C!C185="","",ALL_C!C185) ->  | F111: =ALL_C!E185 -> 0 | G111: =ALL_C!F185 -> 0 | H111: =ALL_C!G185 -> 0 | I111: =ALL_C!H185 -> 0 | J111: =ALL_C!I185 -> 0 | K111: =ALL_C!J185 -> 0
A112: 1 | C112: 20 | D112: 30 | E112: =IF(ALL_C!C186="","",ALL_C!C186) ->  | F112: =ALL_C!E186 -> 0 | G112: =ALL_C!F186 -> 0 | H112: =ALL_C!G186 -> 0 | I112: =ALL_C!H186 -> 0 | J112: =ALL_C!I186 -> 0 | K112: =ALL_C!J186 -> 0
A113: 1 | C113: 20 | D113: 30 | E113: =IF(ALL_C!C187="","",ALL_C!C187) ->  | F113: =ALL_C!E187 -> 0 | G113: =ALL_C!F187 -> 0 | H113: =ALL_C!G187 -> 0 | I113: =ALL_C!H187 -> 0 | J113: =ALL_C!I187 -> 0 | K113: =ALL_C!J187 -> 0
A114: 1 | C114: 20 | D114: 30 | E114: =IF(ALL_C!C188="","",ALL_C!C188) ->  | F114: =ALL_C!E188 -> 0 | G114: =ALL_C!F188 -> 0 | H114: =ALL_C!G188 -> 0 | I114: =ALL_C!H188 -> 0 | J114: =ALL_C!I188 -> 0 | K114: =ALL_C!J188 -> 0
A115: 1 | C115: 20 | D115: 30 | E115: =IF(ALL_C!C189="","",ALL_C!C189) ->  | F115: =ALL_C!E189 -> 0 | G115: =ALL_C!F189 -> 0 | H115: =ALL_C!G189 -> 0 | I115: =ALL_C!H189 -> 0 | J115: =ALL_C!I189 -> 0 | K115: =ALL_C!J189 -> 0
A116: 1 | C116: 20 | D116: 30 | E116: =IF(ALL_C!C190="","",ALL_C!C190) ->  | F116: =ALL_C!E190 -> 0 | G116: =ALL_C!F190 -> 0 | H116: =ALL_C!G190 -> 0 | I116: =ALL_C!H190 -> 0 | J116: =ALL_C!I190 -> 0 | K116: =ALL_C!J190 -> 0
A117: 1 | C117: 20 | D117: 30 | E117: =IF(ALL_C!C191="","",ALL_C!C191) ->  | F117: =ALL_C!E191 -> 0 | G117: =ALL_C!F191 -> 0 | H117: =ALL_C!G191 -> 0 | I117: =ALL_C!H191 -> 0 | J117: =ALL_C!I191 -> 0 | K117: =ALL_C!J191 -> 0
A118: 1 | C118: 20 | D118: 30 | E118: =IF(ALL_C!C192="","",ALL_C!C192) ->  | F118: =ALL_C!E192 -> 0 | G118: =ALL_C!F192 -> 0 | H118: =ALL_C!G192 -> 0 | I118: =ALL_C!H192 -> 0 | J118: =ALL_C!I192 -> 0 | K118: =ALL_C!J192 -> 0
A119: 1 | C119: 20 | D119: 30 | E119: =IF(ALL_C!C193="","",ALL_C!C193) ->  | F119: =ALL_C!E193 -> 0 | G119: =ALL_C!F193 -> 0 | H119: =ALL_C!G193 -> 0 | I119: =ALL_C!H193 -> 0 | J119: =ALL_C!I193 -> 0 | K119: =ALL_C!J193 -> 0
A120: 1 | C120: 20 | D120: 30 | E120: =IF(ALL_C!C194="","",ALL_C!C194) ->  | F120: =ALL_C!E194 -> 0 | G120: =ALL_C!F194 -> 0 | H120: =ALL_C!G194 -> 0 | I120: =ALL_C!H194 -> 0 | J120: =ALL_C!I194 -> 0 | K120: =ALL_C!J194 -> 0
A121: 1 | C121: 20 | D121: 30 | E121: =IF(ALL_C!C195="","",ALL_C!C195) ->  | F121: =ALL_C!E195 -> 0 | G121: =ALL_C!F195 -> 0 | H121: =ALL_C!G195 -> 0 | I121: =ALL_C!H195 -> 0 | J121: =ALL_C!I195 -> 0 | K121: =ALL_C!J195 -> 0
A122: 1 | C122: 20 | D122: 30 | E122: =IF(ALL_C!C196="","",ALL_C!C196) ->  | F122: =ALL_C!E196 -> 0 | G122: =ALL_C!F196 -> 0 | H122: =ALL_C!G196 -> 0 | I122: =ALL_C!H196 -> 0 | J122: =ALL_C!I196 -> 0 | K122: =ALL_C!J196 -> 0
A123: 1 | C123: 20 | D123: 30 | E123: =IF(ALL_C!C197="","",ALL_C!C197) ->  | F123: =ALL_C!E197 -> 0 | G123: =ALL_C!F197 -> 0 | H123: =ALL_C!G197 -> 0 | I123: =ALL_C!H197 -> 0 | J123: =ALL_C!I197 -> 0 | K123: =ALL_C!J197 -> 0
A124: 1 | C124: 20 | D124: 30 | E124: =IF(ALL_C!C198="","",ALL_C!C198) ->  | F124: =ALL_C!E198 -> 0 | G124: =ALL_C!F198 -> 0 | H124: =ALL_C!G198 -> 0 | I124: =ALL_C!H198 -> 0 | J124: =ALL_C!I198 -> 0 | K124: =ALL_C!J198 -> 0
A125: 1 | C125: 20 | D125: 30 | E125: =IF(ALL_C!C199="","",ALL_C!C199) ->  | F125: =ALL_C!E199 -> 0 | G125: =ALL_C!F199 -> 0 | H125: =ALL_C!G199 -> 0 | I125: =ALL_C!H199 -> 0 | J125: =ALL_C!I199 -> 0 | K125: =ALL_C!J199 -> 0
A126: 1 | C126: 20 | D126: 30 | E126: =IF(ALL_C!C200="","",ALL_C!C200) ->  | F126: =ALL_C!E200 -> 0 | G126: =ALL_C!F200 -> 0 | H126: =ALL_C!G200 -> 0 | I126: =ALL_C!H200 -> 0 | J126: =ALL_C!I200 -> 0 | K126: =ALL_C!J200 -> 0
A127: 1 | C127: 20 | D127: 30 | E127: =IF(ALL_C!C201="","",ALL_C!C201) ->  | F127: =ALL_C!E201 -> 0 | G127: =ALL_C!F201 -> 0 | H127: =ALL_C!G201 -> 0 | I127: =ALL_C!H201 -> 0 | J127: =ALL_C!I201 -> 0 | K127: =ALL_C!J201 -> 0
A128: 1 | C128: 20 | D128: 30 | E128: =IF(ALL_C!C202="","",ALL_C!C202) ->  | F128: =ALL_C!E202 -> 0 | G128: =ALL_C!F202 -> 0 | H128: =ALL_C!G202 -> 0 | I128: =ALL_C!H202 -> 0 | J128: =ALL_C!I202 -> 0 | K128: =ALL_C!J202 -> 0
A129: 1 | C129: 20 | D129: 30 | E129: =IF(ALL_C!C203="","",ALL_C!C203) ->  | F129: =ALL_C!E203 -> 0 | G129: =ALL_C!F203 -> 0 | H129: =ALL_C!G203 -> 0 | I129: =ALL_C!H203 -> 0 | J129: =ALL_C!I203 -> 0 | K129: =ALL_C!J203 -> 0
A130: 1 | C130: 20 | D130: 30 | E130: =IF(ALL_C!C204="","",ALL_C!C204) ->  | F130: =ALL_C!E204 -> 0 | G130: =ALL_C!F204 -> 0 | H130: =ALL_C!G204 -> 0 | I130: =ALL_C!H204 -> 0 | J130: =ALL_C!I204 -> 0 | K130: =ALL_C!J204 -> 0
A131: 1 | C131: 20 | D131: 30 | E131: =IF(ALL_C!C205="","",ALL_C!C205) ->  | F131: =ALL_C!E205 -> 0 | G131: =ALL_C!F205 -> 0 | H131: =ALL_C!G205 -> 0 | I131: =ALL_C!H205 -> 0 | J131: =ALL_C!I205 -> 0 | K131: =ALL_C!J205 -> 0 | Y131: =IFERROR(E131,"#ERR") -> 
A132: 1 | C132: 20 | D132: 30 | E132: =IF(ALL_C!C206="","",ALL_C!C206) ->  | F132: =ALL_C!E206 -> 0 | G132: =ALL_C!F206 -> 0 | H132: =ALL_C!G206 -> 0 | I132: =ALL_C!H206 -> 0 | J132: =ALL_C!I206 -> 0 | K132: =ALL_C!J206 -> 0
A133: 1 | C133: 20 | D133: 30 | E133: =IF(ALL_C!C207="","",ALL_C!C207) ->  | F133: =ALL_C!E207 -> 0 | G133: =ALL_C!F207 -> 0 | H133: =ALL_C!G207 -> 0 | I133: =ALL_C!H207 -> 0 | J133: =ALL_C!I207 -> 0 | K133: =ALL_C!J207 -> 0
A134: 1 | C134: 20 | D134: 30 | E134: =IF(ALL_C!C208="","",ALL_C!C208) ->  | F134: =ALL_C!E208 -> 0 | G134: =ALL_C!F208 -> 0 | H134: =ALL_C!G208 -> 0 | I134: =ALL_C!H208 -> 0 | J134: =ALL_C!I208 -> 0 | K134: =ALL_C!J208 -> 0
A135: 1 | C135: 20 | D135: 30 | E135: =IF(ALL_C!C209="","",ALL_C!C209) ->  | F135: =ALL_C!E209 -> 0 | G135: =ALL_C!F209 -> 0 | H135: =ALL_C!G209 -> 0 | I135: =ALL_C!H209 -> 0 | J135: =ALL_C!I209 -> 0 | K135: =ALL_C!J209 -> 0
A136: 1 | C136: 20 | D136: 30 | E136: =IF(ALL_C!C210="","",ALL_C!C210) ->  | F136: =ALL_C!E210 -> 0 | G136: =ALL_C!F210 -> 0 | H136: =ALL_C!G210 -> 0 | I136: =ALL_C!H210 -> 0 | J136: =ALL_C!I210 -> 0 | K136: =ALL_C!J210 -> 0
A137: 1 | C137: 20 | D137: 30 | E137: =IF(ALL_C!C211="","",ALL_C!C211) ->  | F137: =ALL_C!E211 -> 0 | G137: =ALL_C!F211 -> 0 | H137: =ALL_C!G211 -> 0 | I137: =ALL_C!H211 -> 0 | J137: =ALL_C!I211 -> 0 | K137: =ALL_C!J211 -> 0
A138: 1 | C138: 20 | D138: 30 | E138: =IF(ALL_C!C212="","",ALL_C!C212) ->  | F138: =ALL_C!E212 -> 0 | G138: =ALL_C!F212 -> 0 | H138: =ALL_C!G212 -> 0 | I138: =ALL_C!H212 -> 0 | J138: =ALL_C!I212 -> 0 | K138: =ALL_C!J212 -> 0
A139: 1 | C139: 20 | D139: 30 | E139: =IF(ALL_C!C213="","",ALL_C!C213) ->  | F139: =ALL_C!E213 -> 0 | G139: =ALL_C!F213 -> 0 | H139: =ALL_C!G213 -> 0 | I139: =ALL_C!H213 -> 0 | J139: =ALL_C!I213 -> 0 | K139: =ALL_C!J213 -> 0
A140: 1 | C140: 20 | D140: 30 | E140: =IF(ALL_C!C214="","",ALL_C!C214) ->  | F140: =ALL_C!E214 -> 0 | G140: =ALL_C!F214 -> 0 | H140: =ALL_C!G214 -> 0 | I140: =ALL_C!H214 -> 0 | J140: =ALL_C!I214 -> 0 | K140: =ALL_C!J214 -> 0
A141: 1 | C141: 20 | D141: 30 | E141: =IF(ALL_C!C215="","",ALL_C!C215) ->  | F141: =ALL_C!E215 -> 0 | G141: =ALL_C!F215 -> 0 | H141: =ALL_C!G215 -> 0 | I141: =ALL_C!H215 -> 0 | J141: =ALL_C!I215 -> 0 | K141: =ALL_C!J215 -> 0
A142: 1 | C142: 20 | D142: 30 | E142: =IF(ALL_C!C216="","",ALL_C!C216) ->  | F142: =ALL_C!E216 -> 0 | G142: =ALL_C!F216 -> 0 | H142: =ALL_C!G216 -> 0 | I142: =ALL_C!H216 -> 0 | J142: =ALL_C!I216 -> 0 | K142: =ALL_C!J216 -> 0
A143: 1 | C143: 20 | D143: 30 | E143: =IF(ALL_C!C217="","",ALL_C!C217) ->  | F143: =ALL_C!E217 -> 0 | G143: =ALL_C!F217 -> 0 | H143: =ALL_C!G217 -> 0 | I143: =ALL_C!H217 -> 0 | J143: =ALL_C!I217 -> 0 | K143: =ALL_C!J217 -> 0
A144: 1 | C144: 20 | D144: 30 | E144: =IF(ALL_C!C218="","",ALL_C!C218) ->  | F144: =ALL_C!E218 -> 0 | G144: =ALL_C!F218 -> 0 | H144: =ALL_C!G218 -> 0 | I144: =ALL_C!H218 -> 0 | J144: =ALL_C!I218 -> 0 | K144: =ALL_C!J218 -> 0
A145: 1 | C145: 20 | D145: 30 | E145: =IF(ALL_C!C219="","",ALL_C!C219) ->  | F145: =ALL_C!E219 -> 0 | G145: =ALL_C!F219 -> 0 | H145: =ALL_C!G219 -> 0 | I145: =ALL_C!H219 -> 0 | J145: =ALL_C!I219 -> 0 | K145: =ALL_C!J219 -> 0
A146: 1 | C146: 20 | D146: 30 | E146: =IF(ALL_C!C220="","",ALL_C!C220) ->  | F146: =ALL_C!E220 -> 0 | G146: =ALL_C!F220 -> 0 | H146: =ALL_C!G220 -> 0 | I146: =ALL_C!H220 -> 0 | J146: =ALL_C!I220 -> 0 | K146: =ALL_C!J220 -> 0
A147: 1 | C147: 20 | D147: 30 | E147: =IF(ALL_C!C221="","",ALL_C!C221) ->  | F147: =ALL_C!E221 -> 0 | G147: =ALL_C!F221 -> 0 | H147: =ALL_C!G221 -> 0 | I147: =ALL_C!H221 -> 0 | J147: =ALL_C!I221 -> 0 | K147: =ALL_C!J221 -> 0
A148: 1 | C148: 20 | D148: 30 | E148: =IF(ALL_C!C222="","",ALL_C!C222) ->  | F148: =ALL_C!E222 -> 0 | G148: =ALL_C!F222 -> 0 | H148: =ALL_C!G222 -> 0 | I148: =ALL_C!H222 -> 0 | J148: =ALL_C!I222 -> 0 | K148: =ALL_C!J222 -> 0
A149: 1 | C149: 20 | D149: 30 | E149: =IF(ALL_C!C223="","",ALL_C!C223) ->  | F149: =ALL_C!E223 -> 0 | G149: =ALL_C!F223 -> 0 | H149: =ALL_C!G223 -> 0 | I149: =ALL_C!H223 -> 0 | J149: =ALL_C!I223 -> 0 | K149: =ALL_C!J223 -> 0
A150: 1 | C150: 20 | D150: 30 | E150: =IF(ALL_C!C224="","",ALL_C!C224) ->  | F150: =ALL_C!E224 -> 0 | G150: =ALL_C!F224 -> 0 | H150: =ALL_C!G224 -> 0 | I150: =ALL_C!H224 -> 0 | J150: =ALL_C!I224 -> 0 | K150: =ALL_C!J224 -> 0
A151: 1 | C151: 20 | D151: 30 | E151: =IF(ALL_C!C225="","",ALL_C!C225) ->  | F151: =ALL_C!E225 -> 0 | G151: =ALL_C!F225 -> 0 | H151: =ALL_C!G225 -> 0 | I151: =ALL_C!H225 -> 0 | J151: =ALL_C!I225 -> 0 | K151: =ALL_C!J225 -> 0
A152: 1 | C152: 30 | D152: 10 | E152: =IF(ALL_C!C240="","",ALL_C!C240) ->  | F152: =ALL_C!E240 -> 0 | G152: =ALL_C!F240 -> 0 | H152: =ALL_C!G240 -> 0 | I152: =ALL_C!H240 -> 0 | J152: =ALL_C!I240 -> 0 | K152: =ALL_C!J240 -> 0
A153: 1 | C153: 30 | D153: 10 | E153: =IF(ALL_C!C241="","",ALL_C!C241) ->  | F153: =ALL_C!E241 -> 0 | G153: =ALL_C!F241 -> 0 | H153: =ALL_C!G241 -> 0 | I153: =ALL_C!H241 -> 0 | J153: =ALL_C!I241 -> 0 | K153: =ALL_C!J241 -> 0
A154: 1 | C154: 30 | D154: 10 | E154: =IF(ALL_C!C242="","",ALL_C!C242) ->  | F154: =ALL_C!E242 -> 0 | G154: =ALL_C!F242 -> 0 | H154: =ALL_C!G242 -> 0 | I154: =ALL_C!H242 -> 0 | J154: =ALL_C!I242 -> 0 | K154: =ALL_C!J242 -> 0
A155: 1 | C155: 30 | D155: 10 | E155: =IF(ALL_C!C243="","",ALL_C!C243) ->  | F155: =ALL_C!E243 -> 0 | G155: =ALL_C!F243 -> 0 | H155: =ALL_C!G243 -> 0 | I155: =ALL_C!H243 -> 0 | J155: =ALL_C!I243 -> 0 | K155: =ALL_C!J243 -> 0
A156: 1 | C156: 30 | D156: 10 | E156: =IF(ALL_C!C244="","",ALL_C!C244) ->  | F156: =ALL_C!E244 -> 0 | G156: =ALL_C!F244 -> 0 | H156: =ALL_C!G244 -> 0 | I156: =ALL_C!H244 -> 0 | J156: =ALL_C!I244 -> 0 | K156: =ALL_C!J244 -> 0
A157: 1 | C157: 30 | D157: 10 | E157: =IF(ALL_C!C245="","",ALL_C!C245) ->  | F157: =ALL_C!E245 -> 0 | G157: =ALL_C!F245 -> 0 | H157: =ALL_C!G245 -> 0 | I157: =ALL_C!H245 -> 0 | J157: =ALL_C!I245 -> 0 | K157: =ALL_C!J245 -> 0
A158: 1 | C158: 30 | D158: 10 | E158: =IF(ALL_C!C246="","",ALL_C!C246) ->  | F158: =ALL_C!E246 -> 0 | G158: =ALL_C!F246 -> 0 | H158: =ALL_C!G246 -> 0 | I158: =ALL_C!H246 -> 0 | J158: =ALL_C!I246 -> 0 | K158: =ALL_C!J246 -> 0
A159: 1 | C159: 30 | D159: 10 | E159: =IF(ALL_C!C247="","",ALL_C!C247) ->  | F159: =ALL_C!E247 -> 0 | G159: =ALL_C!F247 -> 0 | H159: =ALL_C!G247 -> 0 | I159: =ALL_C!H247 -> 0 | J159: =ALL_C!I247 -> 0 | K159: =ALL_C!J247 -> 0
A160: 1 | C160: 30 | D160: 10 | E160: =IF(ALL_C!C248="","",ALL_C!C248) ->  | F160: =ALL_C!E248 -> 0 | G160: =ALL_C!F248 -> 0 | H160: =ALL_C!G248 -> 0 | I160: =ALL_C!H248 -> 0 | J160: =ALL_C!I248 -> 0 | K160: =ALL_C!J248 -> 0
A161: 1 | C161: 30 | D161: 10 | E161: =IF(ALL_C!C249="","",ALL_C!C249) ->  | F161: =ALL_C!E249 -> 0 | G161: =ALL_C!F249 -> 0 | H161: =ALL_C!G249 -> 0 | I161: =ALL_C!H249 -> 0 | J161: =ALL_C!I249 -> 0 | K161: =ALL_C!J249 -> 0
A162: 1 | C162: 30 | D162: 10 | E162: =IF(ALL_C!C250="","",ALL_C!C250) ->  | F162: =ALL_C!E250 -> 0 | G162: =ALL_C!F250 -> 0 | H162: =ALL_C!G250 -> 0 | I162: =ALL_C!H250 -> 0 | J162: =ALL_C!I250 -> 0 | K162: =ALL_C!J250 -> 0
A163: 1 | C163: 30 | D163: 10 | E163: =IF(ALL_C!C251="","",ALL_C!C251) ->  | F163: =ALL_C!E251 -> 0 | G163: =ALL_C!F251 -> 0 | H163: =ALL_C!G251 -> 0 | I163: =ALL_C!H251 -> 0 | J163: =ALL_C!I251 -> 0 | K163: =ALL_C!J251 -> 0
A164: 1 | C164: 30 | D164: 10 | E164: =IF(ALL_C!C252="","",ALL_C!C252) ->  | F164: =ALL_C!E252 -> 0 | G164: =ALL_C!F252 -> 0 | H164: =ALL_C!G252 -> 0 | I164: =ALL_C!H252 -> 0 | J164: =ALL_C!I252 -> 0 | K164: =ALL_C!J252 -> 0
A165: 1 | C165: 30 | D165: 10 | E165: =IF(ALL_C!C253="","",ALL_C!C253) ->  | F165: =ALL_C!E253 -> 0 | G165: =ALL_C!F253 -> 0 | H165: =ALL_C!G253 -> 0 | I165: =ALL_C!H253 -> 0 | J165: =ALL_C!I253 -> 0 | K165: =ALL_C!J253 -> 0
A166: 1 | C166: 30 | D166: 10 | E166: =IF(ALL_C!C254="","",ALL_C!C254) ->  | F166: =ALL_C!E254 -> 0 | G166: =ALL_C!F254 -> 0 | H166: =ALL_C!G254 -> 0 | I166: =ALL_C!H254 -> 0 | J166: =ALL_C!I254 -> 0 | K166: =ALL_C!J254 -> 0
A167: 1 | C167: 30 | D167: 10 | E167: =IF(ALL_C!C255="","",ALL_C!C255) ->  | F167: =ALL_C!E255 -> 0 | G167: =ALL_C!F255 -> 0 | H167: =ALL_C!G255 -> 0 | I167: =ALL_C!H255 -> 0 | J167: =ALL_C!I255 -> 0 | K167: =ALL_C!J255 -> 0
A168: 1 | C168: 30 | D168: 10 | E168: =IF(ALL_C!C256="","",ALL_C!C256) ->  | F168: =ALL_C!E256 -> 0 | G168: =ALL_C!F256 -> 0 | H168: =ALL_C!G256 -> 0 | I168: =ALL_C!H256 -> 0 | J168: =ALL_C!I256 -> 0 | K168: =ALL_C!J256 -> 0
A169: 1 | C169: 30 | D169: 10 | E169: =IF(ALL_C!C257="","",ALL_C!C257) ->  | F169: =ALL_C!E257 -> 0 | G169: =ALL_C!F257 -> 0 | H169: =ALL_C!G257 -> 0 | I169: =ALL_C!H257 -> 0 | J169: =ALL_C!I257 -> 0 | K169: =ALL_C!J257 -> 0
A170: 1 | C170: 30 | D170: 10 | E170: =IF(ALL_C!C258="","",ALL_C!C258) ->  | F170: =ALL_C!E258 -> 0 | G170: =ALL_C!F258 -> 0 | H170: =ALL_C!G258 -> 0 | I170: =ALL_C!H258 -> 0 | J170: =ALL_C!I258 -> 0 | K170: =ALL_C!J258 -> 0
A171: 1 | C171: 30 | D171: 10 | E171: =IF(ALL_C!C259="","",ALL_C!C259) ->  | F171: =ALL_C!E259 -> 0 | G171: =ALL_C!F259 -> 0 | H171: =ALL_C!G259 -> 0 | I171: =ALL_C!H259 -> 0 | J171: =ALL_C!I259 -> 0 | K171: =ALL_C!J259 -> 0
A172: 1 | C172: 30 | D172: 10 | E172: =IF(ALL_C!C260="","",ALL_C!C260) ->  | F172: =ALL_C!E260 -> 0 | G172: =ALL_C!F260 -> 0 | H172: =ALL_C!G260 -> 0 | I172: =ALL_C!H260 -> 0 | J172: =ALL_C!I260 -> 0 | K172: =ALL_C!J260 -> 0
A173: 1 | C173: 30 | D173: 10 | E173: =IF(ALL_C!C261="","",ALL_C!C261) ->  | F173: =ALL_C!E261 -> 0 | G173: =ALL_C!F261 -> 0 | H173: =ALL_C!G261 -> 0 | I173: =ALL_C!H261 -> 0 | J173: =ALL_C!I261 -> 0 | K173: =ALL_C!J261 -> 0
A174: 1 | C174: 30 | D174: 10 | E174: =IF(ALL_C!C262="","",ALL_C!C262) ->  | F174: =ALL_C!E262 -> 0 | G174: =ALL_C!F262 -> 0 | H174: =ALL_C!G262 -> 0 | I174: =ALL_C!H262 -> 0 | J174: =ALL_C!I262 -> 0 | K174: =ALL_C!J262 -> 0
A175: 1 | C175: 30 | D175: 10 | E175: =IF(ALL_C!C263="","",ALL_C!C263) ->  | F175: =ALL_C!E263 -> 0 | G175: =ALL_C!F263 -> 0 | H175: =ALL_C!G263 -> 0 | I175: =ALL_C!H263 -> 0 | J175: =ALL_C!I263 -> 0 | K175: =ALL_C!J263 -> 0
A176: 1 | C176: 30 | D176: 10 | E176: =IF(ALL_C!C264="","",ALL_C!C264) ->  | F176: =ALL_C!E264 -> 0 | G176: =ALL_C!F264 -> 0 | H176: =ALL_C!G264 -> 0 | I176: =ALL_C!H264 -> 0 | J176: =ALL_C!I264 -> 0 | K176: =ALL_C!J264 -> 0
A177: 1 | C177: 30 | D177: 10 | E177: =IF(ALL_C!C265="","",ALL_C!C265) ->  | F177: =ALL_C!E265 -> 0 | G177: =ALL_C!F265 -> 0 | H177: =ALL_C!G265 -> 0 | I177: =ALL_C!H265 -> 0 | J177: =ALL_C!I265 -> 0 | K177: =ALL_C!J265 -> 0
A178: 1 | C178: 30 | D178: 10 | E178: =IF(ALL_C!C266="","",ALL_C!C266) ->  | F178: =ALL_C!E266 -> 0 | G178: =ALL_C!F266 -> 0 | H178: =ALL_C!G266 -> 0 | I178: =ALL_C!H266 -> 0 | J178: =ALL_C!I266 -> 0 | K178: =ALL_C!J266 -> 0
A179: 1 | C179: 30 | D179: 10 | E179: =IF(ALL_C!C267="","",ALL_C!C267) ->  | F179: =ALL_C!E267 -> 0 | G179: =ALL_C!F267 -> 0 | H179: =ALL_C!G267 -> 0 | I179: =ALL_C!H267 -> 0 | J179: =ALL_C!I267 -> 0 | K179: =ALL_C!J267 -> 0
A180: 1 | C180: 30 | D180: 10 | E180: =IF(ALL_C!C268="","",ALL_C!C268) ->  | F180: =ALL_C!E268 -> 0 | G180: =ALL_C!F268 -> 0 | H180: =ALL_C!G268 -> 0 | I180: =ALL_C!H268 -> 0 | J180: =ALL_C!I268 -> 0 | K180: =ALL_C!J268 -> 0
A181: 1 | C181: 30 | D181: 10 | E181: =IF(ALL_C!C269="","",ALL_C!C269) ->  | F181: =ALL_C!E269 -> 0 | G181: =ALL_C!F269 -> 0 | H181: =ALL_C!G269 -> 0 | I181: =ALL_C!H269 -> 0 | J181: =ALL_C!I269 -> 0 | K181: =ALL_C!J269 -> 0
A182: 1 | C182: 30 | D182: 10 | E182: =IF(ALL_C!C270="","",ALL_C!C270) ->  | F182: =ALL_C!E270 -> 0 | G182: =ALL_C!F270 -> 0 | H182: =ALL_C!G270 -> 0 | I182: =ALL_C!H270 -> 0 | J182: =ALL_C!I270 -> 0 | K182: =ALL_C!J270 -> 0
A183: 1 | C183: 30 | D183: 10 | E183: =IF(ALL_C!C271="","",ALL_C!C271) ->  | F183: =ALL_C!E271 -> 0 | G183: =ALL_C!F271 -> 0 | H183: =ALL_C!G271 -> 0 | I183: =ALL_C!H271 -> 0 | J183: =ALL_C!I271 -> 0 | K183: =ALL_C!J271 -> 0
A184: 1 | C184: 30 | D184: 10 | E184: =IF(ALL_C!C272="","",ALL_C!C272) ->  | F184: =ALL_C!E272 -> 0 | G184: =ALL_C!F272 -> 0 | H184: =ALL_C!G272 -> 0 | I184: =ALL_C!H272 -> 0 | J184: =ALL_C!I272 -> 0 | K184: =ALL_C!J272 -> 0
A185: 1 | C185: 30 | D185: 10 | E185: =IF(ALL_C!C273="","",ALL_C!C273) ->  | F185: =ALL_C!E273 -> 0 | G185: =ALL_C!F273 -> 0 | H185: =ALL_C!G273 -> 0 | I185: =ALL_C!H273 -> 0 | J185: =ALL_C!I273 -> 0 | K185: =ALL_C!J273 -> 0
A186: 1 | C186: 30 | D186: 10 | E186: =IF(ALL_C!C274="","",ALL_C!C274) ->  | F186: =ALL_C!E274 -> 0 | G186: =ALL_C!F274 -> 0 | H186: =ALL_C!G274 -> 0 | I186: =ALL_C!H274 -> 0 | J186: =ALL_C!I274 -> 0 | K186: =ALL_C!J274 -> 0
A187: 1 | C187: 30 | D187: 10 | E187: =IF(ALL_C!C275="","",ALL_C!C275) ->  | F187: =ALL_C!E275 -> 0 | G187: =ALL_C!F275 -> 0 | H187: =ALL_C!G275 -> 0 | I187: =ALL_C!H275 -> 0 | J187: =ALL_C!I275 -> 0 | K187: =ALL_C!J275 -> 0
A188: 1 | C188: 30 | D188: 10 | E188: =IF(ALL_C!C276="","",ALL_C!C276) ->  | F188: =ALL_C!E276 -> 0 | G188: =ALL_C!F276 -> 0 | H188: =ALL_C!G276 -> 0 | I188: =ALL_C!H276 -> 0 | J188: =ALL_C!I276 -> 0 | K188: =ALL_C!J276 -> 0
A189: 1 | C189: 30 | D189: 10 | E189: =IF(ALL_C!C277="","",ALL_C!C277) ->  | F189: =ALL_C!E277 -> 0 | G189: =ALL_C!F277 -> 0 | H189: =ALL_C!G277 -> 0 | I189: =ALL_C!H277 -> 0 | J189: =ALL_C!I277 -> 0 | K189: =ALL_C!J277 -> 0
A190: 1 | C190: 30 | D190: 10 | E190: =IF(ALL_C!C278="","",ALL_C!C278) ->  | F190: =ALL_C!E278 -> 0 | G190: =ALL_C!F278 -> 0 | H190: =ALL_C!G278 -> 0 | I190: =ALL_C!H278 -> 0 | J190: =ALL_C!I278 -> 0 | K190: =ALL_C!J278 -> 0
A191: 1 | C191: 30 | D191: 10 | E191: =IF(ALL_C!C279="","",ALL_C!C279) ->  | F191: =ALL_C!E279 -> 0 | G191: =ALL_C!F279 -> 0 | H191: =ALL_C!G279 -> 0 | I191: =ALL_C!H279 -> 0 | J191: =ALL_C!I279 -> 0 | K191: =ALL_C!J279 -> 0
A192: 1 | C192: 30 | D192: 10 | E192: =IF(ALL_C!C280="","",ALL_C!C280) ->  | F192: =ALL_C!E280 -> 0 | G192: =ALL_C!F280 -> 0 | H192: =ALL_C!G280 -> 0 | I192: =ALL_C!H280 -> 0 | J192: =ALL_C!I280 -> 0 | K192: =ALL_C!J280 -> 0
A193: 1 | C193: 30 | D193: 10 | E193: =IF(ALL_C!C281="","",ALL_C!C281) ->  | F193: =ALL_C!E281 -> 0 | G193: =ALL_C!F281 -> 0 | H193: =ALL_C!G281 -> 0 | I193: =ALL_C!H281 -> 0 | J193: =ALL_C!I281 -> 0 | K193: =ALL_C!J281 -> 0
A194: 1 | C194: 30 | D194: 10 | E194: =IF(ALL_C!C282="","",ALL_C!C282) ->  | F194: =ALL_C!E282 -> 0 | G194: =ALL_C!F282 -> 0 | H194: =ALL_C!G282 -> 0 | I194: =ALL_C!H282 -> 0 | J194: =ALL_C!I282 -> 0 | K194: =ALL_C!J282 -> 0
A195: 1 | C195: 30 | D195: 10 | E195: =IF(ALL_C!C283="","",ALL_C!C283) ->  | F195: =ALL_C!E283 -> 0 | G195: =ALL_C!F283 -> 0 | H195: =ALL_C!G283 -> 0 | I195: =ALL_C!H283 -> 0 | J195: =ALL_C!I283 -> 0 | K195: =ALL_C!J283 -> 0 | Y195: =IFERROR(E195,"#ERR") -> 
A196: 1 | C196: 30 | D196: 10 | E196: =IF(ALL_C!C284="","",ALL_C!C284) ->  | F196: =ALL_C!E284 -> 0 | G196: =ALL_C!F284 -> 0 | H196: =ALL_C!G284 -> 0 | I196: =ALL_C!H284 -> 0 | J196: =ALL_C!I284 -> 0 | K196: =ALL_C!J284 -> 0
A197: 1 | C197: 30 | D197: 10 | E197: =IF(ALL_C!C285="","",ALL_C!C285) ->  | F197: =ALL_C!E285 -> 0 | G197: =ALL_C!F285 -> 0 | H197: =ALL_C!G285 -> 0 | I197: =ALL_C!H285 -> 0 | J197: =ALL_C!I285 -> 0 | K197: =ALL_C!J285 -> 0
A198: 1 | C198: 30 | D198: 10 | E198: =IF(ALL_C!C286="","",ALL_C!C286) ->  | F198: =ALL_C!E286 -> 0 | G198: =ALL_C!F286 -> 0 | H198: =ALL_C!G286 -> 0 | I198: =ALL_C!H286 -> 0 | J198: =ALL_C!I286 -> 0 | K198: =ALL_C!J286 -> 0
A199: 1 | C199: 30 | D199: 10 | E199: =IF(ALL_C!C287="","",ALL_C!C287) ->  | F199: =ALL_C!E287 -> 0 | G199: =ALL_C!F287 -> 0 | H199: =ALL_C!G287 -> 0 | I199: =ALL_C!H287 -> 0 | J199: =ALL_C!I287 -> 0 | K199: =ALL_C!J287 -> 0
A200: 1 | C200: 30 | D200: 10 | E200: =IF(ALL_C!C288="","",ALL_C!C288) ->  | F200: =ALL_C!E288 -> 0 | G200: =ALL_C!F288 -> 0 | H200: =ALL_C!G288 -> 0 | I200: =ALL_C!H288 -> 0 | J200: =ALL_C!I288 -> 0 | K200: =ALL_C!J288 -> 0
... 251 more rows

Sheet EXP_PREVISIONI_PERSONALE_STD (hidden)
A1: ID | B1: ID_PROGRAMMA | C1: ID_TIPO_PERSONALE | D1: ANNO | E1: COSTO_ORARIO_MEDIO | F1: METODOLOGIA | J1: ID | K1: DESCRIZIONE
A2: 1 | C2: 1 | D2: =ALL_C_PERSONALE!$F$14 -> 0 | E2: =ALL_C_PERSONALE!F15 -> 0 | F2: =ALL_C_PERSONALE!D15 -> Retribuzione media lorda N. ore lavorative nell'anno | J2: 1 | K2: RICERCATORI /TECNICI | M2: 15 | Y2: =IFERROR(SUM(C2:E13),"#ERR") -> 48 | Z2: =IFERROR(F2,"#ERR") -> Retribuzione media lorda N. ore lavorative nell'anno | AA2: =COUNTIF(X:Z,"#ERR") -> 0
A3: 1 | C3: 1 | D3: =D2+1 -> 1 | E3: =ALL_C_PERSONALE!G15 -> 0 | F3: =F2 -> Retribuzione media lorda N. ore lavorative nell'anno | J3: 2 | K3: OPERAI ED ALTRI | M3: 16 | Z3: =IFERROR(F3,"#ERR") -> Retribuzione media lorda N. ore lavorative nell'anno
A4: 1 | C4: 1 | D4: =D3+1 -> 2 | E4: =ALL_C_PERSONALE!H15 -> 0 | F4: =F3 -> Retribuzione media lorda N. ore lavorative nell'anno | Z4: Retribuzione media lorda N. ore lavorative nell'anno
A5: 1 | C5: 1 | D5: =D4+1 -> 3 | E5: =ALL_C_PERSONALE!I15 -> 0 | F5: =F4 -> Retribuzione media lorda N. ore lavorative nell'anno | Z5: Retribuzione media lorda N. ore lavorative nell'anno
A6: 1 | C6: 1 | D6: =D5+1 -> 4 | E6: =ALL_C_PERSONALE!J15 -> 0 | F6: =F5 -> Retribuzione media lorda N. ore lavorative nell'anno | Z6: Retribuzione media lorda N. ore lavorative nell'anno
A7: 1 | C7: 1 | D7: =D6+1 -> 5 | E7: =ALL_C_PERSONALE!K15 -> 0 | F7: Retribuzione media lorda N. ore lavorative nell'anno | Z7: Retribuzione media lorda N. ore lavorative nell'anno
A8: 1 | C8: 2 | D8: =D2 -> 0 | E8: =ALL_C_PERSONALE!F16 -> 0 | F8: Retribuzione media lorda N. ore lavorative nell'anno | Z8: Retribuzione media lorda N. ore lavorative nell'anno
A9: 1 | C9: 2 | D9: =D8+1 -> 1 | E9: =ALL_C_PERSONALE!G16 -> 0 | F9: Retribuzione media lorda N. ore lavorative nell'anno | Z9: Retribuzione media lorda N. ore lavorative nell'anno
A10: 1 | C10: 2 | D10: =D9+1 -> 2 | E10: =ALL_C_PERSONALE!H16 -> 0 | F10: Retribuzione media lorda N. ore lavorative nell'anno | Z10: Retribuzione media lorda N. ore lavorative nell'anno
A11: 1 | C11: 2 | D11: =D10+1 -> 3 | E11: =ALL_C_PERSONALE!I16 -> 0 | F11: Retribuzione media lorda N. ore lavorative nell'anno | Z11: Retribuzione media lorda N. ore lavorative nell'anno
A12: 1 | C12: 2 | D12: =D11+1 -> 4 | E12: =ALL_C_PERSONALE!J16 -> 0 | F12: Retribuzione media lorda N. ore lavorative nell'anno | Z12: Retribuzione media lorda N. ore lavorative nell'anno
A13: 1 | C13: 2 | D13: =D12+1 -> 5 | E13: =ALL_C_PERSONALE!K16 -> 0 | F13: Retribuzione media lorda N. ore lavorative nell'anno | Z13: Retribuzione media lorda N. ore lavorative nell'anno

Sheet EXP_PREVISIONI_PERSONALE_ANNO (hidden)
A1: ID | B1: ID_PROGRAMMA | C1: ID_FINALITA_COSTO | D1: ID_TIPO_PERSONALE | E1: ANNO | F1: ORE | J1: ID | K1: DESCRIZIONE
A2: 1 | C2: 10 | D2: 1 | E2: =ALL_C_PERSONALE!$F$14 -> 0 | F2: =ALL_C_PERSONALE!F21 -> 0 | J2: 1 | K2: RICERCATORI /TECNICI | M2: ALL_C_PERSONALE! | N2: F | O2: 21 | Q2: =M2&N2&O2 -> ALL_C_PERSONALE!F21 | Z2: =IFERROR(SUM(C2:F31),"#ERR") -> 777 | AA2: =COUNTIF(X:Z,"#ERR") -> 0
A3: 1 | C3: 10 | D3: 1 | E3: =E2+1 -> 1 | F3: =ALL_C_PERSONALE!G21 -> 0 | J3: 2 | K3: OPERAI ED ALTRI | M3: ALL_C_PERSONALE! | N3: G | O3: 21 | Q3: =M3&N3&O3 -> ALL_C_PERSONALE!G21
A4: 1 | C4: 10 | D4: 1 | E4: =E3+1 -> 2 | F4: =ALL_C_PERSONALE!H21 -> 0 | M4: ALL_C_PERSONALE! | N4: H | O4: 21 | Q4: ALL_C_PERSONALE!H21
A5: 1 | C5: 10 | D5: 1 | E5: =E4+1 -> 3 | F5: =ALL_C_PERSONALE!I21 -> 0 | J5: ID | K5: DESCRIZIONE | M5: ALL_C_PERSONALE! | N5: I | O5: 21 | Q5: ALL_C_PERSONALE!I21
A6: 1 | C6: 10 | D6: 1 | E6: =E5+1 -> 4 | F6: =ALL_C_PERSONALE!J21 -> 0 | J6: 10 | K6: STUDI DI FATTIBILITA' TECNICA | M6: ALL_C_PERSONALE! | N6: J | O6: 21 | Q6: ALL_C_PERSONALE!J21
A7: 1 | C7: 10 | D7: 1 | E7: =E6+1 -> 5 | F7: =ALL_C_PERSONALE!K21 -> 0 | J7: 20 | K7: RICERCA INDUSTRIALE | M7: ALL_C_PERSONALE! | N7: K | O7: 21 | Q7: ALL_C_PERSONALE!K21
A8: 1 | C8: 20 | D8: 1 | E8: =E2 -> 0 | F8: =ALL_C_PERSONALE!F22 -> 0 | J8: 30 | K8: SVILUPPO SPERIMENTALE | M8: ALL_C_PERSONALE! | N8: =N2 -> F | O8: 22 | Q8: ALL_C_PERSONALE!F22
A9: 1 | C9: 20 | D9: 1 | E9: =E8+1 -> 1 | F9: =ALL_C_PERSONALE!G22 -> 0 | M9: ALL_C_PERSONALE! | N9: =N3 -> G | O9: 22 | Q9: ALL_C_PERSONALE!G22
A10: 1 | C10: 20 | D10: 1 | E10: =E9+1 -> 2 | F10: =ALL_C_PERSONALE!H22 -> 0 | M10: ALL_C_PERSONALE! | N10: H | O10: 22 | Q10: ALL_C_PERSONALE!H22
A11: 1 | C11: 20 | D11: 1 | E11: =E10+1 -> 3 | F11: =ALL_C_PERSONALE!I22 -> 0 | I11: 10 | J11: 1 | K11: 21 | M11: ALL_C_PERSONALE! | N11: I | O11: 22 | Q11: ALL_C_PERSONALE!I22
A12: 1 | C12: 20 | D12: 1 | E12: =E11+1 -> 4 | F12: =ALL_C_PERSONALE!J22 -> 0 | I12: 20 | J12: 1 | K12: 22 | M12: ALL_C_PERSONALE! | N12: J | O12: 22 | Q12: ALL_C_PERSONALE!J22
A13: 1 | C13: 20 | D13: 1 | E13: =E12+1 -> 5 | F13: =ALL_C_PERSONALE!K22 -> 0 | I13: 20 | J13: 2 | K13: 23 | M13: ALL_C_PERSONALE! | N13: K | O13: 22 | Q13: ALL_C_PERSONALE!K22
A14: 1 | C14: 20 | D14: 2 | E14: =E8 -> 0 | F14: =ALL_C_PERSONALE!F23 -> 0 | I14: 30 | J14: 1 | K14: 24 | M14: ALL_C_PERSONALE! | N14: F | O14: 23 | Q14: ALL_C_PERSONALE!F23
A15: 1 | C15: 20 | D15: 2 | E15: =E14+1 -> 1 | F15: =ALL_C_PERSONALE!G23 -> 0 | I15: 30 | J15: 2 | K15: 25 | M15: ALL_C_PERSONALE! | N15: G | O15: 23 | Q15: ALL_C_PERSONALE!G23
A16: 1 | C16: 20 | D16: 2 | E16: =E15+1 -> 2 | F16: =ALL_C_PERSONALE!H23 -> 0 | M16: ALL_C_PERSONALE! | N16: H | O16: 23 | Q16: ALL_C_PERSONALE!H23
A17: 1 | C17: 20 | D17: 2 | E17: =E16+1 -> 3 | F17: =ALL_C_PERSONALE!I23 -> 0 | M17: ALL_C_PERSONALE! | N17: I | O17: 23 | Q17: ALL_C_PERSONALE!I23
A18: 1 | C18: 20 | D18: 2 | E18: =E17+1 -> 4 | F18: =ALL_C_PERSONALE!J23 -> 0 | M18: ALL_C_PERSONALE! | N18: J | O18: 23 | Q18: ALL_C_PERSONALE!J23
A19: 1 | C19: 20 | D19: 2 | E19: =E18+1 -> 5 | F19: =ALL_C_PERSONALE!K23 -> 0 | M19: ALL_C_PERSONALE! | N19: K | O19: 23 | Q19: ALL_C_PERSONALE!K23
A20: 1 | C20: 30 | D20: 1 | E20: =E14 -> 0 | F20: =ALL_C_PERSONALE!F24 -> 0 | M20: ALL_C_PERSONALE! | N20: F | O20: 24 | Q20: ALL_C_PERSONALE!F24
A21: 1 | C21: 30 | D21: 1 | E21: =E20+1 -> 1 | F21: =ALL_C_PERSONALE!G24 -> 0 | M21: ALL_C_PERSONALE! | N21: G | O21: 24 | Q21: ALL_C_PERSONALE!G24
A22: 1 | C22: 30 | D22: 1 | E22: =E21+1 -> 2 | F22: =ALL_C_PERSONALE!H24 -> 0 | M22: ALL_C_PERSONALE! | N22: H | O22: 24 | Q22: ALL_C_PERSONALE!H24
A23: 1 | C23: 30 | D23: 1 | E23: =E22+1 -> 3 | F23: =ALL_C_PERSONALE!I24 -> 0 | M23: ALL_C_PERSONALE! | N23: I | O23: 24 | Q23: ALL_C_PERSONALE!I24
A24: 1 | C24: 30 | D24: 1 | E24: =E23+1 -> 4 | F24: =ALL_C_PERSONALE!J24 -> 0 | M24: ALL_C_PERSONALE! | N24: J | O24: 24 | Q24: ALL_C_PERSONALE!J24
A25: 1 | C25: 30 | D25: 1 | E25: =E24+1 -> 5 | F25: =ALL_C_PERSONALE!K24 -> 0 | M25: ALL_C_PERSONALE! | N25: K | O25: 24 | Q25: ALL_C_PERSONALE!K24
A26: 1 | C26: 30 | D26: 2 | E26: =E20 -> 0 | F26: =ALL_C_PERSONALE!F25 -> 0 | M26: ALL_C_PERSONALE! | N26: F | O26: 25 | Q26: ALL_C_PERSONALE!F25
A27: 1 | C27: 30 | D27: 2 | E27: =E26+1 -> 1 | F27: =ALL_C_PERSONALE!G25 -> 0 | M27: ALL_C_PERSONALE! | N27: G | O27: 25 | Q27: ALL_C_PERSONALE!G25
A28: 1 | C28: 30 | D28: 2 | E28: =E27+1 -> 2 | F28: =ALL_C_PERSONALE!H25 -> 0 | M28: ALL_C_PERSONALE! | N28: H | O28: 25 | Q28: ALL_C_PERSONALE!H25
A29: 1 | C29: 30 | D29: 2 | E29: =E28+1 -> 3 | F29: =ALL_C_PERSONALE!I25 -> 0 | M29: ALL_C_PERSONALE! | N29: I | O29: 25 | Q29: ALL_C_PERSONALE!I25
A30: 1 | C30: 30 | D30: 2 | E30: =E29+1 -> 4 | F30: =ALL_C_PERSONALE!J25 -> 0 | M30: ALL_C_PERSONALE! | N30: J | O30: 25 | Q30: ALL_C_PERSONALE!J25
A31: 1 | C31: 30 | D31: 2 | E31: =E30+1 -> 5 | F31: =ALL_C_PERSONALE!K25 -> 0 | M31: ALL_C_PERSONALE! | N31: K | O31: 25 | Q31: ALL_C_PERSONALE!K25

Sheet EXP_PREVIS_PERS_NON_DIP_ANNO (hidden)
A1: ID | B1: ID_PROGRAMMA | C1: ID_FINALITA_COSTO | D1: ANNO | E1: COSTO | I1: ID | J1: DESCRIZIONE
A2: 1 | C2: 10 | D2: =ALL_C_PERSONALE!$F$14 -> 0 | E2: =ALL_C_PERSONALE!F41 -> 0 | I2: 10 | J2: STUDI DI FATTIBILITA' TECNICA | L2: 41 | Z2: =IFERROR(SUM(C2:E19),"#ERR") -> 405 | AA2: =COUNTIF(X:Z,"#ERR") -> 0
A3: 1 | C3: 10 | D3: =D2+1 -> 1 | E3: =ALL_C_PERSONALE!G41 -> 0 | I3: 20 | J3: RICERCA INDUSTRIALE | L3: 42
A4: 1 | C4: 10 | D4: =D3+1 -> 2 | E4: =ALL_C_PERSONALE!H41 -> 0 | I4: 30 | J4: SVILUPPO SPERIMENTALE | L4: 43
A5: 1 | C5: 10 | D5: =D4+1 -> 3 | E5: =ALL_C_PERSONALE!I41 -> 0
A6: 1 | C6: 10 | D6: =D5+1 -> 4 | E6: =ALL_C_PERSONALE!J41 -> 0
A7: 1 | C7: 10 | D7: =D6+1 -> 5 | E7: =ALL_C_PERSONALE!K41 -> 0
A8: 1 | C8: 20 | D8: =D2 -> 0 | E8: =ALL_C_PERSONALE!F42 -> 0
A9: 1 | C9: 20 | D9: =D8+1 -> 1 | E9: =ALL_C_PERSONALE!G42 -> 0
A10: 1 | C10: 20 | D10: =D9+1 -> 2 | E10: =ALL_C_PERSONALE!H42 -> 0
A11: 1 | C11: 20 | D11: =D10+1 -> 3 | E11: =ALL_C_PERSONALE!I42 -> 0
A12: 1 | C12: 20 | D12: =D11+1 -> 4 | E12: =ALL_C_PERSONALE!J42 -> 0
A13: 1 | C13: 20 | D13: =D12+1 -> 5 | E13: =ALL_C_PERSONALE!K42 -> 0
A14: 1 | C14: 30 | D14: =D8 -> 0 | E14: =ALL_C_PERSONALE!F43 -> 0
A15: 1 | C15: 30 | D15: =D14+1 -> 1 | E15: =ALL_C_PERSONALE!G43 -> 0
A16: 1 | C16: 30 | D16: =D15+1 -> 2 | E16: =ALL_C_PERSONALE!H43 -> 0
A17: 1 | C17: 30 | D17: =D16+1 -> 3 | E17: =ALL_C_PERSONALE!I43 -> 0
A18: 1 | C18: 30 | D18: =D17+1 -> 4 | E18: =ALL_C_PERSONALE!J43 -> 0
A19: 1 | C19: 30 | D19: =D18+1 -> 5 | E19: =ALL_C_PERSONALE!K43 -> 0

Sheet EXP_PREVIS_PERS_TOT_ORE_ANNO (hidden)
A1: ID | B1: ID_PROGRAMMA | C1: ANNO | D1: Numero unità
A2: 1 | C2: =ALL_C_PERSONALE!$F$14 -> 0 | D2: =ALL_C_PERSONALE!F50 -> 0 | Z2: =IFERROR(SUM(C2:D7),"#ERR") -> 15 | AA2: =COUNTIF(X:Z,"#ERR") -> 0
A3: 1 | C3: =C2+1 -> 1 | D3: =ALL_C_PERSONALE!G50 -> 0
A4: 1 | C4: =C3+1 -> 2 | D4: =ALL_C_PERSONALE!H50 -> 0
A5: 1 | C5: =C4+1 -> 3 | D5: =ALL_C_PERSONALE!I50 -> 0
A6: 1 | C6: =C5+1 -> 4 | D6: =ALL_C_PERSONALE!J50 -> 0
A7: 1 | C7: =C6+1 -> 5 | D7: =ALL_C_PERSONALE!K50 -> 0

Sheet EXP_PREVIS_PERS_IND_ANNO (hidden)
A1: ID | B1: ID_PROGRAMMA | C1: ANNO | D1: Numero unità | E1: Costo Totale
A2: 1 | C2: =ALL_C_PERSONALE!$F$14 -> 0 | D2: =ALL_C_PERSONALE!F56 -> 0 | E2: =ALL_C_PERSONALE!F57 -> 0 | J2: Numero unità | K2: 56 | Z2: =IFERROR(SUM(C2:E7),"#ERR") -> 15 | AA2: =COUNTIF(X:Z,"#ERR") -> 0
A3: 1 | C3: =C2+1 -> 1 | D3: =ALL_C_PERSONALE!G56 -> 0 | E3: =ALL_C_PERSONALE!G57 -> 0 | J3: Costo Totale | K3: 57
A4: 1 | C4: =C3+1 -> 2 | D4: =ALL_C_PERSONALE!H56 -> 0 | E4: =ALL_C_PERSONALE!H57 -> 0
A5: 1 | C5: =C4+1 -> 3 | D5: =ALL_C_PERSONALE!I56 -> 0 | E5: =ALL_C_PERSONALE!I57 -> 0
A6: 1 | C6: =C5+1 -> 4 | D6: =ALL_C_PERSONALE!J56 -> 0 | E6: =ALL_C_PERSONALE!J57 -> 0
A7: 1 | C7: =C6+1 -> 5 | D7: =ALL_C_PERSONALE!K56 -> 0 | E7: =ALL_C_PERSONALE!K57 -> 0

Sheet EXP_PREVIS_PERS_IND_AMM_ANNO (hidden)
A1: ID | B1: ID_PROGRAMMA | C1: ID_TIPO_AMMORTAMENTO | D1: ANNO | E1: Costo Totale | J1: ID_TIPO_AMMORTAMENTO | K1: DESCRIZIONE
A2: 1 | C2: 10 | D2: =ALL_C_PERSONALE!$F$14 -> 0 | E2: =ALL_C_PERSONALE!F64 -> 0 | G2: ALL_C_PERSONALE! | H2: F | J2: 10 | K2: Beni materiali | M2: 64 | Z2: =IFERROR(SUM(C2:E13),"#ERR") -> 210 | AA2: =COUNTIF(X:Z,"#ERR") -> 0
A3: 1 | C3: 10 | D3: =D2+1 -> 1 | E3: =ALL_C_PERSONALE!G64 -> 0 | G3: ALL_C_PERSONALE! | H3: G | J3: 20 | K3: Beni immateriali | M3: 65
A4: 1 | C4: 10 | D4: =D3+1 -> 2 | E4: =ALL_C_PERSONALE!H64 -> 0 | G4: ALL_C_PERSONALE! | H4: H
A5: 1 | C5: 10 | D5: =D4+1 -> 3 | E5: =ALL_C_PERSONALE!I64 -> 0 | G5: ALL_C_PERSONALE! | H5: I
A6: 1 | C6: 10 | D6: =D5+1 -> 4 | E6: =ALL_C_PERSONALE!J64 -> 0 | G6: ALL_C_PERSONALE! | H6: J
A7: 1 | C7: 10 | D7: =D6+1 -> 5 | E7: =ALL_C_PERSONALE!K64 -> 0 | G7: ALL_C_PERSONALE! | H7: K
A8: 1 | C8: 20 | D8: =D2 -> 0 | E8: =ALL_C_PERSONALE!F65 -> 0
A9: 1 | C9: 20 | D9: =D8+1 -> 1 | E9: =ALL_C_PERSONALE!G65 -> 0
A10: 1 | C10: 20 | D10: =D9+1 -> 2 | E10: =ALL_C_PERSONALE!H65 -> 0
A11: 1 | C11: 20 | D11: =D10+1 -> 3 | E11: =ALL_C_PERSONALE!I65 -> 0
A12: 1 | C12: 20 | D12: =D11+1 -> 4 | E12: =ALL_C_PERSONALE!J65 -> 0
A13: 1 | C13: 20 | D13: =D12+1 -> 5 | E13: =ALL_C_PERSONALE!K65 -> 0

Sheet EXP_PREVIS_PERS_IND_SPEGEN_ANNO (hidden)
A1: ID | B1: ID_PROGRAMMA | C1: ID_TIPO_SPESA_GENERALE | D1: ID_TIPO_VOCE_SPESA_GEN | E1: ANNO | F1: Costo Totale | K1: ID_TIPO_SPESA_GENERALE | L1: DESCRIZIONE
A2: 1 | C2: 10 | D2: 10-00 | E2: =ALL_C_PERSONALE!$F$14 -> 0 | F2: =ALL_C_PERSONALE!F74 -> 0 | K2: 10 | L2: Forniture | X2: =IFERROR(SUM(C2:C31),"#ERR") -> 650 | Y2: =IFERROR(D2,"#ERR") -> 10-00 | Z2: =IFERROR(SUM(E2:F31),"#ERR") -> 75 | AA2: =COUNTIF(X:Z,"#ERR") -> 0
A3: 1 | C3: 10 | D3: 10-00 | E3: =E2+1 -> 1 | F3: =ALL_C_PERSONALE!G74 -> 0 | K3: 20 | L3: Manutenzioni | Y3: =IFERROR(D3,"#ERR") -> 10-00
A4: 1 | C4: 10 | D4: 10-00 | E4: =E3+1 -> 2 | F4: =ALL_C_PERSONALE!H74 -> 0 | K4: 30 | L4: Affitti e canoni | Y4: 10-00
A5: 1 | C5: 10 | D5: 10-00 | E5: =E4+1 -> 3 | F5: =ALL_C_PERSONALE!I74 -> 0 | Y5: 10-00
A6: 1 | C6: 10 | D6: 10-00 | E6: =E5+1 -> 4 | F6: =ALL_C_PERSONALE!J74 -> 0 | K6: ID_TIPO_VOCE_SPESA_GEN | L6: DESCRIZIONE | Y6: 10-00
A7: 1 | C7: 10 | D7: 10-00 | E7: =E6+1 -> 5 | F7: =ALL_C_PERSONALE!K74 -> 0 | K7: 10-00 | L7: Forniture | N7: 74 | Y7: 10-00
A8: 1 | C8: 20 | D8: 20-10 | E8: =E2 -> 0 | F8: =ALL_C_PERSONALE!F77 -> 0 | K8: 20-10 | L8: Immobili | N8: 77 | Y8: 20-10
A9: 1 | C9: 20 | D9: 20-10 | E9: =E8+1 -> 1 | F9: =ALL_C_PERSONALE!G77 -> 0 | K9: 20-20 | L9: Macchinari - Impianti | N9: 78 | Y9: 20-10
A10: 1 | C10: 20 | D10: 20-10 | E10: =E9+1 -> 2 | F10: =ALL_C_PERSONALE!H77 -> 0 | K10: 30-10 | L10: Affitti | N10: 82 | Y10: 20-10
A11: 1 | C11: 20 | D11: 20-10 | E11: =E10+1 -> 3 | F11: =ALL_C_PERSONALE!I77 -> 0 | K11: 30-20 | L11: Leasing | N11: 83 | Y11: 20-10
A12: 1 | C12: 20 | D12: 20-10 | E12: =E11+1 -> 4 | F12: =ALL_C_PERSONALE!J77 -> 0 | Y12: 20-10
A13: 1 | C13: 20 | D13: 20-10 | E13: =E12+1 -> 5 | F13: =ALL_C_PERSONALE!K77 -> 0 | Y13: 20-10
A14: 1 | C14: 20 | D14: 20-20 | E14: =E8 -> 0 | F14: =ALL_C_PERSONALE!F78 -> 0 | Y14: 20-20
A15: 1 | C15: 20 | D15: 20-20 | E15: =E14+1 -> 1 | F15: =ALL_C_PERSONALE!G78 -> 0 | Y15: 20-20
A16: 1 | C16: 20 | D16: 20-20 | E16: =E15+1 -> 2 | F16: =ALL_C_PERSONALE!H78 -> 0 | Y16: 20-20
A17: 1 | C17: 20 | D17: 20-20 | E17: =E16+1 -> 3 | F17: =ALL_C_PERSONALE!I78 -> 0 | Y17: 20-20
A18: 1 | C18: 20 | D18: 20-20 | E18: =E17+1 -> 4 | F18: =ALL_C_PERSONALE!J78 -> 0 | Y18: 20-20
A19: 1 | C19: 20 | D19: 20-20 | E19: =E18+1 -> 5 | F19: =ALL_C_PERSONALE!K78 -> 0 | Y19: 20-20
A20: 1 | C20: 20 | D20: 30-10 | E20: =E14 -> 0 | F20: =ALL_C_PERSONALE!F82 -> 0 | Y20: 30-10
A21: 1 | C21: 30 | D21: 30-10 | E21: =E20+1 -> 1 | F21: =ALL_C_PERSONALE!G82 -> 0 | Y21: 30-10
A22: 1 | C22: 30 | D22: 30-10 | E22: =E21+1 -> 2 | F22: =ALL_C_PERSONALE!H82 -> 0 | Y22: 30-10
A23: 1 | C23: 30 | D23: 30-10 | E23: =E22+1 -> 3 | F23: =ALL_C_PERSONALE!I82 -> 0 | Y23: 30-10
A24: 1 | C24: 30 | D24: 30-10 | E24: =E23+1 -> 4 | F24: =ALL_C_PERSONALE!J82 -> 0 | Y24: 30-10
A25: 1 | C25: 30 | D25: 30-10 | E25: =E24+1 -> 5 | F25: =ALL_C_PERSONALE!K82 -> 0 | Y25: 30-10
A26: 1 | C26: 30 | D26: 30-20 | E26: =E20 -> 0 | F26: =ALL_C_PERSONALE!F83 -> 0 | Y26: 30-20
A27: 1 | C27: 30 | D27: 30-20 | E27: =E26+1 -> 1 | F27: =ALL_C_PERSONALE!G83 -> 0 | Y27: 30-20
A28: 1 | C28: 30 | D28: 30-20 | E28: =E27+1 -> 2 | F28: =ALL_C_PERSONALE!H83 -> 0 | Y28: 30-20
A29: 1 | C29: 30 | D29: 30-20 | E29: =E28+1 -> 3 | F29: =ALL_C_PERSONALE!I83 -> 0 | Y29: 30-20
A30: 1 | C30: 30 | D30: 30-20 | E30: =E29+1 -> 4 | F30: =ALL_C_PERSONALE!J83 -> 0 | Y30: 30-20
A31: 1 | C31: 30 | D31: 30-20 | E31: =E30+1 -> 5 | F31: =ALL_C_PERSONALE!K83 -> 0 | Y31: 30-20

Sheet EXP_PREV_COSTI_IMPRESE_ASS_TIPO (hidden)
A1: ID | B1: ID_PROGRAMMA_IMPRESA_ASS | C1: IMPRESA_ASSOCIATA_DESC | D1: ID_TIPOLOGIA_COSTO | E1: ANNO 1 | F1: ANNO 2 | G1: ANNO 3 | H1: ANNO OLTRE | K1: ID | L1: DESCRIZIONE
A2: 1 | C2: =IF(ALL_C_IMPRESE_ASSOCIATE!C15="","",ALL_C_IMPRESE_ASSOCIATE!C15) -> 0 | D2: 10 | E2: =ALL_C_IMPRESE_ASSOCIATE!E15 -> 0 | F2: =ALL_C_IMPRESE_ASSOCIATE!F15 -> 0 | G2: =ALL_C_IMPRESE_ASSOCIATE!G15 -> 0 | H2: =ALL_C_IMPRESE_ASSOCIATE!I15 -> 0 | K2: 10 | L2: PERSONALE
A3: 1 | C3: =IF(ALL_C_IMPRESE_ASSOCIATE!C16="","",ALL_C_IMPRESE_ASSOCIATE!C16) ->  | D3: 10 | E3: =ALL_C_IMPRESE_ASSOCIATE!E16 -> 0 | F3: =ALL_C_IMPRESE_ASSOCIATE!F16 -> 0 | G3: =ALL_C_IMPRESE_ASSOCIATE!G16 -> 0 | H3: =ALL_C_IMPRESE_ASSOCIATE!I16 -> 0 | K3: 15 | L3: PERSONALE NON DIPENDENTE (MAX 15% DEL PERSONALE DIPENDENTE)
A4: 1 | C4: =IF(ALL_C_IMPRESE_ASSOCIATE!C17="","",ALL_C_IMPRESE_ASSOCIATE!C17) ->  | D4: 10 | E4: =ALL_C_IMPRESE_ASSOCIATE!E17 -> 0 | F4: =ALL_C_IMPRESE_ASSOCIATE!F17 -> 0 | G4: =ALL_C_IMPRESE_ASSOCIATE!G17 -> 0 | H4: =ALL_C_IMPRESE_ASSOCIATE!I17 -> 0 | K4: 20 | L4: MATERIALI
A5: 1 | C5: =IF(ALL_C_IMPRESE_ASSOCIATE!C18="","",ALL_C_IMPRESE_ASSOCIATE!C18) ->  | D5: 10 | E5: =ALL_C_IMPRESE_ASSOCIATE!E18 -> 0 | F5: =ALL_C_IMPRESE_ASSOCIATE!F18 -> 0 | G5: =ALL_C_IMPRESE_ASSOCIATE!G18 -> 0 | H5: =ALL_C_IMPRESE_ASSOCIATE!I18 -> 0 | K5: 30 | L5: STRUMENTAZIONE ED ATTREZZATURE
A6: 1 | C6: =IF(ALL_C_IMPRESE_ASSOCIATE!C19="","",ALL_C_IMPRESE_ASSOCIATE!C19) ->  | D6: 10 | E6: =ALL_C_IMPRESE_ASSOCIATE!E19 -> 0 | F6: =ALL_C_IMPRESE_ASSOCIATE!F19 -> 0 | G6: =ALL_C_IMPRESE_ASSOCIATE!G19 -> 0 | H6: =ALL_C_IMPRESE_ASSOCIATE!I19 -> 0 | K6: 40 | L6: SERVIZI DI CONSULENZA
A7: 1 | C7: =IF(ALL_C_IMPRESE_ASSOCIATE!C20="","",ALL_C_IMPRESE_ASSOCIATE!C20) ->  | D7: 10 | E7: =ALL_C_IMPRESE_ASSOCIATE!E20 -> 0 | F7: =ALL_C_IMPRESE_ASSOCIATE!F20 -> 0 | G7: =ALL_C_IMPRESE_ASSOCIATE!G20 -> 0 | H7: =ALL_C_IMPRESE_ASSOCIATE!I20 -> 0
A8: 1 | C8: =IF(ALL_C_IMPRESE_ASSOCIATE!C21="","",ALL_C_IMPRESE_ASSOCIATE!C21) ->  | D8: 10 | E8: =ALL_C_IMPRESE_ASSOCIATE!E21 -> 0 | F8: =ALL_C_IMPRESE_ASSOCIATE!F21 -> 0 | G8: =ALL_C_IMPRESE_ASSOCIATE!G21 -> 0 | H8: =ALL_C_IMPRESE_ASSOCIATE!I21 -> 0
A9: 1 | C9: =IF(ALL_C_IMPRESE_ASSOCIATE!C22="","",ALL_C_IMPRESE_ASSOCIATE!C22) ->  | D9: 10 | E9: =ALL_C_IMPRESE_ASSOCIATE!E22 -> 0 | F9: =ALL_C_IMPRESE_ASSOCIATE!F22 -> 0 | G9: =ALL_C_IMPRESE_ASSOCIATE!G22 -> 0 | H9: =ALL_C_IMPRESE_ASSOCIATE!I22 -> 0
A10: 1 | C10: =IF(ALL_C_IMPRESE_ASSOCIATE!C23="","",ALL_C_IMPRESE_ASSOCIATE!C23) ->  | D10: 10 | E10: =ALL_C_IMPRESE_ASSOCIATE!E23 -> 0 | F10: =ALL_C_IMPRESE_ASSOCIATE!F23 -> 0 | G10: =ALL_C_IMPRESE_ASSOCIATE!G23 -> 0 | H10: =ALL_C_IMPRESE_ASSOCIATE!I23 -> 0
A11: 1 | C11: =IF(ALL_C_IMPRESE_ASSOCIATE!C24="","",ALL_C_IMPRESE_ASSOCIATE!C24) ->  | D11: 10 | E11: =ALL_C_IMPRESE_ASSOCIATE!E24 -> 0 | F11: =ALL_C_IMPRESE_ASSOCIATE!F24 -> 0 | G11: =ALL_C_IMPRESE_ASSOCIATE!G24 -> 0 | H11: =ALL_C_IMPRESE_ASSOCIATE!I24 -> 0
A12: 1 | C12: =IF(ALL_C_IMPRESE_ASSOCIATE!C25="","",ALL_C_IMPRESE_ASSOCIATE!C25) ->  | D12: 10 | E12: =ALL_C_IMPRESE_ASSOCIATE!E25 -> 0 | F12: =ALL_C_IMPRESE_ASSOCIATE!F25 -> 0 | G12: =ALL_C_IMPRESE_ASSOCIATE!G25 -> 0 | H12: =ALL_C_IMPRESE_ASSOCIATE!I25 -> 0
A13: 1 | C13: =IF(ALL_C_IMPRESE_ASSOCIATE!C26="","",ALL_C_IMPRESE_ASSOCIATE!C26) ->  | D13: 10 | E13: =ALL_C_IMPRESE_ASSOCIATE!E26 -> 0 | F13: =ALL_C_IMPRESE_ASSOCIATE!F26 -> 0 | G13: =ALL_C_IMPRESE_ASSOCIATE!G26 -> 0 | H13: =ALL_C_IMPRESE_ASSOCIATE!I26 -> 0
A14: 1 | C14: =IF(ALL_C_IMPRESE_ASSOCIATE!C27="","",ALL_C_IMPRESE_ASSOCIATE!C27) ->  | D14: 10 | E14: =ALL_C_IMPRESE_ASSOCIATE!E27 -> 0 | F14: =ALL_C_IMPRESE_ASSOCIATE!F27 -> 0 | G14: =ALL_C_IMPRESE_ASSOCIATE!G27 -> 0 | H14: =ALL_C_IMPRESE_ASSOCIATE!I27 -> 0
A15: 1 | C15: =IF(ALL_C_IMPRESE_ASSOCIATE!C28="","",ALL_C_IMPRESE_ASSOCIATE!C28) ->  | D15: 10 | E15: =ALL_C_IMPRESE_ASSOCIATE!E28 -> 0 | F15: =ALL_C_IMPRESE_ASSOCIATE!F28 -> 0 | G15: =ALL_C_IMPRESE_ASSOCIATE!G28 -> 0 | H15: =ALL_C_IMPRESE_ASSOCIATE!I28 -> 0
A16: 1 | C16: =IF(ALL_C_IMPRESE_ASSOCIATE!C29="","",ALL_C_IMPRESE_ASSOCIATE!C29) ->  | D16: 10 | E16: =ALL_C_IMPRESE_ASSOCIATE!E29 -> 0 | F16: =ALL_C_IMPRESE_ASSOCIATE!F29 -> 0 | G16: =ALL_C_IMPRESE_ASSOCIATE!G29 -> 0 | H16: =ALL_C_IMPRESE_ASSOCIATE!I29 -> 0
A17: 1 | C17: =IF(ALL_C_IMPRESE_ASSOCIATE!C30="","",ALL_C_IMPRESE_ASSOCIATE!C30) ->  | D17: 10 | E17: =ALL_C_IMPRESE_ASSOCIATE!E30 -> 0 | F17: =ALL_C_IMPRESE_ASSOCIATE!F30 -> 0 | G17: =ALL_C_IMPRESE_ASSOCIATE!G30 -> 0 | H17: =ALL_C_IMPRESE_ASSOCIATE!I30 -> 0
A18: 1 | C18: =IF(ALL_C_IMPRESE_ASSOCIATE!C31="","",ALL_C_IMPRESE_ASSOCIATE!C31) ->  | D18: 10 | E18: =ALL_C_IMPRESE_ASSOCIATE!E31 -> 0 | F18: =ALL_C_IMPRESE_ASSOCIATE!F31 -> 0 | G18: =ALL_C_IMPRESE_ASSOCIATE!G31 -> 0 | H18: =ALL_C_IMPRESE_ASSOCIATE!I31 -> 0
A19: 1 | C19: =IF(ALL_C_IMPRESE_ASSOCIATE!C32="","",ALL_C_IMPRESE_ASSOCIATE!C32) ->  | D19: 10 | E19: =ALL_C_IMPRESE_ASSOCIATE!E32 -> 0 | F19: =ALL_C_IMPRESE_ASSOCIATE!F32 -> 0 | G19: =ALL_C_IMPRESE_ASSOCIATE!G32 -> 0 | H19: =ALL_C_IMPRESE_ASSOCIATE!I32 -> 0
A20: 1 | C20: =IF(ALL_C_IMPRESE_ASSOCIATE!C33="","",ALL_C_IMPRESE_ASSOCIATE!C33) ->  | D20: 10 | E20: =ALL_C_IMPRESE_ASSOCIATE!E33 -> 0 | F20: =ALL_C_IMPRESE_ASSOCIATE!F33 -> 0 | G20: =ALL_C_IMPRESE_ASSOCIATE!G33 -> 0 | H20: =ALL_C_IMPRESE_ASSOCIATE!I33 -> 0
A21: 1 | C21: =IF(ALL_C_IMPRESE_ASSOCIATE!C34="","",ALL_C_IMPRESE_ASSOCIATE!C34) ->  | D21: 10 | E21: =ALL_C_IMPRESE_ASSOCIATE!E34 -> 0 | F21: =ALL_C_IMPRESE_ASSOCIATE!F34 -> 0 | G21: =ALL_C_IMPRESE_ASSOCIATE!G34 -> 0 | H21: =ALL_C_IMPRESE_ASSOCIATE!I34 -> 0
A22: 1 | C22: =IF(ALL_C_IMPRESE_ASSOCIATE!C35="","",ALL_C_IMPRESE_ASSOCIATE!C35) ->  | D22: 10 | E22: =ALL_C_IMPRESE_ASSOCIATE!E35 -> 0 | F22: =ALL_C_IMPRESE_ASSOCIATE!F35 -> 0 | G22: =ALL_C_IMPRESE_ASSOCIATE!G35 -> 0 | H22: =ALL_C_IMPRESE_ASSOCIATE!I35 -> 0
A23: 1 | C23: =IF(ALL_C_IMPRESE_ASSOCIATE!C36="","",ALL_C_IMPRESE_ASSOCIATE!C36) ->  | D23: 10 | E23: =ALL_C_IMPRESE_ASSOCIATE!E36 -> 0 | F23: =ALL_C_IMPRESE_ASSOCIATE!F36 -> 0 | G23: =ALL_C_IMPRESE_ASSOCIATE!G36 -> 0 | H23: =ALL_C_IMPRESE_ASSOCIATE!I36 -> 0
A24: 1 | C24: =IF(ALL_C_IMPRESE_ASSOCIATE!C37="","",ALL_C_IMPRESE_ASSOCIATE!C37) ->  | D24: 10 | E24: =ALL_C_IMPRESE_ASSOCIATE!E37 -> 0 | F24: =ALL_C_IMPRESE_ASSOCIATE!F37 -> 0 | G24: =ALL_C_IMPRESE_ASSOCIATE!G37 -> 0 | H24: =ALL_C_IMPRESE_ASSOCIATE!I37 -> 0
A25: 1 | C25: =IF(ALL_C_IMPRESE_ASSOCIATE!C38="","",ALL_C_IMPRESE_ASSOCIATE!C38) ->  | D25: 10 | E25: =ALL_C_IMPRESE_ASSOCIATE!E38 -> 0 | F25: =ALL_C_IMPRESE_ASSOCIATE!F38 -> 0 | G25: =ALL_C_IMPRESE_ASSOCIATE!G38 -> 0 | H25: =ALL_C_IMPRESE_ASSOCIATE!I38 -> 0
A26: 1 | C26: =IF(ALL_C_IMPRESE_ASSOCIATE!C39="","",ALL_C_IMPRESE_ASSOCIATE!C39) ->  | D26: 10 | E26: =ALL_C_IMPRESE_ASSOCIATE!E39 -> 0 | F26: =ALL_C_IMPRESE_ASSOCIATE!F39 -> 0 | G26: =ALL_C_IMPRESE_ASSOCIATE!G39 -> 0 | H26: =ALL_C_IMPRESE_ASSOCIATE!I39 -> 0
A27: 1 | C27: =IF(ALL_C_IMPRESE_ASSOCIATE!C40="","",ALL_C_IMPRESE_ASSOCIATE!C40) ->  | D27: 10 | E27: =ALL_C_IMPRESE_ASSOCIATE!E40 -> 0 | F27: =ALL_C_IMPRESE_ASSOCIATE!F40 -> 0 | G27: =ALL_C_IMPRESE_ASSOCIATE!G40 -> 0 | H27: =ALL_C_IMPRESE_ASSOCIATE!I40 -> 0
A28: 1 | C28: =IF(ALL_C_IMPRESE_ASSOCIATE!C41="","",ALL_C_IMPRESE_ASSOCIATE!C41) ->  | D28: 10 | E28: =ALL_C_IMPRESE_ASSOCIATE!E41 -> 0 | F28: =ALL_C_IMPRESE_ASSOCIATE!F41 -> 0 | G28: =ALL_C_IMPRESE_ASSOCIATE!G41 -> 0 | H28: =ALL_C_IMPRESE_ASSOCIATE!I41 -> 0
A29: 1 | C29: =IF(ALL_C_IMPRESE_ASSOCIATE!C42="","",ALL_C_IMPRESE_ASSOCIATE!C42) ->  | D29: 10 | E29: =ALL_C_IMPRESE_ASSOCIATE!E42 -> 0 | F29: =ALL_C_IMPRESE_ASSOCIATE!F42 -> 0 | G29: =ALL_C_IMPRESE_ASSOCIATE!G42 -> 0 | H29: =ALL_C_IMPRESE_ASSOCIATE!I42 -> 0
A30: 1 | C30: =IF(ALL_C_IMPRESE_ASSOCIATE!C43="","",ALL_C_IMPRESE_ASSOCIATE!C43) ->  | D30: 10 | E30: =ALL_C_IMPRESE_ASSOCIATE!E43 -> 0 | F30: =ALL_C_IMPRESE_ASSOCIATE!F43 -> 0 | G30: =ALL_C_IMPRESE_ASSOCIATE!G43 -> 0 | H30: =ALL_C_IMPRESE_ASSOCIATE!I43 -> 0
A31: 1 | C31: =IF(ALL_C_IMPRESE_ASSOCIATE!C44="","",ALL_C_IMPRESE_ASSOCIATE!C44) ->  | D31: 10 | E31: =ALL_C_IMPRESE_ASSOCIATE!E44 -> 0 | F31: =ALL_C_IMPRESE_ASSOCIATE!F44 -> 0 | G31: =ALL_C_IMPRESE_ASSOCIATE!G44 -> 0 | H31: =ALL_C_IMPRESE_ASSOCIATE!I44 -> 0
A32: 1 | C32: =IF(ALL_C_IMPRESE_ASSOCIATE!C47="","",ALL_C_IMPRESE_ASSOCIATE!C47) -> 0 | D32: 20 | E32: =ALL_C_IMPRESE_ASSOCIATE!E47 -> 0 | F32: =ALL_C_IMPRESE_ASSOCIATE!F47 -> 0 | G32: =ALL_C_IMPRESE_ASSOCIATE!G47 -> 0 | H32: =ALL_C_IMPRESE_ASSOCIATE!I47 -> 0
A33: 1 | C33: =IF(ALL_C_IMPRESE_ASSOCIATE!C48="","",ALL_C_IMPRESE_ASSOCIATE!C48) ->  | D33: 20 | E33: =ALL_C_IMPRESE_ASSOCIATE!E48 -> 0 | F33: =ALL_C_IMPRESE_ASSOCIATE!F48 -> 0 | G33: =ALL_C_IMPRESE_ASSOCIATE!G48 -> 0 | H33: =ALL_C_IMPRESE_ASSOCIATE!I48 -> 0
A34: 1 | C34: =IF(ALL_C_IMPRESE_ASSOCIATE!C49="","",ALL_C_IMPRESE_ASSOCIATE!C49) ->  | D34: 20 | E34: =ALL_C_IMPRESE_ASSOCIATE!E49 -> 0 | F34: =ALL_C_IMPRESE_ASSOCIATE!F49 -> 0 | G34: =ALL_C_IMPRESE_ASSOCIATE!G49 -> 0 | H34: =ALL_C_IMPRESE_ASSOCIATE!I49 -> 0
A35: 1 | C35: =IF(ALL_C_IMPRESE_ASSOCIATE!C50="","",ALL_C_IMPRESE_ASSOCIATE!C50) ->  | D35: 20 | E35: =ALL_C_IMPRESE_ASSOCIATE!E50 -> 0 | F35: =ALL_C_IMPRESE_ASSOCIATE!F50 -> 0 | G35: =ALL_C_IMPRESE_ASSOCIATE!G50 -> 0 | H35: =ALL_C_IMPRESE_ASSOCIATE!I50 -> 0
A36: 1 | C36: =IF(ALL_C_IMPRESE_ASSOCIATE!C51="","",ALL_C_IMPRESE_ASSOCIATE!C51) ->  | D36: 20 | E36: =ALL_C_IMPRESE_ASSOCIATE!E51 -> 0 | F36: =ALL_C_IMPRESE_ASSOCIATE!F51 -> 0 | G36: =ALL_C_IMPRESE_ASSOCIATE!G51 -> 0 | H36: =ALL_C_IMPRESE_ASSOCIATE!I51 -> 0
A37: 1 | C37: =IF(ALL_C_IMPRESE_ASSOCIATE!C52="","",ALL_C_IMPRESE_ASSOCIATE!C52) ->  | D37: 20 | E37: =ALL_C_IMPRESE_ASSOCIATE!E52 -> 0 | F37: =ALL_C_IMPRESE_ASSOCIATE!F52 -> 0 | G37: =ALL_C_IMPRESE_ASSOCIATE!G52 -> 0 | H37: =ALL_C_IMPRESE_ASSOCIATE!I52 -> 0
A38: 1 | C38: =IF(ALL_C_IMPRESE_ASSOCIATE!C53="","",ALL_C_IMPRESE_ASSOCIATE!C53) ->  | D38: 20 | E38: =ALL_C_IMPRESE_ASSOCIATE!E53 -> 0 | F38: =ALL_C_IMPRESE_ASSOCIATE!F53 -> 0 | G38: =ALL_C_IMPRESE_ASSOCIATE!G53 -> 0 | H38: =ALL_C_IMPRESE_ASSOCIATE!I53 -> 0
A39: 1 | C39: =IF(ALL_C_IMPRESE_ASSOCIATE!C54="","",ALL_C_IMPRESE_ASSOCIATE!C54) ->  | D39: 20 | E39: =ALL_C_IMPRESE_ASSOCIATE!E54 -> 0 | F39: =ALL_C_IMPRESE_ASSOCIATE!F54 -> 0 | G39: =ALL_C_IMPRESE_ASSOCIATE!G54 -> 0 | H39: =ALL_C_IMPRESE_ASSOCIATE!I54 -> 0
A40: 1 | C40: =IF(ALL_C_IMPRESE_ASSOCIATE!C55="","",ALL_C_IMPRESE_ASSOCIATE!C55) ->  | D40: 20 | E40: =ALL_C_IMPRESE_ASSOCIATE!E55 -> 0 | F40: =ALL_C_IMPRESE_ASSOCIATE!F55 -> 0 | G40: =ALL_C_IMPRESE_ASSOCIATE!G55 -> 0 | H40: =ALL_C_IMPRESE_ASSOCIATE!I55 -> 0
A41: 1 | C41: =IF(ALL_C_IMPRESE_ASSOCIATE!C56="","",ALL_C_IMPRESE_ASSOCIATE!C56) ->  | D41: 20 | E41: =ALL_C_IMPRESE_ASSOCIATE!E56 -> 0 | F41: =ALL_C_IMPRESE_ASSOCIATE!F56 -> 0 | G41: =ALL_C_IMPRESE_ASSOCIATE!G56 -> 0 | H41: =ALL_C_IMPRESE_ASSOCIATE!I56 -> 0
A42: 1 | C42: =IF(ALL_C_IMPRESE_ASSOCIATE!C57="","",ALL_C_IMPRESE_ASSOCIATE!C57) ->  | D42: 20 | E42: =ALL_C_IMPRESE_ASSOCIATE!E57 -> 0 | F42: =ALL_C_IMPRESE_ASSOCIATE!F57 -> 0 | G42: =ALL_C_IMPRESE_ASSOCIATE!G57 -> 0 | H42: =ALL_C_IMPRESE_ASSOCIATE!I57 -> 0
A43: 1 | C43: =IF(ALL_C_IMPRESE_ASSOCIATE!C58="","",ALL_C_IMPRESE_ASSOCIATE!C58) ->  | D43: 20 | E43: =ALL_C_IMPRESE_ASSOCIATE!E58 -> 0 | F43: =ALL_C_IMPRESE_ASSOCIATE!F58 -> 0 | G43: =ALL_C_IMPRESE_ASSOCIATE!G58 -> 0 | H43: =ALL_C_IMPRESE_ASSOCIATE!I58 -> 0
A44: 1 | C44: =IF(ALL_C_IMPRESE_ASSOCIATE!C59="","",ALL_C_IMPRESE_ASSOCIATE!C59) ->  | D44: 20 | E44: =ALL_C_IMPRESE_ASSOCIATE!E59 -> 0 | F44: =ALL_C_IMPRESE_ASSOCIATE!F59 -> 0 | G44: =ALL_C_IMPRESE_ASSOCIATE!G59 -> 0 | H44: =ALL_C_IMPRESE_ASSOCIATE!I59 -> 0
A45: 1 | C45: =IF(ALL_C_IMPRESE_ASSOCIATE!C60="","",ALL_C_IMPRESE_ASSOCIATE!C60) ->  | D45: 20 | E45: =ALL_C_IMPRESE_ASSOCIATE!E60 -> 0 | F45: =ALL_C_IMPRESE_ASSOCIATE!F60 -> 0 | G45: =ALL_C_IMPRESE_ASSOCIATE!G60 -> 0 | H45: =ALL_C_IMPRESE_ASSOCIATE!I60 -> 0
A46: 1 | C46: =IF(ALL_C_IMPRESE_ASSOCIATE!C61="","",ALL_C_IMPRESE_ASSOCIATE!C61) ->  | D46: 20 | E46: =ALL_C_IMPRESE_ASSOCIATE!E61 -> 0 | F46: =ALL_C_IMPRESE_ASSOCIATE!F61 -> 0 | G46: =ALL_C_IMPRESE_ASSOCIATE!G61 -> 0 | H46: =ALL_C_IMPRESE_ASSOCIATE!I61 -> 0
A47: 1 | C47: =IF(ALL_C_IMPRESE_ASSOCIATE!C62="","",ALL_C_IMPRESE_ASSOCIATE!C62) ->  | D47: 20 | E47: =ALL_C_IMPRESE_ASSOCIATE!E62 -> 0 | F47: =ALL_C_IMPRESE_ASSOCIATE!F62 -> 0 | G47: =ALL_C_IMPRESE_ASSOCIATE!G62 -> 0 | H47: =ALL_C_IMPRESE_ASSOCIATE!I62 -> 0
A48: 1 | C48: =IF(ALL_C_IMPRESE_ASSOCIATE!C63="","",ALL_C_IMPRESE_ASSOCIATE!C63) ->  | D48: 20 | E48: =ALL_C_IMPRESE_ASSOCIATE!E63 -> 0 | F48: =ALL_C_IMPRESE_ASSOCIATE!F63 -> 0 | G48: =ALL_C_IMPRESE_ASSOCIATE!G63 -> 0 | H48: =ALL_C_IMPRESE_ASSOCIATE!I63 -> 0
A49: 1 | C49: =IF(ALL_C_IMPRESE_ASSOCIATE!C64="","",ALL_C_IMPRESE_ASSOCIATE!C64) ->  | D49: 20 | E49: =ALL_C_IMPRESE_ASSOCIATE!E64 -> 0 | F49: =ALL_C_IMPRESE_ASSOCIATE!F64 -> 0 | G49: =ALL_C_IMPRESE_ASSOCIATE!G64 -> 0 | H49: =ALL_C_IMPRESE_ASSOCIATE!I64 -> 0
A50: 1 | C50: =IF(ALL_C_IMPRESE_ASSOCIATE!C65="","",ALL_C_IMPRESE_ASSOCIATE!C65) ->  | D50: 20 | E50: =ALL_C_IMPRESE_ASSOCIATE!E65 -> 0 | F50: =ALL_C_IMPRESE_ASSOCIATE!F65 -> 0 | G50: =ALL_C_IMPRESE_ASSOCIATE!G65 -> 0 | H50: =ALL_C_IMPRESE_ASSOCIATE!I65 -> 0
A51: 1 | C51: =IF(ALL_C_IMPRESE_ASSOCIATE!C66="","",ALL_C_IMPRESE_ASSOCIATE!C66) ->  | D51: 20 | E51: =ALL_C_IMPRESE_ASSOCIATE!E66 -> 0 | F51: =ALL_C_IMPRESE_ASSOCIATE!F66 -> 0 | G51: =ALL_C_IMPRESE_ASSOCIATE!G66 -> 0 | H51: =ALL_C_IMPRESE_ASSOCIATE!I66 -> 0
A52: 1 | C52: =IF(ALL_C_IMPRESE_ASSOCIATE!C67="","",ALL_C_IMPRESE_ASSOCIATE!C67) ->  | D52: 20 | E52: =ALL_C_IMPRESE_ASSOCIATE!E67 -> 0 | F52: =ALL_C_IMPRESE_ASSOCIATE!F67 -> 0 | G52: =ALL_C_IMPRESE_ASSOCIATE!G67 -> 0 | H52: =ALL_C_IMPRESE_ASSOCIATE!I67 -> 0
A53: 1 | C53: =IF(ALL_C_IMPRESE_ASSOCIATE!C68="","",ALL_C_IMPRESE_ASSOCIATE!C68) ->  | D53: 20 | E53: =ALL_C_IMPRESE_ASSOCIATE!E68 -> 0 | F53: =ALL_C_IMPRESE_ASSOCIATE!F68 -> 0 | G53: =ALL_C_IMPRESE_ASSOCIATE!G68 -> 0 | H53: =ALL_C_IMPRESE_ASSOCIATE!I68 -> 0
A54: 1 | C54: =IF(ALL_C_IMPRESE_ASSOCIATE!C69="","",ALL_C_IMPRESE_ASSOCIATE!C69) ->  | D54: 20 | E54: =ALL_C_IMPRESE_ASSOCIATE!E69 -> 0 | F54: =ALL_C_IMPRESE_ASSOCIATE!F69 -> 0 | G54: =ALL_C_IMPRESE_ASSOCIATE!G69 -> 0 | H54: =ALL_C_IMPRESE_ASSOCIATE!I69 -> 0
A55: 1 | C55: =IF(ALL_C_IMPRESE_ASSOCIATE!C70="","",ALL_C_IMPRESE_ASSOCIATE!C70) ->  | D55: 20 | E55: =ALL_C_IMPRESE_ASSOCIATE!E70 -> 0 | F55: =ALL_C_IMPRESE_ASSOCIATE!F70 -> 0 | G55: =ALL_C_IMPRESE_ASSOCIATE!G70 -> 0 | H55: =ALL_C_IMPRESE_ASSOCIATE!I70 -> 0
A56: 1 | C56: =IF(ALL_C_IMPRESE_ASSOCIATE!C71="","",ALL_C_IMPRESE_ASSOCIATE!C71) ->  | D56: 20 | E56: =ALL_C_IMPRESE_ASSOCIATE!E71 -> 0 | F56: =ALL_C_IMPRESE_ASSOCIATE!F71 -> 0 | G56: =ALL_C_IMPRESE_ASSOCIATE!G71 -> 0 | H56: =ALL_C_IMPRESE_ASSOCIATE!I71 -> 0
A57: 1 | C57: =IF(ALL_C_IMPRESE_ASSOCIATE!C72="","",ALL_C_IMPRESE_ASSOCIATE!C72) ->  | D57: 20 | E57: =ALL_C_IMPRESE_ASSOCIATE!E72 -> 0 | F57: =ALL_C_IMPRESE_ASSOCIATE!F72 -> 0 | G57: =ALL_C_IMPRESE_ASSOCIATE!G72 -> 0 | H57: =ALL_C_IMPRESE_ASSOCIATE!I72 -> 0
A58: 1 | C58: =IF(ALL_C_IMPRESE_ASSOCIATE!C73="","",ALL_C_IMPRESE_ASSOCIATE!C73) ->  | D58: 20 | E58: =ALL_C_IMPRESE_ASSOCIATE!E73 -> 0 | F58: =ALL_C_IMPRESE_ASSOCIATE!F73 -> 0 | G58: =ALL_C_IMPRESE_ASSOCIATE!G73 -> 0 | H58: =ALL_C_IMPRESE_ASSOCIATE!I73 -> 0
A59: 1 | C59: =IF(ALL_C_IMPRESE_ASSOCIATE!C74="","",ALL_C_IMPRESE_ASSOCIATE!C74) ->  | D59: 20 | E59: =ALL_C_IMPRESE_ASSOCIATE!E74 -> 0 | F59: =ALL_C_IMPRESE_ASSOCIATE!F74 -> 0 | G59: =ALL_C_IMPRESE_ASSOCIATE!G74 -> 0 | H59: =ALL_C_IMPRESE_ASSOCIATE!I74 -> 0
A60: 1 | C60: =IF(ALL_C_IMPRESE_ASSOCIATE!C75="","",ALL_C_IMPRESE_ASSOCIATE!C75) ->  | D60: 20 | E60: =ALL_C_IMPRESE_ASSOCIATE!E75 -> 0 | F60: =ALL_C_IMPRESE_ASSOCIATE!F75 -> 0 | G60: =ALL_C_IMPRESE_ASSOCIATE!G75 -> 0 | H60: =ALL_C_IMPRESE_ASSOCIATE!I75 -> 0
A61: 1 | C61: =IF(ALL_C_IMPRESE_ASSOCIATE!C76="","",ALL_C_IMPRESE_ASSOCIATE!C76) ->  | D61: 20 | E61: =ALL_C_IMPRESE_ASSOCIATE!E76 -> 0 | F61: =ALL_C_IMPRESE_ASSOCIATE!F76 -> 0 | G61: =ALL_C_IMPRESE_ASSOCIATE!G76 -> 0 | H61: =ALL_C_IMPRESE_ASSOCIATE!I76 -> 0
A62: 1 | C62: =IF(ALL_C_IMPRESE_ASSOCIATE!C79="","",ALL_C_IMPRESE_ASSOCIATE!C79) -> 0 | D62: 30 | E62: =ALL_C_IMPRESE_ASSOCIATE!E79 -> 0 | F62: =ALL_C_IMPRESE_ASSOCIATE!F79 -> 0 | G62: =ALL_C_IMPRESE_ASSOCIATE!G79 -> 0 | H62: =ALL_C_IMPRESE_ASSOCIATE!I79 -> 0
A63: 1 | C63: =IF(ALL_C_IMPRESE_ASSOCIATE!C80="","",ALL_C_IMPRESE_ASSOCIATE!C80) ->  | D63: 30 | E63: =ALL_C_IMPRESE_ASSOCIATE!E80 -> 0 | F63: =ALL_C_IMPRESE_ASSOCIATE!F80 -> 0 | G63: =ALL_C_IMPRESE_ASSOCIATE!G80 -> 0 | H63: =ALL_C_IMPRESE_ASSOCIATE!I80 -> 0
A64: 1 | C64: =IF(ALL_C_IMPRESE_ASSOCIATE!C81="","",ALL_C_IMPRESE_ASSOCIATE!C81) ->  | D64: 30 | E64: =ALL_C_IMPRESE_ASSOCIATE!E81 -> 0 | F64: =ALL_C_IMPRESE_ASSOCIATE!F81 -> 0 | G64: =ALL_C_IMPRESE_ASSOCIATE!G81 -> 0 | H64: =ALL_C_IMPRESE_ASSOCIATE!I81 -> 0
A65: 1 | C65: =IF(ALL_C_IMPRESE_ASSOCIATE!C82="","",ALL_C_IMPRESE_ASSOCIATE!C82) ->  | D65: 30 | E65: =ALL_C_IMPRESE_ASSOCIATE!E82 -> 0 | F65: =ALL_C_IMPRESE_ASSOCIATE!F82 -> 0 | G65: =ALL_C_IMPRESE_ASSOCIATE!G82 -> 0 | H65: =ALL_C_IMPRESE_ASSOCIATE!I82 -> 0
A66: 1 | C66: =IF(ALL_C_IMPRESE_ASSOCIATE!C83="","",ALL_C_IMPRESE_ASSOCIATE!C83) ->  | D66: 30 | E66: =ALL_C_IMPRESE_ASSOCIATE!E83 -> 0 | F66: =ALL_C_IMPRESE_ASSOCIATE!F83 -> 0 | G66: =ALL_C_IMPRESE_ASSOCIATE!G83 -> 0 | H66: =ALL_C_IMPRESE_ASSOCIATE!I83 -> 0
A67: 1 | C67: =IF(ALL_C_IMPRESE_ASSOCIATE!C84="","",ALL_C_IMPRESE_ASSOCIATE!C84) ->  | D67: 30 | E67: =ALL_C_IMPRESE_ASSOCIATE!E84 -> 0 | F67: =ALL_C_IMPRESE_ASSOCIATE!F84 -> 0 | G67: =ALL_C_IMPRESE_ASSOCIATE!G84 -> 0 | H67: =ALL_C_IMPRESE_ASSOCIATE!I84 -> 0
A68: 1 | C68: =IF(ALL_C_IMPRESE_ASSOCIATE!C85="","",ALL_C_IMPRESE_ASSOCIATE!C85) ->  | D68: 30 | E68: =ALL_C_IMPRESE_ASSOCIATE!E85 -> 0 | F68: =ALL_C_IMPRESE_ASSOCIATE!F85 -> 0 | G68: =ALL_C_IMPRESE_ASSOCIATE!G85 -> 0 | H68: =ALL_C_IMPRESE_ASSOCIATE!I85 -> 0
A69: 1 | C69: =IF(ALL_C_IMPRESE_ASSOCIATE!C86="","",ALL_C_IMPRESE_ASSOCIATE!C86) ->  | D69: 30 | E69: =ALL_C_IMPRESE_ASSOCIATE!E86 -> 0 | F69: =ALL_C_IMPRESE_ASSOCIATE!F86 -> 0 | G69: =ALL_C_IMPRESE_ASSOCIATE!G86 -> 0 | H69: =ALL_C_IMPRESE_ASSOCIATE!I86 -> 0
A70: 1 | C70: =IF(ALL_C_IMPRESE_ASSOCIATE!C87="","",ALL_C_IMPRESE_ASSOCIATE!C87) ->  | D70: 30 | E70: =ALL_C_IMPRESE_ASSOCIATE!E87 -> 0 | F70: =ALL_C_IMPRESE_ASSOCIATE!F87 -> 0 | G70: =ALL_C_IMPRESE_ASSOCIATE!G87 -> 0 | H70: =ALL_C_IMPRESE_ASSOCIATE!I87 -> 0
A71: 1 | C71: =IF(ALL_C_IMPRESE_ASSOCIATE!C88="","",ALL_C_IMPRESE_ASSOCIATE!C88) ->  | D71: 30 | E71: =ALL_C_IMPRESE_ASSOCIATE!E88 -> 0 | F71: =ALL_C_IMPRESE_ASSOCIATE!F88 -> 0 | G71: =ALL_C_IMPRESE_ASSOCIATE!G88 -> 0 | H71: =ALL_C_IMPRESE_ASSOCIATE!I88 -> 0
A72: 1 | C72: =IF(ALL_C_IMPRESE_ASSOCIATE!C89="","",ALL_C_IMPRESE_ASSOCIATE!C89) ->  | D72: 30 | E72: =ALL_C_IMPRESE_ASSOCIATE!E89 -> 0 | F72: =ALL_C_IMPRESE_ASSOCIATE!F89 -> 0 | G72: =ALL_C_IMPRESE_ASSOCIATE!G89 -> 0 | H72: =ALL_C_IMPRESE_ASSOCIATE!I89 -> 0
A73: 1 | C73: =IF(ALL_C_IMPRESE_ASSOCIATE!C90="","",ALL_C_IMPRESE_ASSOCIATE!C90) ->  | D73: 30 | E73: =ALL_C_IMPRESE_ASSOCIATE!E90 -> 0 | F73: =ALL_C_IMPRESE_ASSOCIATE!F90 -> 0 | G73: =ALL_C_IMPRESE_ASSOCIATE!G90 -> 0 | H73: =ALL_C_IMPRESE_ASSOCIATE!I90 -> 0
A74: 1 | C74: =IF(ALL_C_IMPRESE_ASSOCIATE!C91="","",ALL_C_IMPRESE_ASSOCIATE!C91) ->  | D74: 30 | E74: =ALL_C_IMPRESE_ASSOCIATE!E91 -> 0 | F74: =ALL_C_IMPRESE_ASSOCIATE!F91 -> 0 | G74: =ALL_C_IMPRESE_ASSOCIATE!G91 -> 0 | H74: =ALL_C_IMPRESE_ASSOCIATE!I91 -> 0
A75: 1 | C75: =IF(ALL_C_IMPRESE_ASSOCIATE!C92="","",ALL_C_IMPRESE_ASSOCIATE!C92) ->  | D75: 30 | E75: =ALL_C_IMPRESE_ASSOCIATE!E92 -> 0 | F75: =ALL_C_IMPRESE_ASSOCIATE!F92 -> 0 | G75: =ALL_C_IMPRESE_ASSOCIATE!G92 -> 0 | H75: =ALL_C_IMPRESE_ASSOCIATE!I92 -> 0
A76: 1 | C76: =IF(ALL_C_IMPRESE_ASSOCIATE!C93="","",ALL_C_IMPRESE_ASSOCIATE!C93) ->  | D76: 30 | E76: =ALL_C_IMPRESE_ASSOCIATE!E93 -> 0 | F76: =ALL_C_IMPRESE_ASSOCIATE!F93 -> 0 | G76: =ALL_C_IMPRESE_ASSOCIATE!G93 -> 0 | H76: =ALL_C_IMPRESE_ASSOCIATE!I93 -> 0
A77: 1 | C77: =IF(ALL_C_IMPRESE_ASSOCIATE!C94="","",ALL_C_IMPRESE_ASSOCIATE!C94) ->  | D77: 30 | E77: =ALL_C_IMPRESE_ASSOCIATE!E94 -> 0 | F77: =ALL_C_IMPRESE_ASSOCIATE!F94 -> 0 | G77: =ALL_C_IMPRESE_ASSOCIATE!G94 -> 0 | H77: =ALL_C_IMPRESE_ASSOCIATE!I94 -> 0
A78: 1 | C78: =IF(ALL_C_IMPRESE_ASSOCIATE!C95="","",ALL_C_IMPRESE_ASSOCIATE!C95) ->  | D78: 30 | E78: =ALL_C_IMPRESE_ASSOCIATE!E95 -> 0 | F78: =ALL_C_IMPRESE_ASSOCIATE!F95 -> 0 | G78: =ALL_C_IMPRESE_ASSOCIATE!G95 -> 0 | H78: =ALL_C_IMPRESE_ASSOCIATE!I95 -> 0
A79: 1 | C79: =IF(ALL_C_IMPRESE_ASSOCIATE!C96="","",ALL_C_IMPRESE_ASSOCIATE!C96) ->  | D79: 30 | E79: =ALL_C_IMPRESE_ASSOCIATE!E96 -> 0 | F79: =ALL_C_IMPRESE_ASSOCIATE!F96 -> 0 | G79: =ALL_C_IMPRESE_ASSOCIATE!G96 -> 0 | H79: =ALL_C_IMPRESE_ASSOCIATE!I96 -> 0
A80: 1 | C80: =IF(ALL_C_IMPRESE_ASSOCIATE!C97="","",ALL_C_IMPRESE_ASSOCIATE!C97) ->  | D80: 30 | E80: =ALL_C_IMPRESE_ASSOCIATE!E97 -> 0 | F80: =ALL_C_IMPRESE_ASSOCIATE!F97 -> 0 | G80: =ALL_C_IMPRESE_ASSOCIATE!G97 -> 0 | H80: =ALL_C_IMPRESE_ASSOCIATE!I97 -> 0
A81: 1 | C81: =IF(ALL_C_IMPRESE_ASSOCIATE!C98="","",ALL_C_IMPRESE_ASSOCIATE!C98) ->  | D81: 30 | E81: =ALL_C_IMPRESE_ASSOCIATE!E98 -> 0 | F81: =ALL_C_IMPRESE_ASSOCIATE!F98 -> 0 | G81: =ALL_C_IMPRESE_ASSOCIATE!G98 -> 0 | H81: =ALL_C_IMPRESE_ASSOCIATE!I98 -> 0
A82: 1 | C82: =IF(ALL_C_IMPRESE_ASSOCIATE!C99="","",ALL_C_IMPRESE_ASSOCIATE!C99) ->  | D82: 30 | E82: =ALL_C_IMPRESE_ASSOCIATE!E99 -> 0 | F82: =ALL_C_IMPRESE_ASSOCIATE!F99 -> 0 | G82: =ALL_C_IMPRESE_ASSOCIATE!G99 -> 0 | H82: =ALL_C_IMPRESE_ASSOCIATE!I99 -> 0
A83: 1 | C83: =IF(ALL_C_IMPRESE_ASSOCIATE!C100="","",ALL_C_IMPRESE_ASSOCIATE!C100) ->  | D83: 30 | E83: =ALL_C_IMPRESE_ASSOCIATE!E100 -> 0 | F83: =ALL_C_IMPRESE_ASSOCIATE!F100 -> 0 | G83: =ALL_C_IMPRESE_ASSOCIATE!G100 -> 0 | H83: =ALL_C_IMPRESE_ASSOCIATE!I100 -> 0
A84: 1 | C84: =IF(ALL_C_IMPRESE_ASSOCIATE!C101="","",ALL_C_IMPRESE_ASSOCIATE!C101) ->  | D84: 30 | E84: =ALL_C_IMPRESE_ASSOCIATE!E101 -> 0 | F84: =ALL_C_IMPRESE_ASSOCIATE!F101 -> 0 | G84: =ALL_C_IMPRESE_ASSOCIATE!G101 -> 0 | H84: =ALL_C_IMPRESE_ASSOCIATE!I101 -> 0
A85: 1 | C85: =IF(ALL_C_IMPRESE_ASSOCIATE!C102="","",ALL_C_IMPRESE_ASSOCIATE!C102) ->  | D85: 30 | E85: =ALL_C_IMPRESE_ASSOCIATE!E102 -> 0 | F85: =ALL_C_IMPRESE_ASSOCIATE!F102 -> 0 | G85: =ALL_C_IMPRESE_ASSOCIATE!G102 -> 0 | H85: =ALL_C_IMPRESE_ASSOCIATE!I102 -> 0
A86: 1 | C86: =IF(ALL_C_IMPRESE_ASSOCIATE!C103="","",ALL_C_IMPRESE_ASSOCIATE!C103) ->  | D86: 30 | E86: =ALL_C_IMPRESE_ASSOCIATE!E103 -> 0 | F86: =ALL_C_IMPRESE_ASSOCIATE!F103 -> 0 | G86: =ALL_C_IMPRESE_ASSOCIATE!G103 -> 0 | H86: =ALL_C_IMPRESE_ASSOCIATE!I103 -> 0
A87: 1 | C87: =IF(ALL_C_IMPRESE_ASSOCIATE!C104="","",ALL_C_IMPRESE_ASSOCIATE!C104) ->  | D87: 30 | E87: =ALL_C_IMPRESE_ASSOCIATE!E104 -> 0 | F87: =ALL_C_IMPRESE_ASSOCIATE!F104 -> 0 | G87: =ALL_C_IMPRESE_ASSOCIATE!G104 -> 0 | H87: =ALL_C_IMPRESE_ASSOCIATE!I104 -> 0
A88: 1 | C88: =IF(ALL_C_IMPRESE_ASSOCIATE!C105="","",ALL_C_IMPRESE_ASSOCIATE!C105) ->  | D88: 30 | E88: =ALL_C_IMPRESE_ASSOCIATE!E105 -> 0 | F88: =ALL_C_IMPRESE_ASSOCIATE!F105 -> 0 | G88: =ALL_C_IMPRESE_ASSOCIATE!G105 -> 0 | H88: =ALL_C_IMPRESE_ASSOCIATE!I105 -> 0
A89: 1 | C89: =IF(ALL_C_IMPRESE_ASSOCIATE!C106="","",ALL_C_IMPRESE_ASSOCIATE!C106) ->  | D89: 30 | E89: =ALL_C_IMPRESE_ASSOCIATE!E106 -> 0 | F89: =ALL_C_IMPRESE_ASSOCIATE!F106 -> 0 | G89: =ALL_C_IMPRESE_ASSOCIATE!G106 -> 0 | H89: =ALL_C_IMPRESE_ASSOCIATE!I106 -> 0
A90: 1 | C90: =IF(ALL_C_IMPRESE_ASSOCIATE!C107="","",ALL_C_IMPRESE_ASSOCIATE!C107) ->  | D90: 30 | E90: =ALL_C_IMPRESE_ASSOCIATE!E107 -> 0 | F90: =ALL_C_IMPRESE_ASSOCIATE!F107 -> 0 | G90: =ALL_C_IMPRESE_ASSOCIATE!G107 -> 0 | H90: =ALL_C_IMPRESE_ASSOCIATE!I107 -> 0
A91: 1 | C91: =IF(ALL_C_IMPRESE_ASSOCIATE!C108="","",ALL_C_IMPRESE_ASSOCIATE!C108) ->  | D91: 30 | E91: =ALL_C_IMPRESE_ASSOCIATE!E108 -> 0 | F91: =ALL_C_IMPRESE_ASSOCIATE!F108 -> 0 | G91: =ALL_C_IMPRESE_ASSOCIATE!G108 -> 0 | H91: =ALL_C_IMPRESE_ASSOCIATE!I108 -> 0
A92: 1 | C92: =IF(ALL_C_IMPRESE_ASSOCIATE!C111="","",ALL_C_IMPRESE_ASSOCIATE!C111) -> 0 | D92: 40 | E92: =ALL_C_IMPRESE_ASSOCIATE!E111 -> 0 | F92: =ALL_C_IMPRESE_ASSOCIATE!F111 -> 0 | G92: =ALL_C_IMPRESE_ASSOCIATE!G111 -> 0 | H92: =ALL_C_IMPRESE_ASSOCIATE!I111 -> 0
A93: 1 | C93: =IF(ALL_C_IMPRESE_ASSOCIATE!C112="","",ALL_C_IMPRESE_ASSOCIATE!C112) ->  | D93: 40 | E93: =ALL_C_IMPRESE_ASSOCIATE!E112 -> 0 | F93: =ALL_C_IMPRESE_ASSOCIATE!F112 -> 0 | G93: =ALL_C_IMPRESE_ASSOCIATE!G112 -> 0 | H93: =ALL_C_IMPRESE_ASSOCIATE!I112 -> 0
A94: 1 | C94: =IF(ALL_C_IMPRESE_ASSOCIATE!C113="","",ALL_C_IMPRESE_ASSOCIATE!C113) ->  | D94: 40 | E94: =ALL_C_IMPRESE_ASSOCIATE!E113 -> 0 | F94: =ALL_C_IMPRESE_ASSOCIATE!F113 -> 0 | G94: =ALL_C_IMPRESE_ASSOCIATE!G113 -> 0 | H94: =ALL_C_IMPRESE_ASSOCIATE!I113 -> 0
A95: 1 | C95: =IF(ALL_C_IMPRESE_ASSOCIATE!C114="","",ALL_C_IMPRESE_ASSOCIATE!C114) ->  | D95: 40 | E95: =ALL_C_IMPRESE_ASSOCIATE!E114 -> 0 | F95: =ALL_C_IMPRESE_ASSOCIATE!F114 -> 0 | G95: =ALL_C_IMPRESE_ASSOCIATE!G114 -> 0 | H95: =ALL_C_IMPRESE_ASSOCIATE!I114 -> 0
A96: 1 | C96: =IF(ALL_C_IMPRESE_ASSOCIATE!C115="","",ALL_C_IMPRESE_ASSOCIATE!C115) ->  | D96: 40 | E96: =ALL_C_IMPRESE_ASSOCIATE!E115 -> 0 | F96: =ALL_C_IMPRESE_ASSOCIATE!F115 -> 0 | G96: =ALL_C_IMPRESE_ASSOCIATE!G115 -> 0 | H96: =ALL_C_IMPRESE_ASSOCIATE!I115 -> 0
A97: 1 | C97: =IF(ALL_C_IMPRESE_ASSOCIATE!C116="","",ALL_C_IMPRESE_ASSOCIATE!C116) ->  | D97: 40 | E97: =ALL_C_IMPRESE_ASSOCIATE!E116 -> 0 | F97: =ALL_C_IMPRESE_ASSOCIATE!F116 -> 0 | G97: =ALL_C_IMPRESE_ASSOCIATE!G116 -> 0 | H97: =ALL_C_IMPRESE_ASSOCIATE!I116 -> 0
A98: 1 | C98: =IF(ALL_C_IMPRESE_ASSOCIATE!C117="","",ALL_C_IMPRESE_ASSOCIATE!C117) ->  | D98: 40 | E98: =ALL_C_IMPRESE_ASSOCIATE!E117 -> 0 | F98: =ALL_C_IMPRESE_ASSOCIATE!F117 -> 0 | G98: =ALL_C_IMPRESE_ASSOCIATE!G117 -> 0 | H98: =ALL_C_IMPRESE_ASSOCIATE!I117 -> 0
A99: 1 | C99: =IF(ALL_C_IMPRESE_ASSOCIATE!C118="","",ALL_C_IMPRESE_ASSOCIATE!C118) ->  | D99: 40 | E99: =ALL_C_IMPRESE_ASSOCIATE!E118 -> 0 | F99: =ALL_C_IMPRESE_ASSOCIATE!F118 -> 0 | G99: =ALL_C_IMPRESE_ASSOCIATE!G118 -> 0 | H99: =ALL_C_IMPRESE_ASSOCIATE!I118 -> 0
A100: 1 | C100: =IF(ALL_C_IMPRESE_ASSOCIATE!C119="","",ALL_C_IMPRESE_ASSOCIATE!C119) ->  | D100: 40 | E100: =ALL_C_IMPRESE_ASSOCIATE!E119 -> 0 | F100: =ALL_C_IMPRESE_ASSOCIATE!F119 -> 0 | G100: =ALL_C_IMPRESE_ASSOCIATE!G119 -> 0 | H100: =ALL_C_IMPRESE_ASSOCIATE!I119 -> 0
A101: 1 | C101: =IF(ALL_C_IMPRESE_ASSOCIATE!C120="","",ALL_C_IMPRESE_ASSOCIATE!C120) ->  | D101: 40 | E101: =ALL_C_IMPRESE_ASSOCIATE!E120 -> 0 | F101: =ALL_C_IMPRESE_ASSOCIATE!F120 -> 0 | G101: =ALL_C_IMPRESE_ASSOCIATE!G120 -> 0 | H101: =ALL_C_IMPRESE_ASSOCIATE!I120 -> 0
A102: 1 | C102: =IF(ALL_C_IMPRESE_ASSOCIATE!C121="","",ALL_C_IMPRESE_ASSOCIATE!C121) ->  | D102: 40 | E102: =ALL_C_IMPRESE_ASSOCIATE!E121 -> 0 | F102: =ALL_C_IMPRESE_ASSOCIATE!F121 -> 0 | G102: =ALL_C_IMPRESE_ASSOCIATE!G121 -> 0 | H102: =ALL_C_IMPRESE_ASSOCIATE!I121 -> 0
A103: 1 | C103: =IF(ALL_C_IMPRESE_ASSOCIATE!C122="","",ALL_C_IMPRESE_ASSOCIATE!C122) ->  | D103: 40 | E103: =ALL_C_IMPRESE_ASSOCIATE!E122 -> 0 | F103: =ALL_C_IMPRESE_ASSOCIATE!F122 -> 0 | G103: =ALL_C_IMPRESE_ASSOCIATE!G122 -> 0 | H103: =ALL_C_IMPRESE_ASSOCIATE!I122 -> 0
A104: 1 | C104: =IF(ALL_C_IMPRESE_ASSOCIATE!C123="","",ALL_C_IMPRESE_ASSOCIATE!C123) ->  | D104: 40 | E104: =ALL_C_IMPRESE_ASSOCIATE!E123 -> 0 | F104: =ALL_C_IMPRESE_ASSOCIATE!F123 -> 0 | G104: =ALL_C_IMPRESE_ASSOCIATE!G123 -> 0 | H104: =ALL_C_IMPRESE_ASSOCIATE!I123 -> 0
A105: 1 | C105: =IF(ALL_C_IMPRESE_ASSOCIATE!C124="","",ALL_C_IMPRESE_ASSOCIATE!C124) ->  | D105: 40 | E105: =ALL_C_IMPRESE_ASSOCIATE!E124 -> 0 | F105: =ALL_C_IMPRESE_ASSOCIATE!F124 -> 0 | G105: =ALL_C_IMPRESE_ASSOCIATE!G124 -> 0 | H105: =ALL_C_IMPRESE_ASSOCIATE!I124 -> 0
A106: 1 | C106: =IF(ALL_C_IMPRESE_ASSOCIATE!C125="","",ALL_C_IMPRESE_ASSOCIATE!C125) ->  | D106: 40 | E106: =ALL_C_IMPRESE_ASSOCIATE!E125 -> 0 | F106: =ALL_C_IMPRESE_ASSOCIATE!F125 -> 0 | G106: =ALL_C_IMPRESE_ASSOCIATE!G125 -> 0 | H106: =ALL_C_IMPRESE_ASSOCIATE!I125 -> 0
A107: 1 | C107: =IF(ALL_C_IMPRESE_ASSOCIATE!C126="","",ALL_C_IMPRESE_ASSOCIATE!C126) ->  | D107: 40 | E107: =ALL_C_IMPRESE_ASSOCIATE!E126 -> 0 | F107: =ALL_C_IMPRESE_ASSOCIATE!F126 -> 0 | G107: =ALL_C_IMPRESE_ASSOCIATE!G126 -> 0 | H107: =ALL_C_IMPRESE_ASSOCIATE!I126 -> 0
A108: 1 | C108: =IF(ALL_C_IMPRESE_ASSOCIATE!C127="","",ALL_C_IMPRESE_ASSOCIATE!C127) ->  | D108: 40 | E108: =ALL_C_IMPRESE_ASSOCIATE!E127 -> 0 | F108: =ALL_C_IMPRESE_ASSOCIATE!F127 -> 0 | G108: =ALL_C_IMPRESE_ASSOCIATE!G127 -> 0 | H108: =ALL_C_IMPRESE_ASSOCIATE!I127 -> 0
A109: 1 | C109: =IF(ALL_C_IMPRESE_ASSOCIATE!C128="","",ALL_C_IMPRESE_ASSOCIATE!C128) ->  | D109: 40 | E109: =ALL_C_IMPRESE_ASSOCIATE!E128 -> 0 | F109: =ALL_C_IMPRESE_ASSOCIATE!F128 -> 0 | G109: =ALL_C_IMPRESE_ASSOCIATE!G128 -> 0 | H109: =ALL_C_IMPRESE_ASSOCIATE!I128 -> 0
A110: 1 | C110: =IF(ALL_C_IMPRESE_ASSOCIATE!C129="","",ALL_C_IMPRESE_ASSOCIATE!C129) ->  | D110: 40 | E110: =ALL_C_IMPRESE_ASSOCIATE!E129 -> 0 | F110: =ALL_C_IMPRESE_ASSOCIATE!F129 -> 0 | G110: =ALL_C_IMPRESE_ASSOCIATE!G129 -> 0 | H110: =ALL_C_IMPRESE_ASSOCIATE!I129 -> 0
A111: 1 | C111: =IF(ALL_C_IMPRESE_ASSOCIATE!C130="","",ALL_C_IMPRESE_ASSOCIATE!C130) ->  | D111: 40 | E111: =ALL_C_IMPRESE_ASSOCIATE!E130 -> 0 | F111: =ALL_C_IMPRESE_ASSOCIATE!F130 -> 0 | G111: =ALL_C_IMPRESE_ASSOCIATE!G130 -> 0 | H111: =ALL_C_IMPRESE_ASSOCIATE!I130 -> 0
A112: 1 | C112: =IF(ALL_C_IMPRESE_ASSOCIATE!C131="","",ALL_C_IMPRESE_ASSOCIATE!C131) ->  | D112: 40 | E112: =ALL_C_IMPRESE_ASSOCIATE!E131 -> 0 | F112: =ALL_C_IMPRESE_ASSOCIATE!F131 -> 0 | G112: =ALL_C_IMPRESE_ASSOCIATE!G131 -> 0 | H112: =ALL_C_IMPRESE_ASSOCIATE!I131 -> 0
A113: 1 | C113: =IF(ALL_C_IMPRESE_ASSOCIATE!C132="","",ALL_C_IMPRESE_ASSOCIATE!C132) ->  | D113: 40 | E113: =ALL_C_IMPRESE_ASSOCIATE!E132 -> 0 | F113: =ALL_C_IMPRESE_ASSOCIATE!F132 -> 0 | G113: =ALL_C_IMPRESE_ASSOCIATE!G132 -> 0 | H113: =ALL_C_IMPRESE_ASSOCIATE!I132 -> 0
A114: 1 | C114: =IF(ALL_C_IMPRESE_ASSOCIATE!C133="","",ALL_C_IMPRESE_ASSOCIATE!C133) ->  | D114: 40 | E114: =ALL_C_IMPRESE_ASSOCIATE!E133 -> 0 | F114: =ALL_C_IMPRESE_ASSOCIATE!F133 -> 0 | G114: =ALL_C_IMPRESE_ASSOCIATE!G133 -> 0 | H114: =ALL_C_IMPRESE_ASSOCIATE!I133 -> 0
A115: 1 | C115: =IF(ALL_C_IMPRESE_ASSOCIATE!C134="","",ALL_C_IMPRESE_ASSOCIATE!C134) ->  | D115: 40 | E115: =ALL_C_IMPRESE_ASSOCIATE!E134 -> 0 | F115: =ALL_C_IMPRESE_ASSOCIATE!F134 -> 0 | G115: =ALL_C_IMPRESE_ASSOCIATE!G134 -> 0 | H115: =ALL_C_IMPRESE_ASSOCIATE!I134 -> 0
A116: 1 | C116: =IF(ALL_C_IMPRESE_ASSOCIATE!C135="","",ALL_C_IMPRESE_ASSOCIATE!C135) ->  | D116: 40 | E116: =ALL_C_IMPRESE_ASSOCIATE!E135 -> 0 | F116: =ALL_C_IMPRESE_ASSOCIATE!F135 -> 0 | G116: =ALL_C_IMPRESE_ASSOCIATE!G135 -> 0 | H116: =ALL_C_IMPRESE_ASSOCIATE!I135 -> 0
A117: 1 | C117: =IF(ALL_C_IMPRESE_ASSOCIATE!C136="","",ALL_C_IMPRESE_ASSOCIATE!C136) ->  | D117: 40 | E117: =ALL_C_IMPRESE_ASSOCIATE!E136 -> 0 | F117: =ALL_C_IMPRESE_ASSOCIATE!F136 -> 0 | G117: =ALL_C_IMPRESE_ASSOCIATE!G136 -> 0 | H117: =ALL_C_IMPRESE_ASSOCIATE!I136 -> 0
A118: 1 | C118: =IF(ALL_C_IMPRESE_ASSOCIATE!C137="","",ALL_C_IMPRESE_ASSOCIATE!C137) ->  | D118: 40 | E118: =ALL_C_IMPRESE_ASSOCIATE!E137 -> 0 | F118: =ALL_C_IMPRESE_ASSOCIATE!F137 -> 0 | G118: =ALL_C_IMPRESE_ASSOCIATE!G137 -> 0 | H118: =ALL_C_IMPRESE_ASSOCIATE!I137 -> 0
A119: 1 | C119: =IF(ALL_C_IMPRESE_ASSOCIATE!C138="","",ALL_C_IMPRESE_ASSOCIATE!C138) ->  | D119: 40 | E119: =ALL_C_IMPRESE_ASSOCIATE!E138 -> 0 | F119: =ALL_C_IMPRESE_ASSOCIATE!F138 -> 0 | G119: =ALL_C_IMPRESE_ASSOCIATE!G138 -> 0 | H119: =ALL_C_IMPRESE_ASSOCIATE!I138 -> 0
A120: 1 | C120: =IF(ALL_C_IMPRESE_ASSOCIATE!C139="","",ALL_C_IMPRESE_ASSOCIATE!C139) ->  | D120: 40 | E120: =ALL_C_IMPRESE_ASSOCIATE!E139 -> 0 | F120: =ALL_C_IMPRESE_ASSOCIATE!F139 -> 0 | G120: =ALL_C_IMPRESE_ASSOCIATE!G139 -> 0 | H120: =ALL_C_IMPRESE_ASSOCIATE!I139 -> 0
A121: 1 | C121: =IF(ALL_C_IMPRESE_ASSOCIATE!C140="","",ALL_C_IMPRESE_ASSOCIATE!C140) ->  | D121: 40 | E121: =ALL_C_IMPRESE_ASSOCIATE!E140 -> 0 | F121: =ALL_C_IMPRESE_ASSOCIATE!F140 -> 0 | G121: =ALL_C_IMPRESE_ASSOCIATE!G140 -> 0 | H121: =ALL_C_IMPRESE_ASSOCIATE!I140 -> 0

Sheet EXP_PREV_COSTI_IMPRESE_ASS_FIN (hidden)
A1: ID | B1: ID_PROGRAMMA_IMPRESA_ASS | C1: IMPRESA_ASSOCIATA_DESC | D1: ID_FINALITA_COSTO | E1: ANNO 1 | F1: ANNO 2 | G1: ANNO 3 | H1: ANNO OLTRE | K1: ID | L1: DESCRIZIONE
A2: 1 | C2: =IF(ALL_C_IMPRESE_ASSOCIATE!C180="","",ALL_C_IMPRESE_ASSOCIATE!C180) -> 0 | D2: 10 | E2: =ALL_C_IMPRESE_ASSOCIATE!E180 -> 0 | F2: =ALL_C_IMPRESE_ASSOCIATE!F180 -> 0 | G2: =ALL_C_IMPRESE_ASSOCIATE!G180 -> 0 | H2: =ALL_C_IMPRESE_ASSOCIATE!I180 -> 0 | K2: 10 | L2: STUDI DI FATTIBILITA' TECNICA
A3: 1 | C3: =IF(ALL_C_IMPRESE_ASSOCIATE!C181="","",ALL_C_IMPRESE_ASSOCIATE!C181) ->  | D3: 10 | E3: =ALL_C_IMPRESE_ASSOCIATE!E181 -> 0 | F3: =ALL_C_IMPRESE_ASSOCIATE!F181 -> 0 | G3: =ALL_C_IMPRESE_ASSOCIATE!G181 -> 0 | H3: =ALL_C_IMPRESE_ASSOCIATE!I181 -> 0 | K3: 20 | L3: RICERCA INDUSTRIALE
A4: 1 | C4: =IF(ALL_C_IMPRESE_ASSOCIATE!C182="","",ALL_C_IMPRESE_ASSOCIATE!C182) ->  | D4: 10 | E4: =ALL_C_IMPRESE_ASSOCIATE!E182 -> 0 | F4: =ALL_C_IMPRESE_ASSOCIATE!F182 -> 0 | G4: =ALL_C_IMPRESE_ASSOCIATE!G182 -> 0 | H4: =ALL_C_IMPRESE_ASSOCIATE!I182 -> 0 | K4: 30 | L4: SVILUPPO SPERIMENTALE
A5: 1 | C5: =IF(ALL_C_IMPRESE_ASSOCIATE!C183="","",ALL_C_IMPRESE_ASSOCIATE!C183) ->  | D5: 10 | E5: =ALL_C_IMPRESE_ASSOCIATE!E183 -> 0 | F5: =ALL_C_IMPRESE_ASSOCIATE!F183 -> 0 | G5: =ALL_C_IMPRESE_ASSOCIATE!G183 -> 0 | H5: =ALL_C_IMPRESE_ASSOCIATE!I183 -> 0
A6: 1 | C6: =IF(ALL_C_IMPRESE_ASSOCIATE!C184="","",ALL_C_IMPRESE_ASSOCIATE!C184) ->  | D6: 10 | E6: =ALL_C_IMPRESE_ASSOCIATE!E184 -> 0 | F6: =ALL_C_IMPRESE_ASSOCIATE!F184 -> 0 | G6: =ALL_C_IMPRESE_ASSOCIATE!G184 -> 0 | H6: =ALL_C_IMPRESE_ASSOCIATE!I184 -> 0
A7: 1 | C7: =IF(ALL_C_IMPRESE_ASSOCIATE!C185="","",ALL_C_IMPRESE_ASSOCIATE!C185) ->  | D7: 10 | E7: =ALL_C_IMPRESE_ASSOCIATE!E185 -> 0 | F7: =ALL_C_IMPRESE_ASSOCIATE!F185 -> 0 | G7: =ALL_C_IMPRESE_ASSOCIATE!G185 -> 0 | H7: =ALL_C_IMPRESE_ASSOCIATE!I185 -> 0
A8: 1 | C8: =IF(ALL_C_IMPRESE_ASSOCIATE!C186="","",ALL_C_IMPRESE_ASSOCIATE!C186) ->  | D8: 10 | E8: =ALL_C_IMPRESE_ASSOCIATE!E186 -> 0 | F8: =ALL_C_IMPRESE_ASSOCIATE!F186 -> 0 | G8: =ALL_C_IMPRESE_ASSOCIATE!G186 -> 0 | H8: =ALL_C_IMPRESE_ASSOCIATE!I186 -> 0
A9: 1 | C9: =IF(ALL_C_IMPRESE_ASSOCIATE!C187="","",ALL_C_IMPRESE_ASSOCIATE!C187) ->  | D9: 10 | E9: =ALL_C_IMPRESE_ASSOCIATE!E187 -> 0 | F9: =ALL_C_IMPRESE_ASSOCIATE!F187 -> 0 | G9: =ALL_C_IMPRESE_ASSOCIATE!G187 -> 0 | H9: =ALL_C_IMPRESE_ASSOCIATE!I187 -> 0
A10: 1 | C10: =IF(ALL_C_IMPRESE_ASSOCIATE!C188="","",ALL_C_IMPRESE_ASSOCIATE!C188) ->  | D10: 10 | E10: =ALL_C_IMPRESE_ASSOCIATE!E188 -> 0 | F10: =ALL_C_IMPRESE_ASSOCIATE!F188 -> 0 | G10: =ALL_C_IMPRESE_ASSOCIATE!G188 -> 0 | H10: =ALL_C_IMPRESE_ASSOCIATE!I188 -> 0
A11: 1 | C11: =IF(ALL_C_IMPRESE_ASSOCIATE!C189="","",ALL_C_IMPRESE_ASSOCIATE!C189) ->  | D11: 10 | E11: =ALL_C_IMPRESE_ASSOCIATE!E189 -> 0 | F11: =ALL_C_IMPRESE_ASSOCIATE!F189 -> 0 | G11: =ALL_C_IMPRESE_ASSOCIATE!G189 -> 0 | H11: =ALL_C_IMPRESE_ASSOCIATE!I189 -> 0
A12: 1 | C12: =IF(ALL_C_IMPRESE_ASSOCIATE!C190="","",ALL_C_IMPRESE_ASSOCIATE!C190) ->  | D12: 10 | E12: =ALL_C_IMPRESE_ASSOCIATE!E190 -> 0 | F12: =ALL_C_IMPRESE_ASSOCIATE!F190 -> 0 | G12: =ALL_C_IMPRESE_ASSOCIATE!G190 -> 0 | H12: =ALL_C_IMPRESE_ASSOCIATE!I190 -> 0
A13: 1 | C13: =IF(ALL_C_IMPRESE_ASSOCIATE!C191="","",ALL_C_IMPRESE_ASSOCIATE!C191) ->  | D13: 10 | E13: =ALL_C_IMPRESE_ASSOCIATE!E191 -> 0 | F13: =ALL_C_IMPRESE_ASSOCIATE!F191 -> 0 | G13: =ALL_C_IMPRESE_ASSOCIATE!G191 -> 0 | H13: =ALL_C_IMPRESE_ASSOCIATE!I191 -> 0
A14: 1 | C14: =IF(ALL_C_IMPRESE_ASSOCIATE!C192="","",ALL_C_IMPRESE_ASSOCIATE!C192) ->  | D14: 10 | E14: =ALL_C_IMPRESE_ASSOCIATE!E192 -> 0 | F14: =ALL_C_IMPRESE_ASSOCIATE!F192 -> 0 | G14: =ALL_C_IMPRESE_ASSOCIATE!G192 -> 0 | H14: =ALL_C_IMPRESE_ASSOCIATE!I192 -> 0
A15: 1 | C15: =IF(ALL_C_IMPRESE_ASSOCIATE!C193="","",ALL_C_IMPRESE_ASSOCIATE!C193) ->  | D15: 10 | E15: =ALL_C_IMPRESE_ASSOCIATE!E193 -> 0 | F15: =ALL_C_IMPRESE_ASSOCIATE!F193 -> 0 | G15: =ALL_C_IMPRESE_ASSOCIATE!G193 -> 0 | H15: =ALL_C_IMPRESE_ASSOCIATE!I193 -> 0
A16: 1 | C16: =IF(ALL_C_IMPRESE_ASSOCIATE!C194="","",ALL_C_IMPRESE_ASSOCIATE!C194) ->  | D16: 10 | E16: =ALL_C_IMPRESE_ASSOCIATE!E194 -> 0 | F16: =ALL_C_IMPRESE_ASSOCIATE!F194 -> 0 | G16: =ALL_C_IMPRESE_ASSOCIATE!G194 -> 0 | H16: =ALL_C_IMPRESE_ASSOCIATE!I194 -> 0
A17: 1 | C17: =IF(ALL_C_IMPRESE_ASSOCIATE!C195="","",ALL_C_IMPRESE_ASSOCIATE!C195) ->  | D17: 10 | E17: =ALL_C_IMPRESE_ASSOCIATE!E195 -> 0 | F17: =ALL_C_IMPRESE_ASSOCIATE!F195 -> 0 | G17: =ALL_C_IMPRESE_ASSOCIATE!G195 -> 0 | H17: =ALL_C_IMPRESE_ASSOCIATE!I195 -> 0
A18: 1 | C18: =IF(ALL_C_IMPRESE_ASSOCIATE!C196="","",ALL_C_IMPRESE_ASSOCIATE!C196) ->  | D18: 10 | E18: =ALL_C_IMPRESE_ASSOCIATE!E196 -> 0 | F18: =ALL_C_IMPRESE_ASSOCIATE!F196 -> 0 | G18: =ALL_C_IMPRESE_ASSOCIATE!G196 -> 0 | H18: =ALL_C_IMPRESE_ASSOCIATE!I196 -> 0
A19: 1 | C19: =IF(ALL_C_IMPRESE_ASSOCIATE!C197="","",ALL_C_IMPRESE_ASSOCIATE!C197) ->  | D19: 10 | E19: =ALL_C_IMPRESE_ASSOCIATE!E197 -> 0 | F19: =ALL_C_IMPRESE_ASSOCIATE!F197 -> 0 | G19: =ALL_C_IMPRESE_ASSOCIATE!G197 -> 0 | H19: =ALL_C_IMPRESE_ASSOCIATE!I197 -> 0
A20: 1 | C20: =IF(ALL_C_IMPRESE_ASSOCIATE!C198="","",ALL_C_IMPRESE_ASSOCIATE!C198) ->  | D20: 10 | E20: =ALL_C_IMPRESE_ASSOCIATE!E198 -> 0 | F20: =ALL_C_IMPRESE_ASSOCIATE!F198 -> 0 | G20: =ALL_C_IMPRESE_ASSOCIATE!G198 -> 0 | H20: =ALL_C_IMPRESE_ASSOCIATE!I198 -> 0
A21: 1 | C21: =IF(ALL_C_IMPRESE_ASSOCIATE!C199="","",ALL_C_IMPRESE_ASSOCIATE!C199) ->  | D21: 10 | E21: =ALL_C_IMPRESE_ASSOCIATE!E199 -> 0 | F21: =ALL_C_IMPRESE_ASSOCIATE!F199 -> 0 | G21: =ALL_C_IMPRESE_ASSOCIATE!G199 -> 0 | H21: =ALL_C_IMPRESE_ASSOCIATE!I199 -> 0
A22: 1 | C22: =IF(ALL_C_IMPRESE_ASSOCIATE!C200="","",ALL_C_IMPRESE_ASSOCIATE!C200) ->  | D22: 10 | E22: =ALL_C_IMPRESE_ASSOCIATE!E200 -> 0 | F22: =ALL_C_IMPRESE_ASSOCIATE!F200 -> 0 | G22: =ALL_C_IMPRESE_ASSOCIATE!G200 -> 0 | H22: =ALL_C_IMPRESE_ASSOCIATE!I200 -> 0
A23: 1 | C23: =IF(ALL_C_IMPRESE_ASSOCIATE!C201="","",ALL_C_IMPRESE_ASSOCIATE!C201) ->  | D23: 10 | E23: =ALL_C_IMPRESE_ASSOCIATE!E201 -> 0 | F23: =ALL_C_IMPRESE_ASSOCIATE!F201 -> 0 | G23: =ALL_C_IMPRESE_ASSOCIATE!G201 -> 0 | H23: =ALL_C_IMPRESE_ASSOCIATE!I201 -> 0
A24: 1 | C24: =IF(ALL_C_IMPRESE_ASSOCIATE!C202="","",ALL_C_IMPRESE_ASSOCIATE!C202) ->  | D24: 10 | E24: =ALL_C_IMPRESE_ASSOCIATE!E202 -> 0 | F24: =ALL_C_IMPRESE_ASSOCIATE!F202 -> 0 | G24: =ALL_C_IMPRESE_ASSOCIATE!G202 -> 0 | H24: =ALL_C_IMPRESE_ASSOCIATE!I202 -> 0
A25: 1 | C25: =IF(ALL_C_IMPRESE_ASSOCIATE!C203="","",ALL_C_IMPRESE_ASSOCIATE!C203) ->  | D25: 10 | E25: =ALL_C_IMPRESE_ASSOCIATE!E203 -> 0 | F25: =ALL_C_IMPRESE_ASSOCIATE!F203 -> 0 | G25: =ALL_C_IMPRESE_ASSOCIATE!G203 -> 0 | H25: =ALL_C_IMPRESE_ASSOCIATE!I203 -> 0
A26: 1 | C26: =IF(ALL_C_IMPRESE_ASSOCIATE!C204="","",ALL_C_IMPRESE_ASSOCIATE!C204) ->  | D26: 10 | E26: =ALL_C_IMPRESE_ASSOCIATE!E204 -> 0 | F26: =ALL_C_IMPRESE_ASSOCIATE!F204 -> 0 | G26: =ALL_C_IMPRESE_ASSOCIATE!G204 -> 0 | H26: =ALL_C_IMPRESE_ASSOCIATE!I204 -> 0
A27: 1 | C27: =IF(ALL_C_IMPRESE_ASSOCIATE!C205="","",ALL_C_IMPRESE_ASSOCIATE!C205) ->  | D27: 10 | E27: =ALL_C_IMPRESE_ASSOCIATE!E205 -> 0 | F27: =ALL_C_IMPRESE_ASSOCIATE!F205 -> 0 | G27: =ALL_C_IMPRESE_ASSOCIATE!G205 -> 0 | H27: =ALL_C_IMPRESE_ASSOCIATE!I205 -> 0
A28: 1 | C28: =IF(ALL_C_IMPRESE_ASSOCIATE!C206="","",ALL_C_IMPRESE_ASSOCIATE!C206) ->  | D28: 10 | E28: =ALL_C_IMPRESE_ASSOCIATE!E206 -> 0 | F28: =ALL_C_IMPRESE_ASSOCIATE!F206 -> 0 | G28: =ALL_C_IMPRESE_ASSOCIATE!G206 -> 0 | H28: =ALL_C_IMPRESE_ASSOCIATE!I206 -> 0
A29: 1 | C29: =IF(ALL_C_IMPRESE_ASSOCIATE!C207="","",ALL_C_IMPRESE_ASSOCIATE!C207) ->  | D29: 10 | E29: =ALL_C_IMPRESE_ASSOCIATE!E207 -> 0 | F29: =ALL_C_IMPRESE_ASSOCIATE!F207 -> 0 | G29: =ALL_C_IMPRESE_ASSOCIATE!G207 -> 0 | H29: =ALL_C_IMPRESE_ASSOCIATE!I207 -> 0
A30: 1 | C30: =IF(ALL_C_IMPRESE_ASSOCIATE!C208="","",ALL_C_IMPRESE_ASSOCIATE!C208) ->  | D30: 10 | E30: =ALL_C_IMPRESE_ASSOCIATE!E208 -> 0 | F30: =ALL_C_IMPRESE_ASSOCIATE!F208 -> 0 | G30: =ALL_C_IMPRESE_ASSOCIATE!G208 -> 0 | H30: =ALL_C_IMPRESE_ASSOCIATE!I208 -> 0
A31: 1 | C31: =IF(ALL_C_IMPRESE_ASSOCIATE!C209="","",ALL_C_IMPRESE_ASSOCIATE!C209) ->  | D31: 10 | E31: =ALL_C_IMPRESE_ASSOCIATE!E209 -> 0 | F31: =ALL_C_IMPRESE_ASSOCIATE!F209 -> 0 | G31: =ALL_C_IMPRESE_ASSOCIATE!G209 -> 0 | H31: =ALL_C_IMPRESE_ASSOCIATE!I209 -> 0
A32: 1 | C32: =IF(ALL_C_IMPRESE_ASSOCIATE!C212="","",ALL_C_IMPRESE_ASSOCIATE!C212) -> 0 | D32: 20 | E32: =ALL_C_IMPRESE_ASSOCIATE!E212 -> 0 | F32: =ALL_C_IMPRESE_ASSOCIATE!F212 -> 0 | G32: =ALL_C_IMPRESE_ASSOCIATE!G212 -> 0 | H32: =ALL_C_IMPRESE_ASSOCIATE!I212 -> 0
A33: 1 | C33: =IF(ALL_C_IMPRESE_ASSOCIATE!C213="","",ALL_C_IMPRESE_ASSOCIATE!C213) ->  | D33: 20 | E33: =ALL_C_IMPRESE_ASSOCIATE!E213 -> 0 | F33: =ALL_C_IMPRESE_ASSOCIATE!F213 -> 0 | G33: =ALL_C_IMPRESE_ASSOCIATE!G213 -> 0 | H33: =ALL_C_IMPRESE_ASSOCIATE!I213 -> 0
A34: 1 | C34: =IF(ALL_C_IMPRESE_ASSOCIATE!C214="","",ALL_C_IMPRESE_ASSOCIATE!C214) ->  | D34: 20 | E34: =ALL_C_IMPRESE_ASSOCIATE!E214 -> 0 | F34: =ALL_C_IMPRESE_ASSOCIATE!F214 -> 0 | G34: =ALL_C_IMPRESE_ASSOCIATE!G214 -> 0 | H34: =ALL_C_IMPRESE_ASSOCIATE!I214 -> 0
A35: 1 | C35: =IF(ALL_C_IMPRESE_ASSOCIATE!C215="","",ALL_C_IMPRESE_ASSOCIATE!C215) ->  | D35: 20 | E35: =ALL_C_IMPRESE_ASSOCIATE!E215 -> 0 | F35: =ALL_C_IMPRESE_ASSOCIATE!F215 -> 0 | G35: =ALL_C_IMPRESE_ASSOCIATE!G215 -> 0 | H35: =ALL_C_IMPRESE_ASSOCIATE!I215 -> 0
A36: 1 | C36: =IF(ALL_C_IMPRESE_ASSOCIATE!C216="","",ALL_C_IMPRESE_ASSOCIATE!C216) ->  | D36: 20 | E36: =ALL_C_IMPRESE_ASSOCIATE!E216 -> 0 | F36: =ALL_C_IMPRESE_ASSOCIATE!F216 -> 0 | G36: =ALL_C_IMPRESE_ASSOCIATE!G216 -> 0 | H36: =ALL_C_IMPRESE_ASSOCIATE!I216 -> 0
A37: 1 | C37: =IF(ALL_C_IMPRESE_ASSOCIATE!C217="","",ALL_C_IMPRESE_ASSOCIATE!C217) ->  | D37: 20 | E37: =ALL_C_IMPRESE_ASSOCIATE!E217 -> 0 | F37: =ALL_C_IMPRESE_ASSOCIATE!F217 -> 0 | G37: =ALL_C_IMPRESE_ASSOCIATE!G217 -> 0 | H37: =ALL_C_IMPRESE_ASSOCIATE!I217 -> 0
A38: 1 | C38: =IF(ALL_C_IMPRESE_ASSOCIATE!C218="","",ALL_C_IMPRESE_ASSOCIATE!C218) ->  | D38: 20 | E38: =ALL_C_IMPRESE_ASSOCIATE!E218 -> 0 | F38: =ALL_C_IMPRESE_ASSOCIATE!F218 -> 0 | G38: =ALL_C_IMPRESE_ASSOCIATE!G218 -> 0 | H38: =ALL_C_IMPRESE_ASSOCIATE!I218 -> 0
A39: 1 | C39: =IF(ALL_C_IMPRESE_ASSOCIATE!C219="","",ALL_C_IMPRESE_ASSOCIATE!C219) ->  | D39: 20 | E39: =ALL_C_IMPRESE_ASSOCIATE!E219 -> 0 | F39: =ALL_C_IMPRESE_ASSOCIATE!F219 -> 0 | G39: =ALL_C_IMPRESE_ASSOCIATE!G219 -> 0 | H39: =ALL_C_IMPRESE_ASSOCIATE!I219 -> 0
A40: 1 | C40: =IF(ALL_C_IMPRESE_ASSOCIATE!C220="","",ALL_C_IMPRESE_ASSOCIATE!C220) ->  | D40: 20 | E40: =ALL_C_IMPRESE_ASSOCIATE!E220 -> 0 | F40: =ALL_C_IMPRESE_ASSOCIATE!F220 -> 0 | G40: =ALL_C_IMPRESE_ASSOCIATE!G220 -> 0 | H40: =ALL_C_IMPRESE_ASSOCIATE!I220 -> 0
A41: 1 | C41: =IF(ALL_C_IMPRESE_ASSOCIATE!C221="","",ALL_C_IMPRESE_ASSOCIATE!C221) ->  | D41: 20 | E41: =ALL_C_IMPRESE_ASSOCIATE!E221 -> 0 | F41: =ALL_C_IMPRESE_ASSOCIATE!F221 -> 0 | G41: =ALL_C_IMPRESE_ASSOCIATE!G221 -> 0 | H41: =ALL_C_IMPRESE_ASSOCIATE!I221 -> 0
A42: 1 | C42: =IF(ALL_C_IMPRESE_ASSOCIATE!C222="","",ALL_C_IMPRESE_ASSOCIATE!C222) ->  | D42: 20 | E42: =ALL_C_IMPRESE_ASSOCIATE!E222 -> 0 | F42: =ALL_C_IMPRESE_ASSOCIATE!F222 -> 0 | G42: =ALL_C_IMPRESE_ASSOCIATE!G222 -> 0 | H42: =ALL_C_IMPRESE_ASSOCIATE!I222 -> 0
A43: 1 | C43: =IF(ALL_C_IMPRESE_ASSOCIATE!C223="","",ALL_C_IMPRESE_ASSOCIATE!C223) ->  | D43: 20 | E43: =ALL_C_IMPRESE_ASSOCIATE!E223 -> 0 | F43: =ALL_C_IMPRESE_ASSOCIATE!F223 -> 0 | G43: =ALL_C_IMPRESE_ASSOCIATE!G223 -> 0 | H43: =ALL_C_IMPRESE_ASSOCIATE!I223 -> 0
A44: 1 | C44: =IF(ALL_C_IMPRESE_ASSOCIATE!C224="","",ALL_C_IMPRESE_ASSOCIATE!C224) ->  | D44: 20 | E44: =ALL_C_IMPRESE_ASSOCIATE!E224 -> 0 | F44: =ALL_C_IMPRESE_ASSOCIATE!F224 -> 0 | G44: =ALL_C_IMPRESE_ASSOCIATE!G224 -> 0 | H44: =ALL_C_IMPRESE_ASSOCIATE!I224 -> 0
A45: 1 | C45: =IF(ALL_C_IMPRESE_ASSOCIATE!C225="","",ALL_C_IMPRESE_ASSOCIATE!C225) ->  | D45: 20 | E45: =ALL_C_IMPRESE_ASSOCIATE!E225 -> 0 | F45: =ALL_C_IMPRESE_ASSOCIATE!F225 -> 0 | G45: =ALL_C_IMPRESE_ASSOCIATE!G225 -> 0 | H45: =ALL_C_IMPRESE_ASSOCIATE!I225 -> 0
A46: 1 | C46: =IF(ALL_C_IMPRESE_ASSOCIATE!C226="","",ALL_C_IMPRESE_ASSOCIATE!C226) ->  | D46: 20 | E46: =ALL_C_IMPRESE_ASSOCIATE!E226 -> 0 | F46: =ALL_C_IMPRESE_ASSOCIATE!F226 -> 0 | G46: =ALL_C_IMPRESE_ASSOCIATE!G226 -> 0 | H46: =ALL_C_IMPRESE_ASSOCIATE!I226 -> 0
A47: 1 | C47: =IF(ALL_C_IMPRESE_ASSOCIATE!C227="","",ALL_C_IMPRESE_ASSOCIATE!C227) ->  | D47: 20 | E47: =ALL_C_IMPRESE_ASSOCIATE!E227 -> 0 | F47: =ALL_C_IMPRESE_ASSOCIATE!F227 -> 0 | G47: =ALL_C_IMPRESE_ASSOCIATE!G227 -> 0 | H47: =ALL_C_IMPRESE_ASSOCIATE!I227 -> 0
A48: 1 | C48: =IF(ALL_C_IMPRESE_ASSOCIATE!C228="","",ALL_C_IMPRESE_ASSOCIATE!C228) ->  | D48: 20 | E48: =ALL_C_IMPRESE_ASSOCIATE!E228 -> 0 | F48: =ALL_C_IMPRESE_ASSOCIATE!F228 -> 0 | G48: =ALL_C_IMPRESE_ASSOCIATE!G228 -> 0 | H48: =ALL_C_IMPRESE_ASSOCIATE!I228 -> 0
A49: 1 | C49: =IF(ALL_C_IMPRESE_ASSOCIATE!C229="","",ALL_C_IMPRESE_ASSOCIATE!C229) ->  | D49: 20 | E49: =ALL_C_IMPRESE_ASSOCIATE!E229 -> 0 | F49: =ALL_C_IMPRESE_ASSOCIATE!F229 -> 0 | G49: =ALL_C_IMPRESE_ASSOCIATE!G229 -> 0 | H49: =ALL_C_IMPRESE_ASSOCIATE!I229 -> 0
A50: 1 | C50: =IF(ALL_C_IMPRESE_ASSOCIATE!C230="","",ALL_C_IMPRESE_ASSOCIATE!C230) ->  | D50: 20 | E50: =ALL_C_IMPRESE_ASSOCIATE!E230 -> 0 | F50: =ALL_C_IMPRESE_ASSOCIATE!F230 -> 0 | G50: =ALL_C_IMPRESE_ASSOCIATE!G230 -> 0 | H50: =ALL_C_IMPRESE_ASSOCIATE!I230 -> 0
A51: 1 | C51: =IF(ALL_C_IMPRESE_ASSOCIATE!C231="","",ALL_C_IMPRESE_ASSOCIATE!C231) ->  | D51: 20 | E51: =ALL_C_IMPRESE_ASSOCIATE!E231 -> 0 | F51: =ALL_C_IMPRESE_ASSOCIATE!F231 -> 0 | G51: =ALL_C_IMPRESE_ASSOCIATE!G231 -> 0 | H51: =ALL_C_IMPRESE_ASSOCIATE!I231 -> 0
A52: 1 | C52: =IF(ALL_C_IMPRESE_ASSOCIATE!C232="","",ALL_C_IMPRESE_ASSOCIATE!C232) ->  | D52: 20 | E52: =ALL_C_IMPRESE_ASSOCIATE!E232 -> 0 | F52: =ALL_C_IMPRESE_ASSOCIATE!F232 -> 0 | G52: =ALL_C_IMPRESE_ASSOCIATE!G232 -> 0 | H52: =ALL_C_IMPRESE_ASSOCIATE!I232 -> 0
A53: 1 | C53: =IF(ALL_C_IMPRESE_ASSOCIATE!C233="","",ALL_C_IMPRESE_ASSOCIATE!C233) ->  | D53: 20 | E53: =ALL_C_IMPRESE_ASSOCIATE!E233 -> 0 | F53: =ALL_C_IMPRESE_ASSOCIATE!F233 -> 0 | G53: =ALL_C_IMPRESE_ASSOCIATE!G233 -> 0 | H53: =ALL_C_IMPRESE_ASSOCIATE!I233 -> 0
A54: 1 | C54: =IF(ALL_C_IMPRESE_ASSOCIATE!C234="","",ALL_C_IMPRESE_ASSOCIATE!C234) ->  | D54: 20 | E54: =ALL_C_IMPRESE_ASSOCIATE!E234 -> 0 | F54: =ALL_C_IMPRESE_ASSOCIATE!F234 -> 0 | G54: =ALL_C_IMPRESE_ASSOCIATE!G234 -> 0 | H54: =ALL_C_IMPRESE_ASSOCIATE!I234 -> 0
A55: 1 | C55: =IF(ALL_C_IMPRESE_ASSOCIATE!C235="","",ALL_C_IMPRESE_ASSOCIATE!C235) ->  | D55: 20 | E55: =ALL_C_IMPRESE_ASSOCIATE!E235 -> 0 | F55: =ALL_C_IMPRESE_ASSOCIATE!F235 -> 0 | G55: =ALL_C_IMPRESE_ASSOCIATE!G235 -> 0 | H55: =ALL_C_IMPRESE_ASSOCIATE!I235 -> 0
A56: 1 | C56: =IF(ALL_C_IMPRESE_ASSOCIATE!C236="","",ALL_C_IMPRESE_ASSOCIATE!C236) ->  | D56: 20 | E56: =ALL_C_IMPRESE_ASSOCIATE!E236 -> 0 | F56: =ALL_C_IMPRESE_ASSOCIATE!F236 -> 0 | G56: =ALL_C_IMPRESE_ASSOCIATE!G236 -> 0 | H56: =ALL_C_IMPRESE_ASSOCIATE!I236 -> 0
A57: 1 | C57: =IF(ALL_C_IMPRESE_ASSOCIATE!C237="","",ALL_C_IMPRESE_ASSOCIATE!C237) ->  | D57: 20 | E57: =ALL_C_IMPRESE_ASSOCIATE!E237 -> 0 | F57: =ALL_C_IMPRESE_ASSOCIATE!F237 -> 0 | G57: =ALL_C_IMPRESE_ASSOCIATE!G237 -> 0 | H57: =ALL_C_IMPRESE_ASSOCIATE!I237 -> 0
A58: 1 | C58: =IF(ALL_C_IMPRESE_ASSOCIATE!C238="","",ALL_C_IMPRESE_ASSOCIATE!C238) ->  | D58: 20 | E58: =ALL_C_IMPRESE_ASSOCIATE!E238 -> 0 | F58: =ALL_C_IMPRESE_ASSOCIATE!F238 -> 0 | G58: =ALL_C_IMPRESE_ASSOCIATE!G238 -> 0 | H58: =ALL_C_IMPRESE_ASSOCIATE!I238 -> 0
A59: 1 | C59: =IF(ALL_C_IMPRESE_ASSOCIATE!C239="","",ALL_C_IMPRESE_ASSOCIATE!C239) ->  | D59: 20 | E59: =ALL_C_IMPRESE_ASSOCIATE!E239 -> 0 | F59: =ALL_C_IMPRESE_ASSOCIATE!F239 -> 0 | G59: =ALL_C_IMPRESE_ASSOCIATE!G239 -> 0 | H59: =ALL_C_IMPRESE_ASSOCIATE!I239 -> 0
A60: 1 | C60: =IF(ALL_C_IMPRESE_ASSOCIATE!C240="","",ALL_C_IMPRESE_ASSOCIATE!C240) ->  | D60: 20 | E60: =ALL_C_IMPRESE_ASSOCIATE!E240 -> 0 | F60: =ALL_C_IMPRESE_ASSOCIATE!F240 -> 0 | G60: =ALL_C_IMPRESE_ASSOCIATE!G240 -> 0 | H60: =ALL_C_IMPRESE_ASSOCIATE!I240 -> 0
A61: 1 | C61: =IF(ALL_C_IMPRESE_ASSOCIATE!C241="","",ALL_C_IMPRESE_ASSOCIATE!C241) ->  | D61: 20 | E61: =ALL_C_IMPRESE_ASSOCIATE!E241 -> 0 | F61: =ALL_C_IMPRESE_ASSOCIATE!F241 -> 0 | G61: =ALL_C_IMPRESE_ASSOCIATE!G241 -> 0 | H61: =ALL_C_IMPRESE_ASSOCIATE!I241 -> 0
A62: 1 | C62: =IF(ALL_C_IMPRESE_ASSOCIATE!C244="","",ALL_C_IMPRESE_ASSOCIATE!C244) -> 0 | D62: 30 | E62: =ALL_C_IMPRESE_ASSOCIATE!E244 -> 0 | F62: =ALL_C_IMPRESE_ASSOCIATE!F244 -> 0 | G62: =ALL_C_IMPRESE_ASSOCIATE!G244 -> 0 | H62: =ALL_C_IMPRESE_ASSOCIATE!I244 -> 0
A63: 1 | C63: =IF(ALL_C_IMPRESE_ASSOCIATE!C245="","",ALL_C_IMPRESE_ASSOCIATE!C245) ->  | D63: 30 | E63: =ALL_C_IMPRESE_ASSOCIATE!E245 -> 0 | F63: =ALL_C_IMPRESE_ASSOCIATE!F245 -> 0 | G63: =ALL_C_IMPRESE_ASSOCIATE!G245 -> 0 | H63: =ALL_C_IMPRESE_ASSOCIATE!I245 -> 0
A64: 1 | C64: =IF(ALL_C_IMPRESE_ASSOCIATE!C246="","",ALL_C_IMPRESE_ASSOCIATE!C246) ->  | D64: 30 | E64: =ALL_C_IMPRESE_ASSOCIATE!E246 -> 0 | F64: =ALL_C_IMPRESE_ASSOCIATE!F246 -> 0 | G64: =ALL_C_IMPRESE_ASSOCIATE!G246 -> 0 | H64: =ALL_C_IMPRESE_ASSOCIATE!I246 -> 0
A65: 1 | C65: =IF(ALL_C_IMPRESE_ASSOCIATE!C247="","",ALL_C_IMPRESE_ASSOCIATE!C247) ->  | D65: 30 | E65: =ALL_C_IMPRESE_ASSOCIATE!E247 -> 0 | F65: =ALL_C_IMPRESE_ASSOCIATE!F247 -> 0 | G65: =ALL_C_IMPRESE_ASSOCIATE!G247 -> 0 | H65: =ALL_C_IMPRESE_ASSOCIATE!I247 -> 0
A66: 1 | C66: =IF(ALL_C_IMPRESE_ASSOCIATE!C248="","",ALL_C_IMPRESE_ASSOCIATE!C248) ->  | D66: 30 | E66: =ALL_C_IMPRESE_ASSOCIATE!E248 -> 0 | F66: =ALL_C_IMPRESE_ASSOCIATE!F248 -> 0 | G66: =ALL_C_IMPRESE_ASSOCIATE!G248 -> 0 | H66: =ALL_C_IMPRESE_ASSOCIATE!I248 -> 0
A67: 1 | C67: =IF(ALL_C_IMPRESE_ASSOCIATE!C249="","",ALL_C_IMPRESE_ASSOCIATE!C249) ->  | D67: 30 | E67: =ALL_C_IMPRESE_ASSOCIATE!E249 -> 0 | F67: =ALL_C_IMPRESE_ASSOCIATE!F249 -> 0 | G67: =ALL_C_IMPRESE_ASSOCIATE!G249 -> 0 | H67: =ALL_C_IMPRESE_ASSOCIATE!I249 -> 0
A68: 1 | C68: =IF(ALL_C_IMPRESE_ASSOCIATE!C250="","",ALL_C_IMPRESE_ASSOCIATE!C250) ->  | D68: 30 | E68: =ALL_C_IMPRESE_ASSOCIATE!E250 -> 0 | F68: =ALL_C_IMPRESE_ASSOCIATE!F250 -> 0 | G68: =ALL_C_IMPRESE_ASSOCIATE!G250 -> 0 | H68: =ALL_C_IMPRESE_ASSOCIATE!I250 -> 0
A69: 1 | C69: =IF(ALL_C_IMPRESE_ASSOCIATE!C251="","",ALL_C_IMPRESE_ASSOCIATE!C251) ->  | D69: 30 | E69: =ALL_C_IMPRESE_ASSOCIATE!E251 -> 0 | F69: =ALL_C_IMPRESE_ASSOCIATE!F251 -> 0 | G69: =ALL_C_IMPRESE_ASSOCIATE!G251 -> 0 | H69: =ALL_C_IMPRESE_ASSOCIATE!I251 -> 0
A70: 1 | C70: =IF(ALL_C_IMPRESE_ASSOCIATE!C252="","",ALL_C_IMPRESE_ASSOCIATE!C252) ->  | D70: 30 | E70: =ALL_C_IMPRESE_ASSOCIATE!E252 -> 0 | F70: =ALL_C_IMPRESE_ASSOCIATE!F252 -> 0 | G70: =ALL_C_IMPRESE_ASSOCIATE!G252 -> 0 | H70: =ALL_C_IMPRESE_ASSOCIATE!I252 -> 0
A71: 1 | C71: =IF(ALL_C_IMPRESE_ASSOCIATE!C253="","",ALL_C_IMPRESE_ASSOCIATE!C253) ->  | D71: 30 | E71: =ALL_C_IMPRESE_ASSOCIATE!E253 -> 0 | F71: =ALL_C_IMPRESE_ASSOCIATE!F253 -> 0 | G71: =ALL_C_IMPRESE_ASSOCIATE!G253 -> 0 | H71: =ALL_C_IMPRESE_ASSOCIATE!I253 -> 0
A72: 1 | C72: =IF(ALL_C_IMPRESE_ASSOCIATE!C254="","",ALL_C_IMPRESE_ASSOCIATE!C254) ->  | D72: 30 | E72: =ALL_C_IMPRESE_ASSOCIATE!E254 -> 0 | F72: =ALL_C_IMPRESE_ASSOCIATE!F254 -> 0 | G72: =ALL_C_IMPRESE_ASSOCIATE!G254 -> 0 | H72: =ALL_C_IMPRESE_ASSOCIATE!I254 -> 0
A73: 1 | C73: =IF(ALL_C_IMPRESE_ASSOCIATE!C255="","",ALL_C_IMPRESE_ASSOCIATE!C255) ->  | D73: 30 | E73: =ALL_C_IMPRESE_ASSOCIATE!E255 -> 0 | F73: =ALL_C_IMPRESE_ASSOCIATE!F255 -> 0 | G73: =ALL_C_IMPRESE_ASSOCIATE!G255 -> 0 | H73: =ALL_C_IMPRESE_ASSOCIATE!I255 -> 0
A74: 1 | C74: =IF(ALL_C_IMPRESE_ASSOCIATE!C256="","",ALL_C_IMPRESE_ASSOCIATE!C256) ->  | D74: 30 | E74: =ALL_C_IMPRESE_ASSOCIATE!E256 -> 0 | F74: =ALL_C_IMPRESE_ASSOCIATE!F256 -> 0 | G74: =ALL_C_IMPRESE_ASSOCIATE!G256 -> 0 | H74: =ALL_C_IMPRESE_ASSOCIATE!I256 -> 0
A75: 1 | C75: =IF(ALL_C_IMPRESE_ASSOCIATE!C257="","",ALL_C_IMPRESE_ASSOCIATE!C257) ->  | D75: 30 | E75: =ALL_C_IMPRESE_ASSOCIATE!E257 -> 0 | F75: =ALL_C_IMPRESE_ASSOCIATE!F257 -> 0 | G75: =ALL_C_IMPRESE_ASSOCIATE!G257 -> 0 | H75: =ALL_C_IMPRESE_ASSOCIATE!I257 -> 0
A76: 1 | C76: =IF(ALL_C_IMPRESE_ASSOCIATE!C258="","",ALL_C_IMPRESE_ASSOCIATE!C258) ->  | D76: 30 | E76: =ALL_C_IMPRESE_ASSOCIATE!E258 -> 0 | F76: =ALL_C_IMPRESE_ASSOCIATE!F258 -> 0 | G76: =ALL_C_IMPRESE_ASSOCIATE!G258 -> 0 | H76: =ALL_C_IMPRESE_ASSOCIATE!I258 -> 0
A77: 1 | C77: =IF(ALL_C_IMPRESE_ASSOCIATE!C259="","",ALL_C_IMPRESE_ASSOCIATE!C259) ->  | D77: 30 | E77: =ALL_C_IMPRESE_ASSOCIATE!E259 -> 0 | F77: =ALL_C_IMPRESE_ASSOCIATE!F259 -> 0 | G77: =ALL_C_IMPRESE_ASSOCIATE!G259 -> 0 | H77: =ALL_C_IMPRESE_ASSOCIATE!I259 -> 0
A78: 1 | C78: =IF(ALL_C_IMPRESE_ASSOCIATE!C260="","",ALL_C_IMPRESE_ASSOCIATE!C260) ->  | D78: 30 | E78: =ALL_C_IMPRESE_ASSOCIATE!E260 -> 0 | F78: =ALL_C_IMPRESE_ASSOCIATE!F260 -> 0 | G78: =ALL_C_IMPRESE_ASSOCIATE!G260 -> 0 | H78: =ALL_C_IMPRESE_ASSOCIATE!I260 -> 0
A79: 1 | C79: =IF(ALL_C_IMPRESE_ASSOCIATE!C261="","",ALL_C_IMPRESE_ASSOCIATE!C261) ->  | D79: 30 | E79: =ALL_C_IMPRESE_ASSOCIATE!E261 -> 0 | F79: =ALL_C_IMPRESE_ASSOCIATE!F261 -> 0 | G79: =ALL_C_IMPRESE_ASSOCIATE!G261 -> 0 | H79: =ALL_C_IMPRESE_ASSOCIATE!I261 -> 0
A80: 1 | C80: =IF(ALL_C_IMPRESE_ASSOCIATE!C262="","",ALL_C_IMPRESE_ASSOCIATE!C262) ->  | D80: 30 | E80: =ALL_C_IMPRESE_ASSOCIATE!E262 -> 0 | F80: =ALL_C_IMPRESE_ASSOCIATE!F262 -> 0 | G80: =ALL_C_IMPRESE_ASSOCIATE!G262 -> 0 | H80: =ALL_C_IMPRESE_ASSOCIATE!I262 -> 0
A81: 1 | C81: =IF(ALL_C_IMPRESE_ASSOCIATE!C263="","",ALL_C_IMPRESE_ASSOCIATE!C263) ->  | D81: 30 | E81: =ALL_C_IMPRESE_ASSOCIATE!E263 -> 0 | F81: =ALL_C_IMPRESE_ASSOCIATE!F263 -> 0 | G81: =ALL_C_IMPRESE_ASSOCIATE!G263 -> 0 | H81: =ALL_C_IMPRESE_ASSOCIATE!I263 -> 0
A82: 1 | C82: =IF(ALL_C_IMPRESE_ASSOCIATE!C264="","",ALL_C_IMPRESE_ASSOCIATE!C264) ->  | D82: 30 | E82: =ALL_C_IMPRESE_ASSOCIATE!E264 -> 0 | F82: =ALL_C_IMPRESE_ASSOCIATE!F264 -> 0 | G82: =ALL_C_IMPRESE_ASSOCIATE!G264 -> 0 | H82: =ALL_C_IMPRESE_ASSOCIATE!I264 -> 0
A83: 1 | C83: =IF(ALL_C_IMPRESE_ASSOCIATE!C265="","",ALL_C_IMPRESE_ASSOCIATE!C265) ->  | D83: 30 | E83: =ALL_C_IMPRESE_ASSOCIATE!E265 -> 0 | F83: =ALL_C_IMPRESE_ASSOCIATE!F265 -> 0 | G83: =ALL_C_IMPRESE_ASSOCIATE!G265 -> 0 | H83: =ALL_C_IMPRESE_ASSOCIATE!I265 -> 0
A84: 1 | C84: =IF(ALL_C_IMPRESE_ASSOCIATE!C266="","",ALL_C_IMPRESE_ASSOCIATE!C266) ->  | D84: 30 | E84: =ALL_C_IMPRESE_ASSOCIATE!E266 -> 0 | F84: =ALL_C_IMPRESE_ASSOCIATE!F266 -> 0 | G84: =ALL_C_IMPRESE_ASSOCIATE!G266 -> 0 | H84: =ALL_C_IMPRESE_ASSOCIATE!I266 -> 0
A85: 1 | C85: =IF(ALL_C_IMPRESE_ASSOCIATE!C267="","",ALL_C_IMPRESE_ASSOCIATE!C267) ->  | D85: 30 | E85: =ALL_C_IMPRESE_ASSOCIATE!E267 -> 0 | F85: =ALL_C_IMPRESE_ASSOCIATE!F267 -> 0 | G85: =ALL_C_IMPRESE_ASSOCIATE!G267 -> 0 | H85: =ALL_C_IMPRESE_ASSOCIATE!I267 -> 0
A86: 1 | C86: =IF(ALL_C_IMPRESE_ASSOCIATE!C268="","",ALL_C_IMPRESE_ASSOCIATE!C268) ->  | D86: 30 | E86: =ALL_C_IMPRESE_ASSOCIATE!E268 -> 0 | F86: =ALL_C_IMPRESE_ASSOCIATE!F268 -> 0 | G86: =ALL_C_IMPRESE_ASSOCIATE!G268 -> 0 | H86: =ALL_C_IMPRESE_ASSOCIATE!I268 -> 0
A87: 1 | C87: =IF(ALL_C_IMPRESE_ASSOCIATE!C269="","",ALL_C_IMPRESE_ASSOCIATE!C269) ->  | D87: 30 | E87: =ALL_C_IMPRESE_ASSOCIATE!E269 -> 0 | F87: =ALL_C_IMPRESE_ASSOCIATE!F269 -> 0 | G87: =ALL_C_IMPRESE_ASSOCIATE!G269 -> 0 | H87: =ALL_C_IMPRESE_ASSOCIATE!I269 -> 0
A88: 1 | C88: =IF(ALL_C_IMPRESE_ASSOCIATE!C270="","",ALL_C_IMPRESE_ASSOCIATE!C270) ->  | D88: 30 | E88: =ALL_C_IMPRESE_ASSOCIATE!E270 -> 0 | F88: =ALL_C_IMPRESE_ASSOCIATE!F270 -> 0 | G88: =ALL_C_IMPRESE_ASSOCIATE!G270 -> 0 | H88: =ALL_C_IMPRESE_ASSOCIATE!I270 -> 0
A89: 1 | C89: =IF(ALL_C_IMPRESE_ASSOCIATE!C271="","",ALL_C_IMPRESE_ASSOCIATE!C271) ->  | D89: 30 | E89: =ALL_C_IMPRESE_ASSOCIATE!E271 -> 0 | F89: =ALL_C_IMPRESE_ASSOCIATE!F271 -> 0 | G89: =ALL_C_IMPRESE_ASSOCIATE!G271 -> 0 | H89: =ALL_C_IMPRESE_ASSOCIATE!I271 -> 0
A90: 1 | C90: =IF(ALL_C_IMPRESE_ASSOCIATE!C272="","",ALL_C_IMPRESE_ASSOCIATE!C272) ->  | D90: 30 | E90: =ALL_C_IMPRESE_ASSOCIATE!E272 -> 0 | F90: =ALL_C_IMPRESE_ASSOCIATE!F272 -> 0 | G90: =ALL_C_IMPRESE_ASSOCIATE!G272 -> 0 | H90: =ALL_C_IMPRESE_ASSOCIATE!I272 -> 0
A91: 1 | C91: =IF(ALL_C_IMPRESE_ASSOCIATE!C273="","",ALL_C_IMPRESE_ASSOCIATE!C273) ->  | D91: 30 | E91: =ALL_C_IMPRESE_ASSOCIATE!E273 -> 0 | F91: =ALL_C_IMPRESE_ASSOCIATE!F273 -> 0 | G91: =ALL_C_IMPRESE_ASSOCIATE!G273 -> 0 | H91: =ALL_C_IMPRESE_ASSOCIATE!I273 -> 0

Sheet EXP_PREVISIONI_VENDITE (hidden)
A1: ID | B1: ID_PROGRAMMA | C1: ANNO | D1: N_CONSEGNE_ANNO | E1: PREZZO_UNITARIO
A2: 1 | C2: =TRANSPOSE(ALL_D!C11:AF11) -> 0 | D2: =TRANSPOSE(ALL_D!C12:AF12) -> 0 | E2: =TRANSPOSE(ALL_D!C14:AF14) -> 0 | Z2: =IFERROR(SUM(C2:E31),"#ERR") -> 435 | AA2: =COUNTIF(X:Z,"#ERR") -> 0
A3: 1 | C3: 1 | D3: 0 | E3: 0
A4: 1 | C4: 2 | D4: 0 | E4: 0
A5: 1 | C5: 3 | D5: 0 | E5: 0
A6: 1 | C6: 4 | D6: 0 | E6: 0
A7: 1 | C7: 5 | D7: 0 | E7: 0
A8: 1 | C8: 6 | D8: 0 | E8: 0
A9: 1 | C9: 7 | D9: 0 | E9: 0
A10: 1 | C10: 8 | D10: 0 | E10: 0
A11: 1 | C11: 9 | D11: 0 | E11: 0
A12: 1 | C12: 10 | D12: 0 | E12: 0
A13: 1 | C13: 11 | D13: 0 | E13: 0
A14: 1 | C14: 12 | D14: 0 | E14: 0
A15: 1 | C15: 13 | D15: 0 | E15: 0
A16: 1 | C16: 14 | D16: 0 | E16: 0
A17: 1 | C17: 15 | D17: 0 | E17: 0
A18: 1 | C18: 16 | D18: 0 | E18: 0
A19: 1 | C19: 17 | D19: 0 | E19: 0
A20: 1 | C20: 18 | D20: 0 | E20: 0
A21: 1 | C21: 19 | D21: 0 | E21: 0
A22: 1 | C22: 20 | D22: 0 | E22: 0
A23: 1 | C23: 21 | D23: 0 | E23: 0
A24: 1 | C24: 22 | D24: 0 | E24: 0
A25: 1 | C25: 23 | D25: 0 | E25: 0
A26: 1 | C26: 24 | D26: 0 | E26: 0
A27: 1 | C27: 25 | D27: 0 | E27: 0
A28: 1 | C28: 26 | D28: 0 | E28: 0
A29: 1 | C29: 27 | D29: 0 | E29: 0
A30: 1 | C30: 28 | D30: 0 | E30: 0
A31: 1 | C31: 29 | D31: 0 | E31: 0
